Workbook

Sheet DataHPS (hidden)

Sheet DataCC (hidden)
A1: Copy data from here to Customer Count sheet
A3: Month | B3: Year | K3: PAL | L3: U | M3: =SUMIFS(POLR_Cust_Count, POLR_RATE_PLAN, K3,POLR_UTILITY_TYPE,L3,POLR_REVENUE_CLASS,"<>COMPANY") -> 576 | Q3: PAL | R3: U | S3: =SUMIFS(EGS_Cust_Count, EGS_RATE_PLAN, Q3,EGS_UTILITY_TYPE,R3,EGS_REVENUE_CLASS,"<>COMPANY") -> 202
A4: =reportmonth ->  | B4: =reportyear ->  | K4: AL | L4: E | M4: =SUMIFS(POLR_Cust_Count, POLR_RATE_PLAN, K4,POLR_UTILITY_TYPE,L4,POLR_REVENUE_CLASS,"<>COMPANY") -> 2 | Q4: AL | R4: E | S4: =SUMIFS(EGS_Cust_Count, EGS_RATE_PLAN, Q4,EGS_UTILITY_TYPE,R4,EGS_REVENUE_CLASS,"<>COMPANY") -> 1
K5: SH | L5: U | M5: =SUMIFS(POLR_Cust_Count, POLR_RATE_PLAN, K5,POLR_UTILITY_TYPE,L5,POLR_REVENUE_CLASS,"<>COMPANY") -> 2 | Q5: SH | R5: U | S5: =SUMIFS(EGS_Cust_Count, EGS_RATE_PLAN, Q5,EGS_UTILITY_TYPE,R5,EGS_REVENUE_CLASS,"<>COMPANY") -> 11
K6: SM | L6: U | M6: =SUMIFS(POLR_Cust_Count, POLR_RATE_PLAN, K6,POLR_UTILITY_TYPE,L6,POLR_REVENUE_CLASS,"<>COMPANY") -> 92 | Q6: SM | R6: U | S6: =SUMIFS(EGS_Cust_Count, EGS_RATE_PLAN, Q6,EGS_UTILITY_TYPE,R6,EGS_REVENUE_CLASS,"<>COMPANY") -> 83
K7: SE | L7: U | M7: =SUMIFS(POLR_Cust_Count, POLR_RATE_PLAN, K7,POLR_UTILITY_TYPE,L7,POLR_REVENUE_CLASS,"<>COMPANY") -> 0 | Q7: SE | R7: U | S7: =SUMIFS(EGS_Cust_Count, EGS_RATE_PLAN, Q7,EGS_UTILITY_TYPE,R7,EGS_REVENUE_CLASS,"<>COMPANY") -> 1 | AX7: POLR | BF7: EGS | BN7: POLR HPS | BV7: EGS HPS
B9: PoLR | F9: EGS | J9: PoLR | P9: EGS | V9: PoLR | AB9: EGS | AH9: POLR HPS | AP9: EGS HPS | AX9: REVENUE_YEAR | AY9: REVENUE_MONTH | AZ9: SUPPLIER_ID | BA9: REVENUE_CLASS_ID | BB9: RATE_PLAN_ALPHA_ID | BC9: UTILITY_TYPE_ID | BD9: CNT_CUSTOMERS | BF9: REVENUE_YEAR | BG9: REVENUE_MONTH | BH9: SUPPLIER_ID | BI9: REVENUE_CLASS_ID | BJ9: RATE_PLAN_ALPHA_ID | BK9: UTILITY_TYPE_ID | BL9: CNT_CUSTOMERS | BN9: REVENUE_YEAR | BO9: REVENUE_MONTH | BP9: SUPPLIER_ID | BQ9: REVENUE_CLASS_ID | BR9: RATE_PLAN_ALPHA_ID | BS9: UTILITY_TYPE_ID | BT9: CNT_CUSTOMERS | BV9: REVENUE_YEAR | BW9: REVENUE_MONTH | BX9: SUPPLIER_ID | BY9: REVENUE_CLASS_ID | BZ9: RATE_PLAN_ALPHA_ID | CA9: UTILITY_TYPE_ID | CB9: CNT_CUSTOMERS
B10: Customers | F10: Customers | J10: Customers | P10: Customers | V10: Customers | AB10: Customers | AH10: Customers | AP10: Customers | AX10: 2021 | AY10: 06 | AZ10: DLCO-UNBUN | BA10: LIGHTING | BB10: AL | BC10: E | BD10: 2 | BF10: 2021 | BG10: 06 | BH10: CHMPN | BI10: LIGHTING | BJ10: AL | BK10: E | BL10: 1 | BN10: 2021 | BO10: 06 | BP10: DLCO | BQ10: COM | BR10: GM>25 | BS10: E | BT10: 45 | BV10: 2021 | BW10: 06 | BX10: MARATHON | BY10: COM | BZ10: GM>25 | CA10: E | CB10: 2
A11: Month | B11: GM>25 | C11: GMH>25 | D11: Total | F11: GM>25 | G11: GMH>25 | H11: Total | J11: RS | K11: RA | L11: RH | M11: Lighting | N11: Total | P11: RS | Q11: RA | R11: RH | S11: Lighting | T11: Total | V11: Unmetered | W11: GS | X11: GM<25 | Y11: GMH<25 | Z11: Total | AB11: Unmetered | AC11: GS | AD11: GM<25 | AE11: GMH<25 | AF11: Total | AH11: GM>25 | AI11: GMH>25 | AJ11: GL | AK11: GLH | AL11: HVPS | AM11: L | AN11: Total | AP11: GM>25 | AQ11: GMH>25 | AR11: GL | AS11: GLH | AT11: HVPS | AU11: L | AV11: Total | AX11: 2021 | AY11: 06 | AZ11: DLCO | BA11: COM | BB11: GL-C | BC11: E | BD11: 58 | BF11: 2021 | BG11: 06 | BH11: FIRST | BI11: COM | BJ11: GL-C | BK11: E | BL11: 19 | BN11: 2021 | BO11: 06 | BP11: DLCO | BQ11: COM | BR11: GM>25 | BS11: E | BT11: 1 | BV11: 2021 | BW11: 06 | BX11: PUBLICPOWR | BY11: COM | BZ11: GM>25 | CA11: E | CB11: 1
A12: =DATE(AX10,AY10,1) -> 2021-06-01 | B12: =SUMIFS(POLR_Cust_Count, POLR_RATE_PLAN, B11,POLR_UTILITY_TYPE,"=E",POLR_REVENUE_CLASS,"<>COMPANY") -> 2179 | C12: =SUMIFS(POLR_Cust_Count, POLR_RATE_PLAN, C11,POLR_UTILITY_TYPE,"=E",POLR_REVENUE_CLASS,"<>COMPANY") -> 235 | D12: =SUM(B12:C12) -> 2414 | F12: =SUMIFS(EGS_Cust_Count, EGS_RATE_PLAN, F11,EGS_UTILITY_TYPE,"=E",EGS_REVENUE_CLASS,"<>COMPANY") -> 3871 | G12: =SUMIFS(EGS_Cust_Count, EGS_RATE_PLAN, G11,EGS_UTILITY_TYPE,"=E",EGS_REVENUE_CLASS,"<>COMPANY") -> 345 | H12: =SUM(F12:G12) -> 4216 | J12: =SUMIFS(POLR_Cust_Count, POLR_RATE_PLAN, J11,POLR_UTILITY_TYPE,"=E",POLR_REVENUE_CLASS,"<>COMPANY") -> 370435 | K12: =SUMIFS(POLR_Cust_Count, POLR_RATE_PLAN, K11,POLR_UTILITY_TYPE,"=E",POLR_REVENUE_CLASS,"<>COMPANY") -> 4688 | L12: =SUMIFS(POLR_Cust_Count, POLR_RATE_PLAN, L11,POLR_UTILITY_TYPE,"=E",POLR_REVENUE_CLASS,"<>COMPANY") -> 33768 | M12: =SUM(M3:M7) -> 672 | N12: =SUM(J12:M12) -> 409563 | P12: =SUMIFS(EGS_Cust_Count, EGS_RATE_PLAN, P11,EGS_UTILITY_TYPE,"=E",EGS_REVENUE_CLASS,"<>COMPANY") -> 127819 | Q12: =SUMIFS(EGS_Cust_Count, EGS_RATE_PLAN, Q11,EGS_UTILITY_TYPE,"=E",EGS_REVENUE_CLASS,"<>COMPANY") -> 1085 | R12: =SUMIFS(EGS_Cust_Count, EGS_RATE_PLAN, R11,EGS_UTILITY_TYPE,"=E",EGS_REVENUE_CLASS,"<>COMPANY") -> 4976 | S12: =SUM(S3:S7) -> 298 | T12: =SUM(P12:S12) -> 134178 | V12: =SUMIFS(POLR_Cust_Count, POLR_RATE_PLAN, "=UMS",POLR_UTILITY_TYPE,"=U",POLR_REVENUE_CLASS,"<>COMPANY") -> 0 | W12: =SUMIFS(POLR_Cust_Count, POLR_RATE_PLAN, W11,POLR_UTILITY_TYPE,"=E",POLR_REVENUE_CLASS,"<>COMPANY") -> 19004 | X12: =SUMIFS(POLR_Cust_Count, POLR_RATE_PLAN, X11,POLR_UTILITY_TYPE,"=E",POLR_REVENUE_CLASS,"<>COMPANY") -> 12804 | Y12: =SUMIFS(POLR_Cust_Count, POLR_RATE_PLAN, Y11,POLR_UTILITY_TYPE,"=E",POLR_REVENUE_CLASS,"<>COMPANY") -> 1709 | Z12: =SUM(V12:Y12) -> 33517 | AB12: =SUMIFS(EGS_Cust_Count, EGS_RATE_PLAN, "=UMS",EGS_UTILITY_TYPE,"=U",EGS_REVENUE_CLASS,"<>COMPANY") -> 0 | AC12: =SUMIFS(EGS_Cust_Count, EGS_RATE_PLAN, AC11,EGS_UTILITY_TYPE,"=E",EGS_REVENUE_CLASS,"<>COMPANY") -> 6149 | AD12: =SUMIFS(EGS_Cust_Count, EGS_RATE_PLAN, AD11,EGS_UTILITY_TYPE,"=E",EGS_REVENUE_CLASS,"<>COMPANY") -> 7514 | AE12: =SUMIFS(EGS_Cust_Count, EGS_RATE_PLAN, AE11,EGS_UTILITY_TYPE,"=E",EGS_REVENUE_CLASS,"<>COMPANY") -> 840 | AF12: =SUM(AB12:AE12) -> 14503 | AH12: =SUMIFS(POLR_HPS_Cust_Count, POLR_HPS_RATE_PLAN, AH11,POLR_HPS_UTILITY_TYPE,"=E",POLR_HPS_REVENUE_CLASS,"<>COMPANY") -> 58 | AI12: 11 | AJ12: 0 | AK12: 0 | AL12: 1 | AM12: 0 | AN12: =SUM(AH12:AM12) -> 70 | AP12: =SUMIFS(EGS_HPS_Cust_Count, EGS_HPS_RATE_PLAN, AP11,EGS_HPS_UTILITY_TYPE,"=E",EGS_HPS_REVENUE_CLASS,"<>COMPANY") -> 350 | AQ12: 33 | AR12: 0 | AS12: 0 | AT12: 9 | AU12: 0 | AV12: =SUM(AP12:AU12) -> 392 | AX12: 2021 | AY12: 06 | AZ12: DLCO | BA12: COM | BB12: GL-C | BC12: E | BD12: 1 | BF12: 2021 | BG12: 06 | BH12: MIDAMENERY | BI12: COM | BJ12: GL-C | BK12: E | BL12: 22 | BN12: 2021 | BO12: 06 | BP12: DLCO | BQ12: IND | BR12: GM>25 | BS12: E | BT12: 12 | BV12: 2021 | BW12: 06 | BX12: SFE ENERGY | BY12: IND | BZ12: GM>25 | CA12: E | CB12: 1
AX13: 2021 | AY13: 06 | AZ13: DLCO | BA13: IND | BB13: GL-I | BC13: E | BD13: 12 | BF13: 2021 | BG13: 06 | BH13: FREEPOINT | BI13: COM | BJ13: GL-C | BK13: E | BL13: 14 | BN13: 2021 | BO13: 06 | BP13: DLCO | BQ13: COM | BR13: GMH>25 | BS13: E | BT13: 10 | BV13: 2021 | BW13: 06 | BX13: DYNEGY | BY13: COM | BZ13: GM>25 | CA13: E | CB13: 8
AX14: 2021 | AY14: 06 | AZ14: DLCO | BA14: COM | BB14: GLH-C | BC14: E | BD14: 8 | BF14: 2021 | BG14: 06 | BH14: CHMPN | BI14: COM | BJ14: GL-C | BK14: E | BL14: 9 | BN14: 2021 | BO14: 06 | BP14: DLCO | BQ14: IND | BR14: GMH>25 | BS14: E | BT14: 1 | BV14: 2021 | BW14: 06 | BX14: TRACTEBEL | BY14: IND | BZ14: GM>25 | CA14: E | CB14: 3
AX15: 2021 | AY15: 06 | AZ15: DLCO | BA15: IND | BB15: GLH-I | BC15: E | BD15: 1 | BF15: 2021 | BG15: 06 | BH15: AE2PENERGY | BI15: COM | BJ15: GL-C | BK15: E | BL15: 1 | BN15: 2021 | BO15: 06 | BP15: DLCO | BQ15: IND | BR15: HVPS | BS15: E | BT15: 1 | BV15: 2021 | BW15: 06 | BX15: MIDAMENERY | BY15: IND | BZ15: GM>25 | CA15: E | CB15: 2
AX16: 2021 | AY16: 06 | AZ16: FPS-RFP002 | BA16: COM | BB16: GM<25 | BC16: E | BD16: 12535 | BF16: 2021 | BG16: 06 | BH16: UGIES | BI16: COM | BJ16: GL-C | BK16: E | BL16: 4 | BV16: 2021 | BW16: 06 | BX16: GREENMOUNT | BY16: COM | BZ16: GM>25 | CA16: E | CB16: 1
AX17: 2021 | AY17: 06 | AZ17: FPS-RFP002 | BA17: COM | BB17: GM<25 | BC17: E | BD17: 1 | BF17: 2021 | BG17: 06 | BH17: WASHINGTON | BI17: COM | BJ17: GL-C | BK17: E | BL17: 50 | BV17: 2021 | BW17: 06 | BX17: IGS ENERGY | BY17: COM | BZ17: GM>25 | CA17: E | CB17: 7
AX18: 2021 | AY18: 06 | AZ18: FPS-RFP002 | BA18: COM | BB18: GM<25 | BC18: E | BD18: 86 | BF18: 2021 | BG18: 06 | BH18: EDF ENERGY | BI18: COM | BJ18: GL-C | BK18: E | BL18: 9 | BV18: 2021 | BW18: 06 | BX18: EDF ENERGY | BY18: COM | BZ18: GM>25 | CA18: E | CB18: 2
AX19: 2021 | AY19: 06 | AZ19: FPS-RFP002 | BA19: IND | BB19: GM<25 | BC19: E | BD19: 2 | BF19: 2021 | BG19: 06 | BH19: DEBENERGY | BI19: COM | BJ19: GL-C | BK19: E | BL19: 20 | BV19: 2021 | BW19: 06 | BX19: FPLG012 | BY19: COM | BZ19: GM>25 | CA19: E | CB19: 9
AX20: 2021 | AY20: 06 | AZ20: FPS-RFP002 | BA20: IND | BB20: GM<25 | BC20: E | BD20: 147 | BF20: 2021 | BG20: 06 | BH20: AEPENERGY | BI20: COM | BJ20: GL-C | BK20: E | BL20: 7 | BV20: 2021 | BW20: 06 | BX20: EPLEUR | BY20: COM | BZ20: GM>25 | CA20: E | CB20: 6
AX21: 2021 | AY21: 06 | AZ21: FPS-RFP002 | BA21: COM | BB21: GM<25 | BC21: E | BD21: 24 | BF21: 2021 | BG21: 06 | BH21: FPLG012 | BI21: COM | BJ21: GL-C | BK21: E | BL21: 18 | BV21: 2021 | BW21: 06 | BX21: UGIES | BY21: COM | BZ21: GM>25 | CA21: E | CB21: 7
AX22: 2021 | AY22: 06 | AZ22: FPS-RFP002 | BA22: COM | BB22: GM<25 | BC22: E | BD22: 5 | BF22: 2021 | BG22: 06 | BH22: EPLEUR | BI22: COM | BJ22: GL-C | BK22: E | BL22: 17 | BV22: 2021 | BW22: 06 | BX22: NRGREN | BY22: IND | BZ22: GM>25 | CA22: E | CB22: 1
AX23: 2021 | AY23: 06 | AZ23: FPS-RFP002 | BA23: COM | BB23: GM<25 | BC23: E | BD23: 4 | BF23: 2021 | BG23: 06 | BH23: CNEWENERGY | BI23: COM | BJ23: GL-C | BK23: E | BL23: 106 | BV23: 2021 | BW23: 06 | BX23: CNEWENERGY | BY23: IND | BZ23: GM>25 | CA23: E | CB23: 13
AX24: 2021 | AY24: 06 | AZ24: FPS-RFP001 | BA24: IND | BB24: GM>25 | BC24: U | BD24: 1 | BF24: 2021 | BG24: 06 | BH24: CNEWENERGY | BI24: COM | BJ24: GL-C | BK24: E | BL24: 1 | BV24: 2021 | BW24: 06 | BX24: TRACTEBEL | BY24: COM | BZ24: GM>25 | CA24: E | CB24: 14
AX25: 2021 | AY25: 06 | AZ25: FPS-RFP001 | BA25: IND | BB25: GM>25 | BC25: E | BD25: 1 | BF25: 2021 | BG25: 06 | BH25: DYNEGY | BI25: COM | BJ25: GL-C | BK25: E | BL25: 10 | BV25: 2021 | BW25: 06 | BX25: TEXAS | BY25: COM | BZ25: GM>25 | CA25: E | CB25: 2
AX26: 2021 | AY26: 06 | AZ26: FPS-RFP001 | BA26: COM | BB26: GM>25 | BC26: E | BD26: 1 | BF26: 2021 | BG26: 06 | BH26: TRIEGL | BI26: COM | BJ26: GL-C | BK26: E | BL26: 2 | BV26: 2021 | BW26: 06 | BX26: HUDSON | BY26: COM | BZ26: GM>25 | CA26: E | CB26: 8
AX27: 2021 | AY27: 06 | AZ27: FPS-RFP001 | BA27: COM | BB27: GM>25 | BC27: E | BD27: 1978 | BF27: 2021 | BG27: 06 | BH27: SFE ENERGY | BI27: COM | BJ27: GL-C | BK27: E | BL27: 1 | BV27: 2021 | BW27: 06 | BX27: FREEPOINT | BY27: COM | BZ27: GM>25 | CA27: E | CB27: 4
AX28: 2021 | AY28: 06 | AZ28: FPS-RFP001 | BA28: COM | BB28: GM>25 | BC28: E | BD28: 1 | BF28: 2021 | BG28: 06 | BH28: DEBENERGY | BI28: COM | BJ28: GL-C | BK28: E | BL28: 1 | BV28: 2021 | BW28: 06 | BX28: DEBENERGY | BY28: COM | BZ28: GM>25 | CA28: E | CB28: 2
AX29: 2021 | AY29: 06 | AZ29: FPS-RFP001 | BA29: COM | BB29: GM>25 | BC29: E | BD29: 15 | BF29: 2021 | BG29: 06 | BH29: MP2ENERGY | BI29: COM | BJ29: GL-C | BK29: E | BL29: 6 | BV29: 2021 | BW29: 06 | BX29: FREEPOINT | BY29: IND | BZ29: GM>25 | CA29: E | CB29: 4
AX30: 2021 | AY30: 06 | AZ30: FPS-RFP001 | BA30: IND | BB30: GM>25 | BC30: E | BD30: 183 | BF30: 2021 | BG30: 06 | BH30: AMERICANPN | BI30: COM | BJ30: GL-C | BK30: E | BL30: 1 | BV30: 2021 | BW30: 06 | BX30: MP2ENERGY | BY30: COM | BZ30: GM>25 | CA30: E | CB30: 1
AX31: 2021 | AY31: 06 | AZ31: FPS-RFP001 | BA31: COM | BB31: GM>25 | BC31: U | BD31: 1 | BF31: 2021 | BG31: 06 | BH31: TRACTEBEL | BI31: COM | BJ31: GL-C | BK31: E | BL31: 33 | BV31: 2021 | BW31: 06 | BX31: STRATEGEN | BY31: COM | BZ31: GM>25 | CA31: E | CB31: 61
AX32: 2021 | AY32: 06 | AZ32: FPS-RFP001 | BA32: IND | BB32: GM>25 | BC32: U | BD32: 183 | BF32: 2021 | BG32: 06 | BH32: STRATEGEN | BI32: COM | BJ32: GL-C | BK32: E | BL32: 1 | BV32: 2021 | BW32: 06 | BX32: AMERICANPG | BY32: COM | BZ32: GM>25 | CA32: E | CB32: 2
AX33: 2021 | AY33: 06 | AZ33: FPS-RFP002 | BA33: IND | BB33: GMH<25 | BC33: E | BD33: 17 | BF33: 2021 | BG33: 06 | BH33: STRATEGEN | BI33: COM | BJ33: GL-C | BK33: E | BL33: 2 | BV33: 2021 | BW33: 06 | BX33: AMERICANPG | BY33: IND | BZ33: GM>25 | CA33: E | CB33: 1
AX34: 2021 | AY34: 06 | AZ34: FPS-RFP002 | BA34: COM | BB34: GMH<25 | BC34: E | BD34: 2 | BF34: 2021 | BG34: 06 | BH34: DYNEGY | BI34: COM | BJ34: GL-C | BK34: E | BL34: 1 | BV34: 2021 | BW34: 06 | BX34: TRIEGL | BY34: COM | BZ34: GM>25 | CA34: E | CB34: 7
AX35: 2021 | AY35: 06 | AZ35: FPS-RFP002 | BA35: COM | BB35: GMH<25 | BC35: E | BD35: 1690 | BF35: 2021 | BG35: 06 | BH35: SEMPRA | BI35: COM | BJ35: GL-C | BK35: E | BL35: 3 | BV35: 2021 | BW35: 06 | BX35: LIBERTY | BY35: COM | BZ35: GM>25 | CA35: E | CB35: 2
AX36: 2021 | AY36: 06 | AZ36: FPS-RFP001 | BA36: IND | BB36: GMH>25 | BC36: E | BD36: 10 | BF36: 2021 | BG36: 06 | BH36: APGE | BI36: COM | BJ36: GL-C | BK36: E | BL36: 2 | BV36: 2021 | BW36: 06 | BX36: WASHINGTON | BY36: COM | BZ36: GM>25 | CA36: E | CB36: 21
AX37: 2021 | AY37: 06 | AZ37: FPS-RFP001 | BA37: COM | BB37: GMH>25 | BC37: E | BD37: 1 | BF37: 2021 | BG37: 06 | BH37: STRATEGEN | BI37: COM | BJ37: GL-C | BK37: E | BL37: 121 | BV37: 2021 | BW37: 06 | BX37: FIRST | BY37: COM | BZ37: GM>25 | CA37: E | CB37: 8
AX38: 2021 | AY38: 06 | AZ38: FPS-RFP001 | BA38: COM | BB38: GMH>25 | BC38: E | BD38: 224 | BF38: 2021 | BG38: 06 | BH38: MIDAMENERY | BI38: COM | BJ38: GL-C | BK38: E | BL38: 8 | BV38: 2021 | BW38: 06 | BX38: FPLG012 | BY38: IND | BZ38: GM>25 | CA38: E | CB38: 3
AX39: 2021 | AY39: 06 | AZ39: FPS-RFP002 | BA39: COM | BB39: GM_UM | BC39: E | BD39: 1338 | BF39: 2021 | BG39: 06 | BH39: IGS ENERGY | BI39: COM | BJ39: GL-C | BK39: E | BL39: 3 | BV39: 2021 | BW39: 06 | BX39: STRATEGEN | BY39: COM | BZ39: GM>25 | CA39: E | CB39: 1
AX40: 2021 | AY40: 06 | AZ40: FPS-RFP002 | BA40: COM | BB40: GM_UM | BC40: U | BD40: 7 | BF40: 2021 | BG40: 06 | BH40: NRGREN | BI40: COM | BJ40: GL-C | BK40: E | BL40: 2 | BV40: 2021 | BW40: 06 | BX40: TRIEGL | BY40: IND | BZ40: GM>25 | CA40: E | CB40: 1
AX41: 2021 | AY41: 06 | AZ41: FPS-RFP002 | BA41: COM | BB41: GM_UM | BC41: U | BD41: 1338 | BF41: 2021 | BG41: 06 | BH41: EPLEUR | BI41: COM | BJ41: GL-C | BK41: E | BL41: 1 | BV41: 2021 | BW41: 06 | BX41: NRGREN | BY41: COM | BZ41: GM>25 | CA41: E | CB41: 1
AX42: 2021 | AY42: 06 | AZ42: FPS-RFP002 | BA42: COM | BB42: GM_UM | BC42: E | BD42: 7 | BF42: 2021 | BG42: 06 | BH42: PLYMOUTH | BI42: COM | BJ42: GL-C | BK42: E | BL42: 1 | BV42: 2021 | BW42: 06 | BX42: LIBERTY | BY42: IND | BZ42: GM>25 | CA42: E | CB42: 1
AX43: 2021 | AY43: 06 | AZ43: FPS-RFP002 | BA43: COM | BB43: GS | BC43: U | BD43: 1 | BF43: 2021 | BG43: 06 | BH43: TEXAS | BI43: COM | BJ43: GL-C | BK43: E | BL43: 6 | BV43: 2021 | BW43: 06 | BX43: HUDSON | BY43: IND | BZ43: GM>25 | CA43: E | CB43: 2
AX44: 2021 | AY44: 06 | AZ44: FPS-RFP002 | BA44: COM | BB44: GS | BC44: E | BD44: 1 | BF44: 2021 | BG44: 06 | BH44: FREEPOINT | BI44: IND | BJ44: GL-I | BK44: E | BL44: 1 | BV44: 2021 | BW44: 06 | BX44: CHMPN | BY44: COM | BZ44: GM>25 | CA44: E | CB44: 1
AX45: 2021 | AY45: 06 | AZ45: FPS-RFP002 | BA45: COM | BB45: GS | BC45: E | BD45: 18967 | BF45: 2021 | BG45: 06 | BH45: STRATEGEN | BI45: IND | BJ45: GL-I | BK45: E | BL45: 37 | BV45: 2021 | BW45: 06 | BX45: APGE | BY45: COM | BZ45: GM>25 | CA45: E | CB45: 1
AX46: 2021 | AY46: 06 | AZ46: FPS-RFP002 | BA46: COM | BB46: GS | BC46: E | BD46: 27 | BF46: 2021 | BG46: 06 | BH46: APNSTARSUB | BI46: IND | BJ46: GL-I | BK46: E | BL46: 1 | BV46: 2021 | BW46: 06 | BX46: MIDAMENERY | BY46: COM | BZ46: GM>25 | CA46: E | CB46: 11
AX47: 2021 | AY47: 06 | AZ47: FPS-RFP002 | BA47: COM | BB47: GS | BC47: E | BD47: 9 | BF47: 2021 | BG47: 06 | BH47: MP2ENERGY | BI47: IND | BJ47: GL-I | BK47: E | BL47: 7 | BV47: 2021 | BW47: 06 | BX47: TRIEGL | BY47: COM | BZ47: GM>25 | CA47: E | CB47: 1
AX48: 2021 | AY48: 06 | AZ48: DLCO | BA48: IND | BB48: HVPS | BC48: E | BD48: 1 | BF48: 2021 | BG48: 06 | BH48: MIDAMENERY | BI48: IND | BJ48: GL-I | BK48: E | BL48: 1 | BV48: 2021 | BW48: 06 | BX48: SUNWAVEGP | BY48: COM | BZ48: GM>25 | CA48: E | CB48: 1
AX49: 2021 | AY49: 06 | AZ49: DLCO | BA49: COM | BB49: L-C | BC49: E | BD49: 1 | BF49: 2021 | BG49: 06 | BH49: IGS ENERGY | BI49: IND | BJ49: GL-I | BK49: E | BL49: 3 | BV49: 2021 | BW49: 06 | BX49: AEPENERGY | BY49: COM | BZ49: GM>25 | CA49: E | CB49: 6
AX50: 2021 | AY50: 06 | AZ50: FPS-RFP002 | BA50: COM | BB50: MTS | BC50: E | BD50: 777 | BF50: 2021 | BG50: 06 | BH50: NRGREN | BI50: IND | BJ50: GL-I | BK50: E | BL50: 2 | BV50: 2021 | BW50: 06 | BX50: FIRST | BY50: IND | BZ50: GM>25 | CA50: E | CB50: 1
AX51: 2021 | AY51: 06 | AZ51: FPS-RFP002 | BA51: COM | BB51: MTS | BC51: U | BD51: 777 | BF51: 2021 | BG51: 06 | BH51: ENERGYTRP | BI51: IND | BJ51: GL-I | BK51: E | BL51: 2 | BV51: 2021 | BW51: 06 | BX51: CONSTELLAT | BY51: IND | BZ51: GM>25 | CA51: E | CB51: 1
AX52: 2021 | AY52: 06 | AZ52: DLCO-UNBUN | BA52: LIGHTING | BB52: PAL | BC52: U | BD52: 576 | BF52: 2021 | BG52: 06 | BH52: DYNEGY | BI52: IND | BJ52: GL-I | BK52: E | BL52: 4 | BV52: 2021 | BW52: 06 | BX52: EPLEUR | BY52: IND | BZ52: GM>25 | CA52: E | CB52: 3
AX53: 2021 | AY53: 06 | AZ53: DLCO-UNBUN | BA53: LIGHTING | BB53: PAL | BC53: E | BD53: 576 | BF53: 2021 | BG53: 06 | BH53: TRIEGL | BI53: IND | BJ53: GL-I | BK53: E | BL53: 1 | BV53: 2021 | BW53: 06 | BX53: MP2ENERGY | BY53: IND | BZ53: GM>25 | CA53: E | CB53: 1
AX54: 2021 | AY54: 06 | AZ54: DLCO-UNBUN | BA54: RES | BB54: RA | BC54: E | BD54: 4645 | BF54: 2021 | BG54: 06 | BH54: FIRST | BI54: IND | BJ54: GL-I | BK54: E | BL54: 12 | BV54: 2021 | BW54: 06 | BX54: DIRECT | BY54: COM | BZ54: GM>25 | CA54: E | CB54: 1
AX55: 2021 | AY55: 06 | AZ55: DLCO-UNBUN | BA55: RES | BB55: RA | BC55: E | BD55: 43 | BF55: 2021 | BG55: 06 | BH55: DEBENERGY | BI55: IND | BJ55: GL-I | BK55: E | BL55: 1 | BV55: 2021 | BW55: 06 | BX55: UGIES | BY55: IND | BZ55: GM>25 | CA55: E | CB55: 3
AX56: 2021 | AY56: 06 | AZ56: DLCO-UNBUN | BA56: RES | BB56: RH | BC56: E | BD56: 33668 | BF56: 2021 | BG56: 06 | BH56: WASHINGTON | BI56: IND | BJ56: GL-I | BK56: E | BL56: 1 | BV56: 2021 | BW56: 06 | BX56: WASHINGTON | BY56: IND | BZ56: GM>25 | CA56: E | CB56: 3
AX57: 2021 | AY57: 06 | AZ57: DLCO-UNBUN | BA57: RES | BB57: RH | BC57: E | BD57: 100 | BF57: 2021 | BG57: 06 | BH57: STRATEGEN | BI57: IND | BJ57: GL-I | BK57: E | BL57: 1 | BV57: 2021 | BW57: 06 | BX57: MP2ENERGY | BY57: COM | BZ57: GM>25 | CA57: E | CB57: 7
AX58: 2021 | AY58: 06 | AZ58: DLCO-UNBUN | BA58: RES | BB58: RS | BC58: E | BD58: 1 | BF58: 2021 | BG58: 06 | BH58: APN STAR | BI58: IND | BJ58: GL-I | BK58: E | BL58: 1 | BV58: 2021 | BW58: 06 | BX58: IGS ENERGY | BY58: IND | BZ58: GM>25 | CA58: E | CB58: 2
AX59: 2021 | AY59: 06 | AZ59: DLCO-UNBUN | BA59: RES | BB59: RS | BC59: E | BD59: 23 | BF59: 2021 | BG59: 06 | BH59: PLYMOUTH | BI59: IND | BJ59: GL-I | BK59: E | BL59: 1 | BV59: 2021 | BW59: 06 | BX59: CNEWENERGY | BY59: COM | BZ59: GM>25 | CA59: E | CB59: 61
AX60: 2021 | AY60: 06 | AZ60: DLCO-UNBUN | BA60: RES | BB60: RS | BC60: E | BD60: 2469 | BF60: 2021 | BG60: 06 | BH60: WASHINGTON | BI60: IND | BJ60: GL-I | BK60: E | BL60: 8 | BV60: 2021 | BW60: 06 | BX60: ENERGYTRP | BY60: IND | BZ60: GM>25 | CA60: E | CB60: 1
AX61: 2021 | AY61: 06 | AZ61: DLCO-UNBUN | BA61: RES | BB61: RS | BC61: E | BD61: 367941 | BF61: 2021 | BG61: 06 | BH61: SEMPRA | BI61: IND | BJ61: GL-I | BK61: E | BL61: 4 | BV61: 2021 | BW61: 06 | BX61: AEPENERGY | BY61: COM | BZ61: GM>25 | CA61: E | CB61: 1
AX62: 2021 | AY62: 06 | AZ62: DLCO-UNBUN | BA62: RES | BB62: RS | BC62: E | BD62: 1 | BF62: 2021 | BG62: 06 | BH62: TEXAS | BI62: IND | BJ62: GL-I | BK62: E | BL62: 2 | BV62: 2021 | BW62: 06 | BX62: SEMPRA | BY62: COM | BZ62: GM>25 | CA62: E | CB62: 16
AX63: 2021 | AY63: 06 | AZ63: DLCO-UNBUN | BA63: RES | BB63: RS | BC63: U | BD63: 367941 | BF63: 2021 | BG63: 06 | BH63: CNEWENERGY | BI63: IND | BJ63: GL-I | BK63: E | BL63: 41 | BV63: 2021 | BW63: 06 | BX63: AEPENERGY | BY63: IND | BZ63: GM>25 | CA63: E | CB63: 3
AX64: 2021 | AY64: 06 | AZ64: DLCO-UNBUN | BA64: RES | BB64: RS | BC64: U | BD64: 1 | BF64: 2021 | BG64: 06 | BH64: EPLEUR | BI64: IND | BJ64: GL-I | BK64: E | BL64: 11 | BV64: 2021 | BW64: 06 | BX64: NEWAVENER | BY64: IND | BZ64: GM>25 | CA64: E | CB64: 1
AX65: 2021 | AY65: 06 | AZ65: DLCO-UNBUN | BA65: LIGHTING | BB65: SH | BC65: U | BD65: 2 | BF65: 2021 | BG65: 06 | BH65: FPLG012 | BI65: IND | BJ65: GL-I | BK65: E | BL65: 6 | BV65: 2021 | BW65: 06 | BX65: STRATEGEN | BY65: IND | BZ65: GM>25 | CA65: E | CB65: 15
AX66: 2021 | AY66: 06 | AZ66: DLCO-UNBUN | BA66: LIGHTING | BB66: SH | BC66: E | BD66: 2 | BF66: 2021 | BG66: 06 | BH66: AEPENERGY | BI66: IND | BJ66: GL-I | BK66: E | BL66: 5 | BV66: 2021 | BW66: 06 | BX66: STRATEGEN | BY66: COM | BZ66: GMH>25 | CA66: E | CB66: 4
AX67: 2021 | AY67: 06 | AZ67: DLCO-UNBUN | BA67: LIGHTING | BB67: SM | BC67: E | BD67: 92 | BF67: 2021 | BG67: 06 | BH67: SFE ENERGY | BI67: IND | BJ67: GL-I | BK67: E | BL67: 2 | BV67: 2021 | BW67: 06 | BX67: STRATEGEN | BY67: IND | BZ67: GMH>25 | CA67: E | CB67: 1
AX68: 2021 | AY68: 06 | AZ68: DLCO-UNBUN | BA68: LIGHTING | BB68: SM | BC68: U | BD68: 92 | BF68: 2021 | BG68: 06 | BH68: CHMPN | BI68: IND | BJ68: GL-I | BK68: E | BL68: 2 | BV68: 2021 | BW68: 06 | BX68: EPLEUR | BY68: COM | BZ68: GMH>25 | CA68: E | CB68: 1
BF69: 2021 | BG69: 06 | BH69: UGIES | BI69: IND | BJ69: GL-I | BK69: E | BL69: 2 | BV69: 2021 | BW69: 06 | BX69: MP2ENERGY | BY69: COM | BZ69: GMH>25 | CA69: E | CB69: 1
BF70: 2021 | BG70: 06 | BH70: TRACTEBEL | BI70: IND | BJ70: GL-I | BK70: E | BL70: 5 | BV70: 2021 | BW70: 06 | BX70: MIDAMENERY | BY70: COM | BZ70: GMH>25 | CA70: E | CB70: 1
BF71: 2021 | BG71: 06 | BH71: NRGREN | BI71: COM | BJ71: GLH-C | BK71: E | BL71: 2 | BV71: 2021 | BW71: 06 | BX71: CNEWENERGY | BY71: IND | BZ71: GMH>25 | CA71: E | CB71: 1
BF72: 2021 | BG72: 06 | BH72: TEXAS | BI72: COM | BJ72: GLH-C | BK72: E | BL72: 1 | BV72: 2021 | BW72: 06 | BX72: CNEWENERGY | BY72: COM | BZ72: GMH>25 | CA72: E | CB72: 5
BF73: 2021 | BG73: 06 | BH73: CHMPN | BI73: COM | BJ73: GLH-C | BK73: E | BL73: 1 | BV73: 2021 | BW73: 06 | BX73: WASHINGTON | BY73: COM | BZ73: GMH>25 | CA73: E | CB73: 2
BF74: 2021 | BG74: 06 | BH74: TRIEGL | BI74: COM | BJ74: GLH-C | BK74: E | BL74: 1 | BV74: 2021 | BW74: 06 | BX74: TRACTEBEL | BY74: COM | BZ74: GMH>25 | CA74: E | CB74: 4
BF75: 2021 | BG75: 06 | BH75: AEPENERGY | BI75: COM | BJ75: GLH-C | BK75: E | BL75: 4 | BV75: 2021 | BW75: 06 | BX75: TRACTEBEL | BY75: IND | BZ75: GMH>25 | CA75: E | CB75: 1
BF76: 2021 | BG76: 06 | BH76: TITAN | BI76: COM | BJ76: GLH-C | BK76: E | BL76: 1 | BV76: 2021 | BW76: 06 | BX76: IGS ENERGY | BY76: COM | BZ76: GMH>25 | CA76: E | CB76: 2
BF77: 2021 | BG77: 06 | BH77: EPLEUR | BI77: COM | BJ77: GLH-C | BK77: E | BL77: 1 | BV77: 2021 | BW77: 06 | BX77: AEPENERGY | BY77: COM | BZ77: GMH>25 | CA77: E | CB77: 1
BF78: 2021 | BG78: 06 | BH78: CNEWENERGY | BI78: COM | BJ78: GLH-C | BK78: E | BL78: 11 | BV78: 2021 | BW78: 06 | BX78: FPLG012 | BY78: COM | BZ78: GMH>25 | CA78: E | CB78: 1
BF79: 2021 | BG79: 06 | BH79: WASHINGTON | BI79: COM | BJ79: GLH-C | BK79: E | BL79: 10 | BV79: 2021 | BW79: 06 | BX79: NRGREN | BY79: COM | BZ79: GMH>25 | CA79: E | CB79: 1
BF80: 2021 | BG80: 06 | BH80: TRACTEBEL | BI80: COM | BJ80: GLH-C | BK80: E | BL80: 2 | BV80: 2021 | BW80: 06 | BX80: SEMPRA | BY80: COM | BZ80: GMH>25 | CA80: E | CB80: 2
BF81: 2021 | BG81: 06 | BH81: MIDAMENERY | BI81: COM | BJ81: GLH-C | BK81: E | BL81: 3 | BV81: 2021 | BW81: 06 | BX81: WASHINGTON | BY81: COM | BZ81: GMH>25 | CA81: E | CB81: 2
BF82: 2021 | BG82: 06 | BH82: FPLG012 | BI82: COM | BJ82: GLH-C | BK82: E | BL82: 3 | BV82: 2021 | BW82: 06 | BX82: CONSTELLAT | BY82: COM | BZ82: GMH>25 | CA82: E | CB82: 1
BF83: 2021 | BG83: 06 | BH83: STRATEGEN | BI83: COM | BJ83: GLH-C | BK83: E | BL83: 21 | BV83: 2021 | BW83: 06 | BX83: DYNEGY | BY83: IND | BZ83: GMH>25 | CA83: E | CB83: 1
BF84: 2021 | BG84: 06 | BH84: FREEPOINT | BI84: COM | BJ84: GLH-C | BK84: E | BL84: 5 | BV84: 2021 | BW84: 06 | BX84: TRIEGL | BY84: COM | BZ84: GMH>25 | CA84: E | CB84: 1
BF85: 2021 | BG85: 06 | BH85: DEBENERGY | BI85: COM | BJ85: GLH-C | BK85: E | BL85: 1 | BV85: 2021 | BW85: 06 | BX85: STRATEGEN | BY85: IND | BZ85: HVPS | CA85: E | CB85: 1
BF86: 2021 | BG86: 06 | BH86: IGS ENERGY | BI86: COM | BJ86: GLH-C | BK86: E | BL86: 1 | BV86: 2021 | BW86: 06 | BX86: WASHINGTON | BY86: IND | BZ86: HVPS | CA86: E | CB86: 1
BF87: 2021 | BG87: 06 | BH87: DYNEGY | BI87: COM | BJ87: GLH-C | BK87: E | BL87: 4 | BV87: 2021 | BW87: 06 | BX87: FIRST | BY87: IND | BZ87: HVPS | CA87: E | CB87: 4
BF88: 2021 | BG88: 06 | BH88: WASHINGTON | BI88: IND | BJ88: GLH-I | BK88: E | BL88: 1 | BV88: 2021 | BW88: 06 | BX88: CNEWENERGY | BY88: IND | BZ88: HVPS | CA88: E | CB88: 1
BF89: 2021 | BG89: 06 | BH89: STRATEGEN | BI89: IND | BJ89: GLH-I | BK89: E | BL89: 3 | BV89: 2021 | BW89: 06 | BX89: DYNEGY | BY89: IND | BZ89: HVPS | CA89: E | CB89: 1
BF90: 2021 | BG90: 06 | BH90: FPLG012 | BI90: IND | BJ90: GLH-I | BK90: E | BL90: 2 | BV90: 2021 | BW90: 06 | BX90: BOCES | BY90: IND | BZ90: HVPS | CA90: E | CB90: 1
BF91: 2021 | BG91: 06 | BH91: CNEWENERGY | BI91: IND | BJ91: GLH-I | BK91: E | BL91: 3
BF92: 2021 | BG92: 06 | BH92: VIRDPA | BI92: COM | BJ92: GM<25 | BK92: E | BL92: 9
BF93: 2021 | BG93: 06 | BH93: SEMPRA | BI93: COM | BJ93: GM<25 | BK93: E | BL93: 20
BF94: 2021 | BG94: 06 | BH94: AMBIT | BI94: COM | BJ94: GM<25 | BK94: E | BL94: 3
BF95: 2021 | BG95: 06 | BH95: CNEWENERGY | BI95: COM | BJ95: GM<25 | BK95: E | BL95: 2
BF96: 2021 | BG96: 06 | BH96: IGS ENERGY | BI96: IND | BJ96: GM<25 | BK96: E | BL96: 2
BF97: 2021 | BG97: 06 | BH97: FIRST | BI97: COM | BJ97: GM<25 | BK97: E | BL97: 117
BF98: 2021 | BG98: 06 | BH98: MIDAMENERY | BI98: COM | BJ98: GM<25 | BK98: E | BL98: 309
BF99: 2021 | BG99: 06 | BH99: STEAM | BI99: COM | BJ99: GM<25 | BK99: E | BL99: 43
BF100: 2021 | BG100: 06 | BH100: TITAN | BI100: COM | BJ100: GM<25 | BK100: E | BL100: 3
BF101: 2021 | BG101: 06 | BH101: LIBERTY | BI101: IND | BJ101: GM<25 | BK101: E | BL101: 3
BF102: 2021 | BG102: 06 | BH102: STRATEGEN | BI102: IND | BJ102: GM<25 | BK102: E | BL102: 10
BF103: 2021 | BG103: 06 | BH103: FREEPOINT | BI103: COM | BJ103: GM<25 | BK103: E | BL103: 104
BF104: 2021 | BG104: 06 | BH104: PUBLICPOWR | BI104: COM | BJ104: GM<25 | BK104: E | BL104: 60
BF105: 2021 | BG105: 06 | BH105: PLYMOUTH | BI105: COM | BJ105: GM<25 | BK105: E | BL105: 15
BF106: 2021 | BG106: 06 | BH106: GREENMTRES | BI106: COM | BJ106: GM<25 | BK106: E | BL106: 18
BF107: 2021 | BG107: 06 | BH107: CLEARVIEW | BI107: COM | BJ107: GM<25 | BK107: E | BL107: 1
BF108: 2021 | BG108: 06 | BH108: CNEWENERGY | BI108: COM | BJ108: GM<25 | BK108: E | BL108: 12
BF109: 2021 | BG109: 06 | BH109: NORTHAMERI | BI109: COM | BJ109: GM<25 | BK109: E | BL109: 2
BF110: 2021 | BG110: 06 | BH110: IGS ENERGY | BI110: COM | BJ110: GM<25 | BK110: E | BL110: 2
BF111: 2021 | BG111: 06 | BH111: CNEWENERGY | BI111: COM | BJ111: GM<25 | BK111: E | BL111: 1473
BF112: 2021 | BG112: 06 | BH112: IGS ENERGY | BI112: COM | BJ112: GM<25 | BK112: E | BL112: 83
BF113: 2021 | BG113: 06 | BH113: SMART | BI113: COM | BJ113: GM<25 | BK113: E | BL113: 7
BF114: 2021 | BG114: 06 | BH114: DYNEGY | BI114: COM | BJ114: GM<25 | BK114: E | BL114: 121
BF115: 2021 | BG115: 06 | BH115: AMERICANPG | BI115: IND | BJ115: GM<25 | BK115: E | BL115: 6
BF116: 2021 | BG116: 06 | BH116: AEPENERGY | BI116: COM | BJ116: GM<25 | BK116: E | BL116: 255
BF117: 2021 | BG117: 06 | BH117: SFE ENERGY | BI117: IND | BJ117: GM<25 | BK117: E | BL117: 1
BF118: 2021 | BG118: 06 | BH118: IDT ENERGY | BI118: COM | BJ118: GM<25 | BK118: E | BL118: 15
BF119: 2021 | BG119: 06 | BH119: ETHICAL | BI119: COM | BJ119: GM<25 | BK119: E | BL119: 12
BF120: 2021 | BG120: 06 | BH120: AEPENERGY | BI120: IND | BJ120: GM<25 | BK120: E | BL120: 1
BF121: 2021 | BG121: 06 | BH121: XOOMPA | BI121: COM | BJ121: GM<25 | BK121: E | BL121: 6
BF122: 2021 | BG122: 06 | BH122: ATLANTIC | BI122: COM | BJ122: GM<25 | BK122: E | BL122: 14
BF123: 2021 | BG123: 06 | BH123: PAGAS&ELEC | BI123: COM | BJ123: GM<25 | BK123: E | BL123: 69
BF124: 2021 | BG124: 06 | BH124: JUST | BI124: COM | BJ124: GM<25 | BK124: E | BL124: 4
BF125: 2021 | BG125: 06 | BH125: XOOMPA | BI125: IND | BJ125: GM<25 | BK125: E | BL125: 3
BF126: 2021 | BG126: 06 | BH126: VERDE | BI126: COM | BJ126: GM<25 | BK126: E | BL126: 11
BF127: 2021 | BG127: 06 | BH127: STRATEGEN | BI127: COM | BJ127: GM<25 | BK127: E | BL127: 10
BF128: 2021 | BG128: 06 | BH128: MEDIAN | BI128: COM | BJ128: GM<25 | BK128: E | BL128: 2
BF129: 2021 | BG129: 06 | BH129: SPERIAN | BI129: COM | BJ129: GM<25 | BK129: E | BL129: 6
BF130: 2021 | BG130: 06 | BH130: THINK | BI130: COM | BJ130: GM<25 | BK130: E | BL130: 13
BF131: 2021 | BG131: 06 | BH131: NRGREN | BI131: COM | BJ131: GM<25 | BK131: E | BL131: 12
BF132: 2021 | BG132: 06 | BH132: DEBENERGY | BI132: COM | BJ132: GM<25 | BK132: E | BL132: 4
BF133: 2021 | BG133: 06 | BH133: SFE ENERGY | BI133: COM | BJ133: GM<25 | BK133: E | BL133: 101
BF134: 2021 | BG134: 06 | BH134: TRACTEBEL | BI134: COM | BJ134: GM<25 | BK134: E | BL134: 281
BF135: 2021 | BG135: 06 | BH135: STRATEGEN | BI135: COM | BJ135: GM<25 | BK135: E | BL135: 698
BF136: 2021 | BG136: 06 | BH136: DEBENERGY | BI136: COM | BJ136: GM<25 | BK136: E | BL136: 171
BF137: 2021 | BG137: 06 | BH137: RUSHMORE | BI137: COM | BJ137: GM<25 | BK137: E | BL137: 1
BF138: 2021 | BG138: 06 | BH138: CNEWENERGY | BI138: IND | BJ138: GM<25 | BK138: E | BL138: 17
BF139: 2021 | BG139: 06 | BH139: YEP ENERGY | BI139: COM | BJ139: GM<25 | BK139: E | BL139: 11
BF140: 2021 | BG140: 06 | BH140: WASHINGTON | BI140: IND | BJ140: GM<25 | BK140: E | BL140: 2
BF141: 2021 | BG141: 06 | BH141: ASTRAL | BI141: COM | BJ141: GM<25 | BK141: E | BL141: 1
BF142: 2021 | BG142: 06 | BH142: MP2ENERGY | BI142: COM | BJ142: GM<25 | BK142: E | BL142: 67
BF143: 2021 | BG143: 06 | BH143: AEPENERGY | BI143: COM | BJ143: GM<25 | BK143: E | BL143: 2
BF144: 2021 | BG144: 06 | BH144: BETTERDYE | BI144: COM | BJ144: GM<25 | BK144: E | BL144: 7
BF145: 2021 | BG145: 06 | BH145: PUBLICPOWR | BI145: COM | BJ145: GM<25 | BK145: E | BL145: 1
BF146: 2021 | BG146: 06 | BH146: CONSTELLAT | BI146: COM | BJ146: GM<25 | BK146: E | BL146: 4
BF147: 2021 | BG147: 06 | BH147: UGIES | BI147: COM | BJ147: GM<25 | BK147: E | BL147: 86
BF148: 2021 | BG148: 06 | BH148: AMBIT | BI148: COM | BJ148: GM<25 | BK148: E | BL148: 1
BF149: 2021 | BG149: 06 | BH149: CONSTELLAT | BI149: COM | BJ149: GM<25 | BK149: E | BL149: 492
BF150: 2021 | BG150: 06 | BH150: SFE ENERGY | BI150: COM | BJ150: GM<25 | BK150: E | BL150: 6
BF151: 2021 | BG151: 06 | BH151: MARATHON | BI151: COM | BJ151: GM<25 | BK151: E | BL151: 3
BF152: 2021 | BG152: 06 | BH152: CHMPN | BI152: IND | BJ152: GM<25 | BK152: E | BL152: 2
BF153: 2021 | BG153: 06 | BH153: MPOWER | BI153: COM | BJ153: GM<25 | BK153: E | BL153: 27
BF154: 2021 | BG154: 06 | BH154: PALMPA | BI154: COM | BJ154: GM<25 | BK154: E | BL154: 3
BF155: 2021 | BG155: 06 | BH155: DYNEGY | BI155: IND | BJ155: GM<25 | BK155: E | BL155: 1
BF156: 2021 | BG156: 06 | BH156: TEXAS | BI156: COM | BJ156: GM<25 | BK156: E | BL156: 3
BF157: 2021 | BG157: 06 | BH157: FPLG012 | BI157: COM | BJ157: GM<25 | BK157: E | BL157: 64
BF158: 2021 | BG158: 06 | BH158: CHMPN | BI158: COM | BJ158: GM<25 | BK158: E | BL158: 150
BF159: 2021 | BG159: 06 | BH159: EPLUSH | BI159: COM | BJ159: GM<25 | BK159: E | BL159: 11
BF160: 2021 | BG160: 06 | BH160: DIRECT | BI160: COM | BJ160: GM<25 | BK160: E | BL160: 1
BF161: 2021 | BG161: 06 | BH161: APGE | BI161: IND | BJ161: GM<25 | BK161: E | BL161: 2
BF162: 2021 | BG162: 06 | BH162: CONSTELLAT | BI162: IND | BJ162: GM<25 | BK162: E | BL162: 5
BF163: 2021 | BG163: 06 | BH163: NRGREN | BI163: COM | BJ163: GM<25 | BK163: E | BL163: 243
BF164: 2021 | BG164: 06 | BH164: CLEARVIEW | BI164: COM | BJ164: GM<25 | BK164: E | BL164: 4
BF165: 2021 | BG165: 06 | BH165: SEMPRA | BI165: IND | BJ165: GM<25 | BK165: E | BL165: 1
BF166: 2021 | BG166: 06 | BH166: INDEPENDEN | BI166: COM | BJ166: GM<25 | BK166: E | BL166: 1
BF167: 2021 | BG167: 06 | BH167: GREENMOUNT | BI167: COM | BJ167: GM<25 | BK167: E | BL167: 2
BF168: 2021 | BG168: 06 | BH168: DYNEGY | BI168: COM | BJ168: GM<25 | BK168: E | BL168: 1
BF169: 2021 | BG169: 06 | BH169: TRACTEBEL | BI169: IND | BJ169: GM<25 | BK169: E | BL169: 5
BF170: 2021 | BG170: 06 | BH170: INSPIRE | BI170: COM | BJ170: GM<25 | BK170: E | BL170: 12
BF171: 2021 | BG171: 06 | BH171: DIRECT | BI171: COM | BJ171: GM<25 | BK171: E | BL171: 4
BF172: 2021 | BG172: 06 | BH172: CONSTELLAT | BI172: COM | BJ172: GM<25 | BK172: E | BL172: 1
BF173: 2021 | BG173: 06 | BH173: MP2ENERGY | BI173: IND | BJ173: GM<25 | BK173: E | BL173: 3
BF174: 2021 | BG174: 06 | BH174: HUDSON | BI174: COM | BJ174: GM<25 | BK174: E | BL174: 1
BF175: 2021 | BG175: 06 | BH175: DNEGYD | BI175: COM | BJ175: GM<25 | BK175: E | BL175: 5
BF176: 2021 | BG176: 06 | BH176: ETHICAL | BI176: COM | BJ176: GM<25 | BK176: E | BL176: 1
BF177: 2021 | BG177: 06 | BH177: AMBIT | BI177: COM | BJ177: GM<25 | BK177: E | BL177: 204
BF178: 2021 | BG178: 06 | BH178: SMRTENG | BI178: COM | BJ178: GM<25 | BK178: E | BL178: 14
BF179: 2021 | BG179: 06 | BH179: ELIGO | BI179: IND | BJ179: GM<25 | BK179: E | BL179: 1
BF180: 2021 | BG180: 06 | BH180: AMERICANPG | BI180: COM | BJ180: GM<25 | BK180: E | BL180: 773
BF181: 2021 | BG181: 06 | BH181: EPLEUR | BI181: COM | BJ181: GM<25 | BK181: E | BL181: 27
BF182: 2021 | BG182: 06 | BH182: AMERICANPN | BI182: COM | BJ182: GM<25 | BK182: E | BL182: 1
BF183: 2021 | BG183: 06 | BH183: FREEPOINT | BI183: IND | BJ183: GM<25 | BK183: E | BL183: 3
BF184: 2021 | BG184: 06 | BH184: SANTANNA | BI184: COM | BJ184: GM<25 | BK184: E | BL184: 1
BF185: 2021 | BG185: 06 | BH185: LIBERTY | BI185: COM | BJ185: GM<25 | BK185: E | BL185: 1
BF186: 2021 | BG186: 06 | BH186: PARK | BI186: COM | BJ186: GM<25 | BK186: E | BL186: 2
BF187: 2021 | BG187: 06 | BH187: THINK | BI187: IND | BJ187: GM<25 | BK187: E | BL187: 1
BF188: 2021 | BG188: 06 | BH188: TRIEGL | BI188: COM | BJ188: GM<25 | BK188: E | BL188: 1
BF189: 2021 | BG189: 06 | BH189: MP2ENERGY | BI189: COM | BJ189: GM<25 | BK189: E | BL189: 1
BF190: 2021 | BG190: 06 | BH190: HUDSON | BI190: IND | BJ190: GM<25 | BK190: E | BL190: 4
BF191: 2021 | BG191: 06 | BH191: RESPOND | BI191: COM | BJ191: GM<25 | BK191: E | BL191: 4
BF192: 2021 | BG192: 06 | BH192: DIRECT | BI192: COM | BJ192: GM<25 | BK192: E | BL192: 308
BF193: 2021 | BG193: 06 | BH193: WASHINGTON | BI193: COM | BJ193: GM<25 | BK193: E | BL193: 2
BF194: 2021 | BG194: 06 | BH194: ENERGYTRP | BI194: IND | BJ194: GM<25 | BK194: E | BL194: 1
BF195: 2021 | BG195: 06 | BH195: AMERICANPG | BI195: COM | BJ195: GM<25 | BK195: E | BL195: 13
BF196: 2021 | BG196: 06 | BH196: PAGAS&ELEC | BI196: COM | BJ196: GM<25 | BK196: E | BL196: 1
BF197: 2021 | BG197: 06 | BH197: AMERICANPG | BI197: COM | BJ197: GM<25 | BK197: E | BL197: 1
BF198: 2021 | BG198: 06 | BH198: XOOMPA | BI198: COM | BJ198: GM<25 | BK198: E | BL198: 130
BF199: 2021 | BG199: 06 | BH199: NEWAVENER | BI199: IND | BJ199: GM<25 | BK199: E | BL199: 3
BF200: 2021 | BG200: 06 | BH200: PAGAS&ELEC | BI200: IND | BJ200: GM<25 | BK200: E | BL200: 2
BF201: 2021 | BG201: 06 | BH201: TRACTEBEL | BI201: COM | BJ201: GM<25 | BK201: E | BL201: 2
BF202: 2021 | BG202: 06 | BH202: STARION | BI202: COM | BJ202: GM<25 | BK202: E | BL202: 3
... 916 more rows

Sheet Customer Count (hidden)
B1: PoLR | F1: EGS | J1: PoLR | P1: EGS | V1: PoLR | AB1: EGS | AH1: POLR HPS | AP1: EGS HPS
B2: Customers | F2: Customers | J2: Customers | P2: Customers | V2: Customers | AB2: Customers | AH2: Customers | AP2: Customers
A3: Month | B3: GM>25 | C3: GMH>25 | D3: Total | F3: GM>25 | G3: GMH>25 | H3: Total | J3: RS | K3: RA | L3: RH | M3: Lighting | N3: Total | P3: RS | Q3: RA | R3: RH | S3: Lighting | T3: Total | V3: Unmetered | W3: GS | X3: GM<25 | Y3: GMH<25 | Z3: Total | AB3: Unmetered | AC3: GS | AD3: GM<25 | AE3: GMH<25 | AF3: Total | AH3: GM>25-HPS | AI3: GMH>25-HPS | AJ3: GL | AK3: GHL | AL3: HVPS | AM3: L | AN3: Total | AP3: GM>25-HPS | AQ3: GMH>25-HPS | AR3: GL | AS3: GHL | AT3: HVPS | AU3: L | AV3: Total
A4: 2008-01-01 | B4: 6169 | C4: 853 | D4: =B4+C4 -> 7022 | F4: 2531 | G4: 79 | H4: =F4+G4 -> 2610 | J4: 377409 | K4: 2795 | L4: 26556 | M4: 5320 | N4: =SUM(J4:M4) -> 412080 | P4: 117720 | Q4: 577 | R4: 211 | S4: 1034 | T4: =SUM(P4:S4) -> 119542 | W4: 19306 | X4: 16820 | Y4: 2172 | Z4: =SUM(W4:Y4) -> 38298 | AC4: 2662 | AD4: 3660 | AE4: 256 | AF4: =SUM(AC4:AE4) -> 6578
A5: 2008-02-01 | B5: 6162 | C5: 853 | D5: =B5+C5 -> 7015 | F5: 2531 | G5: 79 | H5: =F5+G5 -> 2610 | J5: 378567 | K5: 2809 | L5: 26770 | M5: 6431 | N5: =SUM(J5:M5) -> 414577 | P5: 116598 | Q5: 577 | R5: 199 | S5: 1037 | T5: 118411 | W5: 19288 | X5: 16861 | Y5: 2179 | Z5: =SUM(W5:Y5) -> 38328 | AC5: 2659 | AD5: 3661 | AE5: 256 | AF5: 6576
A6: 2008-03-01 | B6: 6174 | C6: 853 | D6: 7027 | F6: 2515 | G6: 78 | H6: 2593 | J6: 378783 | K6: 2812 | L6: 26820 | M6: 6473 | N6: 414888 | P6: 116279 | Q6: 578 | R6: 201 | S6: 1041 | T6: 118099 | W6: 19261 | X6: 16849 | Y6: 2186 | Z6: 38296 | AC6: 2664 | AD6: 3661 | AE6: 255 | AF6: 6580
A7: 2008-04-01 | B7: 6168 | C7: 853 | D7: 7021 | F7: 2511 | G7: 78 | H7: 2589 | J7: 377929 | K7: 2824 | L7: 26777 | M7: 6494 | N7: 414024 | P7: 115779 | Q7: 569 | R7: 196 | S7: 1041 | T7: 117585 | W7: 19253 | X7: 16907 | Y7: 2184 | Z7: 38344 | AC7: 2654 | AD7: 3656 | AE7: 256 | AF7: 6566
A8: 2008-05-01 | B8: 6191 | C8: 857 | D8: 7048 | F8: 2480 | G8: 74 | H8: 2554 | J8: 378379 | K8: 2827 | L8: 26773 | M8: 6502 | N8: 414481 | P8: 115118 | Q8: 568 | R8: 198 | S8: 1041 | T8: 116925 | W8: 19242 | X8: 16962 | Y8: 2182 | Z8: 38386 | AC8: 2627 | AD8: 3629 | AE8: 254 | AF8: 6510
A9: 2008-06-01 | B9: 6240 | C9: 857 | D9: 7097 | F9: 2430 | G9: 73 | H9: 2503 | J9: 378458 | K9: 2825 | L9: 26722 | M9: 6510 | N9: 414515 | P9: 114487 | Q9: 567 | R9: 195 | S9: 1041 | T9: 116290 | W9: 19320 | X9: 16970 | Y9: 2182 | Z9: 38472 | AC9: 2596 | AD9: 3599 | AE9: 254 | AF9: 6449
A10: 2008-07-01 | B10: 6300 | C10: 855 | D10: 7155 | F10: 2367 | G10: 73 | H10: 2440 | J10: 378867 | K10: 2835 | L10: 26694 | M10: 6517 | N10: 414913 | P10: 113758 | Q10: 562 | R10: 194 | S10: 1041 | T10: 115555 | W10: 19302 | X10: 17000 | Y10: 2176 | Z10: 38478 | AC10: 2580 | AD10: 3557 | AE10: 253 | AF10: 6390
A11: 2008-08-01 | B11: 6302 | C11: 856 | D11: 7158 | F11: 2361 | G11: 73 | H11: 2434 | J11: 380586 | K11: 2852 | L11: 26822 | M11: 6524 | N11: 416784 | P11: 112176 | Q11: 566 | R11: 200 | S11: 1041 | T11: 113983 | W11: 19305 | X11: 17048 | Y11: 2171 | Z11: 38524 | AC11: 2564 | AD11: 3543 | AE11: 253 | AF11: 6360
A12: 2008-09-01 | B12: 6293 | C12: 857 | D12: 7150 | F12: 2372 | G12: 73 | H12: 2445 | J12: 381711 | K12: 2862 | L12: 26899 | M12: 6518 | N12: 417990 | P12: 110881 | Q12: 562 | R12: 199 | S12: 1041 | T12: 112683 | W12: 19287 | X12: 17036 | Y12: 2168 | Z12: 38491 | AC12: 2564 | AD12: 3536 | AE12: 253 | AF12: 6353
A13: 2008-10-01 | B13: 6282 | C13: 856 | D13: 7138 | F13: 2378 | G13: 73 | H13: 2451 | J13: 383322 | K13: 2891 | L13: 27001 | M13: 6521 | N13: 419735 | P13: 109670 | Q13: 565 | R13: 205 | S13: 1041 | T13: 111481 | W13: 19284 | X13: 17076 | Y13: 2171 | Z13: 38531 | AC13: 2567 | AD13: 3520 | AE13: 253 | AF13: 6340
A14: 2008-11-01 | B14: 6292 | C14: 857 | D14: 7149 | F14: 2375 | G14: 73 | H14: 2448 | J14: 384656 | K14: 2928 | L14: 27180 | M14: 6533 | N14: 421297 | P14: 108939 | Q14: 564 | R14: 206 | S14: 1040 | T14: 110749 | W14: 19306 | X14: 17103 | Y14: 2176 | Z14: 38585 | AC14: 2556 | AD14: 3510 | AE14: 251 | AF14: 6317
A15: 2008-12-01 | B15: 6258 | C15: 846 | D15: 7104 | F15: 2435 | G15: 89 | H15: 2524 | J15: 385602 | K15: 2950 | L15: 27345 | M15: 6526 | N15: 422423 | P15: 108305 | Q15: 564 | R15: 210 | S15: 1042 | T15: 110121 | W15: 19296 | X15: 17055 | Y15: 2181 | Z15: 38532 | AC15: 2549 | AD15: 3524 | AE15: 254 | AF15: 6327
A16: 2009-01-01 | B16: 6366 | C16: 909 | D16: 7275 | F16: 2893 | G16: 127 | H16: 3020 | J16: 386362 | K16: 2975 | L16: 27587 | M16: 6381 | N16: 423305 | P16: 107708 | Q16: 563 | R16: 206 | S16: 1039 | T16: 109516 | W16: 19365 | X16: 16505 | Y16: 2089 | Z16: 37959 | AC16: 2569 | AD16: 3419 | AE16: 243 | AF16: 6231
A17: 2009-02-01 | B17: 6242 | C17: 904 | D17: 7146 | F17: 3003 | G17: 132 | H17: 3135 | J17: 386820 | K17: 3003 | L17: 27788 | M17: 6385 | N17: 423996 | P17: 107161 | Q17: 555 | R17: 205 | S17: 1034 | T17: 108955 | W17: 19426 | X17: 16436 | Y17: 2092 | Z17: 37954 | AC17: 2572 | AD17: 3415 | AE17: 238 | AF17: 6225
A18: 2009-03-01 | B18: 6159 | C18: 894 | D18: 7053 | F18: 3088 | G18: 141 | H18: 3229 | J18: 387241 | K18: 3010 | L18: 27848 | M18: 6381 | N18: 424480 | P18: 106763 | Q18: 551 | R18: 203 | S18: 1041 | T18: 108558 | W18: 19417 | X18: 16375 | Y18: 2089 | Z18: 37881 | AC18: 2580 | AD18: 3424 | AE18: 242 | AF18: 6246
A19: 2009-04-01 | B19: 6020 | C19: 866 | D19: 6886 | F19: 3224 | G19: 167 | H19: 3391 | J19: 386090 | K19: 3011 | L19: 27766 | M19: 6344 | N19: 423211 | P19: 106371 | Q19: 554 | R19: 207 | S19: 1039 | T19: 108171 | W19: 19435 | X19: 16299 | Y19: 2082 | Z19: 37816 | AC19: 2584 | AD19: 3454 | AE19: 249 | AF19: 6287
A20: 2009-05-01 | B20: 5949 | C20: 849 | D20: 6798 | F20: 3283 | G20: 181 | H20: 3464 | J20: 385757 | K20: 3016 | L20: 27726 | M20: 6494 | N20: 422993 | P20: 106289 | Q20: 557 | R20: 215 | S20: 1025 | T20: 108086 | W20: 19472 | X20: 16225 | Y20: 2084 | Z20: 37781 | AC20: 2578 | AD20: 3476 | AE20: 248 | AF20: 6302
A21: 2009-06-01 | B21: 5886 | C21: 844 | D21: 6730 | F21: 3353 | G21: 185 | H21: 3538 | J21: 385767 | K21: 3019 | L21: 27752 | M21: 6489 | N21: 423027 | P21: 105898 | Q21: 556 | R21: 216 | S21: 1025 | T21: 107695 | W21: 19435 | X21: 16167 | Y21: 2080 | Z21: 37682 | AC21: 2600 | AD21: 3508 | AE21: 252 | AF21: 6360
A22: 2009-07-01 | B22: 5840 | C22: 832 | D22: 6672 | F22: 3389 | G22: 189 | H22: 3578 | J22: 385999 | K22: 3019 | L22: 27747 | M22: 6477 | N22: 423242 | P22: 105584 | Q22: 554 | R22: 220 | S22: 1025 | T22: 107383 | W22: 19465 | X22: 16142 | Y22: 2063 | Z22: 37670 | AC22: 2592 | AD22: 3521 | AE22: 255 | AF22: 6368
A23: 2009-08-01 | B23: 5814 | C23: 818 | D23: 6632 | F23: 3411 | G23: 200 | H23: 3611 | J23: 386065 | K23: 3023 | L23: 27779 | M23: 6475 | N23: 423342 | P23: 105390 | Q23: 553 | R23: 227 | S23: 1025 | T23: 107195 | W23: 19486 | X23: 16031 | Y23: 2060 | Z23: 37577 | AC23: 2610 | AD23: 3586 | AE23: 258 | AF23: 6454
A24: 2009-09-01 | B24: 5815 | C24: 816 | D24: 6631 | F24: 3403 | G24: 204 | H24: 3607 | J24: 386588 | K24: 3026 | L24: 27777 | M24: 6481 | N24: 423872 | P24: 104894 | Q24: 552 | R24: 225 | S24: 1025 | T24: 106696 | W24: 19570 | X24: 15964 | Y24: 2066 | Z24: 37600 | AC24: 2616 | AD24: 3588 | AE24: 260 | AF24: 6464
A25: 2009-10-01 | B25: 5744 | C25: 805 | D25: 6549 | F25: 3458 | G25: 211 | H25: 3669 | J25: 386405 | K25: 3040 | L25: 27837 | M25: 6493 | N25: 423775 | P25: 105605 | Q25: 555 | R25: 229 | S25: 1025 | T25: 107414 | W25: 19617 | X25: 15854 | Y25: 2069 | Z25: 37540 | AC25: 2640 | AD25: 3635 | AE25: 262 | AF25: 6537
A26: 2009-11-01 | B26: 5704 | C26: 807 | D26: 6511 | F26: 3497 | G26: 212 | H26: 3709 | J26: 385091 | K26: 3139 | L26: 27975 | M26: 6501 | N26: 422706 | P26: 106997 | Q26: 558 | R26: 237 | S26: 1024 | T26: 108816 | W26: 19624 | X26: 15772 | Y26: 2065 | Z26: 37461 | AC26: 2664 | AD26: 3667 | AE26: 264 | AF26: 6595
A27: 2009-12-01 | B27: 5718 | C27: 805 | D27: 6523 | F27: 3509 | G27: 214 | H27: 3723 | J27: 385992 | K27: 3207 | L27: 28116 | M27: 6486 | N27: 423801 | P27: 106813 | Q27: 558 | R27: 239 | S27: 1037 | T27: 108647 | W27: 19679 | X27: 15771 | Y27: 2071 | Z27: 37521 | AC27: 2651 | AD27: 3655 | AE27: 266 | AF27: 6572
A28: 2010-01-01 | B28: 5651 | C28: 789 | D28: 6440 | F28: 3610 | G28: 238 | H28: 3848 | J28: 386422 | K28: 3219 | L28: 28227 | M28: 6487 | N28: 424355 | P28: 106599 | Q28: 558 | R28: 237 | S28: 1041 | T28: 108435 | W28: 19716 | X28: 15652 | Y28: 2064 | Z28: 37432 | AC28: 2667 | AD28: 3685 | AE28: 267 | AF28: 6619
A29: 2010-02-01 | B29: 5712 | C29: 801 | D29: 6513 | F29: 3642 | G29: 241 | H29: 3883 | J29: 386765 | K29: 3224 | L29: 28349 | M29: 6475 | N29: 424813 | P29: 106339 | Q29: 555 | R29: 237 | S29: 1061 | T29: 108192 | W29: 19734 | X29: 15420 | Y29: 2048 | Z29: 37202 | AC29: 2699 | AD29: 3749 | AE29: 274 | AF29: 6722
A30: 2010-03-01 | B30: 5664 | C30: 785 | D30: 6449 | F30: 3689 | G30: 258 | H30: 3947 | J30: 387196 | K30: 3227 | L30: 28380 | M30: 6475 | N30: 425278 | P30: 105938 | Q30: 554 | R30: 240 | S30: 1038 | T30: 107770 | W30: 19647 | X30: 15293 | Y30: 2037 | Z30: 36977 | AC30: 2789 | AD30: 3860 | AE30: 286 | AF30: 6935
A31: 2010-04-01 | B31: 5631 | C31: 776 | D31: 6407 | F31: 3724 | G31: 266 | H31: 3990 | J31: 386767 | K31: 3227 | L31: 28329 | M31: 6482 | N31: 424805 | P31: 105363 | Q31: 552 | R31: 239 | S31: 1039 | T31: 107193 | W31: 19599 | X31: 15149 | Y31: 2033 | Z31: 36781 | AC31: 2863 | AD31: 3999 | AE31: 294 | AF31: 7156
A32: 2010-05-01 | B32: 5594 | C32: 773 | D32: 6367 | F32: 3758 | G32: 268 | H32: 4026 | J32: 387031 | K32: 3224 | L32: 28280 | M32: 6486 | N32: 425021 | P32: 104820 | Q32: 552 | R32: 241 | S32: 1037 | T32: 106650 | W32: 19591 | X32: 15110 | Y32: 1989 | Z32: 36690 | AC32: 2862 | AD32: 4045 | AE32: 331 | AF32: 7238
A33: 2010-06-01 | B33: 5481 | C33: 761 | D33: 6242 | F33: 3844 | G33: 280 | H33: 4124 | J33: 386993 | K33: 3254 | L33: 28195 | M33: 6446 | N33: 424888 | P33: 104253 | Q33: 550 | R33: 247 | S33: 1084 | T33: 106134 | W33: 19607 | X33: 14991 | Y33: 1988 | Z33: 36586 | AC33: 2867 | AD33: 4165 | AE33: 334 | AF33: 7366
A34: 2010-07-01 | B34: 5391 | C34: 744 | D34: 6135 | F34: 3922 | G34: 297 | H34: 4219 | J34: 387256 | K34: 3259 | L34: 28131 | M34: 6438 | N34: 425084 | P34: 103781 | Q34: 548 | R34: 245 | S34: 1092 | T34: 105666 | W34: 19511 | X34: 14912 | Y34: 1975 | Z34: 36398 | AC34: 2915 | AD34: 4245 | AE34: 344 | AF34: 7504
A35: 2010-08-01 | B35: 5372 | C35: 741 | D35: 6113 | F35: 3949 | G35: 298 | H35: 4247 | J35: 387563 | K35: 3258 | L35: 28223 | M35: 6497 | N35: 425541 | P35: 103488 | Q35: 549 | R35: 245 | S35: 1036 | T35: 105318 | W35: 19474 | X35: 14891 | Y35: 1974 | Z35: 36339 | AC35: 2940 | AD35: 4273 | AE35: 345 | AF35: 7558
A36: 2010-09-01 | B36: 5316 | C36: 732 | D36: 6048 | F36: 3992 | G36: 305 | H36: 4297 | J36: 387996 | K36: 3268 | L36: 28344 | M36: 6507 | N36: 426115 | P36: 103213 | Q36: 547 | R36: 245 | S36: 1035 | T36: 105040 | W36: 19467 | X36: 14891 | Y36: 1967 | Z36: 36325 | AC36: 2955 | AD36: 4300 | AE36: 351 | AF36: 7606
A37: 2010-10-01 | B37: 5276 | C37: 730 | D37: 6006 | F37: 4031 | G37: 308 | H37: 4339 | J37: 388181 | K37: 3276 | L37: 28358 | M37: 6509 | N37: 426324 | P37: 103143 | Q37: 546 | R37: 254 | S37: 1041 | T37: 104984 | W37: 19380 | X37: 14791 | Y37: 1960 | Z37: 36131 | AC37: 2997 | AD37: 4456 | AE37: 356 | AF37: 7809
A38: 2010-11-01 | B38: 5219 | C38: 723 | D38: 5942 | F38: 4082 | G38: 313 | H38: 4395 | J38: 387808 | K38: 3254 | L38: 28461 | M38: 6509 | N38: 426032 | P38: 103894 | Q38: 568 | R38: 309 | S38: 1055 | T38: 105826 | W38: 19251 | X38: 14631 | Y38: 1945 | Z38: 35827 | AC38: 3122 | AD38: 4666 | AE38: 371 | AF38: 8159
A39: 2010-12-01 | B39: 5175 | C39: 713 | D39: 5888 | F39: 4137 | G39: 324 | H39: 4461 | J39: 381722 | K39: 3225 | L39: 28452 | M39: 6475 | N39: 419874 | P39: 110854 | Q39: 602 | R39: 502 | S39: 1086 | T39: 113044 | W39: 19098 | X39: 14394 | Y39: 1931 | Z39: 35423 | AC39: 3300 | AD39: 4954 | AE39: 385 | AF39: 8639
A40: 2011-01-01 | B40: 4981 | C40: 687 | D40: 5668 | F40: 4387 | G40: 346 | H40: 4733 | J40: 377391 | K40: 3202 | L40: 28486 | M40: 4314 | N40: 413393 | P40: 115326 | Q40: 631 | R40: 669 | S40: 3257 | T40: 119883 | W40: 18900 | X40: 14092 | Y40: 1919 | Z40: 34911 | AC40: 3490 | AD40: 5250 | AE40: 398 | AF40: 9138
A41: 2011-02-01 | B41: 4969 | C41: 681 | D41: 5650 | F41: 4473 | G41: 356 | H41: 4829 | J41: 373968 | K41: 3150 | L41: 28250 | M41: 4304 | N41: 409672 | P41: 118834 | Q41: 681 | R41: 1019 | S41: 3277 | T41: 123811 | W41: 18730 | X41: 13784 | Y41: 1889 | Z41: 34403 | AC41: 3636 | AD41: 5448 | AE41: 434 | AF41: 9518
A42: 2011-03-01 | B42: 4917 | C42: 674 | D42: 5591 | F42: 4533 | G42: 364 | H42: 4897 | J42: 366495 | K42: 2997 | L42: 27353 | M42: 4259 | N42: 401104 | P42: 126472 | Q42: 838 | R42: 1952 | S42: 3339 | T42: 132601 | W42: 18664 | X42: 13636 | Y42: 1883 | Z42: 34183 | AC42: 3694 | AD42: 5610 | AE42: 440 | AF42: 9744
A43: 2011-04-01 | B43: 4778 | C43: 654 | D43: 5432 | F43: 4662 | G43: 384 | H43: 5046 | J43: 358313 | K43: 2846 | L43: 26474 | M43: 4224 | N43: 391857 | P43: 133506 | Q43: 985 | R43: 2758 | S43: 3382 | T43: 140631 | W43: 18490 | X43: 13551 | Y43: 1870 | Z43: 33911 | AC43: 3870 | AD43: 5719 | AE43: 456 | AF43: 10045
A44: 2011-05-01 | B44: 4715 | C44: 645 | D44: 5360 | F44: 4728 | G44: 393 | H44: 5121 | J44: 351554 | K44: 2702 | L44: 24923 | M44: 3498 | N44: 382677 | P44: 139780 | Q44: 1123 | R44: 4180 | S44: 4119 | T44: 149202 | W44: 18399 | X44: 13508 | Y44: 1860 | Z44: 33767 | AC44: 3969 | AD44: 5781 | AE44: 467 | AF44: 10217
A45: 2011-06-01 | B45: 4582 | C45: 630 | D45: 5212 | F45: 4851 | G45: 407 | H45: 5258 | J45: 346714 | K45: 2672 | L45: 23988 | M45: 3481 | N45: 376855 | P45: 144191 | Q45: 1153 | R45: 5097 | S45: 4144 | T45: 154585 | W45: 18320 | X45: 13441 | Y45: 1852 | Z45: 33613 | AC45: 4033 | AD45: 5891 | AE45: 469 | AF45: 10393
A46: 2011-07-01 | B46: 4556 | C46: 621 | D46: 5177 | F46: 4870 | G46: 416 | H46: 5286 | J46: 344591 | K46: 2646 | L46: 23431 | M46: 3473 | N46: 374141 | P46: 146080 | Q46: 1181 | R46: 5607 | S46: 4155 | T46: 157023 | W46: 18278 | X46: 13404 | Y46: 1846 | Z46: 33528 | AC46: 4068 | AD46: 5936 | AE46: 479 | AF46: 10483
A47: 2011-08-01 | B47: 4504 | C47: 620 | D47: 5124 | F47: 4922 | G47: 417 | H47: 5339 | J47: 342840 | K47: 2494 | L47: 23442 | M47: 3458 | N47: 372234 | P47: 147782 | Q47: 1217 | R47: 5742 | S47: 4174 | T47: 158915 | W47: 18215 | X47: 13341 | Y47: 1838 | Z47: 33394 | AC47: 4126 | AD47: 5996 | AE47: 479 | AF47: 10601
A48: 2011-09-01 | B48: 4478 | C48: 622 | D48: 5100 | F48: 4946 | G48: 416 | H48: 5362 | J48: 340541 | K48: 2436 | L48: 23336 | M48: 3460 | N48: 369773 | P48: 150361 | Q48: 1276 | R48: 5931 | S48: 4175 | T48: 161743 | W48: 18126 | X48: 13360 | Y48: 1837 | Z48: 33323 | AC48: 4165 | AD48: 6016 | AE48: 482 | AF48: 10663
A49: 2011-10-01 | B49: 4472 | C49: 620 | D49: 5092 | F49: 4946 | G49: 415 | H49: 5361 | J49: 338252 | K49: 2412 | L49: 23278 | M49: 3388 | N49: 367330 | P49: 152802 | Q49: 1304 | R49: 6042 | S49: 4252 | T49: 164400 | W49: 18166 | X49: 13355 | Y49: 1840 | Z49: 33361 | AC49: 4150 | AD49: 5997 | AE49: 474 | AF49: 10621
A50: 2011-11-01 | B50: 4446 | C50: 613 | D50: 5059 | F50: 4981 | G50: 420 | H50: 5401 | J50: 333430 | K50: 2344 | L50: 22994 | M50: 3386 | N50: 362154 | P50: 157835 | Q50: 1369 | R50: 6386 | S50: 4265 | T50: 169855 | W50: 18176 | X50: 13331 | Y50: 1837 | Z50: 33344 | AC50: 4199 | AD50: 6019 | AE50: 481 | AF50: 10699
A51: 2011-12-01 | B51: 4426 | C51: 616 | D51: 5042 | F51: 5005 | G51: 418 | H51: 5423 | J51: 327112 | K51: 2289 | L51: 22516 | M51: 3282 | N51: 355199 | P51: 165021 | Q51: 1431 | R51: 6987 | S51: 4375 | T51: 177814 | W51: 18130 | X51: 13323 | Y51: 1820 | Z51: 33273 | AC51: 4248 | AD51: 6039 | AE51: 499 | AF51: 10786
A52: 2012-01-01 | B52: 4290 | C52: 595 | D52: 4885 | F52: 5211 | G52: 438 | H52: 5649 | J52: 321443 | K52: 2239 | L52: 22158 | M52: 3167 | N52: 349007 | P52: 171002 | Q52: 1486 | R52: 7437 | S52: 4500 | T52: 184425 | W52: 17897 | X52: 12994 | Y52: 1782 | Z52: 32673 | AC52: 4486 | AD52: 6301 | AE52: 537 | AF52: 11324
A53: 2012-02-01 | B53: 4247 | C53: 576 | D53: 4823 | F53: 5309 | G53: 450 | H53: 5759 | J53: 317001 | K53: 2220 | L53: 21985 | M53: 3152 | N53: 344358 | P53: 175713 | Q53: 1518 | R53: 7782 | S53: 4523 | T53: 189536 | W53: 17760 | X53: 12685 | Y53: 1747 | Z53: 32192 | AC53: 4679 | AD53: 6515 | AE53: 576 | AF53: 11770
A54: 2012-03-01 | B54: 4145 | C54: 563 | D54: 4708 | F54: 5409 | G54: 462 | H54: 5871 | J54: 312226 | K54: 2182 | L54: 21655 | M54: 3163 | N54: 339226 | P54: 180459 | Q54: 1556 | R54: 8193 | S54: 4530 | T54: 194738 | W54: 17523 | X54: 12469 | Y54: 1711 | Z54: 31703 | AC54: 4930 | AD54: 6720 | AE54: 609 | AF54: 12259
A55: 2012-04-01 | B55: 4063 | C55: 557 | D55: 4620 | F55: 5489 | G55: 471 | H55: 5960 | J55: 307821 | K55: 2160 | L55: 21232 | M55: 3178 | N55: 334391 | P55: 184007 | Q55: 1574 | R55: 8586 | S55: 4525 | T55: 198692 | W55: 17404 | X55: 12217 | Y55: 1697 | Z55: 31318 | AC55: 5117 | AD55: 6922 | AE55: 628 | AF55: 12667
A56: 2012-05-01 | B56: 3940 | C56: 547 | D56: 4487 | F56: 5611 | G56: 481 | H56: 6092 | J56: 302889 | K56: 2120 | L56: 20933 | M56: 3183 | N56: 329125 | P56: 188508 | Q56: 1610 | R56: 8852 | S56: 4536 | T56: 203506 | W56: 17205 | X56: 11892 | Y56: 1673 | Z56: 30770 | AC56: 5355 | AD56: 7245 | AE56: 655 | AF56: 13255
A57: 2012-06-01 | B57: 3792 | C57: 513 | D57: 4305 | F57: 5753 | G57: 515 | H57: 6268 | J57: 298314 | K57: 2095 | L57: 20840 | M57: 3149 | N57: 324398 | P57: 193078 | Q57: 1636 | R57: 8945 | S57: 4575 | T57: 208234 | W57: 16976 | X57: 11635 | Y57: 1640 | Z57: 30251 | AC57: 5560 | AD57: 7514 | AE57: 685 | AF57: 13759
A58: 2012-07-01 | B58: 3686 | C58: 491 | D58: 4177 | F58: 5856 | G58: 536 | H58: 6392 | J58: 293866 | K58: 2049 | L58: 20659 | M58: 3077 | N58: 319651 | P58: 197209 | Q58: 1680 | R58: 9039 | S58: 4646 | T58: 212574 | W58: 16840 | X58: 11343 | Y58: 1618 | Z58: 29801 | AC58: 5744 | AD58: 7767 | AE58: 705 | AF58: 14216
A59: 2012-08-01 | B59: 3630 | C59: 490 | D59: 4120 | F59: 5908 | G59: 539 | H59: 6447 | J59: 288214 | K59: 1997 | L59: 20579 | M59: 3013 | N59: 313803 | P59: 202955 | Q59: 1734 | R59: 9213 | S59: 4708 | T59: 218610 | W59: 16730 | X59: 11189 | Y59: 1606 | Z59: 29525 | AC59: 5892 | AD59: 7919 | AE59: 718 | AF59: 14529
A60: 2012-09-01 | B60: 3580 | C60: 485 | D60: 4065 | F60: 5948 | G60: 544 | H60: 6492 | J60: 284471 | K60: 1954 | L60: 20495 | M60: 2969 | N60: 309889 | P60: 206828 | Q60: 1779 | R60: 9445 | S60: 4786 | T60: 222838 | W60: 16573 | X60: 10971 | Y60: 1544 | Z60: 29088 | AC60: 6057 | AD60: 8099 | AE60: 769 | AF60: 14925
A61: 2012-10-01 | B61: 3539 | C61: 491 | D61: 4030 | F61: 5975 | G61: 538 | H61: 6513 | J61: 280959 | K61: 1911 | L61: 20404 | M61: 2912 | N61: 306186 | P61: 210484 | Q61: 1823 | R61: 9684 | S61: 4891 | T61: 226882 | W61: 16437 | X61: 10798 | Y61: 1521 | Z61: 28756 | AC61: 6213 | AD61: 8262 | AE61: 794 | AF61: 15269
A62: 2012-11-01 | B62: 3538 | C62: 485 | D62: 4023 | F62: 5987 | G62: 544 | H62: 6531 | J62: 277130 | K62: 1875 | L62: 20207 | M62: 2884 | N62: 302096 | P62: 214828 | Q62: 1863 | R62: 9985 | S62: 4931 | T62: 231607 | W62: 16383 | X62: 10744 | Y62: 1543 | Z62: 28670 | AC62: 6278 | AD62: 8314 | AE62: 768 | AF62: 15360
A63: 2012-12-01 | B63: 3575 | C63: 490 | D63: 4065 | F63: 5955 | G63: 538 | H63: 6493 | J63: 275273 | K63: 1852 | L63: 20134 | M63: 2858 | N63: 300117 | P63: 217263 | Q63: 1891 | R63: 10168 | S63: 4958 | T63: 234280 | W63: 16358 | X63: 10763 | Y63: 1555 | Z63: 28676 | AC63: 6301 | AD63: 8314 | AE63: 761 | AF63: 15376
A64: 2013-01-01 | B64: 3469 | C64: 475 | D64: 3944 | F64: 6045 | G64: 544 | H64: 6589 | J64: 272659 | K64: 1816 | L64: 20079 | M64: 3063 | N64: 297617 | P64: 220261 | Q64: 1933 | R64: 10346 | S64: 4998 | T64: 237538 | W64: 16361 | X64: 10675 | Y64: 1540 | Z64: 28576 | AC64: 6328 | AD64: 8371 | AE64: 782 | AF64: 15481
A65: 2013-02-01 | B65: 3436 | C65: 460 | D65: 3896 | F65: 6067 | G65: 551 | H65: 6618 | J65: 270570 | K65: 1792 | L65: 19950 | M65: 3064 | N65: 295376 | P65: 222657 | Q65: 1961 | R65: 10540 | S65: 5025 | T65: 240183 | W65: 16372 | X65: 10626 | Y65: 1544 | Z65: 28542 | AC65: 6347 | AD65: 8420 | AE65: 794 | AF65: 15561
A66: 2013-03-01 | B66: 3475 | C66: 460 | D66: 3935 | F66: 6037 | G66: 551 | H66: 6588 | J66: 269458 | K66: 1781 | L66: 19935 | M66: 3085 | N66: 294259 | P66: 223812 | Q66: 1978 | R66: 10633 | S66: 5020 | T66: 241443 | W66: 16372 | X66: 10643 | Y66: 1556 | Z66: 28571 | AC66: 6374 | AD66: 8404 | AE66: 783 | AF66: 15561
A67: 2013-04-01 | B67: 3467 | C67: 459 | D67: 3926 | F67: 6049 | G67: 550 | H67: 6599 | J67: 267681 | K67: 1768 | L67: 19769 | M67: 3086 | N67: 292304 | P67: 224595 | Q67: 1988 | R67: 10704 | S67: 5022 | T67: 242309 | W67: 16304 | X67: 10646 | Y67: 1560 | Z67: 28510 | AC67: 6396 | AD67: 8455 | AE67: 782 | AF67: 15633
A68: 2013-05-01 | B68: 3447 | C68: 454 | D68: 3901 | F68: 6070 | G68: 553 | H68: 6623 | J68: 267476 | K68: 1759 | L68: 19752 | M68: 3117 | N68: 292104 | P68: 224594 | Q68: 1996 | R68: 10737 | S68: 5025 | T68: =SUM(P68:S68) -> 242352 | W68: 16272 | X68: 10461 | Y68: 1549 | Z68: 28282 | AC68: 6403 | AD68: 8680 | AE68: 791 | AF68: =SUM(AC68:AE68) -> 15874
A69: 2013-06-01 | B69: 3455 | C69: 450 | D69: =B69+C69 -> 3905 | F69: 6078 | G69: 554 | H69: =F69+G69 -> 6632 | J69: 266844 | K69: 1744 | L69: 19784 | M69: 3147 | N69: =SUM(J69:M69) -> 291519 | P69: 225027 | Q69: 2012 | R69: 10680 | S69: 5028 | T69: 242747 | W69: 16201 | X69: 10441 | Y69: 1537 | Z69: =SUM(W69:Y69) -> 28179 | AC69: 6460 | AD69: 8701 | AE69: 798 | AF69: 15959
A70: 2013-07-01 | B70: 3453 | C70: 454 | D70: 3907 | F70: 6080 | G70: 547 | H70: 6627 | J70: 267755 | K70: 1744 | L70: 19900 | M70: 3143 | N70: 292542 | P70: 223540 | Q70: 2008 | R70: 10448 | S70: 5042 | T70: 241038 | W70: 16146 | X70: 10339 | Y70: 1536 | Z70: 28021 | AC70: 6528 | AD70: 8779 | AE70: 797 | AF70: 16104
A71: 2013-08-01 | B71: 3413 | C71: 454 | D71: 3867 | F71: 6109 | G71: 551 | H71: 6660 | J71: 270513 | K71: 1767 | L71: 20296 | M71: 3125 | N71: 295701 | P71: 221050 | Q71: 1993 | R71: 10153 | S71: 5061 | T71: 238257 | W71: 16131 | X71: 10290 | Y71: 1499 | Z71: 27920 | AC71: 6558 | AD71: 8866 | AE71: 834 | AF71: 16258
A72: 2013-09-01 | B72: 3411 | C72: 453 | D72: 3864 | F72: 6115 | G72: 551 | H72: 6666 | J72: 271409 | K72: 1770 | L72: 20464 | M72: 3089 | N72: 296732 | P72: 220081 | Q72: 1989 | R72: 9996 | S72: 5103 | T72: 237169 | W72: 16094 | X72: 10167 | Y72: 1493 | Z72: 27754 | AC72: 6656 | AD72: 8890 | AE72: 838 | AF72: 16384
A73: 2013-10-01 | B73: 3388 | C73: 456 | D73: 3844 | F73: 6134 | G73: 551 | H73: 6685 | J73: 271630 | K73: 1767 | L73: 20585 | M73: 3066 | N73: 297048 | P73: 220325 | Q73: 1997 | R73: 9946 | S73: 5132 | T73: 237400 | W73: 16022 | X73: 10176 | Y73: 1485 | Z73: 27683 | AC73: 6735 | AD73: 8873 | AE73: 842 | AF73: 16450
A74: 2013-11-01 | B74: 3380 | C74: 457 | D74: 3837 | F74: 6134 | G74: 553 | H74: 6687 | J74: 271911 | K74: 1774 | L74: 20699 | M74: 3047 | N74: 297431 | P74: 220864 | Q74: 1994 | R74: 9921 | S74: 5165 | T74: 237944 | W74: 16018 | X74: 10113 | Y74: 1472 | Z74: 27603 | AC74: 6806 | AD74: 8941 | AE74: 859 | AF74: 16606
A75: 2013-12-01 | B75: 3354 | C75: 453 | D75: 3807 | F75: 6157 | G75: 556 | H75: 6713 | J75: 272338 | K75: 1778 | L75: 20907 | M75: 3054 | N75: 298077 | P75: 221073 | Q75: 2002 | R75: 9874 | S75: 5152 | T75: 238101 | W75: 15976 | X75: 10028 | Y75: 1457 | Z75: 27461 | AC75: 6888 | AD75: 8998 | AE75: 874 | AF75: 16760
A76: 2014-01-01 | B76: 3418 | C76: 448 | D76: 3866 | F76: 6048 | G76: 557 | H76: 6605 | J76: 272714 | K76: 1802 | L76: 21110 | M76: 3045 | N76: 298671 | P76: 221059 | Q76: 1999 | R76: 9802 | S76: 5171 | T76: 238031 | W76: 15974 | X76: 10029 | Y76: 1464 | Z76: 27467 | AC76: 6892 | AD76: 9027 | AE76: 875 | AF76: 16794
A77: 2014-02-01 | B77: 3397 | C77: 449 | D77: 3846 | F77: 6040 | G77: 547 | H77: 6587 | J77: 273501 | K77: 1857 | L77: 21292 | M77: 3038 | N77: 299688 | P77: 220509 | Q77: 2005 | R77: 9702 | S77: 5187 | T77: 237403 | W77: 15934 | X77: 10116 | Y77: 1445 | Z77: 27495 | AC77: 6893 | AD77: 9021 | AE77: 904 | AF77: 16818
A78: 2014-03-01 | B78: 3447 | C78: 458 | D78: 3905 | F78: 5991 | G78: 539 | H78: 6530 | J78: 275646 | K78: 1907 | L78: 21557 | M78: 3029 | N78: 302139 | P78: 218410 | Q78: 1997 | R78: 9451 | S78: 5198 | T78: 235056 | W78: 15945 | X78: 10191 | Y78: 1458 | Z78: 27594 | AC78: 6834 | AD78: 9008 | AE78: 888 | AF78: 16730
A79: 2014-04-01 | B79: 3503 | C79: 464 | D79: 3967 | F79: 5938 | G79: 532 | H79: 6470 | J79: 278301 | K79: 1934 | L79: 21763 | M79: 3022 | N79: 305020 | P79: 214378 | Q79: 1976 | R79: 9112 | S79: 5211 | T79: 230677 | W79: 15966 | X79: 10301 | Y79: 1460 | Z79: 27727 | AC79: 6800 | AD79: 8923 | AE79: 886 | AF79: 16609
A80: 2014-05-01 | B80: 3543 | C80: 484 | D80: 4027 | F80: 5895 | G80: 511 | H80: 6406 | J80: 281904 | K80: 1955 | L80: 21935 | M80: 3062 | N80: 308856 | P80: 210631 | Q80: 1954 | R80: 8896 | S80: 5187 | T80: 226668 | W80: 16063 | X80: 10400 | Y80: 1475 | Z80: 27938 | AC80: 6743 | AD80: 8790 | AE80: 868 | AF80: 16401
A81: 2014-06-01 | B81: 3575 | C81: 488 | D81: 4063 | F81: 5864 | G81: 507 | H81: 6371 | J81: 283128 | K81: 1958 | L81: 21986 | M81: 1895 | N81: 308967 | P81: 209070 | Q81: 1953 | R81: 8784 | S81: 829 | T81: 220636 | V81: 1815 | W81: 16170 | X81: 10358 | Y81: 1478 | Z81: =SUM(V81:Y81) -> 29821 | AB81: 3712 | AC81: 6646 | AD81: 8826 | AE81: 869 | AF81: =SUM(AB81:AE81) -> 20053
A82: 2014-07-01 | B82: 3528 | C82: 478 | D82: 4006 | F82: 5907 | G82: 518 | H82: 6425 | J82: 283918 | K82: 1969 | L82: 21996 | M82: 1893 | N82: 309776 | P82: 207925 | Q82: 1939 | R82: 8655 | S82: 831 | T82: 219350 | V82: 1835 | W82: 16202 | X82: 10322 | Y82: 1482 | Z82: =SUM(V82:Y82) -> 29841 | AB82: 3687 | AC82: 6600 | AD82: 8841 | AE82: 870 | AF82: 19998
A83: 2014-08-01 | B83: 3558 | C83: 479 | D83: 4037 | F83: 5875 | G83: 517 | H83: 6392 | J83: 285353 | K83: 1985 | L83: 22032 | M83: 1890 | N83: 311260 | P83: 206577 | Q83: 1943 | R83: 8652 | S83: 840 | T83: 218012 | V83: 1840 | W83: 16221 | X83: 10339 | Y83: 1480 | Z83: 29880 | AB83: 3682 | AC83: 6624 | AD83: 8823 | AE83: 871 | AF83: 20000
A84: 2014-09-01 | B84: 3536 | C84: 476 | D84: 4012 | F84: 5896 | G84: 520 | H84: 6416 | J84: 285532 | K84: 1998 | L84: 22164 | M84: 1885 | N84: 311579 | P84: 206226 | Q84: 1944 | R84: 8698 | S84: 865 | T84: 217733 | V84: 1840 | W84: 16262 | X84: 10372 | Y84: 1484 | Z84: 29958 | AB84: 3682 | AC84: 6634 | AD84: 8749 | AE84: 862 | AF84: 19927
A85: 2014-10-01 | B85: 3550 | C85: 481 | D85: 4031 | F85: 5875 | G85: 515 | H85: 6390 | J85: 286779 | K85: 2018 | L85: 22266 | M85: 1882 | N85: 312945 | P85: 205309 | Q85: 1937 | R85: 8710 | S85: 881 | T85: 216837 | V85: 1839 | W85: 16251 | X85: 10413 | Y85: 1481 | Z85: 29984 | AB85: 3683 | AC85: 6636 | AD85: 8708 | AE85: 861 | AF85: 19888
A86: 2014-11-01 | B86: 3568 | C86: 473 | D86: 4041 | F86: 5860 | G86: 522 | H86: 6382 | J86: 287800 | K86: 2029 | L86: 22307 | M86: 1879 | N86: 314015 | P86: 204934 | Q86: 1935 | R86: 8731 | S86: 900 | T86: 216500 | V86: 1839 | W86: 16305 | X86: 10377 | Y86: 1487 | Z86: 30008 | AB86: 3682 | AC86: 6648 | AD86: 8718 | AE86: 860 | AF86: 19908
A87: 2014-12-01 | B87: 3549 | C87: 468 | D87: 4017 | F87: 5858 | G87: 525 | H87: 6383 | J87: 311539 | K87: 2406 | L87: 23611 | M87: 769 | N87: 338325 | P87: 180275 | Q87: 1565 | R87: 7304 | S87: 216 | T87: 189360 | V87: 1871 | W87: 16232 | X87: 10318 | Y87: 1483 | Z87: 29904 | AB87: 3646 | AC87: 6646 | AD87: 8684 | AE87: 852 | AF87: 19828
A88: 2015-01-01 | B88: 3544 | C88: 459 | D88: 4003 | F88: 5864 | G88: 539 | H88: 6403 | J88: 311695 | K88: 2406 | L88: 23652 | M88: 769 | N88: 338522 | P88: 179957 | Q88: 1573 | R88: 7224 | S88: 225 | T88: 188979 | V88: 1940 | W88: 16370 | X88: 10360 | Y88: 1490 | Z88: 30160 | AB88: 3578 | AC88: 6518 | AD88: 8626 | AE88: 841 | AF88: 19563 | AJ88: 80 | AK88: 10 | AN88: 90
A89: 2015-02-01 | B89: 3454 | C89: 468 | D89: 3922 | F89: 5931 | G89: 536 | H89: 6467 | J89: 312676 | K89: 2425 | L89: 23763 | M89: 779 | N89: 339643 | P89: 179198 | Q89: 1572 | R89: 7168 | S89: 224 | T89: 188162 | V89: 1930 | W89: 16375 | X89: 10306 | Y89: 1468 | Z89: 30079 | AB89: 3584 | AC89: 6502 | AD89: 8685 | AE89: 858 | AF89: 19629 | AJ89: 73 | AK89: 8 | AN89: 81
A90: 2015-03-01 | B90: 3450 | C90: 450 | D90: 3900 | F90: 5969 | G90: 553 | H90: 6522 | J90: 315346 | K90: 2509 | L90: 24067 | M90: 777 | N90: 342699 | P90: 177865 | Q90: 1553 | R90: 7016 | S90: 239 | T90: 186673 | V90: 1939 | W90: 16410 | X90: 10400 | Y90: 1472 | Z90: 30221 | AB90: 3575 | AC90: 6479 | AD90: 8591 | AE90: 852 | AF90: 19497 | AJ90: 73 | AK90: 9 | AN90: 82
A91: 2015-04-01 | B91: 3433 | C91: 450 | D91: 3883 | F91: 5977 | G91: 554 | H91: 6531 | J91: 315808 | K91: 2524 | L91: 24101 | M91: 792 | N91: 343225 | P91: 176965 | Q91: 1544 | R91: 6934 | S91: 224 | T91: 185667 | V91: 1911 | W91: 16427 | X91: 10412 | Y91: 1485 | Z91: 30235 | AB91: 3603 | AC91: 6446 | AD91: 8547 | AE91: 838 | AF91: 19434 | AJ91: 69 | AK91: 9 | AL91: 0 | AM91: 0 | AN91: 78
A92: 2015-05-01 | B92: 3416 | C92: 447 | D92: 3863 | F92: 5988 | G92: 557 | H92: 6545 | J92: 316035 | K92: 2524 | L92: 24099 | M92: 791 | N92: 343449 | P92: 176170 | Q92: 1544 | R92: 6870 | S92: 228 | T92: 184812 | V92: 2009 | W92: 16399 | X92: 10432 | Y92: 1472 | Z92: 30312 | AB92: 3538 | AC92: 6408 | AD92: 8486 | AE92: 844 | AF92: 19276 | AJ92: 72 | AK92: 8 | AL92: 0 | AM92: 0 | AN92: 80
A93: 2015-06-01 | B93: 3416 | C93: 443 | D93: 3859 | F93: 5984 | G93: 558 | H93: 6542 | J93: 320009 | K93: 2582 | L93: 24297 | M93: 795 | N93: 347683 | P93: 171073 | Q93: 1497 | R93: 6606 | S93: 227 | T93: 179403 | V93: 2013 | W93: 16380 | X93: 10440 | Y93: 1474 | Z93: 30307 | AB93: 3539 | AC93: 6347 | AD93: 8425 | AE93: 836 | AF93: 19147 | AJ93: 71 | AK93: 10 | AL93: 0 | AM93: 0 | AN93: 81
A94: 2015-07-01 | B94: 3391 | C94: 438 | D94: 3829 | F94: 6010 | G94: 562 | H94: 6572 | J94: 319406 | K94: 2580 | L94: 24085 | M94: 794 | N94: 346865 | P94: 169993 | Q94: 1499 | R94: 6504 | S94: 225 | T94: 178221 | V94: 2017 | W94: 16403 | X94: 10472 | Y94: 1467 | Z94: 30359 | AB94: 3536 | AC94: 6328 | AD94: 8398 | AE94: 835 | AF94: 19097 | AJ94: 78 | AK94: 12 | AL94: 0 | AM94: 0 | AN94: 90
A95: 2015-08-01 | B95: 3387 | C95: 443 | D95: 3830 | F95: 6020 | G95: 558 | H95: 6578 | J95: 320803 | K95: 2614 | L95: 24254 | M95: 796 | N95: 348467 | P95: 168548 | Q95: 1471 | R95: 6397 | S95: 225 | T95: 176641 | V95: 2046 | W95: 16431 | X95: 10471 | Y95: 1459 | Z95: 30407 | AB95: 3525 | AC95: 6291 | AD95: 8371 | AE95: 838 | AF95: 19025 | AJ95: 74 | AK95: 13 | AL95: 0 | AM95: 0 | AN95: 87
A96: 2015-09-01 | B96: 3405 | C96: 443 | D96: 3848 | F96: 6008 | G96: 558 | H96: 6566 | J96: 327484 | K96: 2725 | L96: 24562 | M96: 801 | N96: 355572 | P96: 161677 | Q96: 1367 | R96: 6145 | S96: 224 | T96: 169413 | V96: 2086 | W96: 16405 | X96: 10476 | Y96: 1458 | Z96: 30425 | AB96: 3499 | AC96: 6239 | AD96: 8256 | AE96: 832 | AF96: 18826 | AJ96: 77 | AK96: 12 | AL96: 0 | AM96: 0 | AN96: 89
A97: 2015-10-01 | B97: 3431 | C97: 442 | D97: 3873 | F97: 5991 | G97: 558 | H97: 6549 | J97: 327858 | K97: 2735 | L97: 24587 | M97: 812 | N97: 355992 | P97: 161176 | Q97: 1361 | R97: 6105 | S97: 228 | T97: 168870 | V97: 1939 | W97: 16431 | X97: 10476 | Y97: 1459 | Z97: 30305 | AB97: 3527 | AC97: 6215 | AD97: 8237 | AE97: 831 | AF97: 18810 | AJ97: 77 | AK97: 14 | AL97: 0 | AM97: 0 | AN97: 91
A98: 2015-11-01 | B98: 3438 | C98: 446 | D98: 3884 | F98: 5983 | G98: 557 | H98: 6540 | J98: 327811 | K98: 2738 | L98: 24681 | M98: 766 | N98: 355996 | P98: 161241 | Q98: 1362 | R98: 6061 | S98: 228 | T98: 168892 | V98: 1945 | W98: 16443 | X98: 10464 | Y98: 1451 | Z98: 30303 | AB98: 3530 | AC98: 6206 | AD98: 8229 | AE98: 838 | AF98: 18803 | AJ98: 81 | AK98: 14 | AL98: 0 | AM98: 0 | AN98: 95
A99: 2015-12-01 | B99: 3459 | C99: 450 | D99: 3909 | F99: 5967 | G99: 550 | H99: 6517 | J99: 329117 | K99: 2746 | L99: 24731 | M99: 764 | N99: 357358 | P99: 160502 | Q99: 1352 | R99: 6010 | S99: 234 | T99: 168098 | V99: 1948 | W99: 16435 | X99: 10449 | Y99: 1456 | Z99: 30288 | AB99: 3530 | AC99: 6224 | AD99: 8244 | AE99: 827 | AF99: 18825 | AJ99: 83 | AK99: 14 | AL99: 0 | AM99: 0 | AN99: 97
A100: 2016-01-01 | B100: 3490 | C100: 453 | D100: 3943 | F100: 5980 | G100: 554 | H100: 6534 | J100: 329641 | K100: 2751 | L100: 24766 | M100: 764 | N100: 357922 | P100: 160695 | Q100: 1365 | R100: 6059 | S100: 234 | T100: 168353 | V100: 1920 | W100: 16469 | X100: 10474 | Y100: 1458 | Z100: 30321 | AB100: 3561 | AC100: 6210 | AD100: 8205 | AE100: 820 | AF100: 18796 | AJ100: 80 | AK100: 16 | AL100: 0 | AM100: 0 | AN100: 96
A101: 2016-02-01 | B101: 3480 | C101: 455 | D101: 3935 | F101: 6010 | G101: 558 | H101: 6568 | J101: 329573 | K101: 2775 | L101: 24904 | M101: 769 | N101: 358021 | P101: 161205 | Q101: 1371 | R101: 6078 | S101: 232 | T101: 168886 | V101: 1919 | W101: 16459 | X101: 10524 | Y101: 1456 | Z101: 30358 | AB101: 3563 | AC101: 6210 | AD101: 8163 | AE101: 811 | AF101: 18747 | AJ101: 77 | AK101: 13 | AL101: 0 | AM101: 0 | AN101: 90
A102: 2016-03-01 | B102: 3511 | C102: 458 | D102: 3969 | F102: 5993 | G102: 557 | H102: 6550 | J102: 329365 | K102: 2776 | L102: 25301 | M102: 761 | N102: 358203 | P102: 161117 | Q102: 1386 | R102: 6072 | S102: 233 | T102: 168808 | V102: 1922 | W102: 16397 | X102: 10614 | Y102: 1463 | Z102: 30396 | AB102: 3558 | AC102: 6178 | AD102: 8123 | AE102: 794 | AF102: 18653 | AJ102: 75 | AK102: 13 | AL102: 0 | AM102: 0 | AN102: 88
A103: 2016-04-01 | B103: 3488 | C103: 451 | D103: 3939 | F103: 6013 | G103: 566 | H103: 6579 | J103: 329627 | K103: 2817 | L103: 25389 | M103: 765 | N103: 358598 | P103: 160218 | Q103: 1373 | R103: 5986 | S103: 232 | T103: 167809 | V103: 1894 | W103: 16451 | X103: 10586 | Y103: 1461 | Z103: 30392 | AB103: 3593 | AC103: 6201 | AD103: 8043 | AE103: 796 | AF103: 18633 | AJ103: 76 | AK103: 13 | AL103: 0 | AM103: 0 | AN103: 89
A104: 2016-05-01 | B104: 3434 | C104: 441 | D104: 3875 | F104: 6078 | G104: 574 | H104: 6652 | J104: 329049 | K104: 2823 | L104: 25476 | M104: 765 | N104: 358113 | P104: 159778 | Q104: 1369 | R104: 5960 | S104: 231 | T104: 167338 | V104: 1899 | W104: 16486 | X104: 10577 | Y104: 1479 | Z104: 30441 | AB104: 3590 | AC104: 6191 | AD104: 8018 | AE104: 778 | AF104: 18577 | AJ104: 76 | AK104: 14 | AL104: 0 | AM104: 0 | AN104: 90
A105: 2016-06-01 | B105: 3460 | C105: 446 | D105: 3906 | F105: 6056 | G105: 570 | H105: 6626 | J105: 325613 | K105: 3054 | L105: 25111 | M105: 765 | N105: 354543 | P105: 158615 | Q105: 1369 | R105: 5844 | S105: 232 | T105: 166060 | V105: 1903 | W105: 16471 | X105: 10560 | Y105: 1475 | Z105: 30409 | AB105: 3590 | AC105: 6111 | AD105: 7969 | AE105: 774 | AF105: 18444 | AJ105: 76 | AK105: 15 | AL105: 0 | AM105: 0 | AN105: 91
A106: 2016-07-01 | B106: 3440 | C106: 440 | D106: 3880 | F106: 6063 | G106: 570 | H106: 6633 | J106: 325272 | K106: 3209 | L106: 25083 | M106: 766 | N106: 354330 | P106: 158254 | Q106: 1371 | R106: 5817 | S106: 233 | T106: 165675 | V106: 1903 | W106: 16426 | X106: 10532 | Y106: 1475 | Z106: 30336 | AB106: 3590 | AC106: 6144 | AD106: 7982 | AE106: 785 | AF106: 18501 | AJ106: 76 | AK106: 15 | AL106: 0 | AM106: 0 | AN106: 91
A107: 2016-08-01 | B107: 3496 | C107: 448 | D107: 3944 | F107: 6057 | G107: 564 | H107: 6621 | J107: 328860 | K107: 3227 | L107: 25773 | M107: 769 | N107: 358629 | P107: 158302 | Q107: 1379 | R107: 5813 | S107: 234 | T107: 165728 | V107: 1899 | W107: 16502 | X107: 10679 | Y107: 1490 | Z107: 30570 | AB107: 3596 | AC107: 6190 | AD107: 7960 | AE107: 786 | AF107: 18532 | AJ107: 76 | AK107: 12 | AL107: 0 | AM107: 0 | AN107: 88
A108: 2016-09-01 | B108: 3532 | C108: 448 | D108: 3980 | F108: 6032 | G108: 563 | H108: 6595 | J108: 331046 | K108: 3250 | L108: 26239 | M108: 765 | N108: 361300 | P108: 158116 | Q108: 1386 | R108: 5828 | S108: 235 | T108: 165565 | V108: 1899 | W108: 16535 | X108: 10702 | Y108: 1488 | Z108: 30624 | AB108: 3596 | AC108: 6207 | AD108: 7947 | AE108: 789 | AF108: 18539 | AJ108: 73 | AK108: 11 | AL108: 0 | AM108: 0 | AN108: 84
A109: 2016-10-01 | B109: 3542 | C109: 454 | D109: 3996 | F109: 6018 | G109: 562 | H109: 6580 | J109: 332310 | K109: 3254 | L109: 26510 | M109: 773 | N109: 362847 | P109: 158009 | Q109: 1395 | R109: 5859 | S109: 234 | T109: 165497 | V109: 1881 | W109: 16526 | X109: 10727 | Y109: 1478 | Z109: 30612 | AB109: 3594 | AC109: 6209 | AD109: 7924 | AE109: 797 | AF109: 18524 | AJ109: 70 | AK109: 13 | AL109: 0 | AM109: 0 | AN109: 83
A110: 2016-11-01 | B110: 3563 | C110: 459 | D110: 4022 | F110: 6010 | G110: 559 | H110: 6569 | J110: 333435 | K110: 3260 | L110: 26691 | M110: 771 | N110: 364157 | P110: 157882 | Q110: 1405 | R110: 5855 | S110: 233 | T110: 165375 | V110: 1857 | W110: 16604 | X110: 10680 | Y110: 1473 | Z110: 30614 | AB110: 3593 | AC110: 6253 | AD110: 7916 | AE110: 794 | AF110: 18556 | AJ110: 70 | AK110: 13 | AL110: 0 | AM110: 0 | AN110: 83
A111: 2016-12-01 | B111: 3551 | C111: 460 | D111: 4011 | F111: 5908 | G111: 545 | H111: 6453 | J111: 335231 | K111: 3269 | L111: 27042 | M111: 766 | N111: 366308 | P111: 157549 | Q111: 1405 | R111: 5808 | S111: 239 | T111: 165001 | V111: 1810 | W111: 16636 | X111: 10577 | Y111: 1463 | Z111: 30486 | AB111: 3639 | AC111: 6244 | AD111: 7806 | AE111: 779 | AF111: 18468 | AJ111: 75 | AK111: 15 | AL111: 0 | AM111: 1 | AN111: 91
A112: 2017-01-01 | B112: 3896 | C112: 490 | D112: 4386 | F112: 5996 | G112: 551 | H112: 6547 | J112: 336030 | K112: 3285 | L112: 27203 | M112: 767 | N112: 367285 | P112: 156824 | Q112: 1402 | R112: 5723 | S112: 237 | T112: 164186 | V112: 1807 | W112: 16630 | X112: 10532 | Y112: 1451 | Z112: 30420 | AB112: 3650 | AC112: 6230 | AD112: 7731 | AE112: 795 | AF112: 18406 | AJ112: 80 | AK112: 16 | AL112: 0 | AM112: 1 | AN112: 97
A113: 2017-02-01 | B113: 3902 | C113: 492 | D113: 4394 | F113: 5985 | G113: 549 | H113: 6534 | J113: 336444 | K113: 3281 | L113: 27281 | M113: 763 | N113: 367769 | P113: 156557 | Q113: 1420 | R113: 5672 | S113: 234 | T113: 163883 | V113: 1815 | W113: 16471 | X113: 10411 | Y113: 1444 | Z113: 30141 | AB113: 3650 | AC113: 6164 | AD113: 7591 | AE113: 801 | AF113: 18206 | AJ113: 72 | AK113: 14 | AL113: 0 | AM113: 0 | AN113: 86
A114: 2017-03-01 | B114: 3914 | C114: 486 | D114: 4400 | F114: 5989 | G114: 555 | H114: 6544 | J114: 336810 | K114: 3285 | L114: 27522 | M114: 764 | N114: 368381 | P114: 156001 | Q114: 1426 | R114: 5623 | S114: 233 | T114: 163283 | V114: 2035 | W114: 16612 | X114: 10568 | Y114: 1446 | Z114: 30661 | AB114: 3475 | AC114: 6219 | AD114: 7589 | AE114: 800 | AF114: 18083 | AJ114: 68 | AK114: 13 | AL114: 0 | AM114: 0 | AN114: 81
A115: 2017-04-01 | B115: 3963 | C115: 485 | D115: 4448 | F115: 5948 | G115: 555 | H115: 6503 | J115: 336549 | K115: 3303 | L115: 27515 | M115: 763 | N115: 368130 | P115: 155274 | Q115: 1423 | R115: 5588 | S115: 234 | T115: 162519 | V115: 2023 | W115: 16583 | X115: 10525 | Y115: 1456 | Z115: 30587 | AB115: 3478 | AC115: 6177 | AD115: 7535 | AE115: 786 | AF115: 17976 | AJ115: 61 | AK115: 13 | AL115: 0 | AM115: 0 | AN115: 74
A116: 2017-05-01 | B116: 4015 | C116: 494 | D116: 4509 | F116: 5875 | G116: 548 | H116: 6423 | J116: 336255 | K116: 3459 | L116: 27502 | M116: 760 | N116: 367976 | P116: 154492 | Q116: 1424 | R116: 5530 | S116: 235 | T116: 161681 | V116: 2030 | W116: 16691 | X116: 10643 | Y116: 1457 | Z116: 30821 | AB116: 3473 | AC116: 6125 | AD116: 7512 | AE116: 779 | AF116: 17889 | AJ116: 64 | AK116: 13 | AL116: 0 | AM116: 0 | AN116: 77
A117: 2017-06-01 | B117: 4067 | C117: 492 | D117: 4559 | F117: 5844 | G117: 551 | H117: 6395 | J117: 336455 | K117: 3460 | L117: 27430 | M117: 752 | N117: 368097 | P117: 153943 | Q117: 1411 | R117: 5516 | S117: 240 | T117: 161110 | V117: 2030 | W117: 16703 | X117: 10759 | Y117: 1441 | Z117: 30933 | AB117: 3480 | AC117: 6102 | AD117: 7485 | AE117: 788 | AF117: 17855 | AJ117: 71 | AK117: 12 | AL117: 0 | AM117: 0 | AN117: 83
A118: 2017-07-01 | B118: 4091 | C118: 489 | D118: 4580 | F118: 5822 | G118: 553 | H118: 6375 | J118: 339605 | K118: 3497 | L118: 27956 | M118: 750 | N118: 371808 | P118: 153952 | Q118: 1410 | R118: 5550 | S118: 244 | T118: 161156 | V118: 2017 | W118: 16813 | X118: 10813 | Y118: 1445 | Z118: 31088 | AB118: 3493 | AC118: 6072 | AD118: 7484 | AE118: 789 | AF118: 17838 | AJ118: 68 | AK118: 12 | AL118: 0 | AM118: 0 | AN118: 80
A119: 2017-08-01 | B119: 4097 | C119: 487 | D119: 4584 | F119: 5822 | G119: 559 | H119: 6381 | J119: 340230 | K119: 3507 | L119: 28291 | M119: 756 | N119: 372784 | P119: 152988 | Q119: 1401 | R119: 5557 | S119: 246 | T119: 160192 | V119: 1975 | W119: 16890 | X119: 10855 | Y119: 1452 | Z119: 31172 | AB119: 3495 | AC119: 6037 | AD119: 7438 | AE119: 783 | AF119: 17753 | AJ119: 66 | AK119: 12 | AL119: 0 | AM119: 0 | AN119: 78
A120: 2017-09-01 | B120: 4068 | C120: 489 | D120: 4557 | F120: 5843 | G120: 557 | H120: 6400 | J120: 339658 | K120: 3522 | L120: 28194 | M120: 755 | N120: 372129 | P120: 152953 | Q120: 1379 | R120: 5561 | S120: 248 | T120: 160141 | V120: 1978 | W120: 16841 | X120: 10847 | Y120: 1454 | Z120: 31120 | AB120: 3496 | AC120: 6059 | AD120: 7374 | AE120: 782 | AF120: 17711 | AJ120: 66 | AK120: 12 | AL120: 0 | AM120: 0 | AN120: 78
A121: 2017-10-01 | B121: 4065 | C121: 493 | D121: 4558 | F121: 5816 | G121: 548 | H121: 6364 | J121: 340120 | K121: 3530 | L121: 28290 | M121: 749 | N121: =SUM(J121:M121) -> 372689 | P121: 153069 | Q121: 1375 | R121: 5573 | S121: 248 | T121: =SUM(P121:S121) -> 160265 | V121: 1974 | W121: 16850 | X121: 10846 | Y121: 1435 | Z121: =SUM(V121:Y121) -> 31105 | AB121: 3438 | AC121: 6028 | AD121: 7325 | AE121: 795 | AF121: =SUM(AB121:AE121) -> 17586 | AJ121: 69 | AK121: 12 | AN121: 81
A122: 2017-11-01 | B122: 4077 | C122: 490 | D122: 4567 | F122: 5840 | G122: 554 | H122: 6394 | J122: 340542 | K122: 3541 | L122: 28384 | M122: 753 | N122: 373220 | P122: 152991 | Q122: 1366 | R122: 5640 | S122: 251 | T122: 160248 | V122: 1970 | W122: 16860 | X122: 10866 | Y122: 1429 | Z122: 31125 | AB122: 3503 | AC122: 6105 | AD122: 7331 | AE122: 805 | AF122: 17744 | AJ122: 65 | AK122: 10 | AN122: 75
A123: 2017-12-01 | B123: 4056 | C123: 489 | D123: =B123+C123 -> 4545 | F123: 5854 | G123: 553 | H123: 6407 | J123: 340662 | K123: 3680 | L123: 28302 | M123: 758 | N123: =SUM(J123:M123) -> 373402 | P123: 153232 | Q123: 1348 | R123: 5696 | S123: 250 | T123: =SUM(P123:S123) -> 160526 | V123: 1979 | W123: 16940 | X123: 10825 | Y123: 1433 | Z123: =SUM(V123:Y123) -> 31177 | AB123: 3502 | AC123: 6108 | AD123: 7300 | AE123: 802 | AF123: =SUM(AB123:AE123) -> 17712 | AJ123: 67 | AK123: 11 | AN123: 78
A124: 2018-01-01 | B124: 3711 | C124: 480 | D124: 4191 | F124: 5585 | G124: 531 | H124: 6116 | J124: 341486 | K124: 3738 | L124: 28750 | M124: 752 | N124: 374726 | P124: 152963 | Q124: 1342 | R124: 5595 | S124: 255 | T124: 160155 | V124: 1977 | W124: 16955 | X124: 11193 | Y124: 1467 | Z124: 31592 | AB124: 3504 | AC124: 6109 | AD124: 7490 | AE124: 790 | AF124: 17893 | AJ124: 64 | AK124: 11 | AN124: 75
A125: 2018-02-01 | B125: 3481 | C125: 468 | D125: 3949 | F125: 5479 | G125: 535 | H125: 6014 | J125: 342133 | K125: 3874 | L125: 29166 | M125: 752 | N125: 375925 | P125: 152694 | Q125: 1329 | R125: 5558 | S125: 257 | T125: 159838 | V125: 1974 | W125: 16994 | X125: 11455 | Y125: 1461 | Z125: 31884 | AB125: 3503 | AC125: 6103 | AD125: 7598 | AE125: 811 | AF125: 18015 | AJ125: 65 | AK125: 11 | AN125: 76
A126: 2018-03-01 | B126: 3504 | C126: 469 | D126: 3973 | F126: 5468 | G126: 535 | H126: 6003 | J126: 341767 | K126: 3884 | L126: 29210 | M126: 745 | N126: 375606 | P126: 153175 | Q126: 1327 | R126: 5725 | S126: 256 | T126: 160483 | V126: 1972 | W126: 16998 | X126: 11486 | Y126: 1464 | Z126: 31920 | AB126: 3501 | AC126: 6106 | AD126: 7600 | AE126: 805 | AF126: 18012 | AJ126: 63 | AK126: 9 | AN126: 72
A127: 2018-04-01 | B127: 3524 | C127: 469 | D127: 3993 | F127: 5451 | G127: 533 | H127: =F127+G127 -> 5984 | J127: 342018 | K127: 3943 | L127: 29330 | M127: 746 | N127: 376037 | P127: 153553 | Q127: 1329 | R127: 5790 | S127: 256 | T127: 160928 | V127: 1968 | W127: 17078 | X127: 11489 | Y127: 1485 | Z127: 32020 | AB127: 3505 | AC127: 6113 | AD127: 7590 | AE127: 787 | AF127: 17995 | AJ127: 64 | AK127: 9 | AN127: 73
A128: 2018-05-01 | B128: 3536 | C128: 467 | D128: 4003 | F128: 5448 | G128: 532 | H128: =F128+G128 -> 5980 | J128: 341431 | K128: 3938 | L128: 29249 | M128: 746 | N128: =SUM(J128:M128) -> 375364 | P128: 153282 | Q128: 1328 | R128: 5816 | S128: 258 | T128: =SUM(P128:S128) -> 160684 | V128: 1967 | W128: 17083 | X128: 11513 | Y128: 1502 | Z128: =SUM(V128:Y128) -> 32065 | AB128: 3506 | AC128: 6114 | AD128: 7537 | AE128: 766 | AF128: =SUM(AB128:AE128) -> 17923 | AJ128: 67 | AK128: 10 | AN128: 77
A129: 2018-06-01 | B129: 3510 | C129: 467 | D129: 3977 | F129: 5467 | G129: 529 | H129: =F129+G129 -> 5996 | J129: 340014 | K129: 4078 | L129: 29053 | M129: 746 | N129: 373891 | P129: 153678 | Q129: 1329 | R129: 5854 | S129: 257 | T129: 161118 | V129: 1963 | W129: 17112 | X129: 11480 | Y129: 1510 | Z129: 32065 | AB129: 3509 | AC129: 6114 | AD129: 7563 | AE129: 758 | AF129: 17944 | AJ129: 63 | AK129: 9 | AN129: 72
A130: 2018-07-01 | B130: 3505 | C130: 463 | D130: 3968 | F130: 5469 | G130: 529 | H130: =F130+G130 -> 5998 | J130: 340808 | K130: 4122 | L130: 29135 | M130: 745 | N130: 374810 | P130: 153454 | Q130: 1342 | R130: 5877 | S130: 258 | T130: 160931 | V130: 1963 | W130: 17139 | X130: 11472 | Y130: 1495 | Z130: 32069 | AB130: 3510 | AC130: 6115 | AD130: 7555 | AE130: 778 | AF130: 17958 | AJ130: 63 | AK130: 9 | AN130: 72
A131: 2018-08-01 | B131: 3528 | C131: 466 | D131: 3994 | F131: 5454 | G131: 530 | H131: =F131+G131 -> 5984 | J131: 342057 | K131: 4219 | L131: 29364 | M131: 746 | N131: 376386 | P131: 152888 | Q131: 1338 | R131: 5886 | S131: 258 | T131: 160370 | V131: 1962 | W131: 17172 | X131: 11494 | Y131: 1498 | Z131: 32126 | AB131: 3510 | AC131: 6121 | AD131: 7509 | AE131: 776 | AF131: 17916 | AJ131: 62 | AK131: 10 | AN131: 72
A132: 2018-09-01 | B132: 3557 | C132: 462 | D132: 4019 | F132: 5436 | G132: 531 | H132: =F132+G132 -> 5967 | J132: 341235 | K132: 4201 | L132: 29314 | M132: 734 | N132: 375484 | P132: 152971 | Q132: 1335 | R132: 5971 | S132: 272 | T132: 160549 | V132: 1961 | W132: 17231 | X132: 11520 | Y132: 1496 | Z132: 32208 | AB132: 3507 | AC132: 6077 | AD132: 7465 | AE132: 778 | AF132: 17827 | AJ132: 60 | AK132: 10 | AN132: 70
A133: 2018-10-01 | B133: 3561 | C133: 460 | D133: =B133+C133 -> 4021 | F133: 5432 | G133: 533 | H133: 5965 | J133: 342039 | K133: 4227 | L133: 29467 | M133: 736 | N133: 376469 | P133: 153149 | Q133: 1351 | R133: 6104 | S133: 273 | T133: 160877 | V133: 1960 | W133: 17278 | X133: 11597 | Y133: 1499 | Z133: 32334 | AB133: 3507 | AC133: 6049 | AD133: 7448 | AE133: 772 | AF133: 17776 | AJ133: 62 | AK133: 10 | AN133: 72
A134: 2018-11-01 | B134: 3582 | C134: 462 | D134: 4044 | F134: 5422 | G134: 533 | H134: 5955 | J134: 343258 | K134: 4273 | L134: 29613 | M134: 739 | N134: 377883 | P134: 152876 | Q134: 1339 | R134: 6186 | S134: 270 | T134: 160671 | V134: 1949 | W134: 17301 | X134: 11627 | Y134: 1493 | Z134: 32370 | AB134: 3508 | AC134: 6039 | AD134: 7435 | AE134: 768 | AF134: 17750 | AJ134: 62 | AK134: 10 | AL134: 0 | AM134: 0 | AN134: 72
A135: 2018-12-01 | B135: 3560 | C135: 463 | D135: 4023 | F135: 5447 | G135: 530 | H135: 5977 | J135: 343550 | K135: 4293 | L135: 29653 | M135: 732 | N135: 378228 | P135: 152709 | Q135: 1330 | R135: 6171 | S135: 270 | T135: 160480 | V135: 1949 | W135: 17336 | X135: 11668 | Y135: 1495 | Z135: 32448 | AB135: 3508 | AC135: 6007 | AD135: 7427 | AE135: 763 | AF135: 17705 | AJ135: 62 | AK135: 10 | AL135: 0 | AM135: 0 | AN135: 72
A136: 2019-01-01 | B136: 2640 | C136: 322 | D136: 2962 | F136: 4589 | G136: 435 | H136: 5024 | J136: 344268 | K136: 4316 | L136: 29855 | M136: 736 | N136: 379175 | P136: 152448 | Q136: 1310 | R136: 6114 | S136: 267 | T136: 160139 | V136: 1815 | W136: 17369 | X136: 12574 | Y136: 1638 | Z136: 33396 | AB136: 3508 | AC136: 5972 | AD136: 8353 | AE136: 860 | AF136: 18693 | AJ136: 65 | AK136: 10 | AL136: 0 | AM136: 0 | AN136: 75
A137: 2019-02-01 | B137: 2551 | C137: 308 | D137: 2859 | F137: 4452 | G137: 422 | H137: 4874 | J137: 345170 | K137: 4337 | L137: 30150 | M137: 736 | N137: 380393 | P137: 151993 | Q137: 1299 | R137: 6058 | S137: 266 | T137: 159616 | V137: 1789 | W137: 17428 | X137: 12709 | Y137: 1657 | Z137: 33583 | AB137: 3507 | AC137: 5952 | AD137: 8454 | AE137: 869 | AF137: 18782 | AJ137: 63 | AK137: 10 | AL137: 0 | AM137: 0 | AN137: 73
A138: 2019-03-01 | B138: 2546 | C138: 308 | D138: 2854 | F138: 4463 | G138: 422 | H138: 4885 | J138: 345876 | K138: 4383 | L138: 30311 | M138: 734 | N138: 381304 | P138: 150984 | Q138: 1283 | R138: 5933 | S138: 268 | T138: 158468 | V138: 1796 | W138: 17417 | X138: 12752 | Y138: 1658 | Z138: 33623 | AB138: 3507 | AC138: 5944 | AD138: 8396 | AE138: 863 | AF138: 18710 | AJ138: 60 | AK138: 10 | AL138: 0 | AM138: 0 | AN138: 70
A139: 2019-04-01 | B139: 2542 | C139: 303 | D139: 2845 | F139: 4472 | G139: 423 | H139: 4895 | J139: 347027 | K139: 4430 | L139: 30403 | M139: 732 | N139: 382592 | P139: 149689 | Q139: 1267 | R139: 5835 | S139: 270 | T139: 157061 | V139: 1812 | W139: 17422 | X139: 12835 | Y139: 1649 | Z139: 33718 | AB139: 3507 | AC139: 5949 | AD139: 8312 | AE139: 856 | AF139: 18624 | AJ139: 58 | AK139: 14 | AL139: 0 | AM139: 0 | AN139: 72
A140: 2019-05-01 | B140: 2533 | C140: 302 | D140: 2835 | F140: 4481 | G140: 423 | H140: 4904 | J140: 348133 | K140: 4449 | L140: 30635 | M140: 730 | N140: 383947 | P140: 149016 | Q140: 1248 | R140: 5758 | S140: 273 | T140: 156295 | V140: 1828 | W140: 17459 | X140: 12806 | Y140: 1657 | Z140: 33750 | AB140: 3507 | AC140: 5932 | AD140: 8292 | AE140: 849 | AF140: 18580 | AJ140: 62 | AK140: 9 | AL140: 0 | AM140: 0 | AN140: 71
A141: 2019-06-01 | B141: 2443 | C141: 289 | D141: 2732 | F141: 4042 | G141: 386 | H141: 4428 | J141: 346730 | K141: 4384 | L141: 30426 | M141: 728 | N141: 382268 | P141: 148465 | Q141: 1244 | R141: 5726 | S141: 272 | T141: 155707 | V141: 2002 | W141: 17504 | X141: 12793 | Y141: 1657 | Z141: 33956 | AB141: 3498 | AC141: 5936 | AD141: 8276 | AE141: 847 | AF141: 18557 | AH141: 84 | AI141: 12 | AJ141: 58 | AK141: 11 | AL141: 0 | AM141: 0 | AN141: 165 | AP141: 446 | AQ141: 38 | AR141: 680 | AS141: 78 | AT141: 9 | AU141: 21 | AV141: 1272
A142: 2019-07-01 | B142: 2420 | C142: 288 | D142: 2708 | F142: 4075 | G142: 388 | H142: 4463 | J142: 348471 | K142: 4492 | L142: 30846 | M142: 727 | N142: 384536 | P142: 147537 | Q142: 1248 | R142: 5673 | S142: 273 | T142: 154731 | V142: 2074 | W142: 17508 | X142: 12748 | Y142: 1657 | Z142: 33987 | AB142: 3495 | AC142: 5970 | AD142: 8287 | AE142: 850 | AF142: 18602 | AH142: 81 | AI142: 10 | AJ142: 57 | AK142: 9 | AL142: 0 | AM142: 0 | AN142: 157 | AP142: 448 | AQ142: 40 | AR142: 681 | AS142: 80 | AT142: 9 | AU142: 21 | AV142: 1279
A143: 2019-08-01 | B143: 2413 | C143: 286 | D143: 2699 | F143: 4071 | G143: 390 | H143: 4461 | J143: 349745 | K143: 4453 | L143: 30982 | M143: 724 | N143: 385904 | P143: 145301 | Q143: 1234 | R143: 5623 | S143: 272 | T143: 152430 | V143: 2065 | W143: 17544 | X143: 12766 | Y143: 1654 | Z143: 34029 | AB143: 3496 | AC143: 5972 | AD143: 8233 | AE143: 852 | AF143: 18553 | AH143: 82 | AI143: 10 | AJ143: 60 | AK143: 9 | AL143: 0 | AM143: 0 | AN143: 161 | AP143: 447 | AQ143: 40 | AR143: 679 | AS143: 80 | AT143: 9 | AU143: 21 | AV143: 1276
A144: 2019-09-01 | B144: 2412 | C144: 289 | D144: 2701 | F144: 4073 | G144: 387 | H144: 4460 | J144: 351199 | K144: 4453 | L144: 31200 | M144: 725 | N144: 387577 | P144: 144748 | Q144: 1254 | R144: 5619 | S144: 273 | T144: 151894 | V144: 2064 | W144: 17587 | X144: 12801 | Y144: 1656 | Z144: 34108 | AB144: 3502 | AC144: 5967 | AD144: 8190 | AE144: 851 | AF144: 18510 | AH144: 79 | AI144: 10 | AJ144: 59 | AK144: 9 | AL144: 0 | AM144: 1 | AN144: 158 | AP144: 448 | AQ144: 40 | AR144: 681 | AS144: 80 | AT144: 9 | AU144: 21 | AV144: 1279
A145: 2019-10-01 | B145: 2402 | C145: 286 | D145: 2688 | F145: 4082 | G145: 389 | H145: 4471 | J145: 351890 | K145: 4440 | L145: 31368 | M145: 721 | N145: 388419 | P145: 144057 | Q145: 1254 | R145: 5629 | S145: 274 | T145: 151214 | V145: 2086 | W145: 17599 | X145: 12755 | Y145: 1642 | Z145: 34082 | AB145: 3502 | AC145: 5995 | AD145: 8175 | AE145: 856 | AF145: 18528 | AH145: 76 | AI145: 10 | AJ145: 57 | AK145: 8 | AL145: 1 | AM145: 1 | AN145: 153 | AP145: 450 | AQ145: 40 | AR145: 683 | AS145: 81 | AT145: 9 | AU145: 21 | AV145: 1284
A146: 2019-11-01 | B146: 2412 | C146: 285 | D146: 2697 | F146: 4074 | G146: 392 | H146: 4466 | J146: 352261 | K146: 4451 | L146: 31478 | M146: 721 | N146: 388911 | P146: 143741 | Q146: 1241 | R146: 5635 | S146: 272 | T146: 150889 | V146: 2049 | W146: 17637 | X146: 12736 | Y146: 1640 | Z146: 34062 | AB146: 3569 | AC146: 6016 | AD146: 8174 | AE146: 853 | AF146: 18612 | AH146: 75 | AI146: 9 | AJ146: 60 | AK146: 8 | AL146: 1 | AM146: 1 | AN146: 154 | AP146: 451 | AQ146: 40 | AR146: 683 | AS146: 81 | AT146: 9 | AU146: 21 | AV146: 1285
A147: 2019-12-01 | B147: 2398 | C147: 280 | D147: 2678 | F147: 4093 | G147: 396 | H147: 4489 | J147: 352870 | K147: 4463 | L147: 31664 | M147: 721 | N147: 389718 | P147: 143993 | Q147: 1237 | R147: 5702 | S147: 272 | T147: 151204 | V147: 1925 | W147: 17673 | X147: 12732 | Y147: 1640 | Z147: 33970 | AB147: 3696 | AC147: 6022 | AD147: 8154 | AE147: 853 | AF147: 18725 | AH147: 76 | AI147: 9 | AJ147: 66 | AK147: 8 | AL147: 1 | AM147: 1 | AN147: 161 | AP147: 449 | AQ147: 40 | AR147: 679 | AS147: 81 | AT147: 9 | AU147: 21 | AV147: 1279
A148: 2020-01-01 | B148: 2301 | C148: 234 | D148: 2535 | F148: 3952 | G148: 366 | H148: 4318 | J148: 353667 | K148: 4460 | L148: 31875 | M148: 719 | N148: 390721 | P148: 143701 | Q148: 1241 | R148: 5724 | S148: 272 | T148: 150938 | V148: 1928 | W148: 17731 | X148: 12799 | Y148: 1679 | Z148: 34137 | AB148: 3697 | AC148: 6054 | AD148: 8251 | AE148: 880 | AF148: 18882 | AH148: 76 | AI148: 10 | AJ148: 65 | AK148: 8 | AL148: 1 | AM148: 1 | AN148: 161 | AP148: 484 | AQ148: 41 | AR148: 679 | AS148: 81 | AT148: 9 | AU148: 21 | AV148: 1315
A149: 2020-02-01 | B149: 2295 | C149: 235 | D149: 2530 | F149: 3970 | G149: 361 | H149: 4331 | J149: 353471 | K149: 4453 | L149: 31920 | M149: 713 | N149: 390557 | P149: 143545 | Q149: 1243 | R149: 5685 | S149: 276 | T149: 150749 | V149: 1974 | W149: 17836 | X149: 12795 | Y149: 1687 | Z149: 34292 | AB149: 3661 | AC149: 6000 | AD149: 8202 | AE149: 880 | AF149: 18743 | AH149: 73 | AI149: 9 | AJ149: 65 | AK149: 9 | AL149: 1 | AM149: 1 | AN149: 158 | AP149: 452 | AQ149: 39 | AR149: 678 | AS149: 81 | AT149: 9 | AU149: 21 | AV149: 1280
A150: 2020-03-01 | B150: 2277 | C150: 232 | D150: 2509 | F150: 3982 | G150: 365 | H150: 4347 | J150: 354069 | K150: 4449 | L150: 32045 | M150: 709 | N150: 391272 | P150: 143345 | Q150: 1250 | R150: 5653 | S150: 275 | T150: 150523 | V150: 1970 | W150: 17887 | X150: 12721 | Y150: 1678 | Z150: 34256 | AB150: 3681 | AC150: 6032 | AD150: 8198 | AE150: 884 | AF150: 18795 | AH150: 72 | AI150: 9 | AJ150: 67 | AK150: 9 | AL150: 1 | AM150: 1 | AN150: 159 | AP150: 450 | AQ150: 39 | AR150: 675 | AS150: 81 | AT150: 9 | AU150: 21 | AV150: 1275
A151: 2020-04-01 | B151: 2267 | C151: 232 | D151: 2499 | F151: 3988 | G151: 365 | H151: 4353 | J151: 354655 | K151: 4468 | L151: 32156 | M151: 716 | N151: 391995 | P151: 142576 | Q151: 1240 | R151: 5570 | S151: 276 | T151: 149662 | V151: 1954 | W151: 17872 | X151: 12692 | Y151: 1695 | Z151: 34213 | AB151: 3707 | AC151: 6105 | AD151: 8185 | AE151: 867 | AF151: 18864 | AH151: 70 | AI151: 9 | AJ151: 64 | AK151: 8 | AL151: 1 | AM151: 1 | AN151: 153 | AP151: 450 | AQ151: 39 | AR151: 676 | AS151: 81 | AT151: 9 | AU151: 21 | AV151: 1276
A152: 2020-05-01 | B152: 2256 | C152: 227 | D152: 2483 | F152: 3996 | G152: 367 | H152: 4363 | J152: 355131 | K152: 4477 | L152: 32126 | M152: 683 | N152: 392417 | P152: 141638 | Q152: 1233 | R152: 5503 | S152: 287 | T152: 148661 | V152: 1942 | W152: 17926 | X152: 12642 | Y152: 1700 | Z152: 34210 | AB152: 3720 | AC152: 6120 | AD152: 8181 | AE152: 859 | AF152: 18880 | AH152: 69 | AI152: 9 | AJ152: 68 | AK152: 8 | AL152: 1 | AM152: 1 | AN152: 156 | AP152: 452 | AQ152: 39 | AR152: 673 | AS152: 81 | AT152: 9 | AU152: 21 | AV152: 1275
A153: 2020-06-01 | B153: 2279 | C153: 228 | D153: 2507 | F153: 3995 | G153: 374 | H153: 4369 | J153: 356977 | K153: 4570 | L153: 32446 | M153: 686 | N153: 394679 | P153: 140701 | Q153: 1156 | R153: 5373 | S153: 284 | T153: 147514 | V153: 1939 | W153: 18061 | X153: 12555 | Y153: 1696 | Z153: 34251 | AB153: 3720 | AC153: 6163 | AD153: 8135 | AE153: 860 | AF153: 18878 | AH153: 66 | AI153: 8 | AJ153: 65 | AK153: 8 | AL153: 1 | AM153: 1 | AN153: 149 | AP153: 441 | AQ153: 32 | AR153: 675 | AS153: 81 | AT153: 9 | AU153: 21 | AV153: 1259
A154: 2020-07-01 | B154: 2275 | C154: 230 | D154: 2505 | F154: 3994 | G154: 373 | H154: 4367 | J154: 360396 | K154: 4632 | L154: 32774 | M154: 683 | N154: 398485 | P154: 139184 | Q154: 1139 | R154: 5325 | S154: 286 | T154: 145934 | V154: 1939 | W154: 18172 | X154: 12481 | Y154: 1702 | Z154: 34294 | AB154: 3717 | AC154: 6176 | AD154: 8104 | AE154: 858 | AF154: 18855 | AH154: 63 | AI154: 8 | AJ154: 61 | AK154: 8 | AL154: 1 | AM154: 1 | AN154: 142 | AP154: 440 | AQ154: 32 | AR154: 679 | AS154: 81 | AT154: 9 | AU154: 21 | AV154: 1262
A155: 2020-08-01 | B155: 2285 | C155: 229 | D155: 2514 | F155: 3977 | G155: 373 | H155: 4350 | J155: 360149 | K155: 4589 | L155: 32598 | M155: 685 | N155: 398021 | P155: 137206 | Q155: 1128 | R155: 5245 | S155: 283 | T155: 143862 | V155: 1941 | W155: 18262 | X155: 12455 | Y155: 1711 | Z155: 34369 | AB155: 3714 | AC155: 6183 | AD155: 8029 | AE155: 839 | AF155: 18765 | AH155: 63 | AI155: 8 | AJ155: 62 | AK155: 8 | AL155: 1 | AM155: 1 | AN155: 143 | AP155: 440 | AQ155: 32 | AR155: 676 | AS155: 81 | AT155: 9 | AU155: 21 | AV155: 1259
A156: 2020-09-01 | B156: 2272 | C156: 229 | D156: 2501 | F156: 3992 | G156: 373 | H156: 4365 | J156: 361238 | K156: 4583 | L156: 32641 | M156: 676 | N156: 399138 | P156: 136119 | Q156: 1123 | R156: 5231 | S156: 290 | T156: 142763 | V156: 1946 | W156: 18367 | X156: 12424 | Y156: 1717 | Z156: 34454 | AB156: 3709 | AC156: 6211 | AD156: 7964 | AE156: 829 | AF156: 18713 | AH156: 62 | AI156: 8 | AJ156: 65 | AK156: 9 | AL156: 1 | AM156: 1 | AN156: 146 | AP156: 439 | AQ156: 32 | AR156: 674 | AS156: 81 | AT156: 9 | AU156: 21 | AV156: 1256
A157: 2020-10-01 | B157: 2287 | C157: 234 | D157: 2521 | F157: 3981 | G157: 368 | H157: 4349 | J157: 361806 | K157: 4517 | L157: 32667 | M157: 674 | N157: 399664 | P157: 135241 | Q157: 1178 | R157: 5229 | S157: 291 | T157: 141939 | V157: 1948 | W157: 18460 | X157: 12375 | Y157: 1714 | Z157: 34497 | AB157: 3722 | AC157: 6215 | AD157: 7922 | AE157: 830 | AF157: 18689 | AH157: 60 | AI157: 8 | AJ157: 66 | AK157: 10 | AL157: 1 | AM157: 0 | AN157: 145 | AP157: 441 | AQ157: 32 | AR157: 674 | AS157: 80 | AT157: 9 | AU157: 22 | AV157: 1258
A158: 2020-11-01 | B158: 2304 | C158: 234 | D158: 2538 | F158: 3970 | G158: 367 | H158: 4337 | J158: 363545 | K158: 4526 | L158: 32821 | M158: 677 | N158: 401569 | P158: 134468 | Q158: 1166 | R158: 5204 | S158: 290 | T158: 141128 | V158: 1961 | W158: 18594 | X158: 12369 | Y158: 1708 | Z158: 34632 | AB158: 3718 | AC158: 6241 | AD158: 7864 | AE158: 845 | AF158: 18668 | AH158: 60 | AI158: 8 | AJ158: 64 | AK158: 10 | AL158: 1 | AM158: 0 | AN158: 143 | AP158: 442 | AQ158: 32 | AR158: 674 | AS158: 80 | AT158: 9 | AU158: 22 | AV158: 1259
A159: 2020-12-01 | B159: 2321 | C159: 241 | D159: 2562 | F159: 3959 | G159: 362 | H159: 4321 | J159: 365367 | K159: 4594 | L159: 33173 | M159: 665 | N159: 403799 | P159: 133588 | Q159: 1158 | R159: 5176 | S159: 300 | T159: 140222 | V159: 1985 | W159: 18740 | X159: 12321 | Y159: 1692 | Z159: 34738 | AB159: 3701 | AC159: 6272 | AD159: 7847 | AE159: 872 | AF159: 18692 | AH159: 60 | AI159: 8 | AJ159: 63 | AK159: 9 | AL159: 2 | AM159: 0 | AN159: 142 | AP159: 441 | AQ159: 32 | AR159: 675 | AS159: 80 | AT159: 8 | AU159: 22 | AV159: 1258
A160: 2021-01-01 | B160: 2210 | C160: 234 | D160: 2444 | F160: 3884 | G160: 355 | H160: 4239 | J160: 365751 | K160: 4614 | L160: 33250 | M160: 667 | N160: 404282 | P160: 132774 | Q160: 1147 | R160: 5089 | S160: 298 | T160: 139308 | V160: 0 | W160: 18817 | X160: 12451 | Y160: 1691 | Z160: 32959 | AB160: 0 | AC160: 6237 | AD160: 7820 | AE160: 854 | AF160: 14911 | AH160: 62 | AI160: 8 | AJ160: 0 | AK160: 0 | AL160: 3 | AM160: 0 | AN160: 73 | AP160: 442 | AQ160: 32 | AR160: 0 | AS160: 0 | AT160: 7 | AU160: 0 | AV160: 481
A161: 2021-02-01 | B161: 2167 | C161: 232 | D161: 2399 | F161: 3852 | G161: 353 | H161: 4205 | J161: 366784 | K161: 4629 | L161: 33333 | M161: 669 | N161: 405415 | P161: 131955 | Q161: 1140 | R161: 5059 | S161: 296 | T161: 138450 | V161: 0 | W161: 18954 | X161: 12532 | Y161: 1706 | Z161: 33192 | AB161: 0 | AC161: 6215 | AD161: 7770 | AE161: 862 | AF161: 14847 | AH161: 65 | AI161: 9 | AJ161: 0 | AK161: 0 | AL161: 1 | AM161: 0 | AN161: 75 | AP161: 440 | AQ161: 32 | AR161: 0 | AS161: 0 | AT161: 9 | AU161: 0 | AV161: 481
A162: 2021-03-01 | B162: 2258 | C162: 238 | D162: 2496 | F162: 3762 | G162: 346 | H162: 4108 | J162: 368553 | K162: 4656 | L162: 33610 | M162: 670 | N162: 407489 | P162: 130778 | Q162: 1130 | R162: 4967 | S162: 295 | T162: 137170 | V162: 0 | W162: 19034 | X162: 12759 | Y162: 1717 | Z162: 33510 | AB162: 0 | AC162: 6146 | AD162: 7606 | AE162: 845 | AF162: 14597 | AH162: 65 | AI162: 10 | AJ162: 0 | AK162: 0 | AL162: 1 | AM162: 0 | AN162: 76 | AP162: 436 | AQ162: 32 | AR162: 0 | AS162: 0 | AT162: 9 | AU162: 0 | AV162: 477
A163: 2021-04-01 | B163: 2207 | C163: 242 | D163: 2449 | F163: 3796 | G163: 343 | H163: 4139 | J163: 370269 | K163: 4700 | L163: 33976 | M163: 667 | N163: 409612 | P163: 129812 | Q163: 1117 | R163: 4922 | S163: 296 | T163: 136147 | V163: 0 | W163: 18837 | X163: 12923 | Y163: 1717 | Z163: 33477 | AB163: 0 | AC163: 6120 | AD163: 7609 | AE163: 840 | AF163: 14569 | AH163: 65 | AI163: 11 | AJ163: 0 | AK163: 0 | AL163: 1 | AM163: 0 | AN163: 77 | AP163: 437 | AQ163: 32 | AR163: 0 | AS163: 0 | AT163: 9 | AU163: 0 | AV163: 478
A164: 2021-05-01 | B164: 2177 | C164: 242 | D164: 2419 | F164: 3783 | G164: 343 | H164: 4126 | J164: 369501 | K164: 4687 | L164: 33654 | M164: 668 | N164: 408510 | P164: 128881 | Q164: 1098 | R164: 4951 | S164: 295 | T164: 135225 | V164: 0 | W164: 18959 | X164: 12855 | Y164: 1709 | Z164: 33523 | AB164: 0 | AC164: 6131 | AD164: 7539 | AE164: 839 | AF164: 14509 | AH164: 66 | AI164: 10 | AJ164: 0 | AK164: 0 | AL164: 1 | AM164: 0 | AN164: 77 | AP164: 436 | AQ164: 32 | AR164: 0 | AS164: 0 | AT164: 9 | AU164: 0 | AV164: 477
A165: 2021-06-01 | B165: 2179 | C165: 235 | D165: 2414 | F165: 3871 | G165: 345 | H165: 4216 | J165: 370435 | K165: 4688 | L165: 33768 | M165: 672 | N165: 409563 | P165: 127819 | Q165: 1085 | R165: 4976 | S165: 298 | T165: 134178 | V165: 0 | W165: 19004 | X165: 12804 | Y165: 1709 | Z165: 33517 | AB165: 0 | AC165: 6149 | AD165: 7514 | AE165: 840 | AF165: 14503 | AH165: 58 | AI165: 11 | AJ165: 0 | AK165: 0 | AL165: 1 | AM165: 0 | AN165: 70 | AP165: 350 | AQ165: 33 | AR165: 0 | AS165: 0 | AT165: 9 | AU165: 0 | AV165: 392

Sheet Residential & Lighting
G10: PoLR | K10: PoLR | O10: PoLR | S10: PoLR | W10: PoLR | AB10: EGS | AF10: EGS | AJ10: EGS | AN10: EGS | AR10: EGS
G11: RS | K11: RA | O11: RH | S11: Lighting | W11: RS, RA, RH & Lighting Total | AB11: RS | AF11: RA | AJ11: RH | AN11: Lighting | AR11: RS, RA, RH & Lighting Total
A12: Date | B12: HR | C12: On/Off | D12: LMP | E12: EDC Loss De-ration Factor | G12: Usage | H12: Lost PWR | I12: NON De-rated Total Usage | J12: De-rated Total Usage | K12: Usage | L12: Lost PWR | M12: NON De-rated Total Usage | N12: De-rated Total Usage | O12: Usage | P12: Lost PWR | Q12: NON De-rated Total Usage | R12: De-rated Total Usage | S12: Usage | T12: Lost PWR | U12: NON De-rated Total Usage | V12: De-rated Total Usage | W12: Usage | X12: Lost PWR | Y12: NON De-rated Total Usage | Z12: De-rated Total Usage | AB12: Usage | AC12: Lost PWR | AD12: NON De-rated Total Usage | AE12: De-rated Total Usage | AF12: Usage | AG12: Lost PWR | AH12: NON De-rated Total Usage | AI12: De-rated Total Usage | AJ12: Usage | AK12: Lost PWR | AL12: NON De-rated Total Usage | AM12: De-rated Total Usage | AN12: Usage | AO12: Lost PWR | AP12: NON De-rated Total Usage | AQ12: De-rated Total Usage | AR12: Usage | AS12: Lost PWR | AT12: NON De-rated Total Usage | AU12: De-rated Total Usage
A13: 2025-01-01 | B13: 1 | C13: Off | D13: 19.522975 | E13: 0.008542549 | G13: 284.559 | H13: 2.998123259 | I13: 287.5571233 | J13: 285.1006524 | K13: 6.948 | L13: 0.07320436325 | M13: 7.021204363 | N13: 6.961225381 | O13: 45.204 | P13: 0.4762708745 | Q13: 45.68027087 | R13: 45.29004492 | S13: 1.855 | T13: 0.01954434281 | U13: 1.874544343 | V13: 1.858530956 | W13: 338.566 | X13: 3.567142839 | Y13: 342.1331428 | Z13: 339.2104537 | AB13: 87.598 | AC13: 0.9229354939 | AD13: 88.52093549 | AE13: 87.76474106 | AF13: 1.465 | AG13: 0.0154352896 | AH13: 1.48043529 | AI13: 1.467788599 | AJ13: 6.526 | AK13: 0.06875815696 | AL13: 6.594758157 | AM13: 6.538422112 | AN13: 9.008 | AO13: 0.094908593 | AP13: 9.102908593 | AQ13: 9.02514655 | AR13: 104.597 | AS13: 1.102037534 | AT13: 105.6990375 | AU13: 104.7960983
A14: 2025-01-01 | B14: 2 | C14: Off | D14: 19.743663 | E14: 0.008664497 | G14: 270.583 | H14: 2.116533008 | I14: 272.699533 | J14: 270.3367287 | K14: 7.133 | L14: 0.05579519019 | M14: 7.18879519 | N14: 7.126507896 | O14: 47.372 | P14: 0.3705495233 | Q14: 47.74254952 | R14: 47.32888435 | S14: 1.855 | T14: 0.01451003474 | U14: 1.869510035 | V14: 1.853311671 | W14: 326.943 | X14: 2.557387756 | Y14: 329.5003878 | Z14: 326.6454326 | AB14: 82.165 | AC14: 0.6427045846 | AD14: 82.80770458 | AE14: 82.09021748 | AF14: 1.39 | AG14: 0.0108727484 | AH14: 1.400872748 | AI14: 1.388734891 | AJ14: 6.785 | AK14: 0.05307309203 | AL14: 6.838073092 | AM14: 6.778824628 | AN14: 9.008 | AO14: 0.07046166735 | AP14: 9.078461667 | AQ14: 8.999801363 | AR14: 99.348 | AS14: 0.7771120924 | AT14: 100.1251121 | AU14: 99.25757836
A15: 2025-01-01 | B15: 3 | C15: Off | D15: 18.893488 | E15: 0.00872374 | G15: 259.627 | H15: 2.621332336 | I15: 262.2483323 | J15: 259.9605461 | K15: 7.188 | L15: 0.07257387265 | M15: 7.260573873 | N15: 7.197234514 | O15: 48.735 | P15: 0.4920544913 | Q15: 49.22705449 | R15: 48.79761047 | S15: 1.853 | T15: 0.01870887396 | U15: 1.871708874 | V15: 1.855380572 | W15: 317.403 | X15: 3.204669574 | Y15: 320.6076696 | Z15: 317.8107716 | AB15: 78.508 | AC15: 0.7926585412 | AD15: 79.30065854 | AE15: 78.60886021 | AF15: 1.418 | AG15: 0.0143168825 | AH15: 1.432316883 | AI15: 1.419821722 | AJ15: 6.985 | AK15: 0.07052427663 | AL15: 7.055524277 | AM15: 6.993973717 | AN15: 9.008 | AO15: 0.09094956105 | AP15: 9.098949561 | AQ15: 9.019572691 | AR15: 95.919 | AS15: 0.9684492613 | AT15: 96.88744926 | AU15: 96.04222834
A16: 2025-01-01 | B16: 4 | C16: Off | D16: 19.041078 | E16: 0.008926562 | G16: 252.619 | H16: 2.321723085 | I16: 254.9407231 | J16: 252.6649789 | K16: 7.314 | L16: 0.06722013247 | M16: 7.381220132 | N16: 7.315331213 | O16: 50.362 | P16: 0.4628575761 | Q16: 50.82485758 | R16: 50.37116633 | S16: 1.852 | T16: 0.01702101249 | U16: 1.869021012 | V16: 1.852337081 | W16: 312.147 | X16: 2.868821806 | Y16: 315.0158218 | Z16: 312.2038135 | AB16: 76.463 | AC16: 0.7027417267 | AD16: 77.16574173 | AE16: 76.47691695 | AF16: 1.438 | AG16: 0.01321609933 | AH16: 1.451216099 | AI16: 1.438261729 | AJ16: 7.32 | AK16: 0.06727527614 | AL16: 7.387275276 | AM16: 7.321332305 | AN16: 9.008 | AO16: 0.08278902834 | AP16: 9.090789028 | AQ16: 9.009639536 | AR16: 94.229 | AS16: 0.8660221305 | AT16: 95.09502213 | AU16: 94.24615052
A17: 2025-01-01 | B17: 5 | C17: Off | D17: 19.218018 | E17: 0.008769197 | G17: 250.35 | H17: 2.338648709 | I17: 252.6886487 | J17: 250.4727722 | K17: 7.472 | L17: 0.06979981287 | M17: 7.541799813 | N17: 7.475664285 | O17: 51.741 | P17: 0.4833394162 | Q17: 52.22433942 | R17: 51.7663739 | S17: 1.852 | T17: 0.01730048895 | U17: 1.869300489 | V17: 1.852908225 | W17: 311.415 | X17: 2.909088427 | Y17: 314.3240884 | Z17: 311.5677186 | AB17: 76.051 | AC17: 0.7104316875 | AD17: 76.76143169 | AE17: 76.08829557 | AF17: 1.463 | AG17: 0.01366663895 | AH17: 1.476666639 | AI17: 1.463717458 | AJ17: 7.501 | AK17: 0.07007071686 | AL17: 7.571070717 | AM17: 7.504678506 | AN17: 9.008 | AO17: 0.08414838254 | AP17: 9.092148383 | AQ17: 9.012417542 | AR17: 94.023 | AS17: 0.8783174258 | AT17: 94.90131743 | AU17: 94.06910908
A18: 2025-01-01 | B18: 6 | C18: Off | D18: 19.273177 | E18: 0.008705755 | G18: 252.566 | H18: 2.629008899 | I18: 255.1950089 | J18: 252.9733437 | K18: 7.723 | L18: 0.08039021771 | M18: 7.803390218 | N18: 7.735455814 | O18: 54.125 | P18: 0.5633977125 | Q18: 54.68839771 | R18: 54.21229392 | S18: 1.852 | T18: 0.01927783027 | U18: 1.87127783 | V18: 1.854986944 | W18: 316.266 | X18: 3.292074659 | Y18: 319.5580747 | Z18: 316.7760804 | AB18: 77.364 | AC18: 0.8052970093 | AD18: 78.16929701 | AE18: 77.48877426 | AF18: 1.542 | AG18: 0.01605097963 | AH18: 1.55805098 | AI18: 1.54448697 | AJ18: 7.771 | AK18: 0.0808898591 | AL18: 7.851889859 | AM18: 7.78353323 | AN18: 9.008 | AO18: 0.09376603407 | AP18: 9.101766034 | AQ18: 9.022528289 | AR18: 95.685 | AS18: 0.9960038821 | AT18: 96.68100388 | AU18: 95.83932275
A19: 2025-01-01 | B19: 7 | C19: Off | D19: 19.052349 | E19: 0.008756941 | G19: 258.168 | H19: 1.863438435 | I19: 260.0314384 | J19: 257.7543585 | K19: 7.979 | L19: 0.05759185984 | M19: 8.03659186 | N19: 7.966215899 | O19: 56.091 | P19: 0.4048608861 | Q19: 56.49586089 | R19: 56.00112997 | S19: 1.852 | T19: 0.01336760552 | U19: 1.865367606 | V19: 1.849032691 | W19: 324.09 | X19: 2.339258786 | Y19: 326.4292588 | Z19: 323.570737 | AB19: 79.617 | AC19: 0.5746698966 | AD19: 80.1916699 | AE19: 79.48943617 | AF19: 1.572 | AG19: 0.01134658524 | AH19: 1.583346585 | AI19: 1.569481313 | AJ19: 8.288 | AK19: 0.05982220007 | AL19: 8.3478222 | AM19: 8.274720814 | AN19: 9.008 | AO19: 0.06501910934 | AP19: 9.073019109 | AQ19: 8.993567216 | AR19: 98.485 | AS19: 0.7108577912 | AT19: 99.19585779 | AU19: 98.32720552
A20: 2025-01-01 | B20: 8 | C20: Off | D20: 19.424577 | E20: 0.009014908 | G20: 268.132 | H20: 3.961775623 | I20: 272.0937756 | J20: 269.6408753 | K20: 8.225 | L20: 0.1215282193 | M20: 8.346528219 | N20: 8.271285035 | O20: 58.354 | P20: 0.8622076242 | Q20: 59.21620762 | R20: 58.68237896 | S20: 0.271 | T20: 0.004004151663 | U20: 0.2750041517 | V20: 0.2725250145 | W20: 334.982 | X20: 4.949515618 | Y20: 339.9315156 | Z20: 336.8670643 | AB20: 83.238 | AC20: 1.229880355 | AD20: 84.46788035 | AE20: 83.70641018 | AF20: 1.639 | AG20: 0.02421699106 | AH20: 1.663216991 | AI20: 1.648223243 | AJ20: 8.515 | AK20: 0.1258131048 | AL20: 8.640813105 | AM20: 8.56291697 | AN20: 1.34 | AO20: 0.0197991263 | AP20: 1.359799126 | AQ20: 1.347540662 | AR20: 94.732 | AS20: 1.399709577 | AT20: 96.13170958 | AU20: 95.26509106
A21: 2025-01-01 | B21: 9 | C21: Off | D21: 18.919077 | E21: 0.008703028 | G21: 286.235 | H21: 2.951955487 | I21: 289.1869555 | J21: 286.6701533 | K21: 8.679 | L21: 0.08950694942 | M21: 8.768506949 | N21: 8.692194388 | O21: 61.497 | P21: 0.6342215542 | Q21: 62.13122155 | R21: 61.59049179 | S21: 0.001 | T21: 1.031304867e-05 | U21: 0.001010313049 | V21: 0.001001520266 | W21: 356.412 | X21: 3.675694303 | Y21: 360.0876943 | Z21: 356.953841 | AB21: 89.196 | AC21: 0.9198826893 | AD21: 90.11588269 | AE21: 89.33160164 | AF21: 1.74 | AG21: 0.01794470469 | AH21: 1.757944705 | AI21: 1.742645263 | AJ21: 8.961 | AK21: 0.09241522915 | AL21: 9.053415229 | AM21: 8.974623103 | AN21: 0.016 | AO21: 0.0001650087788 | AP21: 0.01616500878 | AQ21: 0.01602432425 | AR21: 99.913 | AS21: 1.030407632 | AT21: 100.9434076 | AU21: 100.0648943
A22: 2025-01-01 | B22: 10 | C22: Off | D22: 18.28283 | E22: 0.008210615 | G22: 309.417 | H22: 2.657570392 | I22: 312.0745704 | J22: 309.5122462 | K22: 9.125 | L22: 0.07837426459 | M22: 9.203374265 | N22: 9.127808902 | O22: 64.792 | P22: 0.5564959289 | Q22: 65.34849593 | R22: 64.81194459 | S22: 0.001 | T22: 8.588960503e-06 | U22: 0.001008588961 | V22: 0.001000307825 | W22: 383.335 | X22: 3.292449174 | Y22: 386.6274492 | Z22: 383.453 | AB22: 96.538 | AC22: 0.829161069 | AD22: 97.36716107 | AE22: 96.5677168 | AF22: 1.782 | AG22: 0.01530552762 | AH22: 1.797305528 | AI22: 1.782548544 | AJ22: 9.451 | AK22: 0.08117426571 | AL22: 9.532174266 | AM22: 9.453909253 | AN22: 0.013 | AO22: 0.0001116564865 | AP22: 0.01311165649 | AQ22: 0.01300400172 | AR22: 107.784 | AS22: 0.9257525188 | AT22: 108.7097525 | AU22: 107.8171786
A23: 2025-01-01 | B23: 11 | C23: Off | D23: 20.918956 | E23: 0.008327821 | G23: 331.627 | H23: 2.468538556 | I23: 334.0955386 | J23: 331.3132507 | K23: 9.431 | L23: 0.070201724 | M23: 9.501201724 | N23: 9.422077417 | O23: 67.136 | P23: 0.4997415908 | Q23: 67.63574159 | R23: 67.07248324 | S23: 0.001 | T23: 7.443720072e-06 | U23: 0.00100744372 | V23: 0.0009990539091 | W23: 408.195 | X23: 3.038489315 | Y23: 411.2334893 | Z23: 407.8088104 | AB23: 103.336 | AC23: 0.7692042574 | AD23: 104.1052043 | AE23: 103.2382348 | AF23: 1.854 | AG23: 0.01380065701 | AH23: 1.867800657 | AI23: 1.852245947 | AJ23: 9.767 | AK23: 0.07270281395 | AL23: 9.839702814 | AM23: 9.75775953 | AN23: 0 | AO23: 0 | AP23: 0 | AQ23: 0 | AR23: 114.957 | AS23: 0.8557077283 | AT23: 115.8127077 | AU23: 114.8482402
A24: 2025-01-01 | B24: 12 | C24: Off | D24: 22.57663 | E24: 0.008521791 | G24: 351.993 | H24: 2.876426728 | I24: 354.8694267 | J24: 351.8453036 | K24: 9.972 | L24: 0.08148948226 | M24: 10.05348948 | N24: 9.967815746 | O24: 69.666 | P24: 0.5692986634 | Q24: 70.23529866 | R24: 69.63676813 | S24: 0.001 | T24: 8.171829348e-06 | U24: 0.001008171829 | V24: 0.0009995803997 | W24: 431.632 | X24: 3.527223045 | Y24: 435.159223 | Z24: 431.4508871 | AB24: 109.928 | AC24: 0.8983128566 | AD24: 110.8263129 | AE24: 109.8818742 | AF24: 1.925 | AG24: 0.0157307715 | AH24: 1.940730771 | AI24: 1.924192269 | AJ24: 10.122 | AK24: 0.08271525666 | AL24: 10.20471526 | AM24: 10.11775281 | AN24: 0 | AO24: 0 | AP24: 0 | AQ24: 0 | AR24: 121.975 | AS24: 0.9967588847 | AT24: 122.9717589 | AU24: 121.9238193
A25: 2025-01-01 | B25: 13 | C25: Off | D25: 22.515171 | E25: 0.0087338 | G25: 366.741 | H25: 3.022865615 | I25: 369.7638656 | J25: 366.534422 | K25: 10.238 | L25: 0.08438679658 | M25: 10.3223868 | N25: 10.23223313 | O25: 70.201 | P25: 0.5786323019 | Q25: 70.7796323 | R25: 70.16145715 | S25: 0.001 | T25: 8.242507968e-06 | U25: 0.001008242508 | V25: 0.0009994367196 | W25: 447.181 | X25: 3.685892956 | Y25: 450.866893 | Z25: 446.9291117 | AB25: 114.115 | AC25: 0.9405937968 | AD25: 115.0555938 | AE25: 114.0507213 | AF25: 2.083 | AG25: 0.0171691441 | AH25: 2.100169144 | AI25: 2.081826687 | AJ25: 10.127 | AK25: 0.08347187819 | AL25: 10.21047188 | AM25: 10.12129566 | AN25: 0 | AO25: 0 | AP25: 0 | AQ25: 0 | AR25: 126.325 | AS25: 1.041234819 | AT25: 127.3662348 | AU25: 126.2538436
A26: 2025-01-01 | B26: 14 | C26: Off | D26: 21.283617 | E26: 0.008535846 | G26: 368.339 | H26: 2.411089901 | I26: 370.7500899 | J26: 367.5854242 | K26: 9.939 | L26: 0.06505915075 | M26: 10.00405915 | N26: 9.918666042 | O26: 68.876 | P26: 0.4508516015 | Q26: 69.3268516 | R26: 68.73508827 | S26: 0.001 | T26: 6.545844728e-06 | U26: 0.001006545845 | V26: 0.0009979541244 | W26: 447.155 | X26: 2.927007199 | Y26: 450.0820072 | Z26: 446.2401765 | AB26: 114.713 | AC26: 0.7508934863 | AD26: 115.4638935 | AE26: 114.4783115 | AF26: 1.988 | AG26: 0.01301313932 | AH26: 2.001013139 | AI26: 1.983932799 | AJ26: 9.952 | AK26: 0.06514424674 | AL26: 10.01714425 | AM26: 9.931639446 | AN26: 0 | AO26: 0 | AP26: 0 | AQ26: 0 | AR26: 126.653 | AS26: 0.8290508724 | AT26: 127.4820509 | AU26: 126.3938837
A27: 2025-01-01 | B27: 15 | C27: Off | D27: 20.667867 | E27: 0.008436363 | G27: 370.987 | H27: 2.326884139 | I27: 373.3138841 | J27: 370.1644727 | K27: 9.957 | L27: 0.0624517446 | M27: 10.01945174 | N27: 9.934924013 | O27: 67.691 | P27: 0.4245677457 | Q27: 68.11556775 | R27: 67.54092009 | S27: 0.001 | T27: 6.272144682e-06 | U27: 0.001006272145 | V27: 0.0009977828676 | W27: 448.636 | X27: 2.813909902 | Y27: 451.4499099 | Z27: 447.6413146 | AB27: 115.709 | AC27: 0.725743589 | AD27: 116.4347436 | AE27: 115.4524578 | AF27: 1.935 | AG27: 0.01213659996 | AH27: 1.9471366 | AI27: 1.930709849 | AJ27: 9.645 | AK27: 0.06049483546 | AL27: 9.705494835 | AM27: 9.623615758 | AN27: 0 | AO27: 0 | AP27: 0 | AQ27: 0 | AR27: 127.289 | AS27: 0.7983750245 | AT27: 128.087375 | AU27: 127.0067834
A28: 2025-01-01 | B28: 16 | C28: Off | D28: 21.046655 | E28: 0.008852657 | G28: 379.823 | H28: 2.17968169 | I28: 382.0026817 | J28: 378.620943 | K28: 10.091 | L28: 0.05790899428 | M28: 10.14890899 | N28: 10.05906418 | O28: 69.058 | P28: 0.3963015883 | Q28: 69.45430159 | R28: 68.83944648 | S28: 0.001 | T28: 5.738677463e-06 | U28: 0.001005738677 | V28: 0.0009968352179 | W28: 458.973 | X28: 2.633898011 | Y28: 461.606898 | Z28: 457.5204505 | AB28: 119.118 | AC28: 0.6835797821 | AD28: 119.8015798 | AE28: 118.7410175 | AF28: 1.972 | AG28: 0.01131667196 | AH28: 1.983316672 | AI28: 1.96575905 | AJ28: 9.913 | AK28: 0.05688750969 | AL28: 9.96988751 | AM28: 9.881627515 | AN28: 0.005 | AO28: 2.869338732e-05 | AP28: 0.005028693387 | AQ28: 0.00498417609 | AR28: 131.008 | AS28: 0.7518126571 | AT28: 131.7598127 | AU28: 130.5933882
A29: 2025-01-01 | B29: 17 | C29: Off | D29: 25.226864 | E29: 0.010519156 | G29: 389.414 | H29: 2.936884841 | I29: 392.3508848 | J29: 388.2236847 | K29: 10.368 | L29: 0.07819344459 | M29: 10.44619344 | N29: 10.33630831 | O29: 70.447 | P29: 0.5312976072 | Q29: 70.97829761 | R29: 70.23166582 | S29: 0.001 | T29: 7.541805998e-06 | U29: 0.001007541806 | V29: 0.0009969433166 | W29: 470.23 | X29: 3.546383435 | Y29: 473.7763834 | Z29: 468.7926557 | AB29: 122.686 | AC29: 0.9252740107 | AD29: 123.611274 | AE29: 122.3109877 | AF29: 2.041 | AG29: 0.01539282604 | AH29: 2.056392826 | AI29: 2.034761309 | AJ29: 10.159 | AK29: 0.07661720714 | AL29: 10.23561721 | AM29: 10.12794715 | AN29: 0.011 | AO29: 8.295986598e-05 | AP29: 0.01108295987 | AQ29: 0.01096637648 | AR29: 134.897 | AS29: 1.017367004 | AT29: 135.914367 | AU29: 134.4846626
A30: 2025-01-01 | B30: 18 | C30: Off | D30: 31.362716 | E30: 0.011181364 | G30: 414.186 | H30: 4.644565451 | I30: 418.8305655 | J30: 414.1474684 | K30: 11.064 | L30: 0.1240685879 | M30: 11.18806859 | N30: 11.06297072 | O30: 73.984 | P30: 0.8296357924 | Q30: 74.81363579 | R30: 73.9771173 | S30: 0.887 | T30: 0.009946568823 | U30: 0.8969465688 | V30: 0.8869174827 | W30: 500.121 | X30: 5.6082164 | Y30: 505.7292164 | Z30: 500.0744739 | AB30: 130.808 | AC30: 1.466844165 | AD30: 132.2748442 | AE30: 130.795831 | AF30: 2.234 | AG30: 0.02505144842 | AH30: 2.259051448 | AI30: 2.233792172 | AJ30: 10.685 | AK30: 0.1198185884 | AL30: 10.80481859 | AM30: 10.68400598 | AN30: 4.333 | AO30: 0.04858904477 | AP30: 4.381589045 | AQ30: 4.332596903 | AR30: 148.06 | AS30: 1.660303247 | AT30: 149.7203032 | AU30: 148.046226
A31: 2025-01-01 | B31: 19 | C31: Off | D31: 30.663003 | E31: 0.011304329 | G31: 423.434 | H31: 4.104671605 | I31: 427.5386716 | J31: 422.7056338 | K31: 11.452 | L31: 0.1110130486 | M31: 11.56301305 | N31: 11.43230094 | O31: 77.011 | P31: 0.7465268848 | Q31: 77.75752688 | R31: 76.87853022 | S31: 0.961 | T31: 0.009315712513 | U31: 0.9703157125 | V31: 0.9593469445 | W31: 512.858 | X31: 4.971527251 | Y31: 517.8295273 | Z31: 511.9758119 | AB31: 132.52 | AC31: 1.284618337 | AD31: 133.8046183 | AE31: 132.2920469 | AF31: 2.244 | AG31: 0.02175281881 | AH31: 2.265752819 | AI31: 2.240140004 | AJ31: 10.944 | AK31: 0.1060886137 | AL31: 11.05008861 | AM31: 10.92517478 | AN31: 4.693 | AO31: 0.04549286038 | AP31: 4.73849286 | AQ31: 4.684927378 | AR31: 150.401 | AS31: 1.45795263 | AT31: 151.8589526 | AU31: 150.1422891
A32: 2025-01-01 | B32: 20 | C32: Off | D32: 31.082654 | E32: 0.01148571 | G32: 422.062 | H32: 2.881374986 | I32: 424.943375 | J32: 420.0625986 | K32: 11.486 | L32: 0.07841377116 | M32: 11.56441377 | N32: 11.43158827 | O32: 78.067 | P32: 0.5329555871 | Q32: 78.59995559 | R32: 77.69717929 | S32: 1.852 | T32: 0.01264341844 | U32: 1.864643418 | V32: 1.843226665 | W32: 513.467 | X32: 3.505387762 | Y32: 516.9723878 | Z32: 511.0345928 | AB32: 131.161 | AC32: 0.8954230053 | AD32: 132.056423 | AE32: 130.5396612 | AF32: 2.274 | AG32: 0.01552437016 | AH32: 2.28952437 | AI32: 2.263227557 | AJ32: 11.156 | AK32: 0.07616089423 | AL32: 11.23216089 | AM32: 11.10315155 | AN32: 9.008 | AO32: 0.06149671344 | AP32: 9.069496713 | AQ32: 8.965327104 | AR32: 153.599 | AS32: 1.048604983 | AT32: 154.647605 | AU32: 152.8713674
A33: 2025-01-01 | B33: 21 | C33: Off | D33: 32.759149 | E33: 0.011779238 | G33: 414.039 | H33: 2.970953128 | I33: 417.0099531 | J33: 412.0978936 | K33: 11.542 | L33: 0.08282007492 | M33: 11.62482007 | N33: 11.48788855 | O33: 79.137 | P33: 0.5678506558 | Q33: 79.70485066 | R33: 78.76598825 | S33: 1.852 | T33: 0.01328909884 | U33: 1.865289099 | V33: 1.843317415 | W33: 506.57 | X33: 3.634912957 | Y33: 510.204913 | Z33: 504.1950879 | AB33: 128.71 | AC33: 0.9235636669 | AD33: 129.6335637 | AE33: 128.1065791 | AF33: 2.273 | AG33: 0.01631000089 | AH33: 2.289310001 | AI33: 2.262343674 | AJ33: 11.409 | AK33: 0.08186572819 | AL33: 11.49086573 | AM33: 11.35551209 | AN33: 9.008 | AO33: 0.06463725827 | AP33: 9.072637258 | AQ33: 8.965768505 | AR33: 151.4 | AS33: 1.086376654 | AT33: 152.4863767 | AU33: 150.6902033
A34: 2025-01-01 | B34: 22 | C34: Off | D34: 28.168414 | E34: 0.011746979 | G34: 395.356 | H34: 2.719402251 | I34: 398.0754023 | J34: 393.3992189 | K34: 11.151 | L34: 0.07670063056 | M34: 11.22770063 | N34: 11.09580907 | O34: 78.467 | P34: 0.5397245429 | Q34: 79.00672454 | R34: 78.07863421 | S34: 1.852 | T34: 0.01273872906 | U34: 1.864738729 | V34: 1.842833682 | W34: 486.826 | X34: 3.348566153 | Y34: 490.1745662 | Z34: 484.4164958 | AB34: 123.025 | AC34: 0.8462106604 | AD34: 123.8712107 | AE34: 122.4160982 | AF34: 2.174 | AG34: 0.01495356209 | AH34: 2.188953562 | AI34: 2.163239971 | AJ34: 11.367 | AK34: 0.07818635706 | AL34: 11.44518636 | AM34: 11.31073999 | AN34: 9.008 | AO34: 0.06196029774 | AP34: 9.069960298 | AQ34: 8.963415665 | AR34: 145.574 | AS34: 1.001310877 | AT34: 146.5753109 | AU34: 144.8534938
A35: 2025-01-01 | B35: 23 | C35: Off | D35: 25.490789 | E35: 0.011642653 | G35: 365.184 | H35: 3.320950816 | I35: 368.5049508 | J35: 364.2145755 | K35: 10.426 | L35: 0.09481311671 | M35: 10.52081312 | N35: 10.39832294 | O35: 74.818 | P35: 0.6803882376 | Q35: 75.49838824 | R35: 74.6193867 | S35: 1.852 | T35: 0.01684192328 | U35: 1.868841923 | V35: 1.847083645 | W35: 452.28 | X35: 4.112994094 | Y35: 456.3929941 | Z35: 451.0793688 | AB35: 112.874 | AC35: 1.026466117 | AD35: 113.9004661 | AE35: 112.5743625 | AF35: 2.053 | AG35: 0.01866979941 | AH35: 2.071669799 | AI35: 2.047550067 | AJ35: 10.718 | AK35: 0.09746853874 | AL35: 10.81546854 | AM35: 10.68954779 | AN35: 9.008 | AO35: 0.08191795082 | AP35: 9.089917951 | AQ35: 8.98408719 | AR35: 134.653 | AS35: 1.224522406 | AT35: 135.8775224 | AU35: 134.2955476
A36: 2025-01-01 | B36: 24 | C36: Off | D36: 22.911487 | E36: 0.011428714 | G36: 332.82 | H36: 2.714168043 | I36: 335.534168 | J36: 331.699444 | K36: 9.669 | L36: 0.07885130343 | M36: 9.747851303 | N36: 9.636445899 | O36: 71.698 | P36: 0.5847017017 | Q36: 72.2827017 | R36: 71.45660338 | S36: 1.852 | T36: 0.01510317654 | U36: 1.867103177 | V36: 1.845764588 | W36: 416.039 | X36: 3.392824225 | Y36: 419.4318242 | Z36: 414.6382579 | AB36: 101.333 | AC36: 0.8263769915 | AD36: 102.159377 | AE36: 100.9918267 | AF36: 1.864 | AG36: 0.01520103729 | AH36: 1.879201037 | AI36: 1.857724186 | AJ36: 10.255 | AK36: 0.08363017031 | AL36: 10.33863017 | AM36: 10.22047292 | AN36: 9.008 | AO36: 0.07346080684 | AP36: 9.081460807 | AQ36: 8.977671389 | AR36: 122.46 | AS36: 0.9986690059 | AT36: 123.458669 | AU36: 122.0476952
A37: 2025-01-02 | B37: 1 | C37: Off | D37: 27.11931 | E37: 0.011649787 | G37: 306.172 | H37: 2.309893609 | I37: 308.4818936 | J37: 304.8881453 | K37: 9.157 | L37: 0.06908435707 | M37: 9.226084357 | N37: 9.118602439 | O37: 69.058 | P37: 0.5210033341 | Q37: 69.57900333 | R37: 68.76842277 | S37: 1.852 | T37: 0.0139722867 | U37: 1.865972287 | V37: 1.844234107 | W37: 386.239 | X37: 2.913953586 | Y37: 389.1529536 | Z37: 384.6194046 | AB37: 92.276 | AC37: 0.6961699392 | AD37: 92.97216994 | AE37: 91.88906396 | AF37: 1.746 | AG37: 0.01317257698 | AH37: 1.759172577 | AI37: 1.738678591 | AJ37: 9.865 | AK37: 0.07442581441 | AL37: 9.939425814 | AM37: 9.823633621 | AN37: 9.007 | AO37: 0.06795269238 | AP37: 9.074952692 | AQ37: 8.969231426 | AR37: 112.894 | AS37: 0.851721023 | AT37: 113.745721 | AU37: 112.4206076
A38: 2025-01-02 | B38: 2 | C38: Off | D38: 24.681337 | E38: 0.011406394 | G38: 288.162 | H38: 2.357977655 | I38: 290.5199777 | J38: 287.2061923 | K38: 8.756 | L38: 0.07164876821 | M38: 8.827648768 | N38: 8.726957128 | O38: 67.469 | P38: 0.552086654 | Q38: 68.02108665 | R38: 67.24521134 | S38: 1.852 | T38: 0.01515458185 | U38: 1.867154582 | V38: 1.845857081 | W38: 366.239 | X38: 2.996867659 | Y38: 369.2358677 | Z38: 365.0242179 | AB38: 86.916 | AC38: 0.7112179463 | AD38: 87.62721795 | AE38: 86.62770737 | AF38: 1.663 | AG38: 0.01360802895 | AH38: 1.676608029 | AI38: 1.657483977 | AJ38: 9.606 | AK38: 0.07860416485 | AL38: 9.684604165 | AM38: 9.574137754 | AN38: 9.007 | AO38: 0.07370265592 | AP38: 9.080702656 | AQ38: 8.977124584 | AR38: 107.192 | AS38: 0.877132796 | AT38: 108.0691328 | AU38: 106.8364537
A39: 2025-01-02 | B39: 3 | C39: Off | D39: 25.116242 | E39: 0.012043374 | G39: 278.297 | H39: 2.348072246 | I39: 280.6450722 | J39: 277.2651587 | K39: 8.761 | L39: 0.07391908985 | M39: 8.83491909 | N39: 8.728516855 | O39: 67.01 | P39: 0.5653827429 | Q39: 67.57538274 | R39: 66.76154714 | S39: 1.852 | T39: 0.01562585942 | U39: 1.867625859 | V39: 1.845133343 | W39: 355.92 | X39: 3.002999938 | Y39: 358.9229999 | Z39: 354.600356 | AB39: 83.913 | AC39: 0.7079982406 | AD39: 84.62099824 | AE39: 83.60187591 | AF39: 1.681 | AG39: 0.01418308298 | AH39: 1.695183083 | AI39: 1.674767359 | AJ39: 9.706 | AK39: 0.08189232805 | AL39: 9.787892328 | AM39: 9.67001308 | AN39: 9.007 | AO39: 0.07599466297 | AP39: 9.082994663 | AQ39: 8.973604761 | AR39: 104.307 | AS39: 0.8800683146 | AT39: 105.1870683 | AU39: 103.9202611
A40: 2025-01-02 | B40: 4 | C40: Off | D40: 25.612386 | E40: 0.011985982 | G40: 273.609 | H40: 2.886769582 | I40: 276.4957696 | J40: 273.1816963 | K40: 8.628 | L40: 0.09103153755 | M40: 8.719031538 | N40: 8.614525382 | O40: 66.918 | P40: 0.7060325023 | Q40: 67.6240325 | R40: 66.81349207 | S40: 1.852 | T40: 0.01953991742 | U40: 1.871539917 | V40: 1.849107674 | W40: 351.007 | X40: 3.70337354 | Y40: 354.7103735 | Z40: 350.4588214 | AB40: 82.845 | AC40: 0.874073682 | AD40: 83.71907368 | AE40: 82.71561837 | AF40: 1.695 | AG40: 0.01788345574 | AH40: 1.712883456 | AI40: 1.692352865 | AJ40: 9.64 | AK40: 0.1017088574 | AL40: 9.741708857 | AM40: 9.62494491 | AN40: 9.007 | AO40: 0.09503025715 | AP40: 9.102030257 | AQ40: 8.992933486 | AR40: 103.187 | AS40: 1.088696252 | AT40: 104.2756963 | AU40: 103.0258496
A41: 2025-01-02 | B41: 5 | C41: Off | D41: 25.288412 | E41: 0.011410265 | G41: 274.491 | H41: 2.008794895 | I41: 276.4997949 | J41: 273.344859 | K41: 8.75 | L41: 0.06403472366 | M41: 8.814034724 | N41: 8.713464252 | O41: 68.244 | P41: 0.499426935 | Q41: 68.74342694 | R41: 67.95904622 | S41: 1.852 | T41: 0.01355340665 | U41: 1.865553407 | V41: 1.844266948 | W41: 353.337 | X41: 2.585809961 | Y41: 355.92281 | Z41: 351.8616364 | AB41: 83.43 | AC41: 0.6105619423 | AD41: 84.04056194 | AE41: 83.08163686 | AF41: 1.717 | AG41: 0.01256544235 | AH41: 1.729565442 | AI41: 1.709830642 | AJ41: 9.813 | AK41: 0.07181402781 | AL41: 9.884814028 | AM41: 9.77202568 | AN41: 9.007 | AO41: 0.06591551498 | AP41: 9.072915515 | AQ41: 8.969391145 | AR41: 103.967 | AS41: 0.7608569274 | AT41: 104.7278569 | AU41: 103.5328843
A42: 2025-01-02 | B42: 6 | C42: Off | D42: 29.151389 | E42: 0.012101423 | G42: 284.939 | H42: 2.440665975 | I42: 287.379666 | J42: 283.9019631 | K42: 9.107 | L42: 0.07800667875 | M42: 9.185006679 | N42: 9.073855028 | O42: 71.213 | P42: 0.6099801926 | Q42: 71.82298019 | R42: 70.95381993 | S42: 1.852 | T42: 0.0158634423 | U42: 1.867863442 | V42: 1.845259637 | W42: 367.111 | X42: 3.144516289 | Y42: 370.2555163 | Z42: 365.7748977 | AB42: 87.118 | AC42: 0.7462156406 | AD42: 87.86421564 | AE42: 86.8009336 | AF42: 1.73 | AG42: 0.01481844232 | AH42: 1.744818442 | AI42: 1.723703656 | AJ42: 10.238 | AK42: 0.08769434248 | AL42: 10.32569434 | AM42: 10.20073875 | AN42: 9.007 | AO42: 0.07715012139 | AP42: 9.084150121 | AQ42: 8.974218978 | AR42: 108.093 | AS42: 0.9258785468 | AT42: 109.0188785 | AU42: 107.699595
A43: 2025-01-02 | B43: 7 | C43: Off | D43: 29.867813 | E43: 0.011947557 | G43: 302.225 | H43: 2.840440558 | I43: 305.0654406 | J43: 301.4206538 | K43: 9.722 | L43: 0.0913715381 | M43: 9.813371538 | N43: 9.696125722 | O43: 75.251 | P43: 0.7072412686 | Q43: 75.95824127 | R43: 75.05072585 | S43: 1.852 | T43: 0.01740589267 | U43: 1.869405893 | V43: 1.847071059 | W43: 389.05 | X43: 3.656459257 | Y43: 392.7064593 | Z43: 388.0145765 | AB43: 92.455 | AC43: 0.8689318612 | AD43: 93.32393186 | AE43: 92.20893887 | AF43: 1.854 | AG43: 0.01742468953 | AH43: 1.87142469 | AI43: 1.849065736 | AJ43: 10.878 | AK43: 0.1022361234 | AL43: 10.98023612 | AM43: 10.84904913 | AN43: 9.007 | AO43: 0.08465166053 | AP43: 9.091651661 | AQ43: 8.983028634 | AR43: 114.194 | AS43: 1.073244335 | AT43: 115.2672443 | AU43: 113.8900824
A44: 2025-01-02 | B44: 8 | C44: On | D44: 56.401503 | E44: 0.011672477 | G44: 317.013 | H44: 4.345643377 | I44: 321.3586434 | J44: 317.607592 | K44: 10.196 | L44: 0.1397677063 | M44: 10.33576771 | N44: 10.2151237 | O44: 77.929 | P44: 1.068257903 | Q44: 78.9972579 | R44: 78.07516423 | S44: 0.271 | T44: 0.003714892939 | U44: 0.2747148929 | V44: 0.2715082897 | W44: 405.409 | X44: 5.55738388 | Y44: 410.9663839 | Z44: 406.1693882 | AB44: 97.355 | AC44: 1.334551299 | AD44: 98.6895513 | AE44: 97.53759978 | AF44: 1.929 | AG44: 0.02644290952 | AH44: 1.95544291 | AI44: 1.932618047 | AJ44: 11.237 | AK44: 0.1540378301 | AL44: 11.39103783 | AM44: 11.2580762 | AN44: 1.338 | AO44: 0.01834142713 | AP44: 1.356341427 | AQ44: 1.340509563 | AR44: 111.859 | AS44: 1.533373466 | AT44: 113.3923735 | AU44: 112.0688036
A45: 2025-01-02 | B45: 9 | C45: On | D45: 38.654288 | E45: 0.011118782 | G45: 325.777 | H45: 2.995854371 | I45: 328.7728544 | J45: 325.1173007 | K45: 10.567 | L45: 0.09717442649 | M45: 10.66417443 | N45: 10.5456018 | O45: 79.749 | P45: 0.7333740265 | Q45: 80.48237403 | R45: 79.58750805 | S45: 0.001 | T45: 9.196027869e-06 | U45: 0.001009196028 | V45: 0.0009979749972 | W45: 416.094 | X45: 3.82641202 | Y45: 419.920412 | Z45: 415.2514085 | AB45: 100.673 | AC45: 0.9257917136 | AD45: 101.5987917 | AE45: 100.4691369 | AF45: 1.987 | AG45: 0.01827250738 | AH45: 2.005272507 | AI45: 1.98297632 | AJ45: 11.581 | AK45: 0.1064991987 | AL45: 11.6874992 | AM45: 11.55754844 | AN45: 0.022 | AO45: 0.0002023126131 | AP45: 0.02220231261 | AQ45: 0.02195544994 | AR45: 114.263 | AS45: 1.050765732 | AT45: 115.3137657 | AU45: 114.0316171
A46: 2025-01-02 | B46: 10 | C46: On | D46: 33.137196 | E46: 0.010210235 | G46: 329.926 | H46: 2.727279221 | I46: 332.6532792 | J46: 329.2568111 | K46: 10.39 | L46: 0.0858872326 | M46: 10.47588723 | N46: 10.36892596 | O46: 79.496 | P46: 0.6571406586 | Q46: 80.15314066 | R46: 79.33475826 | S46: 0.001 | T46: 8.266336151e-06 | U46: 0.001008266336 | V46: 0.0009979716999 | W46: 419.813 | X46: 3.470315378 | Y46: 423.2833154 | Z46: 418.9614933 | AB46: 101.657 | AC46: 0.8403309341 | AD46: 102.4973309 | AE46: 101.4508091 | AF46: 1.986 | AG46: 0.0164169436 | AH46: 2.002416944 | AI46: 1.981971796 | AJ46: 11.399 | AK46: 0.09422796578 | AL46: 11.49322797 | AM46: 11.37587941 | AN46: 0.002 | AO46: 1.65326723e-05 | AP46: 0.002016532672 | AQ46: 0.0019959434 | AR46: 115.044 | AS46: 0.9509923761 | AT46: 115.9949924 | AU46: 114.8106562
A47: 2025-01-02 | B47: 11 | C47: On | D47: 33.691033 | E47: 0.009759453 | G47: 337.921 | H47: 2.673067622 | I47: 340.5940676 | J47: 337.2700558 | K47: 10.508 | L47: 0.08312177868 | M47: 10.59112178 | N47: 10.48775822 | O47: 79.735 | P47: 0.6307303981 | Q47: 80.3657304 | R47: 79.58140483 | S47: 0.001 | T47: 7.910332954e-06 | U47: 0.001007910333 | V47: 0.0009980736794 | W47: 428.165 | X47: 3.386927709 | Y47: 431.5519277 | Z47: 427.340217 | AB47: 104.049 | AC47: 0.8230622335 | AD47: 104.8720622 | AE47: 103.8485683 | AF47: 1.995 | AG47: 0.01578111424 | AH47: 2.010781114 | AI47: 1.99115699 | AJ47: 11.371 | AK47: 0.08994839602 | AL47: 11.4609484 | AM47: 11.34909581 | AN47: 0 | AO47: 0 | AP47: 0 | AQ47: 0 | AR47: 117.415 | AS47: 0.9287917438 | AT47: 118.3437917 | AU47: 117.1888211
A48: 2025-01-02 | B48: 12 | C48: On | D48: 30.145444 | E48: 0.009646917 | G48: 344.496 | H48: 2.563447989 | I48: 347.059448 | J48: 343.7113943 | K48: 10.712 | L48: 0.07970964789 | M48: 10.79170965 | N48: 10.68760292 | O48: 79.537 | P48: 0.5918471121 | Q48: 80.12884711 | R48: 79.35585077 | S48: 0.001 | T48: 7.441154583e-06 | U48: 0.001007441155 | V48: 0.0009977224534 | W48: 434.746 | X48: 3.23501219 | Y48: 437.9810122 | Z48: 433.7558457 | AB48: 105.749 | AC48: 0.786894656 | AD48: 106.5358947 | AE48: 105.5081517 | AF48: 2.015 | AG48: 0.01499392648 | AH48: 2.029993926 | AI48: 2.010410744 | AJ48: 11.525 | AK48: 0.08575930657 | AL48: 11.61075931 | AM48: 11.49875128 | AN48: 0.001 | AO48: 7.441154583e-06 | AP48: 0.001007441155 | AQ48: 0.0009977224534 | AR48: 119.29 | AS48: 0.8876553302 | AT48: 120.1776553 | AU48: 119.0183115
A49: 2025-01-02 | B49: 13 | C49: On | D49: 32.8752 | E49: 0.00954625 | G49: 348.692 | H49: 2.179671227 | I49: 350.8716712 | J49: 347.5221625 | K49: 10.833 | L49: 0.06771700642 | M49: 10.90071701 | N49: 10.79665604 | O49: 79.565 | P49: 0.4973602525 | Q49: 80.06236025 | R49: 79.29806495 | S49: 0.001 | T49: 6.250992931e-06 | U49: 0.001006250993 | V49: 0.0009966450694 | W49: 439.091 | X49: 2.744754737 | Y49: 441.8357547 | Z49: 437.6178802 | AB49: 107.046 | AC49: 0.6691437893 | AD49: 107.7151438 | AE49: 106.6868681 | AF49: 2.089 | AG49: 0.01305832423 | AH49: 2.102058324 | AI49: 2.08199155 | AJ49: 11.347 | AK49: 0.07093001678 | AL49: 11.41793002 | AM49: 11.3089316 | AN49: 0 | AO49: 0 | AP49: 0 | AQ49: 0 | AR49: 120.482 | AS49: 0.7531321303 | AT49: 121.2351321 | AU49: 120.0777913
A50: 2025-01-02 | B50: 14 | C50: On | D50: 36.486327 | E50: 0.009352255 | G50: 351.575 | H50: 1.787700133 | I50: 353.3627001 | J50: 350.0579621 | K50: 10.689 | L50: 0.05435177905 | M50: 10.74335178 | N50: 10.64287721 | O50: 79.157 | P50: 0.4025001192 | Q50: 79.55950012 | R50: 78.81543939 | S50: 0.001 | T50: 5.084832917e-06 | U50: 0.001005084833 | V50: 0.0009956850233 | W50: 441.422 | X50: 2.244557116 | Y50: 443.6665571 | Z50: 439.5172743 | AB50: 107.744 | AC50: 0.5478602378 | AD50: 108.2918602 | AE50: 107.2790871 | AF50: 2.012 | AG50: 0.01023068383 | AH50: 2.022230684 | AI50: 2.003318267 | AJ50: 11.272 | AK50: 0.05731623664 | AL50: 11.32931624 | AM50: 11.22336158 | AN50: 0 | AO50: 0 | AP50: 0 | AQ50: 0 | AR50: 121.028 | AS50: 0.6154071583 | AT50: 121.6434072 | AU50: 120.505767
A51: 2025-01-02 | B51: 15 | C51: On | D51: 30.793549 | E51: 0.00934356 | G51: 353.58 | H51: 2.506351126 | I51: 356.0863511 | J51: 352.7592369 | K51: 10.604 | L51: 0.07516643288 | M51: 10.67916643 | N51: 10.579385 | O51: 79.259 | P51: 0.5618272636 | Q51: 79.82082726 | R51: 79.07501657 | S51: 0.001 | T51: 7.088498008e-06 | U51: 0.001007088498 | V51: 0.0009976787062 | W51: 443.444 | X51: 3.143351911 | Y51: 446.5873519 | Z51: 442.4146362 | AB51: 108.642 | AC51: 0.7701086006 | AD51: 109.4121086 | AE51: 108.38981 | AF51: 2.071 | AG51: 0.01468027938 | AH51: 2.085680279 | AI51: 2.066192601 | AJ51: 11.226 | AK51: 0.07957547864 | AL51: 11.30557548 | AM51: 11.19994116 | AN51: 0 | AO51: 0 | AP51: 0 | AQ51: 0 | AR51: 121.939 | AS51: 0.8643643586 | AT51: 122.8033644 | AU51: 121.6559438
A52: 2025-01-02 | B52: 16 | C52: On | D52: 30.226945 | E52: 0.009714007 | G52: 363.939 | H52: 2.321186134 | I52: 366.2601861 | J52: 362.7023321 | K52: 10.86 | L52: 0.06926457845 | M52: 10.92926458 | N52: 10.82309763 | O52: 80 | P52: 0.5102363054 | Q52: 80.51023631 | R52: 79.72815931 | S52: 0.001 | T52: 6.377953817e-06 | U52: 0.001006377954 | V52: 0.0009966019913 | W52: 454.8 | X52: 2.900693396 | Y52: 457.7006934 | Z52: 453.2545857 | AB52: 112.289 | AC52: 0.7161740562 | AD52: 113.0051741 | AE52: 111.907441 | AF52: 2.074 | AG52: 0.01322787622 | AH52: 2.087227876 | AI52: 2.06695253 | AJ52: 11.352 | AK52: 0.07240253173 | AL52: 11.42440253 | AM52: 11.31342581 | AN52: 0.015 | AO52: 9.566930725e-05 | AP52: 0.01509566931 | AQ52: 0.01494902987 | AR52: 125.73 | AS52: 0.8019001334 | AT52: 126.5319001 | AU52: 125.3027684
A53: 2025-01-02 | B53: 17 | C53: On | D53: 55.909364 | E53: 0.010143311 | G53: 388.161 | H53: 3.862453127 | I53: 392.0234531 | J53: 388.0470373 | K53: 11.513 | L53: 0.1145618 | M53: 11.6275618 | N53: 11.50961982 | O53: 83.389 | P53: 0.8297745106 | Q53: 84.21877451 | R53: 83.36451729 | S53: 0.001 | T53: 9.950647094e-06 | U53: 0.001009950647 | V53: 0.0009997064036 | W53: 483.064 | X53: 4.806799388 | Y53: 487.8707994 | Z53: 482.9221741 | AB53: 120.318 | AC53: 1.197241957 | AD53: 121.515242 | AE53: 120.2826751 | AF53: 2.203 | AG53: 0.02192127555 | AH53: 2.224921276 | AI53: 2.202353207 | AJ53: 12.008 | AK53: 0.1194873703 | AL53: 12.12748737 | AM53: 12.00447449 | AN53: 0.022 | AO53: 0.0002189142361 | AP53: 0.02221891424 | AQ53: 0.02199354088 | AR53: 134.551 | AS53: 1.338869517 | AT53: 135.8898695 | AU53: 134.5114963
A54: 2025-01-02 | B54: 18 | C54: On | D54: 109.183255 | E54: 0.011138847 | G54: 424.316 | H54: 3.918446081 | I54: 428.2344461 | J54: 423.4644081 | K54: 12.434 | L54: 0.1148247027 | M54: 12.5488247 | N54: 12.40904526 | O54: 88.391 | P54: 0.8162675165 | Q54: 89.20726752 | R54: 88.21360141 | S54: 0.887 | T54: 0.008191210498 | U54: 0.8951912105 | V54: 0.8852198126 | W54: 526.028 | X54: 4.857729511 | Y54: 530.8857295 | Z54: 524.9722746 | AB54: 132.566 | AC54: 1.224211963 | AD54: 133.790212 | AE54: 132.2999433 | AF54: 2.419 | AG54: 0.02233882547 | AH54: 2.441338825 | AI54: 2.414145126 | AJ54: 12.613 | AK54: 0.1164777204 | AL54: 12.72947772 | AM54: 12.58768602 | AN54: 4.331 | AO54: 0.03999563999 | AP54: 4.37099564 | AQ54: 4.322307788 | AR54: 151.929 | AS54: 1.403024149 | AT54: 153.3320241 | AU54: 151.6240822
A55: 2025-01-02 | B55: 19 | C55: On | D55: 45.877498 | E55: 0.010300984 | G55: 436.81 | H55: 4.593201564 | I55: 441.4032016 | J55: 436.8563142 | K55: 12.569 | L55: 0.1321671904 | M55: 12.70116719 | N55: 12.57033267 | O55: 90.623 | P55: 0.9529308058 | Q55: 91.57593081 | R55: 90.63260861 | S55: 0.962 | T55: 0.01011574805 | U55: 0.972115748 | V55: 0.9621019993 | W55: 540.964 | X55: 5.688415308 | Y55: 546.6524153 | Z55: 541.0213575 | AB55: 136.229 | AC55: 1.432492974 | AD55: 137.661493 | AE55: 136.2434441 | AF55: 2.412 | AG55: 0.02536297743 | AH55: 2.437362977 | AI55: 2.41225574 | AJ55: 12.987 | AK55: 0.1365625986 | AL55: 13.1235626 | AM55: 12.98837699 | AN55: 4.692 | AO55: 0.04933793122 | AP55: 4.741337931 | AQ55: 4.692497485 | AR55: 156.32 | AS55: 1.643756481 | AT55: 157.9637565 | AU55: 156.3365744
A56: 2025-01-02 | B56: 20 | C56: On | D56: 46.442549 | E56: 0.009944602 | G56: 435.69 | H56: 3.125661722 | I56: 438.8156617 | J56: 434.4518146 | K56: 12.567 | L56: 0.09015628282 | M56: 12.65715628 | N56: 12.5312859 | O56: 90.969 | P56: 0.6526161289 | Q56: 91.62161613 | R56: 90.71047562 | S56: 1.852 | T56: 0.01328634008 | U56: 1.86528634 | V56: 1.84673681 | W56: 541.078 | X56: 3.881720474 | Y56: 544.9597205 | Z56: 539.5403129 | AB56: 135.252 | AC56: 0.9703045726 | AD56: 136.2223046 | AE56: 134.867628 | AF56: 2.418 | AG56: 0.01734685222 | AH56: 2.435346852 | AI56: 2.411128297 | AJ56: 13.004 | AK56: 0.09329134254 | AL56: 13.09729134 | AM56: 12.96704399 | AN56: 9.007 | AO56: 0.06461666582 | AP56: 9.071616666 | AQ56: 8.981403049 | AR56: 159.681 | AS56: 1.145559433 | AT56: 160.8265594 | AU56: 159.2272033
A57: 2025-01-02 | B57: 21 | C57: On | D57: 55.010957 | E57: 0.010428907 | G57: 428.918 | H57: 2.916251136 | I57: 431.8342511 | J57: 427.3306919 | K57: 12.308 | L57: 0.0836831725 | M57: 12.39168317 | N57: 12.26245146 | O57: 90.588 | P57: 0.6159157646 | Q57: 91.20391576 | R57: 90.25275861 | S57: 1.852 | T57: 0.01259191058 | U57: 1.864591911 | V57: 1.845146255 | W57: 533.666 | X57: 3.628441984 | Y57: 537.294442 | Z57: 531.6910482 | AB57: 132.573 | AC57: 0.9013754654 | AD57: 133.4743755 | AE57: 132.0823836 | AF57: 2.386 | AG57: 0.01622262346 | AH57: 2.402222623 | AI57: 2.377170067 | AJ57: 12.965 | AK57: 0.08815017318 | AL57: 13.05315017 | AM57: 12.91702008 | AN57: 9.007 | AO57: 0.06123938371 | AP57: 9.068239384 | AQ57: 8.973667559 | AR57: 156.931 | AS57: 1.066987646 | AT57: 157.9979876 | AU57: 156.3502413
A58: 2025-01-02 | B58: 22 | C58: On | D58: 45.165102 | E58: 0.010899118 | G58: 409.63 | H58: 2.739642146 | I58: 412.3696421 | J58: 407.8751768 | K58: 11.893 | L58: 0.07954144971 | M58: 11.97254145 | N58: 11.84205131 | O58: 87.685 | P58: 0.5864451373 | Q58: 88.27144514 | R58: 87.30936424 | S58: 1.852 | T58: 0.01238634195 | U58: 1.864386342 | V58: 1.844066175 | W58: 511.06 | X58: 3.418015075 | Y58: 514.4780151 | Z58: 508.8706585 | AB58: 126.537 | AC58: 0.8462907948 | AD58: 127.3832908 | AE58: 125.9949253 | AF58: 2.287 | AG58: 0.01529566093 | AH58: 2.302295661 | AI58: 2.277202669 | AJ58: 12.537 | AK58: 0.08384857942 | AL58: 12.62084858 | AM58: 12.48329246 | AN58: 9.007 | AO58: 0.0602396231 | AP58: 9.067239623 | AQ58: 8.968414709 | AR58: 150.368 | AS58: 1.005674658 | AT58: 151.3736747 | AU58: 149.7238351
A59: 2025-01-02 | B59: 23 | C59: On | D59: 32.348379 | E59: 0.011383354 | G59: 378.764 | H59: 3.456265109 | I59: 382.2202651 | J59: 377.8693165 | K59: 11.238 | L59: 0.1025480439 | M59: 11.34054804 | N59: 11.21145457 | O59: 83.451 | P59: 0.7614999832 | Q59: 84.21249998 | R59: 83.25387928 | S59: 1.852 | T59: 0.01689971323 | U59: 1.868899713 | V59: 1.847625366 | W59: 475.305 | X59: 4.33721285 | Y59: 479.6422128 | Z59: 474.1822757 | AB59: 116.183 | AC59: 1.060183252 | AD59: 117.2431833 | AE59: 115.9085626 | AF59: 2.097 | AG59: 0.01913536644 | AH59: 2.116135366 | AI59: 2.092046648 | AJ59: 11.922 | AK59: 0.1087896227 | AL59: 12.03078962 | AM59: 11.89383889 | AN59: 9.007 | AO59: 0.08218991203 | AP59: 9.089189912 | AQ59: 8.985724446 | AR59: 139.209 | AS59: 1.270298153 | AT59: 140.4792982 | AU59: 138.8801726
A60: 2025-01-02 | B60: 24 | C60: Off | D60: 32.881247 | E60: 0.011736007 | G60: 345.92 | H60: 3.617830921 | I60: 349.5378309 | J60: 345.4356525 | K60: 10.397 | L60: 0.108737824 | M60: 10.50573782 | N60: 10.38244241 | O60: 79.253 | P60: 0.8288735951 | Q60: 80.0818736 | R60: 79.14203217 | S60: 1.852 | T60: 0.01936928442 | U60: 1.871369284 | V60: 1.849406881 | W60: 437.422 | X60: 4.574811625 | Y60: 441.9968116 | Z60: 436.8095339 | AB60: 104.811 | AC60: 1.096173904 | AD60: 105.9071739 | AE60: 104.6642466 | AF60: 1.981 | AG60: 0.02071844084 | AH60: 2.001718441 | AI60: 1.978226259 | AJ60: 11.306 | AK60: 0.1182446704 | AL60: 11.42424467 | AM60: 11.29016966 | AN60: 9.007 | AO60: 0.09420040214 | AP60: 9.101200402 | AQ60: 8.994388651 | AR60: 127.105 | AS60: 1.329337417 | AT60: 128.4343374 | AU60: 126.9270311
A61: 2025-01-03 | B61: 1 | C61: Off | D61: 28.500111 | E61: 0.012349857 | G61: 319.431 | H61: 2.710838406 | I61: 322.1418384 | J61: 318.1634328 | K61: 9.783 | L61: 0.08302303824 | M61: 9.866023038 | N61: 9.744179065 | O61: 76.203 | P61: 0.6466937118 | Q61: 76.84969371 | R61: 75.90061098 | S61: 1.849 | T61: 0.01569146455 | U61: 1.864691465 | V61: 1.841662792 | W61: 407.266 | X61: 3.456246621 | Y61: 410.7222466 | Z61: 405.6498856 | AB61: 95.691 | AC61: 0.8120778444 | AD61: 96.50307784 | AE61: 95.31127863 | AF61: 1.858 | AG61: 0.01576784269 | AH61: 1.873767843 | AI61: 1.850627078 | AJ61: 10.999 | AK61: 0.09334257361 | AL61: 11.09234257 | AM61: 10.95535373 | AN61: 9.008 | AO61: 0.07644603173 | AP61: 9.084446032 | AQ61: 8.972254422 | AR61: 117.556 | AS61: 0.9976342925 | AT61: 118.5536343 | AU61: 117.0895139
A62: 2025-01-03 | B62: 2 | C62: Off | D62: 30.656683 | E62: 0.013077914 | G62: 299.678 | H62: 3.102347333 | I62: 302.7803473 | J62: 298.820612 | K62: 9.296 | L62: 0.0962346946 | M62: 9.392234695 | N62: 9.269403857 | O62: 73.493 | P62: 0.7608193213 | Q62: 74.25381932 | R62: 73.28273426 | S62: 1.849 | T62: 0.01914134577 | U62: 1.868141346 | V62: 1.843709954 | W62: 384.316 | X62: 3.978542695 | Y62: 388.2945427 | Z62: 383.2164601 | AB62: 89.762 | AC62: 0.9292403891 | AD62: 90.69124039 | AE62: 89.50518815 | AF62: 1.769 | AG62: 0.01831316424 | AH62: 1.787313164 | AI62: 1.763938836 | AJ62: 10.476 | AK62: 0.1084503723 | AL62: 10.58445037 | AM62: 10.44602784 | AN62: 9.008 | AO62: 0.09325324107 | AP62: 9.101253241 | AQ62: 8.982227834 | AR62: 111.015 | AS62: 1.149257167 | AT62: 112.1642572 | AU62: 110.6973827
A63: 2025-01-03 | B63: 3 | C63: Off | D63: 27.652142 | E63: 0.013324818 | G63: 288.123 | H63: 3.666470462 | I63: 291.7894705 | J63: 287.9014289 | K63: 9.092 | L63: 0.1156990224 | M63: 9.207699022 | N63: 9.085008109 | O63: 72.19 | P63: 0.9186441299 | Q63: 73.10864413 | R63: 72.13448475 | S63: 1.849 | T63: 0.02352920067 | U63: 1.872529201 | V63: 1.84757809 | W63: 371.254 | X63: 4.724342815 | Y63: 375.9783428 | Z63: 370.9684998 | AB63: 86.347 | AC63: 1.098797128 | AD63: 87.44579713 | AE63: 86.2805978 | AF63: 1.804 | AG63: 0.02295655922 | AH63: 1.826956559 | AI63: 1.802612696 | AJ63: 10.373 | AK63: 0.1320002155 | AL63: 10.50500022 | AM63: 10.365023 | AN63: 9.008 | AO63: 0.1146300917 | AP63: 9.122630092 | AQ63: 9.001072706 | AR63: 107.532 | AS63: 1.368383995 | AT63: 108.900384 | AU63: 107.4493062
A64: 2025-01-03 | B64: 4 | C64: Off | D64: 30.005058 | E64: 0.013531696 | G64: 282.011 | H64: 3.30441543 | I64: 285.3154154 | J64: 281.454614 | K64: 9.041 | L64: 0.1059363638 | M64: 9.146936364 | N64: 9.023162802 | O64: 71.841 | P64: 0.8417845719 | Q64: 72.68278457 | R64: 71.69926323 | S64: 1.849 | T64: 0.02166533976 | U64: 1.87066534 | V64: 1.845352065 | W64: 364.742 | X64: 4.273801706 | Y64: 369.0158017 | Z64: 364.0223921 | AB64: 84.781 | AC64: 0.9934067982 | AD64: 85.7744068 | AE64: 84.6137336 | AF64: 1.732 | AG64: 0.02029441236 | AH64: 1.752294412 | AI64: 1.728582897 | AJ64: 10.264 | AK64: 0.1202666562 | AL64: 10.38426666 | AM64: 10.24374992 | AN64: 9.008 | AO64: 0.105549692 | AP64: 9.113549692 | AQ64: 8.990227908 | AR64: 105.785 | AS64: 1.239517559 | AT64: 107.0245176 | AU64: 105.5762943
A65: 2025-01-03 | B65: 5 | C65: Off | D65: 29.560527 | E65: 0.013978934 | G65: 282.455 | H65: 4.519850682 | I65: 286.9748507 | J65: 282.9632482 | K65: 9.212 | L65: 0.1474106123 | M65: 9.359410612 | N65: 9.228576029 | O65: 73.24 | P65: 1.171987977 | Q65: 74.41198798 | R65: 73.37178771 | S65: 1.849 | T65: 0.02958773579 | U65: 1.878587736 | V65: 1.852327082 | W65: 366.756 | X65: 5.868837007 | Y65: 372.624837 | Z65: 367.415939 | AB65: 85.365 | AC65: 1.366012475 | AD65: 86.73101247 | AE65: 85.51860538 | AF65: 1.771 | AG65: 0.02833957819 | AH65: 1.799339578 | AI65: 1.774186729 | AJ65: 10.521 | AK65: 0.168357257 | AL65: 10.68935726 | AM65: 10.53993144 | AN65: 9.008 | AO65: 0.1441462001 | AP65: 9.1521462 | AQ65: 9.024208952 | AR65: 106.665 | AS65: 1.70685551 | AT65: 108.3718555 | AU65: 106.8569325
A66: 2025-01-03 | B66: 6 | C66: Off | D66: 26.659183 | E66: 0.013674773 | G66: 291.47 | H66: 3.835742643 | I66: 295.3057426 | J66: 291.2675036 | K66: 9.677 | L66: 0.1273492351 | M66: 9.804349235 | N66: 9.670276985 | O66: 77.242 | P66: 1.016504042 | Q66: 78.25850404 | R66: 77.18833676 | S66: 1.849 | T66: 0.02433282378 | U66: 1.873332824 | V66: 1.847715423 | W66: 380.238 | X66: 5.003928744 | Y66: 385.2419287 | Z66: 379.9738328 | AB66: 88.641 | AC66: 1.166514782 | AD66: 89.80751478 | AE66: 88.5794174 | AF66: 1.834 | AG66: 0.02413542391 | AH66: 1.858135424 | AI66: 1.832725844 | AJ66: 11.021 | AK66: 0.1450362633 | AL66: 11.16603626 | AM66: 11.01334325 | AN66: 9.008 | AO66: 0.118545201 | AP66: 9.126545201 | AQ66: 9.001741767 | AR66: 110.504 | AS66: 1.454231671 | AT66: 111.9582317 | AU66: 110.4272283
A67: 2025-01-03 | B67: 7 | C67: Off | D67: 76.639242 | E67: 0.01336148 | G67: 307.525 | H67: 3.616566452 | I67: 311.1415665 | J67: 306.9842546 | K67: 10.169 | L67: 0.1195898358 | M67: 10.28858984 | N67: 10.15111905 | O67: 81.002 | P67: 0.9526026038 | Q67: 81.9546026 | R67: 80.85956782 | S67: 1.849 | T67: 0.02174467562 | U67: 1.870744676 | V67: 1.845748758 | W67: 400.545 | X67: 4.710503567 | Y67: 405.2555036 | Z67: 399.8406903 | AB67: 93.88 | AC67: 1.104050918 | AD67: 94.98405092 | AE67: 93.71492342 | AF67: 1.943 | AG67: 0.02285013776 | AH67: 1.965850138 | AI67: 1.93958347 | AJ67: 11.69 | AK67: 0.1374771541 | AL67: 11.82747715 | AM67: 11.66944455 | AN67: 9.008 | AO67: 0.1059362023 | AP67: 9.113936202 | AQ67: 8.992160526 | AR67: 116.521 | AS67: 1.370314412 | AT67: 117.8913144 | AU67: 116.316112
A68: 2025-01-03 | B68: 8 | C68: On | D68: 46.537055 | E68: 0.012953189 | G68: 322.342 | H68: 5.907819443 | I68: 328.2498194 | J68: 323.9979375 | K68: 10.652 | L68: 0.1952277169 | M68: 10.84722772 | N68: 10.70672153 | O68: 83.432 | P68: 1.529124941 | Q68: 84.96112494 | R68: 83.86060743 | S68: 0.27 | T68: 0.004948505778 | U68: 0.2749485058 | V68: 0.2713870458 | W68: 416.696 | X68: 7.637120607 | Y68: 424.3331206 | Z68: 418.8366535 | AB68: 98.661 | AC68: 1.808238995 | AD68: 100.469239 | AE68: 99.16784195 | AF68: 2.002 | AG68: 0.03669225396 | AH68: 2.038692254 | AI68: 2.012284688 | AJ68: 11.965 | AK68: 0.2192921172 | AL68: 12.18429212 | AM68: 12.02646668 | AN68: 1.338 | AO68: 0.0245225953 | AP68: 1.362522595 | AQ68: 1.344873583 | AR68: 113.966 | AS68: 2.088745961 | AT68: 116.054746 | AU68: 114.5514669
A69: 2025-01-03 | B69: 9 | C69: On | D69: 40.064665 | E69: 0.012400482 | G69: 332.74 | H69: 4.39495927 | I69: 337.1349593 | J69: 332.9543233 | K69: 10.875 | L69: 0.1436412276 | M69: 11.01864123 | N69: 10.88200477 | O69: 83.759 | P69: 1.106321433 | Q69: 84.86532143 | R69: 83.81295054 | S69: 0.001 | T69: 1.320838874e-05 | U69: 0.001013208389 | V69: 0.001000644116 | W69: 427.375 | X69: 5.644935138 | Y69: 433.0199351 | Z69: 427.6502792 | AB69: 101.859 | AC69: 1.345393269 | AD69: 103.2043933 | AE69: 101.924609 | AF69: 2.058 | AG69: 0.02718286403 | AH69: 2.085182864 | AI69: 2.059325591 | AJ69: 12.212 | AK69: 0.1613008433 | AL69: 12.37330084 | AM69: 12.21986595 | AN69: 0.017 | AO69: 0.0002245426086 | AP69: 0.01722454261 | AQ69: 0.01701094998 | AR69: 116.146 | AS69: 1.534101519 | AT69: 117.6801015 | AU69: 116.2208115
A70: 2025-01-03 | B70: 10 | C70: On | D70: 46.218204 | E70: 0.011577221 | G70: 338.237 | H70: 4.316823468 | I70: 342.5538235 | J70: 338.5880021 | K70: 10.839 | L70: 0.138335101 | M70: 10.9773351 | N70: 10.85024807 | O70: 82.924 | P70: 1.058335632 | Q70: 83.98233563 | R70: 83.01005357 | S70: 0.001 | T70: 1.276271806e-05 | U70: 0.001012762718 | V70: 0.00100103774 | W70: 432.001 | X70: 5.513506964 | Y70: 437.514507 | Z70: 432.4493048 | AB70: 103.665 | AC70: 1.323047168 | AD70: 104.9880472 | AE70: 103.7725773 | AF70: 2.078 | AG70: 0.02652092813 | AH70: 2.104520928 | AI70: 2.080156424 | AJ70: 11.895 | AK70: 0.1518125313 | AL70: 12.04681253 | AM70: 11.90734392 | AN70: 0 | AO70: 0 | AP70: 0 | AQ70: 0 | AR70: 117.638 | AS70: 1.501380627 | AT70: 119.1393806 | AU70: 117.7600777
A71: 2025-01-03 | B71: 11 | C71: On | D71: 33.444981 | E71: 0.011013499 | G71: 342.726 | H71: 3.75007038 | I71: 346.4760704 | J71: 342.6601565 | K71: 10.731 | L71: 0.1174174275 | M71: 10.84841743 | N71: 10.72893839 | O71: 80.956 | P71: 0.8858116912 | Q71: 81.84181169 | R71: 80.94044698 | S71: 0.001 | T71: 1.094189055e-05 | U71: 0.001010941891 | V71: 0.000999807883 | W71: 434.414 | X71: 4.75331044 | Y71: 439.1673104 | Z71: 434.3305417 | AB71: 105.183 | AC71: 1.150900873 | AD71: 106.3339009 | AE71: 105.1627926 | AF71: 2.053 | AG71: 0.02246370129 | AH71: 2.075463701 | AI71: 2.052605584 | AJ71: 11.671 | AK71: 0.1277028046 | AL71: 11.7987028 | AM71: 11.6687578 | AN71: 0 | AO71: 0 | AP71: 0 | AQ71: 0 | AR71: 118.907 | AS71: 1.301067379 | AT71: 120.2080674 | AU71: 118.8841559
A72: 2025-01-03 | B72: 12 | C72: On | D72: 30.230432 | E72: 0.010666953 | G72: 347.056 | H72: 3.505911306 | I72: 350.5619113 | J72: 346.8224839 | K72: 10.6 | L72: 0.1070797215 | M72: 10.70707972 | N72: 10.59286781 | O72: 79.674 | P72: 0.8048556353 | Q72: 80.47885564 | R72: 79.62039146 | S72: 0.001 | T72: 1.010186052e-05 | U72: 0.001010101861 | V72: 0.0009993271515 | W72: 437.331 | X72: 4.417856764 | Y72: 441.7488568 | Z72: 437.0367425 | AB72: 106.462 | AC72: 1.075464275 | AD72: 107.5374643 | AE72: 106.3903672 | AF72: 2.063 | AG72: 0.02084013826 | AH72: 2.083840138 | AI72: 2.061611913 | AJ72: 11.481 | AK72: 0.1159794607 | AL72: 11.59697946 | AM72: 11.47327503 | AN72: 0 | AO72: 0 | AP72: 0 | AQ72: 0 | AR72: 120.006 | AS72: 1.212283874 | AT72: 121.2182839 | AU72: 119.9252541
A73: 2025-01-03 | B73: 13 | C73: On | D73: 30.141355 | E73: 0.01002688 | G73: 353.919 | H73: 3.684447197 | I73: 357.6034472 | J73: 354.0178003 | K73: 10.865 | L73: 0.1131092674 | M73: 10.97810927 | N73: 10.86803308 | O73: 80.944 | P73: 0.8426614392 | Q73: 81.78666144 | R73: 80.9665964 | S73: 0.001 | T73: 1.041042498e-05 | U73: 0.001010410425 | V73: 0.001000279161 | W73: 445.729 | X73: 4.640228314 | Y73: 450.3692283 | Z73: 445.8534301 | AB73: 108.594 | AC73: 1.13050969 | AD73: 109.7245097 | AE73: 108.6243152 | AF73: 2.055 | AG73: 0.02139342332 | AH73: 2.076393423 | AI73: 2.055573676 | AJ73: 11.483 | AK73: 0.11954291 | AL73: 11.60254291 | AM73: 11.4862056 | AN73: 0 | AO73: 0 | AP73: 0 | AQ73: 0 | AR73: 122.132 | AS73: 1.271446023 | AT73: 123.403446 | AU73: 122.1660945
A74: 2025-01-03 | B74: 14 | C74: On | D74: 37.759052 | E74: 0.009844172 | G74: 355.773 | H74: 2.443726221 | I74: 358.2167262 | J74: 354.6903792 | K74: 10.827 | L74: 0.07436827357 | M74: 10.90136827 | N74: 10.79405333 | O74: 81.881 | P74: 0.5624225185 | Q74: 82.44342252 | R74: 81.63183529 | S74: 0.001 | T74: 6.868779308e-06 | U74: 0.001006868779 | V74: 0.0009969569899 | W74: 448.482 | X74: 3.080523882 | Y74: 451.5625239 | Z74: 447.1172647 | AB74: 109.549 | AC74: 0.7524679044 | AD74: 110.3014679 | AE74: 109.2156413 | AF74: 2.108 | AG74: 0.01447938678 | AH74: 2.122479387 | AI74: 2.101585335 | AJ74: 11.608 | AK74: 0.07973279021 | AL74: 11.68773279 | AM74: 11.57267674 | AN74: 0 | AO74: 0 | AP74: 0 | AQ74: 0 | AR74: 123.265 | AS74: 0.8466800814 | AT74: 124.1116801 | AU74: 122.8899034
A75: 2025-01-03 | B75: 15 | C75: On | D75: 35.029742 | E75: 0.010079127 | G75: 357.584 | H75: 2.665204406 | I75: 360.2492044 | J75: 356.6182069 | K75: 10.889 | L75: 0.0811597017 | M75: 10.9701597 | N75: 10.85959007 | O75: 81.985 | P75: 0.6110642065 | Q75: 82.59606421 | R75: 81.76356799 | S75: 0.001 | T75: 7.453365938e-06 | U75: 0.001007453366 | V75: 0.0009972991155 | W75: 450.459 | X75: 3.357435767 | Y75: 453.8164358 | Z75: 449.2423623 | AB75: 109.901 | AC75: 0.81913237 | AD75: 110.7201324 | AE75: 109.6041701 | AF75: 2.129 | AG75: 0.01586821608 | AH75: 2.144868216 | AI75: 2.123249817 | AJ75: 11.768 | AK75: 0.08771121036 | AL75: 11.85571121 | AM75: 11.73621599 | AN75: 0 | AO75: 0 | AP75: 0 | AQ75: 0 | AR75: 123.798 | AS75: 0.9227117964 | AT75: 124.7207118 | AU75: 123.4636359
A76: 2025-01-03 | B76: 16 | C76: On | D76: 33.857817 | E76: 0.010665596 | G76: 369.762 | H76: 3.004892396 | I76: 372.7668924 | J76: 368.7911113 | K76: 11.325 | L76: 0.0920332711 | M76: 11.41703327 | N76: 11.29526381 | O76: 85.883 | P76: 0.697933194 | Q76: 86.58093319 | R76: 85.65749594 | S76: 0.001 | T76: 8.126558154e-06 | U76: 0.001008126558 | V76: 0.0009973742876 | W76: 466.971 | X76: 3.794866988 | Y76: 470.765867 | Z76: 465.7448684 | AB76: 113.939 | AC76: 0.9259319096 | AD76: 114.8649319 | AE76: 113.639829 | AF76: 2.179 | AG76: 0.01770777022 | AH76: 2.19670777 | AI76: 2.173278573 | AJ76: 12.384 | AK76: 0.1006392962 | AL76: 12.4846393 | AM76: 12.35148318 | AN76: 0.001 | AO76: 8.126558154e-06 | AP76: 0.001008126558 | AQ76: 0.0009973742876 | AR76: 128.503 | AS76: 1.044287103 | AT76: 129.5472871 | AU76: 128.1655881
A77: 2025-01-03 | B77: 17 | C77: On | D77: 32.218908 | E77: 0.011210236 | G77: 390.181 | H77: 3.531000308 | I77: 393.7120003 | J77: 389.2983959 | K77: 12.254 | L77: 0.1108943741 | M77: 12.36489437 | N77: 12.22628099 | O77: 90.981 | P77: 0.8233459319 | Q77: 91.80434593 | R77: 90.77519755 | S77: 0.001 | T77: 9.04964698e-06 | U77: 0.001009049647 | V77: 0.0009977379623 | W77: 493.417 | X77: 4.465249664 | Y77: 497.8822497 | Z77: 492.3008721 | AB77: 120.492 | AC77: 1.090410064 | AD77: 121.5824101 | AE77: 120.2194426 | AF77: 2.331 | AG77: 0.02109472711 | AH77: 2.352094727 | AI77: 2.32572719 | AJ77: 12.88 | AK77: 0.1165594531 | AL77: 12.99655945 | AM77: 12.85086495 | AN77: 0.015 | AO77: 0.0001357447047 | AP77: 0.0151357447 | AQ77: 0.01496606943 | AR77: 135.718 | AS77: 1.228199989 | AT77: 136.9462 | AU77: 135.4110008
A78: 2025-01-03 | B78: 18 | C78: On | D78: 40.633914 | E78: 0.01143995 | G78: 426.615 | H78: 4.798236386 | I78: 431.4132364 | J78: 426.4778905 | K78: 13.014 | L78: 0.1463714317 | M78: 13.16037143 | N78: 13.00981744 | O78: 95.643 | P78: 1.075718675 | Q78: 96.71871868 | R78: 95.61226137 | S78: 0.883 | T78: 0.009931302764 | U78: 0.8929313028 | V78: 0.8827162133 | W78: 536.155 | X78: 6.030257795 | Y78: 542.1852578 | Z78: 535.9826856 | AB78: 132.805 | AC78: 1.493688181 | AD78: 134.2986882 | AE78: 132.7623179 | AF78: 2.471 | AG78: 0.02779190162 | AH78: 2.498791902 | AI78: 2.470205847 | AJ78: 13.601 | AK78: 0.1529735548 | AL78: 13.75397355 | AM78: 13.59662879 | AN78: 4.332 | AO78: 0.04872299385 | AP78: 4.380722994 | AQ78: 4.330607742 | AR78: 153.209 | AS78: 1.723176631 | AT78: 154.9321766 | AU78: 153.1597603
A79: 2025-01-03 | B79: 19 | C79: On | D79: 40.16042 | E79: 0.011852619 | G79: 441.206 | H79: 4.352287927 | I79: 445.5582879 | J79: 440.2772553 | K79: 13.083 | L79: 0.1290575897 | M79: 13.21205759 | N79: 13.0554601 | O79: 96.964 | P79: 0.9565038701 | Q79: 97.92050387 | R79: 96.75988945 | S79: 0.961 | T79: 0.009479809199 | U79: 0.9704798092 | V79: 0.9589770818 | W79: 552.214 | X79: 5.447329196 | Y79: 557.6613292 | Z79: 551.0515819 | AB79: 137.043 | AC79: 1.351864196 | AD79: 138.3948642 | AE79: 136.7545226 | AF79: 2.519 | AG79: 0.02484874024 | AH79: 2.54384874 | AI79: 2.51369747 | AJ79: 13.896 | AK79: 0.1370774491 | AL79: 14.03307745 | AM79: 13.86674873 | AN79: 4.694 | AO79: 0.04630408364 | AP79: 4.740304084 | AQ79: 4.684119065 | AR79: 158.152 | AS79: 1.560094469 | AT79: 159.7120945 | AU79: 157.8190879
A80: 2025-01-03 | B80: 20 | C80: On | D80: 39.098564 | E80: 0.012190865 | G80: 437.627 | H80: 3.269218185 | I80: 440.8962182 | J80: 435.5213119 | K80: 12.958 | L80: 0.09680053844 | M80: 13.05480054 | N80: 12.89565123 | O80: 96.767 | P80: 0.7228814403 | Q80: 97.48988144 | R80: 96.30139546 | S80: 1.849 | T80: 0.0138126405 | U80: 1.86281264 | V80: 1.840103343 | W80: 549.201 | X80: 4.102712804 | Y80: 553.3037128 | Z80: 546.5584619 | AB80: 135.894 | AC80: 1.015173049 | AD80: 136.909173 | AE80: 135.2401318 | AF80: 2.54 | AG80: 0.01897463865 | AH80: 2.558974639 | AI80: 2.527778524 | AJ80: 13.867 | AK80: 0.1035910686 | AL80: 13.97059107 | AM80: 13.80027748 | AN80: 9.008 | AO80: 0.06729273424 | AP80: 9.075292734 | AQ80: 8.964657066 | AR80: 161.309 | AS80: 1.205031491 | AT80: 162.5140315 | AU80: 160.5328449
A81: 2025-01-03 | B81: 21 | C81: On | D81: 38.308073 | E81: 0.012388971 | G81: 430.46 | H81: 3.858175331 | I81: 434.3181753 | J81: 428.9374201 | K81: 12.862 | L81: 0.1152809811 | M81: 12.97728098 | N81: 12.81650582 | O81: 95.696 | P81: 0.8577148782 | Q81: 96.55371488 | R81: 95.3575137 | S81: 1.849 | T81: 0.01657242528 | U81: 1.865572425 | V81: 1.842459903 | W81: 540.867 | X81: 4.847743615 | Y81: 545.7147436 | Z81: 538.9538995 | AB81: 133.193 | AC81: 1.19379721 | AD81: 134.3867972 | AE81: 132.7218831 | AF81: 2.51 | AG81: 0.02249691047 | AH81: 2.53249691 | AI81: 2.50112188 | AJ81: 13.629 | AK81: 0.122155535 | AL81: 13.75115553 | AM81: 13.58079287 | AN81: 9.008 | AO81: 0.08073791613 | AP81: 9.088737916 | AQ81: 8.976137806 | AR81: 158.34 | AS81: 1.419187571 | AT81: 159.7591876 | AU81: 157.7799356
A82: 2025-01-03 | B82: 22 | C82: On | D82: 36.632837 | E82: 0.012730686 | G82: 415.924 | H82: 3.688684707 | I82: 419.6126847 | J82: 414.2707274 | K82: 12.569 | L82: 0.1114700716 | M82: 12.68047007 | N82: 12.51903899 | O82: 93.216 | P82: 0.8267001511 | Q82: 94.04270015 | R82: 92.84547206 | S82: 1.85 | T82: 0.01640700394 | U82: 1.866407004 | V82: 1.842646362 | W82: 523.559 | X82: 4.643261934 | Y82: 528.2022619 | Z82: 521.4778848 | AB82: 128.475 | AC82: 1.139399909 | AD82: 129.6143999 | AE82: 127.9643197 | AF82: 2.367 | AG82: 0.0209920964 | AH82: 2.387992096 | AI82: 2.357591319 | AJ82: 13.442 | AK82: 0.1192124038 | AL82: 13.5612124 | AM82: 13.38856887 | AN82: 9.008 | AO82: 0.07988880622 | AP82: 9.087888806 | AQ82: 8.972193747 | AR82: 153.292 | AS82: 1.359493215 | AT82: 154.6514932 | AU82: 152.6826736
A83: 2025-01-03 | B83: 23 | C83: On | D83: 33.288724 | E83: 0.012578006 | G83: 394.209 | H83: 3.324879334 | I83: 397.5338793 | J83: 392.5336958 | K83: 11.97 | L83: 0.1009586428 | M83: 12.07095864 | N83: 11.91913005 | O83: 90.794 | P83: 0.765784379 | Q83: 91.55978438 | R83: 90.40814486 | S83: 1.85 | T83: 0.0156034661 | U83: 1.865603466 | V83: 1.842137895 | W83: 498.823 | X83: 4.207225822 | Y83: 503.0302258 | Z83: 496.7031086 | AB83: 120.923 | AC83: 1.019901584 | AD83: 121.9429016 | AE83: 120.409103 | AF83: 2.236 | AG83: 0.01885910822 | AH83: 2.254859108 | AI83: 2.226497477 | AJ83: 12.938 | AK83: 0.109123051 | AL83: 13.04712305 | AM83: 12.88301626 | AN83: 9.008 | AO83: 0.07597622845 | AP83: 9.083976228 | AQ83: 8.969717921 | AR83: 145.105 | AS83: 1.223859972 | AT83: 146.32886 | AU83: 144.4883347
A84: 2025-01-03 | B84: 24 | C84: Off | D84: 32.625669 | E84: 0.01216616 | G84: 367.31 | H84: 2.936522164 | I84: 370.2465222 | J84: 365.7420437 | K84: 11.415 | L84: 0.09125915575 | M84: 11.50625916 | N84: 11.36627217 | O84: 88.417 | P84: 0.7068647196 | Q84: 89.12386472 | R84: 88.03956952 | S84: 1.851 | T84: 0.0147981338 | U84: 1.865798134 | V84: 1.843098535 | W84: 468.993 | X84: 3.749444173 | Y84: 472.7424442 | Z84: 466.990984 | AB84: 110.945 | AC84: 0.8869686408 | AD84: 111.8319686 | AE84: 110.471403 | AF84: 2.094 | AG84: 0.01674083856 | AH84: 2.110740839 | AI84: 2.085061228 | AJ84: 12.772 | AK84: 0.1021079227 | AL84: 12.87410792 | AM84: 12.71747947 | AN84: 9.008 | AO84: 0.07201598554 | AP84: 9.080015986 | AQ84: 8.969547058 | AR84: 134.819 | AS84: 1.077833388 | AT84: 135.8968334 | AU84: 134.2434908
A85: 2025-01-04 | B85: 1 | C85: Off | D85: 47.522076 | E85: 0.012569179 | G85: 342.513 | H85: 2.786247864 | I85: 345.2992479 | J85: 340.9591198 | K85: 10.952 | L85: 0.08909146983 | M85: 11.04109147 | N85: 10.90231401 | O85: 86.793 | P85: 0.7060368829 | Q85: 87.49903688 | R85: 86.39924583 | S85: 1.851 | T85: 0.01505736949 | U85: 1.866057369 | V85: 1.84260256 | W85: 442.109 | X85: 3.596433586 | Y85: 445.7054336 | Z85: 440.1032822 | AB85: 102.496 | AC85: 0.8337764145 | AD85: 103.3297764 | AE85: 102.031006 | AF85: 2.027 | AG85: 0.01648908047 | AH85: 2.04348908 | AI85: 2.0178041 | AJ85: 12.55 | AK85: 0.1020907548 | AL85: 12.65209075 | AM85: 12.49306436 | AN85: 9.01 | AO85: 0.07329384069 | AP85: 9.083293841 | AQ85: 8.969124294 | AR85: 126.083 | AS85: 1.02565009 | AT85: 127.1086501 | AU85: 125.5109987
A86: 2025-01-04 | B86: 2 | C86: Off | D86: 36.488879 | E86: 0.013057924 | G86: 323.116 | H86: 3.500426001 | I86: 326.616426 | J86: 322.3514935 | K86: 10.664 | L86: 0.1155267547 | M86: 10.77952675 | N86: 10.63876851 | O86: 85.921 | P86: 0.9308115428 | Q86: 86.85181154 | R86: 85.71770719 | S86: 1.851 | T86: 0.02005251528 | U86: 1.871052515 | V86: 1.846620454 | W86: 421.552 | X86: 4.566816814 | Y86: 426.1188168 | Z86: 420.5545897 | AB86: 96.806 | AC86: 1.048732466 | AD86: 97.85473247 | AE86: 96.57695281 | AF86: 1.991 | AG86: 0.02156918311 | AH86: 2.012569183 | AI86: 1.986289208 | AJ86: 12.41 | AK86: 0.1344417691 | AL86: 12.54444177 | AM86: 12.3806374 | AN86: 9.01 | AO86: 0.09760840773 | AP86: 9.107608408 | AQ86: 8.988681949 | AR86: 120.217 | AS86: 1.302351826 | AT86: 121.5193518 | AU86: 119.9325614
A87: 2025-01-04 | B87: 3 | C87: Off | D87: 34.294465 | E87: 0.013326685 | G87: 310.76 | H87: 3.345759459 | I87: 314.1057595 | J87: 309.9197709 | K87: 10.557 | L87: 0.1136606468 | M87: 10.67066065 | N87: 10.52845611 | O87: 85.05 | P87: 0.9156804027 | Q87: 85.9656804 | R87: 84.82004286 | S87: 1.849 | T87: 0.01990703192 | U87: 1.868907032 | V87: 1.844000697 | W87: 408.216 | X87: 4.39500754 | Y87: 412.6110075 | Z87: 407.1122706 | AB87: 93.102 | AC87: 1.002371274 | AD87: 94.10437127 | AE87: 92.85027196 | AF87: 1.994 | AG87: 0.02146815665 | AH87: 2.015468157 | AI87: 1.988608647 | AJ87: 12.255 | AK87: 0.1319419557 | AL87: 12.38694196 | AM87: 12.22186508 | AN87: 9.01 | AO87: 0.09700506089 | AP87: 9.107005061 | AQ87: 8.985638873 | AR87: 116.361 | AS87: 1.252786447 | AT87: 117.6137864 | AU87: 116.0463846
A88: 2025-01-04 | B88: 4 | C88: Off | D88: 33.610658 | E88: 0.013005523 | G88: 304.124 | H88: 2.808338986 | I88: 306.932339 | J88: 302.9405234 | K88: 10.472 | L88: 0.0967004441 | M88: 10.56870044 | N88: 10.43124897 | O88: 85.229 | P88: 0.7870208318 | Q88: 86.01602083 | R88: 84.89733749 | S88: 1.849 | T88: 0.01707401844 | U88: 1.866074018 | V88: 1.84180475 | W88: 401.674 | X88: 3.70913428 | Y88: 405.3831343 | Z88: 400.1109146 | AB88: 91.321 | AC88: 0.843275521 | AD88: 92.16427552 | AE88: 90.96563092 | AF88: 1.958 | AG88: 0.01808054522 | AH88: 1.976080545 | AI88: 1.950380584 | AJ88: 12.24 | AK88: 0.1130264931 | AL88: 12.35302649 | AM88: 12.19236892 | AN88: 9.01 | AO88: 0.08320005743 | AP88: 9.093200057 | AQ88: 8.974938235 | AR88: 114.529 | AS88: 1.057582617 | AT88: 115.5865826 | AU88: 114.0833187
A89: 2025-01-04 | B89: 5 | C89: Off | D89: 35.434414 | E89: 0.012913465 | G89: 302.088 | H89: 2.810871208 | I89: 304.8988712 | J89: 300.9615703 | K89: 10.46 | L89: 0.09732830444 | M89: 10.5573283 | N89: 10.42099661 | O89: 86.519 | P89: 0.8050427889 | Q89: 87.32404279 | R89: 86.19638682 | S89: 1.849 | T89: 0.01720459225 | U89: 1.866204592 | V89: 1.842105425 | W89: 400.916 | X89: 3.730446893 | Y89: 404.6464469 | Z89: 399.4210592 | AB89: 91.172 | AC89: 0.8483380662 | AD89: 92.02033807 | AE89: 90.83203665 | AF89: 1.964 | AG89: 0.01827464531 | AH89: 1.982274645 | AI89: 1.956676611 | AJ89: 12.365 | AK89: 0.115053966 | AL89: 12.48005397 | AM89: 12.31889323 | AN89: 9.01 | AO89: 0.08383633107 | AP89: 9.093836331 | AQ89: 8.976403394 | AR89: 114.511 | AS89: 1.065503009 | AT89: 115.576503 | AU89: 114.0840099
A90: 2025-01-04 | B90: 6 | C90: Off | D90: 34.549189 | E90: 0.012869683 | G90: 305.429 | H90: 3.114834714 | I90: 308.5438347 | J90: 304.5729734 | K90: 10.785 | L90: 0.1099878937 | M90: 10.89498789 | N90: 10.75477285 | O90: 88.718 | P90: 0.9047664306 | Q90: 89.62276643 | R90: 88.46934984 | S90: 1.849 | T90: 0.01885652438 | U90: 1.867856524 | V90: 1.843817803 | W90: 406.781 | X90: 4.148445563 | Y90: 410.9294456 | Z90: 405.6409139 | AB90: 92.661 | AC90: 0.9449780454 | AD90: 93.60597805 | AE90: 92.40129878 | AF90: 2.016 | AG90: 0.02055962853 | AH90: 2.036559629 | AI90: 2.010349752 | AJ90: 12.827 | AK90: 0.1308126762 | AL90: 12.95781268 | AM90: 12.79104973 | AN90: 9.01 | AO90: 0.09188603823 | AP90: 9.101886038 | AQ90: 8.98474765 | AR90: 116.514 | AS90: 1.188236388 | AT90: 117.7022364 | AU90: 116.1874459
A91: 2025-01-04 | B91: 7 | C91: Off | D91: 32.084009 | E91: 0.012752249 | G91: 314.48 | H91: 2.770575 | I91: 317.250575 | J91: 313.2049167 | K91: 11.268 | L91: 0.09927130215 | M91: 11.3672713 | N91: 11.22231303 | O91: 91.744 | P91: 0.8082664487 | Q91: 92.55226645 | R91: 91.3720169 | S91: 1.849 | T91: 0.01628972645 | U91: 1.865289726 | V91: 1.841503087 | W91: 419.341 | X91: 3.694402477 | Y91: 423.0354025 | Z91: 417.6407497 | AB91: 96.222 | AC91: 0.847717717 | AD91: 97.06971772 | AE91: 95.83186051 | AF91: 2.06 | AG91: 0.01814864061 | AH91: 2.078148641 | AI91: 2.051647572 | AJ91: 13.322 | AK91: 0.1173670826 | AL91: 13.43936708 | AM91: 13.26798493 | AN91: 9.01 | AO91: 0.07937827763 | AP91: 9.089378278 | AQ91: 8.973468263 | AR91: 120.614 | AS91: 1.062611718 | AT91: 121.6766117 | AU91: 120.1249613
A92: 2025-01-04 | B92: 8 | C92: Off | D92: 31.706271 | E92: 0.01237575 | G92: 330.051 | H92: 4.517780193 | I92: 334.5687802 | J92: 330.4282406 | K92: 11.587 | L92: 0.1586043342 | M92: 11.74560433 | N92: 11.60024367 | O92: 94.56 | P92: 1.294349343 | Q92: 95.85434934 | R92: 94.66807988 | S92: 0.27 | T92: 0.003695794444 | U92: 0.2736957944 | V92: 0.2703086037 | W92: 436.468 | X92: 5.974429665 | Y92: 442.4424297 | Z92: 436.9668728 | AB92: 101.599 | AC92: 1.390700073 | AD92: 102.9897001 | AE92: 101.7151253 | AF92: 2.203 | AG92: 0.03015494504 | AH92: 2.233154945 | AI92: 2.205517978 | AJ92: 13.716 | AK92: 0.1877463578 | AL92: 13.90374636 | AM92: 13.73167707 | AN92: 1.338 | AO92: 0.01831471469 | AP92: 1.356314715 | AQ92: 1.339529303 | AR92: 118.856 | AS92: 1.626916091 | AT92: 120.4829161 | AU92: 118.9918496
A93: 2025-01-04 | B93: 9 | C93: Off | D93: 30.853209 | E93: 0.011364663 | G93: 351.855 | H93: 3.469339129 | I93: 355.3243391 | J93: 351.2861978 | K93: 12.18 | L93: 0.1200964903 | M93: 12.30009649 | N93: 12.16031004 | O93: 98.473 | P93: 0.9709574456 | Q93: 99.44395745 | R93: 98.31381038 | S93: 0.001 | T93: 9.860138775e-06 | U93: 0.001009860139 | V93: 0.0009983834186 | W93: 462.509 | X93: 4.560402925 | Y93: 467.0694029 | Z93: 461.7613166 | AB93: 108.556 | AC93: 1.070377225 | AD93: 109.6263772 | AE93: 108.3805104 | AF93: 2.294 | AG93: 0.02261915835 | AH93: 2.316619158 | AI93: 2.290291562 | AJ93: 14.273 | AK93: 0.1407337607 | AL93: 14.41373376 | AM93: 14.24992653 | AN93: 0.013 | AO93: 0.0001281818041 | AP93: 0.0131281818 | AQ93: 0.01297898444 | AR93: 125.136 | AS93: 1.233858326 | AT93: 126.3698583 | AU93: 124.9337075
A94: 2025-01-04 | B94: 10 | C94: Off | D94: 28.360066 | E94: 0.010646207 | G94: 369.958 | H94: 2.828480724 | I94: 372.7864807 | J94: 368.8177187 | K94: 12.361 | L94: 0.09450491739 | M94: 12.45550492 | N94: 12.32290103 | O94: 100.193 | P94: 0.7660165996 | Q94: 100.9590166 | R94: 99.88418601 | S94: 0.001 | T94: 7.645410354e-06 | U94: 0.00100764541 | V94: 0.0009969178087 | W94: 482.513 | X94: 3.689009886 | Y94: 486.2020099 | Z94: 481.0258026 | AB94: 113.637 | AC94: 0.8688014965 | AD94: 114.5058015 | AE94: 113.286749 | AF94: 2.313 | AG94: 0.01768383415 | AH94: 2.330683834 | AI94: 2.305870892 | AJ94: 14.363 | AK94: 0.1098110289 | AL94: 14.47281103 | AM94: 14.31873049 | AN94: 0 | AO94: 0 | AP94: 0 | AQ94: 0 | AR94: 130.313 | AS94: 0.9962963595 | AT94: 131.3092964 | AU94: 129.9113504
A95: 2025-01-04 | B95: 11 | C95: Off | D95: 33.031325 | E95: 0.010747229 | G95: 381.78 | H95: 3.407858138 | I95: 385.1878581 | J95: 381.048156 | K95: 12.365 | L95: 0.1103729003 | M95: 12.4753729 | N95: 12.34129721 | O95: 100.052 | P95: 0.8930877007 | Q95: 100.9450877 | R95: 99.86020773 | S95: 0.001 | T95: 8.926235365e-06 | U95: 0.001008926235 | V95: 0.0009980830741 | W95: 494.198 | X95: 4.411327665 | Y95: 498.6093277 | Z95: 493.250659 | AB95: 116.835 | AC95: 1.042896709 | AD95: 117.8778967 | AE95: 116.611036 | AF95: 2.387 | AG95: 0.02130692382 | AH95: 2.408306924 | AI95: 2.382424298 | AJ95: 14.412 | AK95: 0.1286449041 | AL95: 14.5406449 | AM95: 14.38437326 | AN95: 0 | AO95: 0 | AP95: 0 | AQ95: 0 | AR95: 133.634 | AS95: 1.192848537 | AT95: 134.8268485 | AU95: 133.3778335
A96: 2025-01-04 | B96: 12 | C96: Off | D96: 39.016908 | E96: 0.010933251 | G96: 391.718 | H96: 3.018755734 | I96: 394.7367557 | J96: 390.4209997 | K96: 12.609 | L96: 0.09717064584 | M96: 12.70617065 | N96: 12.56725089 | O96: 99.866 | P96: 0.7696124766 | Q96: 100.6356125 | R96: 99.53533807 | S96: 0.001 | T96: 7.706451411e-06 | U96: 0.001007706451 | V96: 0.0009966889438 | W96: 504.194 | X96: 3.885546563 | Y96: 508.0795466 | Z96: 502.5245854 | AB96: 119.82 | AC96: 0.923387008 | AD96: 120.743387 | AE96: 119.4232693 | AF96: 2.413 | AG96: 0.01859566725 | AH96: 2.431595667 | AI96: 2.405010421 | AJ96: 14.526 | AK96: 0.1119439132 | AL96: 14.63794391 | AM96: 14.4779036 | AN96: 0 | AO96: 0 | AP96: 0 | AQ96: 0 | AR96: 136.759 | AS96: 1.053926588 | AT96: 137.8129266 | AU96: 136.3061833
A97: 2025-01-04 | B97: 13 | C97: Off | D97: 32.323837 | E97: 0.010926222 | G97: 399.071 | H97: 3.58188806 | I97: 402.6528881 | J97: 398.2534132 | K97: 12.577 | L97: 0.1128856923 | M97: 12.68988569 | N97: 12.55123318 | O97: 99.439 | P97: 0.8925212977 | Q97: 100.3315213 | R97: 99.23527682 | S97: 0.001 | T97: 8.975565902e-06 | U97: 0.001008975566 | V97: 0.0009979512749 | W97: 511.088 | X97: 4.587304026 | Y97: 515.675304 | Z97: 510.0409212 | AB97: 121.836 | AC97: 1.093547047 | AD97: 122.929547 | AE97: 121.5863915 | AF97: 2.371 | AG97: 0.02128106675 | AH97: 2.392281067 | AI97: 2.366142473 | AJ97: 14.424 | AK97: 0.1294635626 | AL97: 14.55346356 | AM97: 14.39444919 | AN97: 0 | AO97: 0 | AP97: 0 | AQ97: 0 | AR97: 138.631 | AS97: 1.244291677 | AT97: 139.8752917 | AU97: 138.3469832
A98: 2025-01-04 | B98: 14 | C98: Off | D98: 30.952901 | E98: 0.010738856 | G98: 403.249 | H98: 2.797954449 | I98: 406.0469544 | J98: 401.6864747 | K98: 12.676 | L98: 0.08795278004 | M98: 12.76395278 | N98: 12.62688253 | O98: 99.698 | P98: 0.6917573576 | Q98: 100.3897574 | R98: 99.31168621 | S98: 0.001 | T98: 6.93852793e-06 | U98: 0.001006938528 | V98: 0.0009961251601 | W98: 515.624 | X98: 3.577671525 | Y98: 519.2016715 | Z98: 513.6260395 | AB98: 123.13 | AC98: 0.854340944 | AD98: 123.9843409 | AE98: 122.652891 | AF98: 2.415 | AG98: 0.01675654495 | AH98: 2.431756545 | AI98: 2.405642262 | AJ98: 14.21 | AK98: 0.09859648189 | AL98: 14.30859648 | AM98: 14.15493852 | AN98: 0 | AO98: 0 | AP98: 0 | AQ98: 0 | AR98: 139.755 | AS98: 0.9696939709 | AT98: 140.724694 | AU98: 139.2134717
A99: 2025-01-04 | B99: 15 | C99: Off | D99: 28.42441 | E99: 0.010714368 | G99: 406.54 | H99: 3.548480798 | I99: 410.0884808 | J99: 405.6946419 | K99: 12.739 | L99: 0.111192249 | M99: 12.85019225 | N99: 12.71251056 | O99: 99.712 | P99: 0.8703353111 | Q99: 100.5823353 | R99: 99.50465916 | S99: 0.001 | T99: 8.728491165e-06 | U99: 0.001008728491 | V99: 0.0009979206029 | W99: 518.992 | X99: 4.530017087 | Y99: 523.5220171 | Z99: 517.9128095 | AB99: 124.227 | AC99: 1.084314272 | AD99: 125.3113143 | AE99: 123.9686827 | AF99: 2.481 | AG99: 0.02165538658 | AH99: 2.502655387 | AI99: 2.475841016 | AJ99: 14.249 | AK99: 0.1243722706 | AL99: 14.37337227 | AM99: 14.21937067 | AN99: 0 | AO99: 0 | AP99: 0 | AQ99: 0 | AR99: 140.957 | AS99: 1.230341929 | AT99: 142.1873419 | AU99: 140.6638944
A100: 2025-01-04 | B100: 16 | C100: Off | D100: 31.163578 | E100: 0.011186147 | G100: 410.434 | H100: 3.049839942 | I100: 413.4838399 | J100: 408.8585489 | K100: 12.802 | L100: 0.09512869532 | M100: 12.8971287 | N100: 12.75285952 | O100: 100.495 | P100: 0.7467550568 | Q100: 101.2417551 | R100: 100.1092499 | S100: 0.001 | T100: 7.430768265e-06 | U100: 0.001007430768 | V100: 0.0009961614996 | W100: 523.732 | X100: 3.891731125 | Y100: 527.6237311 | Z100: 521.7216545 | AB100: 125.762 | AC100: 0.9345082785 | AD100: 126.6965083 | AE100: 125.2792625 | AF100: 2.484 | AG100: 0.01845802837 | AH100: 2.502458028 | AI100: 2.474465165 | AJ100: 14.176 | AK100: 0.1053385709 | AL100: 14.28133857 | AM100: 14.12158542 | AN100: 0 | AO100: 0 | AP100: 0 | AQ100: 0 | AR100: 142.422 | AS100: 1.058304878 | AT100: 143.4803049 | AU100: 141.8753131
A101: 2025-01-04 | B101: 17 | C101: Off | D101: 33.772809 | E101: 0.011385092 | G101: 425.039 | H101: 3.69432135 | I101: 428.7333214 | J101: 423.852153 | K101: 13.323 | L101: 0.1157998286 | M101: 13.43879983 | N101: 13.28579786 | O101: 102.948 | P101: 0.8947955231 | Q101: 103.8427955 | R101: 102.6605357 | S101: 0.001 | T101: 8.691723231e-06 | U101: 0.001008691723 | V101: 0.0009972076752 | W101: 541.311 | X101: 4.704925394 | Y101: 546.0159254 | Z101: 539.7994838 | AB101: 130.489 | AC101: 1.134174273 | AD101: 131.6231743 | AE101: 130.1246323 | AF101: 2.508 | AG101: 0.02179884186 | AH101: 2.529798842 | AI101: 2.500996849 | AJ101: 14.647 | AK101: 0.1273076702 | AL101: 14.77430767 | AM101: 14.60610082 | AN101: 0.015 | AO101: 0.0001303758485 | AP101: 0.01513037585 | AQ101: 0.01495811513 | AR101: 147.659 | AS101: 1.283411161 | AT101: 148.9424112 | AU101: 147.2466881
A102: 2025-01-04 | B102: 18 | C102: Off | D102: 38.764222 | E102: 0.011401612 | G102: 452.621 | H102: 4.663025175 | I102: 457.2840252 | J102: 452.0702501 | K102: 13.947 | L102: 0.1436858036 | M102: 14.0906858 | N102: 13.93002927 | O102: 105.483 | P102: 1.086714679 | Q102: 106.5697147 | R102: 105.3546481 | S102: 0.883 | T102: 0.009096907191 | U102: 0.8920969072 | V102: 0.8819255644 | W102: 572.934 | X102: 5.902522565 | Y102: 578.8365226 | Z102: 572.2368531 | AB102: 140.074 | AC102: 1.443080609 | AD102: 141.5170806 | AE102: 139.9035578 | AF102: 2.63 | AG102: 0.02709497838 | AH102: 2.657094978 | AI102: 2.626799812 | AJ102: 14.971 | AK102: 0.1542353313 | AL102: 15.12523533 | AM102: 14.95278327 | AN102: 4.333 | AO102: 0.04463974956 | AP102: 4.37763975 | AQ102: 4.3277276 | AR102: 162.008 | AS102: 1.669050668 | AT102: 163.6770507 | AU102: 161.8108684
A103: 2025-01-04 | B103: 19 | C103: Off | D103: 38.238479 | E103: 0.011302616 | G103: 458.895 | H103: 4.585927337 | I103: 463.4809273 | J103: 458.2423804 | K103: 14.09 | L103: 0.1408071916 | M103: 14.23080719 | N103: 14.06996184 | O103: 105.087 | P103: 1.05017781 | Q103: 106.1371778 | R103: 104.93755 | S103: 0.961 | T103: 0.009603670056 | U103: 0.9706036701 | V103: 0.9596333095 | W103: 579.033 | X103: 5.786516008 | Y103: 584.819516 | Z103: 578.2095256 | AB103: 142.163 | AC103: 1.420693596 | AD103: 143.5836936 | AE103: 141.9608222 | AF103: 2.68 | AG103: 0.0267823473 | AH103: 2.706782347 | AI103: 2.676188626 | AJ103: 15.064 | AK103: 0.150540776 | AL103: 15.21454078 | AM103: 15.04257666 | AN103: 4.693 | AO103: 0.04689908801 | AP103: 4.739899088 | AQ103: 4.686325829 | AR103: 164.6 | AS103: 1.644915808 | AT103: 166.2449158 | AU103: 164.3659134
A104: 2025-01-04 | B104: 20 | C104: Off | D104: 33.504983 | E104: 0.011497658 | G104: 453.804 | H104: 2.831096973 | I104: 456.635097 | J104: 451.3848628 | K104: 13.807 | L104: 0.08613620837 | M104: 13.89313621 | N104: 13.73339768 | O104: 104.395 | P104: 0.6512775747 | Q104: 105.0462776 | R104: 103.8384914 | S104: 1.849 | T104: 0.01153515241 | U104: 1.860535152 | V104: 1.839143356 | W104: 573.855 | X104: 3.580045908 | Y104: 577.4350459 | Z104: 570.7958952 | AB104: 140.352 | AC104: 0.8755985455 | AD104: 141.2275985 | AE104: 139.6038119 | AF104: 2.684 | AG104: 0.01674437483 | AH104: 2.700744375 | AI104: 2.66969214 | AJ104: 14.948 | AK104: 0.09325443925 | AL104: 15.04125444 | AM104: 14.86831524 | AN104: 9.01 | AO104: 0.05620969345 | AP104: 9.066209693 | AQ104: 8.961969515 | AR104: 166.994 | AS104: 1.041807053 | AT104: 168.0358071 | AU104: 166.1037888
A105: 2025-01-04 | B105: 21 | C105: Off | D105: 33.171845 | E105: 0.012030656 | G105: 445.039 | H105: 2.506034586 | I105: 447.5450346 | J105: 442.1607742 | K105: 13.759 | L105: 0.07747754661 | M105: 13.83647755 | N105: 13.67001564 | O105: 103.159 | P105: 0.5808929595 | Q105: 103.739893 | R105: 102.491834 | S105: 1.849 | T105: 0.010411802 | U105: 1.859411802 | V105: 1.837041858 | W105: 563.806 | X105: 3.174816894 | Y105: 566.9808169 | Z105: 560.1596657 | AB105: 137.688 | AC105: 0.7753273085 | AD105: 138.4633273 | AE105: 136.7975226 | AF105: 2.56 | AG105: 0.01441547491 | AH105: 2.574415475 | AI105: 2.543443568 | AJ105: 14.643 | AK105: 0.08245539029 | AL105: 14.72545539 | AM105: 14.5482985 | AN105: 9.01 | AO105: 0.05073571444 | AP105: 9.060735714 | AQ105: 8.95172912 | AR105: 163.901 | AS105: 0.9229338881 | AT105: 164.8239339 | AU105: 162.8409938
A106: 2025-01-04 | B106: 22 | C106: Off | D106: 33.218512 | E106: 0.01223851 | G106: 431.746 | H106: 3.082085075 | I106: 434.8280851 | J106: 429.5064372 | K106: 13.414 | L106: 0.09575789747 | M106: 13.5097579 | N106: 13.34441859 | O106: 101.461 | P106: 0.7242949184 | Q106: 102.1852949 | R106: 100.9346992 | S106: 1.85 | T106: 0.01320650889 | U106: 1.863206509 | V106: 1.840403637 | W106: 548.471 | X106: 3.9153444 | Y106: 552.3863444 | Z106: 545.6259586 | AB106: 133.538 | AC106: 0.9532815053 | AD106: 134.4912815 | AE106: 132.8453086 | AF106: 2.512 | AG106: 0.01793229748 | AH106: 2.529932297 | AI106: 2.498969696 | AJ106: 14.475 | AK106: 0.1033320088 | AL106: 14.57833201 | AM106: 14.39991495 | AN106: 9.01 | AO106: 0.06431926765 | AP106: 9.074319268 | AQ106: 8.963263121 | AR106: 159.535 | AS106: 1.138865079 | AT106: 160.6738651 | AU106: 158.7074564
A107: 2025-01-04 | B107: 23 | C107: Off | D107: 35.207945 | E107: 0.012216548 | G107: 412.985 | H107: 2.754135496 | I107: 415.7391355 | J107: 410.6602384 | K107: 12.852 | L107: 0.08570807511 | M107: 12.93770808 | N107: 12.77965394 | O107: 99.625 | P107: 0.6643842969 | Q107: 100.2893843 | R107: 99.06419422 | S107: 1.85 | T107: 0.01233737465 | U107: 1.862337375 | V107: 1.839586041 | W107: 527.312 | X107: 3.516565243 | Y107: 530.8285652 | Z107: 524.3436726 | AB107: 127.267 | AC107: 0.8487246806 | AD107: 128.1157247 | AE107: 126.5505928 | AF107: 2.432 | AG107: 0.01621864602 | AH107: 2.448218646 | AI107: 2.418309865 | AJ107: 14.152 | AK107: 0.09437758162 | AL107: 14.24637758 | AM107: 14.07233603 | AN107: 9.01 | AO107: 0.06008634896 | AP107: 9.070086349 | AQ107: 8.959281204 | AR107: 152.861 | AS107: 1.019407257 | AT107: 153.8804073 | AU107: 152.0005199
A108: 2025-01-04 | B108: 24 | C108: Off | D108: 34.910071 | E108: 0.012664155 | G108: 387.42 | H108: 2.860448562 | I108: 390.2804486 | J108: 385.3378765 | K108: 12.38 | L108: 0.09140558876 | M108: 12.47140559 | N108: 12.31346578 | O108: 97.795 | P108: 0.7220524679 | Q108: 98.51705247 | R108: 97.26941725 | S108: 1.851 | T108: 0.01366653835 | U108: 1.864666538 | V108: 1.841052112 | W108: 499.446 | X108: 3.687573157 | Y108: 503.1335732 | Z108: 496.7618116 | AB108: 117.478 | AC108: 0.867378494 | AD108: 118.3453785 | AE108: 116.8466343 | AF108: 2.303 | AG108: 0.01700380217 | AH108: 2.320003802 | AI108: 2.290622914 | AJ108: 13.944 | AK108: 0.1029531123 | AL108: 14.04695311 | AM108: 13.86906032 | AN108: 9.01 | AO108: 0.06652377663 | AP108: 9.076523777 | AQ108: 8.961577273 | AR108: 142.735 | AS108: 1.053859185 | AT108: 143.7888592 | AU108: 141.9678948
A109: 2025-01-05 | B109: 1 | C109: Off | D109: 37.038461 | E109: 0.013112216 | G109: 360.75 | H109: 3.294136142 | I109: 364.0441361 | J109: 359.2707108 | K109: 11.994 | L109: 0.1095214661 | M109: 12.10352147 | N109: 11.94481748 | O109: 96.842 | P109: 0.884298634 | Q109: 97.72629863 | R109: 96.4448903 | S109: 1.852 | T109: 0.01691126856 | U109: 1.868911269 | V109: 1.8444057 | W109: 471.438 | X109: 4.30486751 | Y109: 475.7428675 | Z109: 469.5048243 | AB109: 107.936 | AC109: 0.985601881 | AD109: 108.9216019 | AE109: 107.4933983 | AF109: 2.205 | AG109: 0.02013463671 | AH109: 2.225134637 | AI109: 2.195958191 | AJ109: 13.807 | AK109: 0.1260766118 | AL109: 13.93307661 | AM109: 13.7503831 | AN109: 9.01 | AO109: 0.08227350419 | AP109: 9.092273504 | AQ109: 8.97305365 | AR109: 132.958 | AS109: 1.214086634 | AT109: 134.1720866 | AU109: 132.4127933
A110: 2025-01-05 | B110: 2 | C110: Off | D110: 32.899099 | E110: 0.01321607 | G110: 340.99 | H110: 3.016266261 | I110: 344.0062663 | J110: 339.4598554 | K110: 11.787 | L110: 0.1042632641 | M110: 11.89126326 | N110: 11.7341075 | O110: 95.749 | P110: 0.8469587912 | Q110: 96.59595879 | R110: 95.31933984 | S110: 1.852 | T110: 0.01638207899 | U110: 1.868382079 | V110: 1.843689411 | W110: 450.378 | X110: 3.983870395 | Y110: 454.3618704 | Z110: 448.3569921 | AB110: 101.813 | AC110: 0.9005986006 | AD110: 102.7135986 | AE110: 101.3561285 | AF110: 2.181 | AG110: 0.01929228633 | AH110: 2.200292286 | AI110: 2.171213069 | AJ110: 13.677 | AK110: 0.1209814764 | AL110: 13.79798148 | AM110: 13.61562639 | AN110: 9.01 | AO110: 0.0796989912 | AP110: 9.089698991 | AQ110: 8.969568893 | AR110: 126.681 | AS110: 1.120571355 | AT110: 127.8015714 | AU110: 126.1125368
A111: 2025-01-05 | B111: 3 | C111: Off | D111: 32.241638 | E111: 0.013159508 | G111: 326.886 | H111: 3.339726276 | I111: 330.2257263 | J111: 325.8801182 | K111: 11.424 | L111: 0.116716632 | M111: 11.54071663 | N111: 11.38884648 | O111: 94.528 | P111: 0.9657729159 | Q111: 95.49377292 | R111: 94.23712185 | S111: 1.85 | T111: 0.01890106523 | U111: 1.868901065 | V111: 1.844307247 | W111: 434.688 | X111: 4.441116889 | Y111: 439.1291169 | Z111: 433.3503938 | AB111: 97.502 | AC111: 0.9961576554 | AD111: 98.49815766 | AE111: 97.20197036 | AF111: 2.1 | AG111: 0.02145526324 | AH111: 2.121455263 | AI111: 2.093537956 | AJ111: 13.598 | AK111: 0.1389279379 | AL111: 13.73692794 | AM111: 13.55615672 | AN111: 9.01 | AO111: 0.09205329608 | AP111: 9.102053296 | AQ111: 8.982274753 | AR111: 122.21 | AS111: 1.248594153 | AT111: 123.4585942 | AU111: 121.8339398
A112: 2025-01-05 | B112: 4 | C112: Off | D112: 33.057101 | E112: 0.012932749 | G112: 318.769 | H112: 2.735244817 | I112: 321.5042448 | J112: 317.3463111 | K112: 11.386 | L112: 0.09769926649 | M112: 11.48369927 | N112: 11.33518347 | O112: 94.383 | P112: 0.8098673695 | Q112: 95.19286737 | R112: 93.96176191 | S112: 1.849 | T112: 0.01586561951 | U112: 1.86486562 | V112: 1.840747781 | W112: 426.387 | X112: 3.658677072 | Y112: 430.0456771 | Z112: 424.4840043 | AB112: 95.497 | AC112: 0.8194262122 | AD112: 96.31642621 | AE112: 95.07079005 | AF112: 2.088 | AG112: 0.01791639456 | AH112: 2.105916395 | AI112: 2.078681106 | AJ112: 13.46 | AK112: 0.115495532 | AL112: 13.57549553 | AM112: 13.39992706 | AN112: 9.01 | AO112: 0.0773116451 | AP112: 9.087311645 | AQ112: 8.969787725 | AR112: 120.055 | AS112: 1.030149784 | AT112: 121.0851498 | AU112: 119.5191859
A113: 2025-01-05 | B113: 5 | C113: Off | D113: 31.363867 | E113: 0.013066957 | G113: 315.49 | H113: 2.885136821 | I113: 318.3751368 | J113: 314.2149426 | K113: 11.475 | L113: 0.1049381756 | M113: 11.57993818 | N113: 11.42862362 | O113: 94.964 | P113: 0.8684399921 | Q113: 95.83243999 | R113: 94.58020162 | S113: 1.849 | T113: 0.01690899231 | U113: 1.865908992 | V113: 1.84152724 | W113: 423.778 | X113: 3.875423981 | Y113: 427.653424 | Z113: 422.0652951 | AB113: 95.017 | AC113: 0.8689246738 | AD113: 95.88592467 | AE113: 94.63298742 | AF113: 2.117 | AG113: 0.01935983597 | AH113: 2.136359836 | AI113: 2.108444114 | AJ113: 13.628 | AK113: 0.1246272294 | AL113: 13.75262723 | AM113: 13.57292224 | AN113: 9.01 | AO113: 0.08239590085 | AP113: 9.092395901 | AQ113: 8.973585955 | AR113: 119.772 | AS113: 1.09530764 | AT113: 120.8673076 | AU113: 119.2879397
A114: 2025-01-05 | B114: 6 | C114: Off | D114: 25.063279 | E114: 0.01241144 | G114: 318.342 | H114: 3.417057334 | I114: 321.7590573 | J114: 317.7655641 | K114: 11.805 | L114: 0.1267139172 | M114: 11.93171392 | N114: 11.78362417 | O114: 97.571 | P114: 1.047319239 | Q114: 98.61831924 | R114: 97.39432389 | S114: 1.849 | T114: 0.01984701677 | U114: 1.868847017 | V114: 1.845651934 | W114: 429.567 | X114: 4.610937507 | Y114: 434.1779375 | Z114: 428.7891641 | AB114: 96.54 | AC114: 1.036252568 | AD114: 97.57625257 | AE114: 96.36519076 | AF114: 2.169 | AG114: 0.02328187094 | AH114: 2.192281871 | AI114: 2.165072496 | AJ114: 14.101 | AK114: 0.1513589959 | AL114: 14.252359 | AM114: 14.0754667 | AN114: 9.01 | AO114: 0.09671261279 | AP114: 9.106712613 | AQ114: 8.993685196 | AR114: 121.82 | AS114: 1.307606048 | AT114: 123.127606 | AU114: 121.5994152
A115: 2025-01-05 | B115: 7 | C115: Off | D115: 7.471159 | E115: 0.01296022 | G115: 326.635 | H115: 3.304400296 | I115: 329.9394003 | J115: 325.6633131 | K115: 12.321 | L115: 0.1246452953 | M115: 12.4456453 | N115: 12.28434699 | O115: 101.541 | P115: 1.027238693 | Q115: 102.5682387 | R115: 101.2389318 | S115: 1.849 | T115: 0.01870539332 | U115: 1.867705393 | V115: 1.843499521 | W115: 442.346 | X115: 4.474989678 | Y115: 446.8209897 | Z115: 441.0300914 | AB115: 99.581 | AC115: 1.007410369 | AD115: 100.5884104 | AE115: 99.28476244 | AF115: 2.281 | AG115: 0.02307571777 | AH115: 2.304075718 | AI115: 2.27421439 | AJ115: 14.712 | AK115: 0.1488338272 | AL115: 14.86083383 | AM115: 14.66823415 | AN115: 9.01 | AO115: 0.09114959103 | AP115: 9.101149591 | AQ115: 8.98319669 | AR115: 125.584 | AS115: 1.270469505 | AT115: 126.8544695 | AU115: 125.2104077
A116: 2025-01-05 | B116: 8 | C116: Off | D116: -0.501358 | E116: 0.011624751 | G116: 343.082 | H116: 5.066669086 | I116: 348.1486691 | J116: 344.1015275 | K116: 12.941 | L116: 0.1911139746 | M116: 13.13211397 | N116: 12.97945642 | O116: 105.424 | P116: 1.556912113 | Q116: 106.9809121 | R116: 105.7372856 | S116: 0.27 | T116: 0.003987386844 | U116: 0.2739873868 | V116: 0.2708023517 | W116: 461.717 | X116: 6.818682561 | Y116: 468.5356826 | Z116: 463.0890719 | AB116: 105.193 | AC116: 1.553500682 | AD116: 106.7465007 | AE116: 105.5055992 | AF116: 2.417 | AG116: 0.0356944963 | AH116: 2.452694496 | AI116: 2.424182534 | AJ116: 15.318 | AK116: 0.2262177469 | AL116: 15.54421775 | AM116: 15.36352009 | AN116: 1.338 | AO116: 0.01975971703 | AP116: 1.357759717 | AQ116: 1.341976098 | AR116: 124.266 | AS116: 1.835172643 | AT116: 126.1011726 | AU116: 124.6352779
A117: 2025-01-05 | B117: 9 | C117: Off | D117: 22.657254 | E117: 0.010264771 | G117: 363.956 | H117: 2.472410512 | I117: 366.4284105 | J117: 362.6671068 | K117: 13.298 | L117: 0.09033541141 | M117: 13.38833541 | N117: 13.25090721 | O117: 108.373 | P117: 0.736194882 | Q117: 109.1091949 | R117: 107.989214 | S117: 0.001 | T117: 6.793157723e-06 | U117: 0.001006793158 | V117: 0.0009964586565 | W117: 485.628 | X117: 3.298947599 | Y117: 488.9269476 | Z117: 483.9082244 | AB117: 111.926 | AC117: 0.7603309714 | AD117: 112.686331 | AE117: 111.5296316 | AF117: 2.475 | AG117: 0.01681306537 | AH117: 2.491813065 | AI117: 2.466235175 | AJ117: 15.849 | AK117: 0.1076647568 | AL117: 15.95666476 | AM117: 15.79287325 | AN117: 0.008 | AO117: 5.434526179e-05 | AP117: 0.008054345262 | AQ117: 0.007971669252 | AR117: 130.258 | AS117: 0.8848631387 | AT117: 131.1428631 | AU117: 129.7967117
A118: 2025-01-05 | B118: 10 | C118: Off | D118: 30.296465 | E118: 0.010402419 | G118: 377.145 | H118: 2.542110428 | I118: 379.6871104 | J118: 375.737446 | K118: 12.995 | L118: 0.0875915762 | M118: 13.08259158 | N118: 12.94650098 | O118: 105.412 | P118: 0.7105196791 | Q118: 106.1225197 | R118: 105.0185888 | S118: 0.001 | T118: 6.740406018e-06 | U118: 0.001006740406 | V118: 0.0009962678705 | W118: 495.553 | X118: 3.340228423 | Y118: 498.8932284 | Z118: 493.703532 | AB118: 115.564 | AC118: 0.778948281 | AD118: 116.3429483 | AE118: 115.1327002 | AF118: 2.394 | AG118: 0.01613653201 | AH118: 2.410136532 | AI118: 2.385065282 | AJ118: 15.247 | AK118: 0.1027709706 | AL118: 15.34977097 | AM118: 15.19009622 | AN118: 0 | AO118: 0 | AP118: 0 | AQ118: 0 | AR118: 133.205 | AS118: 0.8978557836 | AT118: 134.1028558 | AU118: 132.7078617
A119: 2025-01-05 | B119: 11 | C119: Off | D119: 31.142715 | E119: 0.01019016 | G119: 383.797 | H119: 2.721661908 | I119: 386.5186619 | J119: 382.5799749 | K119: 12.446 | L119: 0.08825968966 | M119: 12.53425969 | N119: 12.40653358 | O119: 100.64 | P119: 0.7136795089 | Q119: 101.3536795 | R119: 100.3208693 | S119: 0.001 | T119: 7.091410064e-06 | U119: 0.00100709141 | V119: 0.0009968289875 | W119: 496.884 | X119: 3.523608198 | Y119: 500.4076082 | Z119: 495.3083746 | AB119: 116.79 | AC119: 0.8282057814 | AD119: 117.6182058 | AE119: 116.4196574 | AF119: 2.335 | AG119: 0.0165584425 | AH119: 2.351558443 | AI119: 2.327595686 | AJ119: 14.506 | AK119: 0.1028679944 | AL119: 14.60886799 | AM119: 14.46000129 | AN119: 0 | AO119: 0 | AP119: 0 | AQ119: 0 | AR119: 133.631 | AS119: 0.9476322183 | AT119: 134.5786322 | AU119: 133.2072544
A120: 2025-01-05 | B120: 12 | C120: Off | D120: 30.503481 | E120: 0.009976719 | G120: 391.641 | H120: 2.570417732 | I120: 394.2114177 | J120: 390.2784812 | K120: 12.088 | L120: 0.07933594682 | M120: 12.16733595 | N120: 12.04594586 | O120: 97.331 | P120: 0.6388027002 | Q120: 97.9698027 | R120: 96.99238551 | S120: 0.001 | T120: 6.563198777e-06 | U120: 0.001006563199 | V120: 0.0009965210006 | W120: 501.061 | X120: 3.288562942 | Y120: 504.3495629 | Z120: 499.3178091 | AB120: 118.268 | AC120: 0.7762163929 | AD120: 119.0442164 | AE120: 117.8565457 | AF120: 2.297 | AG120: 0.01507566759 | AH120: 2.312075668 | AI120: 2.289008738 | AJ120: 13.95 | AK120: 0.09155662294 | AL120: 14.04155662 | AM120: 13.90146796 | AN120: 0 | AO120: 0 | AP120: 0 | AQ120: 0 | AR120: 134.515 | AS120: 0.8828486835 | AT120: 135.3978487 | AU120: 134.0470224
A121: 2025-01-05 | B121: 13 | C121: Off | D121: 34.269094 | E121: 0.009983772 | G121: 401.752 | H121: 3.14194964 | I121: 404.8939496 | J121: 400.8515808 | K121: 12.221 | L121: 0.0955757944 | M121: 12.31657579 | N121: 12.19360991 | O121: 97.276 | P121: 0.7607586103 | Q121: 98.03675861 | R121: 97.05798196 | S121: 0.001 | T121: 7.820619785e-06 | U121: 0.00100782062 | V121: 0.0009977587685 | W121: 511.25 | X121: 3.998291865 | Y121: 515.2482919 | Z121: 510.1041704 | AB121: 121.769 | AC121: 0.9523090507 | AD121: 122.7213091 | AE121: 121.4960875 | AF121: 2.328 | AG121: 0.01820640286 | AH121: 2.346206403 | AI121: 2.322782413 | AJ121: 13.848 | AK121: 0.1082999428 | AL121: 13.95629994 | AM121: 13.81696343 | AN121: 0 | AO121: 0 | AP121: 0 | AQ121: 0 | AR121: 137.945 | AS121: 1.078815396 | AT121: 139.0238154 | AU121: 137.6358333
A122: 2025-01-05 | B122: 14 | C122: Off | D122: 34.765112 | E122: 0.010192635 | G122: 408.908 | H122: 2.625971929 | I122: 411.5339719 | J122: 407.3393564 | K122: 12.405 | L122: 0.07966384071 | M122: 12.48466384 | N122: 12.35741222 | O122: 97.13 | P122: 0.6237604875 | Q122: 97.75376049 | R122: 96.75739209 | S122: 0.001 | T122: 6.421913802e-06 | U122: 0.001006421914 | V122: 0.0009961638226 | W122: 518.444 | X122: 3.329402679 | Y122: 521.7734027 | Z122: 516.4551568 | AB122: 124.576 | AC122: 0.8000163337 | AD122: 125.3760163 | AE122: 124.0981044 | AF122: 2.307 | AG122: 0.01481535514 | AH122: 2.321815355 | AI122: 2.298149939 | AJ122: 13.833 | AK122: 0.08883433362 | AL122: 13.92183433 | AM122: 13.77993416 | AN122: 0 | AO122: 0 | AP122: 0 | AQ122: 0 | AR122: 140.716 | AS122: 0.9036660225 | AT122: 141.619666 | AU122: 140.1761885
A123: 2025-01-05 | B123: 15 | C123: Off | D123: 39.486148 | E123: 0.010715981 | G123: 410.571 | H123: 3.76980248 | I123: 414.3408025 | J123: 409.9007343 | K123: 12.305 | L123: 0.1129826985 | M123: 12.4179827 | N123: 12.28491183 | O123: 95.326 | P123: 0.8752692987 | Q123: 96.2012693 | R123: 95.17037832 | S123: 0.001 | T123: 9.181852786e-06 | U123: 0.001009181853 | V123: 0.0009983674792 | W123: 518.203 | X123: 4.758063659 | Y123: 522.9610637 | Z123: 517.3570228 | AB123: 124.893 | AC123: 1.14674914 | AD123: 126.0397491 | AE123: 124.6891096 | AF123: 2.243 | AG123: 0.0205948958 | AH123: 2.263594896 | AI123: 2.239338256 | AJ123: 13.501 | AK123: 0.1239641945 | AL123: 13.62496419 | AM123: 13.47895934 | AN123: 0 | AO123: 0 | AP123: 0 | AQ123: 0 | AR123: 140.637 | AS123: 1.29130823 | AT123: 141.9283082 | AU123: 140.4074072
A124: 2025-01-05 | B124: 16 | C124: Off | D124: 39.918025 | E124: 0.011005853 | G124: 417.394 | H124: 3.46842276 | I124: 420.8624228 | J124: 416.2304728 | K124: 12.375 | L124: 0.1028326513 | M124: 12.47783265 | N124: 12.34050346 | O124: 96.543 | P124: 0.8022442549 | Q124: 97.34524425 | R124: 96.27387681 | S124: 0.001 | T124: 8.309709196e-06 | U124: 0.001008309709 | V124: 0.0009972124008 | W124: 526.313 | X124: 4.373507976 | Y124: 530.686508 | Z124: 524.8458503 | AB124: 127.322 | AC124: 1.058008794 | AD124: 128.3800088 | AE124: 126.9670773 | AF124: 2.292 | AG124: 0.01904585348 | AH124: 2.311045853 | AI124: 2.285610823 | AJ124: 13.577 | AK124: 0.1128209217 | AL124: 13.68982092 | AM124: 13.53915277 | AN124: 0 | AO124: 0 | AP124: 0 | AQ124: 0 | AR124: 143.191 | AS124: 1.189875569 | AT124: 144.3808756 | AU124: 142.7918409
A125: 2025-01-05 | B125: 17 | C125: Off | D125: 40.003764 | E125: 0.011190332 | G125: 436.591 | H125: 4.397729907 | I125: 440.9887299 | J125: 436.0539196 | K125: 12.957 | L125: 0.1305143404 | M125: 13.08751434 | N125: 12.94106071 | O125: 99.379 | P125: 1.001033004 | Q125: 100.380033 | R125: 99.25674711 | S125: 0.001 | T125: 1.007288265e-05 | U125: 0.001010072883 | V125: 0.0009987698317 | W125: 548.928 | X125: 5.529287325 | Y125: 554.4572873 | Z125: 548.2527262 | AB125: 133.942 | AC125: 1.349182047 | AD125: 135.291182 | AE125: 133.7772288 | AF125: 2.444 | AG125: 0.02461812519 | AH125: 2.468618125 | AI125: 2.440993469 | AJ125: 14.105 | AK125: 0.1420780097 | AL125: 14.24707801 | AM125: 14.08764848 | AN125: 0.01 | AO125: 0.0001007288265 | AP125: 0.01010072883 | AQ125: 0.009987698317 | AR125: 150.501 | AS125: 1.515978911 | AT125: 152.0169789 | AU125: 150.3158584
A126: 2025-01-05 | B126: 18 | C126: Off | D126: 56.762364 | E126: 0.011037103 | G126: 468.839 | H126: 4.788953866 | I126: 473.6279539 | J126: 468.4004734 | K126: 13.892 | L126: 0.1418997718 | M126: 14.03389977 | N126: 13.87900617 | O126: 102.989 | P126: 1.051980679 | Q126: 104.0409807 | R126: 102.8926697 | S126: 0.883 | T126: 0.009019399546 | U126: 0.8920193995 | V126: 0.8821740896 | W126: 586.603 | X126: 5.991853717 | Y126: 592.5948537 | Z126: 586.0543233 | AB126: 144.798 | AC126: 1.479038523 | AD126: 146.2770385 | AE126: 144.6625638 | AF126: 2.591 | AG126: 0.0264657579 | AH126: 2.617465758 | AI126: 2.588576519 | AJ126: 14.633 | AK126: 0.149468713 | AL126: 14.78246871 | AM126: 14.61931308 | AN126: 4.333 | AO126: 0.0442594091 | AP126: 4.377259409 | AQ126: 4.328947146 | AR126: 166.355 | AS126: 1.699232403 | AT126: 168.0542324 | AU126: 166.1994005
A127: 2025-01-05 | B127: 19 | C127: Off | D127: 44.29497 | E127: 0.011243547 | G127: 475.633 | H127: 5.1013529 | I127: 480.7343529 | J127: 475.3291936 | K127: 14.023 | L127: 0.1504022465 | M127: 14.17340225 | N127: 14.01404293 | O127: 103.142 | P127: 1.10623893 | Q127: 104.2482389 | R127: 103.076119 | S127: 0.961 | T127: 0.01030710682 | U127: 0.9713071068 | V127: 0.9603861697 | W127: 593.759 | X127: 6.368301183 | Y127: 600.1273012 | Z127: 593.3797417 | AB127: 146.21 | AC127: 1.568160341 | AD127: 147.7781603 | AE127: 146.1166096 | AF127: 2.663 | AG127: 0.02856173304 | AH127: 2.691561733 | AI127: 2.661299032 | AJ127: 14.646 | AK127: 0.157084169 | AL127: 14.80308417 | AM127: 14.636645 | AN127: 4.693 | AO127: 0.05033428959 | AP127: 4.74333429 | AQ127: 4.690002388 | AR127: 168.212 | AS127: 1.804140533 | AT127: 170.0161405 | AU127: 168.1045561
A128: 2025-01-05 | B128: 20 | C128: Off | D128: 39.080905 | E128: 0.0111588 | G128: 468.793 | H128: 3.360808246 | I128: 472.1538082 | J128: 466.8851383 | K128: 13.992 | L128: 0.1003095801 | M128: 14.09230958 | N128: 13.93505632 | O128: 102.069 | P128: 0.7317394605 | Q128: 102.8007395 | R128: 101.6536066 | S128: 1.849 | T128: 0.01325560417 | U128: 1.862255604 | V128: 1.841475066 | W128: 586.703 | X128: 4.206112891 | Y128: 590.9091129 | Z128: 584.3152763 | AB128: 143.969 | AC128: 1.032123352 | AD128: 145.0011234 | AE128: 143.3830848 | AF128: 2.608 | AG128: 0.01869692574 | AH128: 2.626696926 | AI128: 2.59738614 | AJ128: 14.401 | AK128: 0.1032417283 | AL128: 14.50424173 | AM128: 14.3423918 | AN128: 9.01 | AO128: 0.06459329021 | AP128: 9.07459329 | AQ128: 8.973331719 | AR128: 169.988 | AS128: 1.218655296 | AT128: 171.2066553 | AU128: 169.2961945
A129: 2025-01-05 | B129: 21 | C129: Off | D129: 34.87243 | E129: 0.011316006 | G129: 456.72 | H129: 4.047714204 | I129: 460.7677142 | J129: 455.553664 | K129: 13.454 | L129: 0.1192370531 | M129: 13.57323705 | N129: 13.41964222 | O129: 100.515 | P129: 0.890821495 | Q129: 101.4058215 | R129: 100.2583126 | S129: 1.849 | T129: 0.01638689692 | U129: 1.865386897 | V129: 1.844278168 | W129: 572.538 | X129: 5.074159649 | Y129: 577.6121596 | Z129: 571.075897 | AB129: 139.819 | AC129: 1.239156052 | AD129: 141.0581561 | AE129: 139.4619411 | AF129: 2.579 | AG129: 0.02285657499 | AH129: 2.601856575 | AI129: 2.57241395 | AJ129: 14.189 | AK129: 0.125751044 | AL129: 14.31475104 | AM129: 14.15276524 | AN129: 9.01 | AO129: 0.07985178003 | AP129: 9.08985178 | AQ129: 8.986990963 | AR129: 165.597 | AS129: 1.467615451 | AT129: 167.0646155 | AU129: 165.1741113
A130: 2025-01-05 | B130: 22 | C130: Off | D130: 31.571963 | E130: 0.011859293 | G130: 432.938 | H130: 3.282892856 | I130: 436.2208929 | J130: 431.0476215 | K130: 13.023 | L130: 0.09875112294 | M130: 13.12175112 | N130: 12.96613643 | O130: 97.607 | P130: 0.7401367471 | Q130: 98.34713675 | R130: 97.18080924 | S130: 1.849 | T130: 0.01402064243 | U130: 1.863020642 | V130: 1.840926535 | W130: 545.417 | X130: 4.135801368 | Y130: 549.5528014 | Z130: 543.0354937 | AB130: 132.256 | AC130: 1.002874032 | AD130: 133.258874 | AE130: 131.678518 | AF130: 2.41 | AG130: 0.01827460695 | AH130: 2.428274607 | AI130: 2.399476987 | AJ130: 13.741 | AK130: 0.1041955909 | AL130: 13.84519559 | AM130: 13.68100136 | AN130: 9.01 | AO130: 0.06832124838 | AP130: 9.078321248 | AQ130: 8.970658777 | AR130: 157.417 | AS130: 1.193665478 | AT130: 158.6106655 | AU130: 156.7296551
A131: 2025-01-05 | B131: 23 | C131: Off | D131: 30.406235 | E131: 0.01214032 | G131: 399.362 | H131: 3.241922003 | I131: 402.603922 | J131: 397.7161816 | K131: 12.136 | L131: 0.09851704826 | M131: 12.23451705 | N131: 12.0859861 | O131: 93.835 | P131: 0.7617293361 | Q131: 94.59672934 | R131: 93.44829477 | S131: 1.849 | T131: 0.01500972497 | U131: 1.864009725 | V131: 1.84138005 | W131: 507.182 | X131: 4.117178112 | Y131: 511.2991781 | Z131: 505.0918425 | AB131: 121.679 | AC131: 0.9877600457 | AD131: 122.66676 | AE131: 121.1775463 | AF131: 2.299 | AG131: 0.01866271374 | AH131: 2.317662714 | AI131: 2.289525547 | AJ131: 13.209 | AK131: 0.107227397 | AL131: 13.3162274 | AM131: 13.15456414 | AN131: 9.01 | AO131: 0.07314095293 | AP131: 9.083140953 | AQ131: 8.972868715 | AR131: 146.197 | AS131: 1.186791109 | AT131: 147.3837911 | AU131: 145.5945047
A132: 2025-01-05 | B132: 24 | C132: Off | D132: 29.339942 | E132: 0.012016327 | G132: 365.06 | H132: 4.125027646 | I132: 369.1850276 | J132: 364.7487796 | K132: 11.403 | L132: 0.1288492035 | M132: 11.5318492 | N132: 11.39327873 | O132: 89.561 | P132: 1.012002413 | Q132: 90.57300241 | R132: 89.4846476 | S132: 1.849 | T132: 0.02089293847 | U132: 1.869892938 | V132: 1.847423693 | W132: 467.873 | X132: 5.286772201 | Y132: 473.1597722 | Z132: 467.4741297 | AB132: 109.9 | AC132: 1.241824736 | AD132: 111.1418247 | AE132: 109.8063082 | AF132: 2.168 | AG132: 0.02449750708 | AH132: 2.192497507 | AI132: 2.16615174 | AJ132: 12.56 | AK132: 0.141922827 | AL132: 12.70192283 | AM132: 12.54929237 | AN132: 9.01 | AO132: 0.1018092891 | AP132: 9.111809289 | AQ132: 9.002318809 | AR132: 133.638 | AS132: 1.51005436 | AT132: 135.1480544 | AU132: 133.5240711
A133: 2025-01-06 | B133: 1 | C133: Off | D133: 28.93573 | E133: 0.01246151 | G133: 336.884 | H133: 2.524793438 | I133: 339.4087934 | J133: 335.1792474 | K133: 10.806 | L133: 0.08098608983 | M133: 10.88698609 | N133: 10.7513178 | O133: 87.324 | P133: 0.654453943 | Q133: 87.97845394 | R133: 86.88210956 | S133: 1.849 | T133: 0.01385741996 | U133: 1.86285742 | V133: 1.839643404 | W133: 436.863 | X133: 3.27409089 | Y133: 440.1370909 | Z133: 434.6523181 | AB133: 100.586 | AC133: 0.7538466437 | AD133: 101.3398466 | AE133: 100.0769991 | AF133: 2.049 | AG133: 0.01535632964 | AH133: 2.06435633 | AI133: 2.038631333 | AJ133: 12.254 | AK133: 0.09183819589 | AL133: 12.3458382 | AM133: 12.19199041 | AN133: 9.01 | AO133: 0.06752588094 | AP133: 9.077525881 | AQ133: 8.964406201 | AR133: 123.899 | AS133: 0.9285670502 | AT133: 124.8275671 | AU133: 123.2720271
A134: 2025-01-06 | B134: 2 | C134: Off | D134: 27.909095 | E134: 0.012427784 | G134: 318.564 | H134: 2.882194031 | I134: 321.446194 | J134: 317.4513302 | K134: 10.542 | L134: 0.09537828969 | M134: 10.63737829 | N134: 10.50517925 | O134: 86.094 | P134: 0.7789317466 | Q134: 86.87293175 | R134: 85.79329372 | S134: 1.849 | T134: 0.01672874764 | U134: 1.865728748 | V134: 1.842541874 | W134: 417.049 | X134: 3.773232815 | Y134: 420.8222328 | Z134: 415.592345 | AB134: 95.158 | AC134: 0.8609378951 | AD134: 96.0189379 | AE134: 94.82563528 | AF134: 1.962 | AG134: 0.01775111026 | AH134: 1.97975111 | AI134: 1.955147191 | AJ134: 12.262 | AK134: 0.1109399154 | AL134: 12.37293992 | AM134: 12.21917169 | AN134: 9.01 | AO134: 0.08151758586 | AP134: 9.091517586 | AQ134: 8.978530169 | AR134: 118.392 | AS134: 1.071146507 | AT134: 119.4631465 | AU134: 117.9784843
A135: 2025-01-06 | B135: 3 | C135: Off | D135: 27.199127 | E135: 0.012631265 | G135: 308.452 | H135: 3.041535562 | I135: 311.4935356 | J135: 307.5589782 | K135: 10.499 | L135: 0.1035269081 | M135: 10.60252691 | N135: 10.46860358 | O135: 85.897 | P135: 0.846999793 | Q135: 86.74399979 | R135: 85.64831334 | S135: 1.849 | T135: 0.01823233195 | U135: 1.867232332 | V135: 1.843646826 | W135: 406.697 | X135: 4.010294595 | Y135: 410.7072946 | Z135: 405.5195419 | AB135: 92.485 | AC135: 0.9119617199 | AD135: 93.39696172 | AE135: 92.21723995 | AF135: 1.906 | AG135: 0.01879438869 | AH135: 1.924794389 | AI135: 1.900481801 | AJ135: 12.354 | AK135: 0.1218184039 | AL135: 12.4758184 | AM135: 12.31823304 | AN135: 9.01 | AO135: 0.08884440825 | AP135: 9.098844408 | AQ135: 8.983914493 | AR135: 115.755 | AS135: 1.141418921 | AT135: 116.8964189 | AU135: 115.4198693
A136: 2025-01-06 | B136: 4 | C136: Off | D136: 28.220014 | E136: 0.01254185 | G136: 304.701 | H136: 3.002546132 | I136: 307.7035461 | J136: 303.8443744 | K136: 10.549 | L136: 0.1039506242 | M136: 10.65295062 | N136: 10.51934292 | O136: 86.78 | P136: 0.8551365219 | Q136: 87.63513652 | R136: 86.53602978 | S136: 1.849 | T136: 0.0182201824 | U136: 1.867220182 | V136: 1.843801787 | W136: 403.879 | X136: 3.979853461 | Y136: 407.8588535 | Z136: 402.7435489 | AB136: 91.661 | AC136: 0.9032342559 | AD136: 92.56423426 | AE136: 91.40330751 | AF136: 1.948 | AG136: 0.01919573571 | AH136: 1.967195736 | AI136: 1.942523462 | AJ136: 12.444 | AK136: 0.122624094 | AL136: 12.56662409 | AM136: 12.40901538 | AN136: 9.01 | AO136: 0.08878520468 | AP136: 9.098785205 | AQ136: 8.984669605 | AR136: 115.063 | AS136: 1.13383929 | AT136: 116.1968393 | AU136: 114.739516
A137: 2025-01-06 | B137: 5 | C137: Off | D137: 27.699158 | E137: 0.011996161 | G137: 307.097 | H137: 3.092879659 | I137: 310.1898797 | J137: 306.4687919 | K137: 10.941 | L137: 0.1101905794 | M137: 11.05119058 | N137: 10.91861872 | O137: 89.532 | P137: 0.9017076091 | Q137: 90.43370761 | R137: 89.34885029 | S137: 1.849 | T137: 0.01862191584 | U137: 1.867621916 | V137: 1.845217623 | W137: 409.419 | X137: 4.123399763 | Y137: 413.5423998 | Z137: 408.5814786 | AB137: 92.717 | AC137: 0.9337848411 | AD137: 93.65078484 | AE137: 92.52733495 | AF137: 2.011 | AG137: 0.02025347364 | AH137: 2.031253474 | AI137: 2.00688623 | AJ137: 12.716 | AK137: 0.1280672157 | AL137: 12.84406722 | AM137: 12.68998772 | AN137: 9.01 | AO137: 0.09074281328 | AP137: 9.100742813 | AQ137: 8.991568837 | AR137: 116.454 | AS137: 1.172848344 | AT137: 117.6268483 | AU137: 116.2157777
A138: 2025-01-06 | B138: 6 | C138: Off | D138: 28.936971 | E138: 0.01128973 | G138: 316.641 | H138: 2.96958683 | I138: 319.6105868 | J138: 316.0022696 | K138: 11.496 | L138: 0.1078141182 | M138: 11.60381412 | N138: 11.47281019 | O138: 93.909 | P138: 0.8807164254 | Q138: 94.78971643 | R138: 93.71956612 | S138: 1.849 | T138: 0.01734066672 | U138: 1.866340667 | V138: 1.845270185 | W138: 423.895 | X138: 3.975458041 | Y138: 427.870458 | Z138: 423.0399161 | AB138: 95.922 | AC138: 0.8995951502 | AD138: 96.82159515 | AE138: 95.72850548 | AF138: 2.085 | AG138: 0.01955396977 | AH138: 2.10455397 | AI138: 2.080794124 | AJ138: 13.32 | AK138: 0.1249203249 | AL138: 13.44492032 | AM138: 13.2931308 | AN138: 9.01 | AO138: 0.08449940893 | AP138: 9.094499409 | AQ138: 8.991824966 | AR138: 120.337 | AS138: 1.128568854 | AT138: 121.4655689 | AU138: 120.0942554
A139: 2025-01-06 | B139: 7 | C139: Off | D139: 28.02098 | E139: 0.010748148 | G139: 331.775 | H139: 3.31186114 | I139: 335.0868611 | J139: 331.485298 | K139: 11.954 | L139: 0.1193278218 | M139: 12.07332782 | N139: 11.94356191 | O139: 97.305 | P139: 0.9713228793 | Q139: 98.27632288 | R139: 97.22003442 | S139: 1.849 | T139: 0.01845718107 | U139: 1.867457181 | V139: 1.847385475 | W139: 442.883 | X139: 4.420969023 | Y139: 447.303969 | Z139: 442.4962798 | AB139: 100.997 | AC139: 1.008177348 | AD139: 102.0051773 | AE139: 100.9088106 | AF139: 2.188 | AG139: 0.02184116397 | AH139: 2.209841164 | AI139: 2.186089464 | AJ139: 13.929 | AK139: 0.1390427664 | AL139: 14.06804277 | AM139: 13.91683736 | AN139: 9.01 | AO139: 0.08994007648 | AP139: 9.099940076 | AQ139: 9.002132574 | AR139: 126.124 | AS139: 1.259001355 | AT139: 127.3830014 | AU139: 126.01387
A140: 2025-01-06 | B140: 8 | C140: On | D140: 31.538915 | E140: 0.01073313 | G140: 350.115 | H140: 4.532694206 | I140: 354.6476942 | J140: 350.8412144 | K140: 12.449 | L140: 0.1611685023 | M140: 12.6101685 | N140: 12.47482192 | O140: 100.629 | P140: 1.302773332 | Q140: 101.9317733 | R140: 100.8377264 | S140: 0.27 | T140: 0.003495501294 | U140: 0.2734955013 | V140: 0.2705600385 | W140: 463.463 | X140: 6.000131542 | Y140: 469.4631315 | Z140: 464.4243227 | AB140: 106.609 | AC140: 1.380192213 | AD140: 107.9891922 | AE140: 106.8301302 | AF140: 2.327 | AG140: 0.03012604264 | AH140: 2.357126043 | AI140: 2.331826702 | AJ140: 14.351 | AK140: 0.1857923669 | AL140: 14.53679237 | AM140: 14.38076708 | AN140: 1.338 | AO140: 0.01732215086 | AP140: 1.355322151 | AQ140: 1.340775302 | AR140: 124.625 | AS140: 1.613432773 | AT140: 126.2384328 | AU140: 124.8834993
A141: 2025-01-06 | B141: 9 | C141: On | D141: 36.901607 | E141: 0.011503617 | G141: 367.949 | H141: 3.548596503 | I141: 371.4975965 | J141: 367.2240304 | K141: 12.915 | L141: 0.1245556418 | M141: 13.03955564 | N141: 12.88955359 | O141: 102.4 | P141: 0.9875724134 | Q141: 103.3875724 | R141: 102.1982414 | S141: 0.001 | T141: 9.64426185e-06 | U141: 0.001009644262 | V141: 0.000998029701 | W141: 483.265 | X141: 4.660734203 | Y141: 487.9257342 | Z141: 482.3128234 | AB141: 112.083 | AC141: 1.080957801 | AD141: 113.1639578 | AE141: 111.862163 | AF141: 2.389 | AG141: 0.02304014156 | AH141: 2.412040142 | AI141: 2.384292956 | AJ141: 14.694 | AK141: 0.1417127836 | AL141: 14.83571278 | AM141: 14.66504843 | AN141: 0.019 | AO141: 0.0001832409751 | AP141: 0.01918324098 | AQ141: 0.01896256432 | AR141: 129.185 | AS141: 1.245893967 | AT141: 130.430894 | AU141: 128.9304669
A142: 2025-01-06 | B142: 10 | C142: On | D142: 32.936778 | E142: 0.012306746 | G142: 377.136 | H142: 3.372839426 | I142: 380.5088394 | J142: 375.8260138 | K142: 12.814 | L142: 0.1145994135 | M142: 12.92859941 | N142: 12.76949042 | O142: 100.946 | P142: 0.9027901041 | Q142: 101.8487901 | R142: 100.5953629 | S142: 0.001 | T142: 8.943297447e-06 | U142: 0.001008943297 | V142: 0.0009965264886 | W142: 490.897 | X142: 4.390237887 | Y142: 495.2872379 | Z142: 489.1918637 | AB142: 115.099 | AC142: 1.029364593 | AD142: 116.1283646 | AE142: 114.6992023 | AF142: 2.371 | AG142: 0.02120455825 | AH142: 2.392204558 | AI142: 2.362764304 | AJ142: 14.476 | AK142: 0.1294631738 | AL142: 14.60546317 | AM142: 14.42571745 | AN142: 0 | AO142: 0 | AP142: 0 | AQ142: 0 | AR142: 131.946 | AS142: 1.180032325 | AT142: 133.1260323 | AU142: 131.4876841
A143: 2025-01-06 | B143: 11 | C143: On | D143: 39.434557 | E143: 0.013002088 | G143: 380.696 | H143: 4.557319881 | I143: 385.2533199 | J143: 380.2442223 | K143: 12.425 | L143: 0.1487399382 | M143: 12.57373994 | N143: 12.41025507 | O143: 96.627 | P143: 1.156723864 | Q143: 97.78372386 | R143: 96.51233128 | S143: 0.001 | T143: 1.197102118e-05 | U143: 0.001011971021 | V143: 0.0009988132849 | W143: 489.749 | X143: 5.862795654 | Y143: 495.6117957 | Z143: 489.1678075 | AB143: 116.157 | AC143: 1.390517908 | AD143: 117.5475179 | AE143: 116.0191547 | AF143: 2.379 | AG143: 0.0284790594 | AH143: 2.407479059 | AI143: 2.376176805 | AJ143: 13.854 | AK143: 0.1658465275 | AL143: 14.01984653 | AM143: 13.83755925 | AN143: 0 | AO143: 0 | AP143: 0 | AQ143: 0 | AR143: 132.39 | AS143: 1.584843495 | AT143: 133.9748435 | AU143: 132.2328908
A144: 2025-01-06 | B144: 12 | C144: On | D144: 41.037082 | E144: 0.013123931 | G144: 388.913 | H144: 4.434690149 | I144: 393.3476901 | J144: 388.1854222 | K144: 12.194 | L144: 0.1390455235 | M144: 12.33304552 | N144: 12.17118749 | O144: 94.647 | P144: 1.079239106 | Q144: 95.72623911 | R144: 94.46993455 | S144: 0.001 | T144: 1.140278198e-05 | U144: 0.001011402782 | V144: 0.0009981292017 | W144: 495.755 | X144: 5.652986181 | Y144: 501.4079862 | Z144: 494.8275424 | AB144: 118.659 | AC144: 1.353042707 | AD144: 120.0120427 | AE144: 118.4370129 | AF144: 2.269 | AG144: 0.02587291232 | AH144: 2.294872912 | AI144: 2.264755159 | AJ144: 13.513 | AK144: 0.1540857929 | AL144: 13.66708579 | AM144: 13.4877199 | AN144: 0 | AO144: 0 | AP144: 0 | AQ144: 0 | AR144: 134.441 | AS144: 1.533001412 | AT144: 135.9740014 | AU144: 134.189488
A145: 2025-01-06 | B145: 13 | C145: On | D145: 35.131444 | E145: 0.013402293 | G145: 395.992 | H145: 4.531839915 | I145: 400.5238399 | J145: 395.1559021 | K145: 12.151 | L145: 0.1390593416 | M145: 12.29005934 | N145: 12.12534437 | O145: 93.737 | P145: 1.072751667 | Q145: 94.80975167 | R145: 93.5390836 | S145: 0.001 | T145: 1.144427139e-05 | U145: 0.001011444271 | V145: 0.0009978885989 | W145: 501.881 | X145: 5.743662368 | Y145: 507.6246624 | Z145: 500.8213279 | AB145: 120.819 | AC145: 1.382685425 | AD145: 122.2016854 | AE145: 120.5639026 | AF145: 2.292 | AG145: 0.02623027002 | AH145: 2.31823027 | AI145: 2.287160669 | AJ145: 13.38 | AK145: 0.1531243511 | AL145: 13.53312435 | AM145: 13.35174945 | AN145: 0 | AO145: 0 | AP145: 0 | AQ145: 0 | AR145: 136.491 | AS145: 1.562040046 | AT145: 138.05304 | AU145: 136.2028128
A146: 2025-01-06 | B146: 14 | C146: On | D146: 35.98274 | E146: 0.012926234 | G146: 394.037 | H146: 4.865845954 | I146: 398.902846 | J146: 393.7465344 | K146: 12.036 | L146: 0.1486289914 | M146: 12.18462899 | N146: 12.02712763 | O146: 92.722 | P146: 1.144996456 | Q146: 93.86699646 | R146: 92.65364969 | S146: 0.001 | T146: 1.234870318e-05 | U146: 0.001012348703 | V146: 0.000999262847 | W146: 498.796 | X146: 6.15948375 | Y146: 504.9554838 | Z146: 498.428311 | AB146: 120.776 | AC146: 1.491426975 | AD146: 122.267427 | AE146: 120.6869696 | AF146: 2.249 | AG146: 0.02777223345 | AH146: 2.276772233 | AI146: 2.247342143 | AJ146: 13.169 | AK146: 0.1626200722 | AL146: 13.33162007 | AM146: 13.15929243 | AN146: 0 | AO146: 0 | AP146: 0 | AQ146: 0 | AR146: 136.194 | AS146: 1.681819281 | AT146: 137.8758193 | AU146: 136.0936042
A147: 2025-01-06 | B147: 15 | C147: On | D147: 38.41857 | E147: 0.012839194 | G147: 393.267 | H147: 3.838287136 | I147: 397.1052871 | J147: 392.0067753 | K147: 11.885 | L147: 0.1159976367 | M147: 12.00099764 | N147: 11.8469145 | O147: 91.59 | P147: 0.8939186832 | Q147: 92.48391868 | R147: 91.29649971 | S147: 0.001 | T147: 9.760003092e-06 | U147: 0.001009760003 | V147: 0.0009967954985 | W147: 496.743 | X147: 4.848213216 | Y147: 501.5912132 | Z147: 495.1511863 | AB147: 120.17 | AC147: 1.172859572 | AD147: 121.3428596 | AE147: 119.7849151 | AF147: 2.25 | AG147: 0.02196000696 | AH147: 2.271960007 | AI147: 2.242789872 | AJ147: 12.948 | AK147: 0.12637252 | AL147: 13.07437252 | AM147: 12.90650811 | AN147: 0 | AO147: 0 | AP147: 0 | AQ147: 0 | AR147: 135.368 | AS147: 1.321192099 | AT147: 136.6891921 | AU147: 134.934213
A148: 2025-01-06 | B148: 16 | C148: On | D148: 34.949049 | E148: 0.012780536 | G148: 396.124 | H148: 4.576695229 | I148: 400.7006952 | J148: 395.5795256 | K148: 11.926 | L148: 0.137789347 | M148: 12.06378935 | N148: 11.90960765 | O148: 92.196 | P148: 1.065204313 | Q148: 93.26120431 | R148: 92.06927613 | S148: 0.001 | T148: 1.155369336e-05 | U148: 0.001011553693 | V148: 0.000998625495 | W148: 500.247 | X148: 5.779700443 | Y148: 506.0267004 | Z148: 499.559408 | AB148: 121.525 | AC148: 1.404062586 | AD148: 122.9290626 | AE148: 121.3579633 | AF148: 2.235 | AG148: 0.02582250466 | AH148: 2.260822505 | AI148: 2.231927981 | AJ148: 12.963 | AK148: 0.149770527 | AL148: 13.11277053 | AM148: 12.94518229 | AN148: 0 | AO148: 0 | AP148: 0 | AQ148: 0 | AR148: 136.723 | AS148: 1.579655617 | AT148: 138.3026556 | AU148: 136.5350735
A149: 2025-01-06 | B149: 17 | C149: On | D149: 32.46211 | E149: 0.01271927 | G149: 414.148 | H149: 4.921491027 | I149: 419.069491 | J149: 413.739233 | K149: 12.45 | L149: 0.1479484708 | M149: 12.59794847 | N149: 12.43771176 | O149: 95.001 | P149: 1.128935958 | Q149: 96.12993596 | R149: 94.90723335 | S149: 0.001 | T149: 1.188341131e-05 | U149: 0.001011883411 | V149: 0.000999012993 | W149: 521.6 | X149: 6.198387339 | Y149: 527.7983873 | Z149: 521.0851771 | AB149: 127.239 | AC149: 1.512033371 | AD149: 128.7510334 | AE149: 127.1134142 | AF149: 2.367 | AG149: 0.02812803457 | AH149: 2.395128035 | AI149: 2.364663754 | AJ149: 13.383 | AK149: 0.1590356935 | AL149: 13.54203569 | AM149: 13.36979089 | AN149: 0.01 | AO149: 0.0001188341131 | AP149: 0.01011883411 | AQ149: 0.00999012993 | AR149: 142.999 | AS149: 1.699315934 | AT149: 144.6983159 | AU149: 142.857859
A150: 2025-01-06 | B150: 18 | C150: On | D150: 40.270978 | E150: 0.01214278 | G150: 452.571 | H150: 5.189434379 | I150: 457.7604344 | J150: 452.2019501 | K150: 13.538 | L150: 0.1552343447 | M150: 13.69323434 | N150: 13.52696041 | O150: 100.038 | P150: 1.147092139 | Q150: 101.1850921 | R150: 99.95642383 | S150: 0.883 | T150: 0.0101249761 | U150: 0.8931249761 | V150: 0.882279956 | W150: 567.03 | X150: 6.501885839 | Y150: 573.5318858 | Z150: 566.5676143 | AB150: 140.164 | AC150: 1.60719949 | AD150: 141.7711995 | AE150: 140.049703 | AF150: 2.629 | AG150: 0.03014559701 | AH150: 2.659145597 | AI150: 2.626856177 | AJ150: 14.053 | AK150: 0.1611396252 | AL150: 14.21413963 | AM150: 14.04154045 | AN150: 4.333 | AO150: 0.04968462223 | AP150: 4.382684622 | AQ150: 4.329466647 | AR150: 161.179 | AS150: 1.848169334 | AT150: 163.0271693 | AU150: 161.0475663
A151: 2025-01-06 | B151: 19 | C151: On | D151: 36.577139 | E151: 0.011899262 | G151: 466.018 | H151: 4.610559042 | I151: 470.628559 | J151: 465.0284265 | K151: 13.796 | L151: 0.1364910208 | M151: 13.93249102 | N151: 13.76670466 | O151: 102.367 | P151: 1.012770102 | Q151: 103.3797701 | R151: 102.1496271 | S151: 0.961 | T151: 0.009507674037 | U151: 0.970507674 | V151: 0.958959349 | W151: 583.142 | X151: 5.769327839 | Y151: 588.9113278 | Z151: 581.9037177 | AB151: 143.618 | AC151: 1.420887752 | AD151: 145.0388878 | AE151: 143.313032 | AF151: 2.671 | AG151: 0.02642559558 | AH151: 2.697425596 | AI151: 2.665328222 | AJ151: 14.537 | AK151: 0.1438221202 | AL151: 14.68082212 | AM151: 14.50613117 | AN151: 4.693 | AO151: 0.04643029579 | AP151: 4.739430296 | AQ151: 4.683034573 | AR151: 165.519 | AS151: 1.637565764 | AT151: 167.1565658 | AU151: 165.167526
A152: 2025-01-06 | B152: 20 | C152: On | D152: 37.881831 | E152: 0.011602418 | G152: 462.823 | H152: 3.761301024 | I152: 466.584301 | J152: 461.1707949 | K152: 13.759 | L152: 0.1118175648 | M152: 13.87081756 | N152: 13.70988254 | O152: 103.339 | P152: 0.839822322 | Q152: 104.1788223 | R152: 102.9700961 | S152: 1.849 | T152: 0.01502657732 | U152: 1.864026577 | V152: 1.842399362 | W152: 581.77 | X152: 4.727967488 | Y152: 586.4979675 | Z152: 579.6931729 | AB152: 141.641 | AC152: 1.151097587 | AD152: 142.7920976 | AE152: 141.135364 | AF152: 2.63 | AG152: 0.02137366054 | AH152: 2.651373661 | AI152: 2.620611315 | AJ152: 14.486 | AK152: 0.1177257972 | AL152: 14.6037258 | AM152: 14.43428727 | AN152: 9.01 | AO152: 0.07322307281 | AP152: 9.083223073 | AQ152: 8.977835722 | AR152: 167.767 | AS152: 1.363420117 | AT152: 169.1304201 | AU152: 167.1680983
A153: 2025-01-06 | B153: 21 | C153: On | D153: 45.044851 | E153: 0.01158001 | G153: 453.314 | H153: 3.476996649 | I153: 456.7909966 | J153: 451.5013523 | K153: 13.649 | L153: 0.1046901866 | M153: 13.75369019 | N153: 13.59442232 | O153: 103.911 | P153: 0.7970153111 | Q153: 104.7080153 | R153: 103.4954954 | S153: 1.849 | T153: 0.01418214925 | U153: 1.863182149 | V153: 1.841606481 | W153: 572.723 | X153: 4.392884296 | Y153: 577.1158843 | Z153: 570.4328766 | AB153: 138.443 | AC153: 1.061881713 | AD153: 139.5048817 | AE153: 137.8894138 | AF153: 2.544 | AG153: 0.01951291924 | AH153: 2.563512919 | AI153: 2.533827414 | AJ153: 14.551 | AK153: 0.1116086824 | AL153: 14.66260868 | AM153: 14.49281553 | AN153: 9.01 | AO153: 0.06910825566 | AP153: 9.079108256 | AQ153: 8.973972091 | AR153: 164.548 | AS153: 1.262111571 | AT153: 165.8101116 | AU153: 163.8900288
A154: 2025-01-06 | B154: 22 | C154: On | D154: 38.719717 | E154: 0.011707908 | G154: 431.556 | H154: 3.089474865 | I154: 434.6454749 | J154: 429.5566856 | K154: 13.249 | L154: 0.09484853062 | M154: 13.34384853 | N154: 13.18761998 | O154: 101.945 | P154: 0.7298160959 | Q154: 102.6748161 | R154: 101.4727088 | S154: 1.85 | T154: 0.01324400194 | U154: 1.863244002 | V154: 1.841429313 | W154: 548.6 | X154: 3.927383493 | Y154: 552.5273835 | Z154: 546.0584437 | AB154: 131.422 | AC154: 0.9408395797 | AD154: 132.3628396 | AE154: 130.8131476 | AF154: 2.477 | AG154: 0.01773264475 | AH154: 2.494732645 | AI154: 2.465524544 | AJ154: 14.386 | AK154: 0.1029882226 | AL154: 14.48898822 | AM154: 14.31935248 | AN154: 9.01 | AO154: 0.06450186889 | AP154: 9.074501869 | AQ154: 8.968258436 | AR154: 157.295 | AS154: 1.126062316 | AT154: 158.4210623 | AU154: 156.5662831
A155: 2025-01-06 | B155: 23 | C155: On | D155: 38.450395 | E155: 0.012070631 | G155: 398.358 | H155: 3.151290879 | I155: 401.5092909 | J155: 396.6628204 | K155: 12.598 | L155: 0.09965900645 | M155: 12.69765901 | N155: 12.54439025 | O155: 97.902 | P155: 0.7744734124 | Q155: 98.67647341 | R155: 97.48538611 | S155: 1.851 | T155: 0.01464270685 | U155: 1.865642707 | V155: 1.843123222 | W155: 510.709 | X155: 4.040066004 | Y155: 514.749066 | Z155: 508.53572 | AB155: 121.044 | AC155: 0.9575428462 | AD155: 122.0015428 | AE155: 120.5289072 | AF155: 2.318 | AG155: 0.01833700404 | AH155: 2.336337004 | AI155: 2.308135942 | AJ155: 13.92 | AK155: 0.1101169527 | AL155: 14.03011695 | AM155: 13.86076459 | AN155: 9.01 | AO155: 0.07127541261 | AP155: 9.081275413 | AQ155: 8.971658688 | AR155: 146.292 | AS155: 1.157272216 | AT155: 147.4492722 | AU155: 145.6694665
A156: 2025-01-06 | B156: 24 | C156: Off | D156: 38.594756 | E156: 0.012242482 | G156: 364.474 | H156: 3.133060561 | I156: 367.6070606 | J156: 363.1066377 | K156: 11.921 | L156: 0.1024742916 | M156: 12.02347429 | N156: 11.87627712 | O156: 94.253 | P156: 0.8102096641 | Q156: 95.06320966 | R156: 93.89940003 | S156: 1.852 | T156: 0.01592000571 | U156: 1.867920006 | V156: 1.845052029 | W156: 472.5 | X156: 4.061664523 | Y156: 476.5616645 | Z156: 470.7273669 | AB156: 109.569 | AC156: 0.9418677674 | AD156: 110.5108678 | AE156: 109.1579405 | AF156: 2.18 | AG156: 0.01873953155 | AH156: 2.198739532 | AI156: 2.171821502 | AJ156: 13.428 | AK156: 0.1154286375 | AL156: 13.54342864 | AM156: 13.37762346 | AN156: 9.01 | AO156: 0.07745099968 | AP156: 9.087451 | AQ156: 8.976198044 | AR156: 134.187 | AS156: 1.153486936 | AT156: 135.3404869 | AU156: 133.6835835
A157: 2025-01-07 | B157: 1 | C157: Off | D157: 45.133534 | E157: 0.01281371 | G157: 339.918 | H157: 3.513701922 | I157: 343.4317019 | J157: 339.0310677 | K157: 11.523 | L157: 0.119112219 | M157: 11.64211222 | N157: 11.49293357 | O157: 93.027 | P157: 0.9616117673 | Q157: 93.98861177 | R157: 92.78426895 | S157: 1.848 | T157: 0.01910261049 | U157: 1.86710261 | V157: 1.843178099 | W157: 446.316 | X157: 4.613528519 | Y157: 450.9295285 | Z157: 445.1514483 | AB157: 101.441 | AC157: 1.048586532 | AD157: 102.4895865 | AE157: 101.1763147 | AF157: 2.052 | AG157: 0.02121134022 | AH157: 2.07321134 | AI157: 2.046645811 | AJ157: 13.26 | AK157: 0.1370674324 | AL157: 13.39706743 | AM157: 13.2254013 | AN157: 9.007 | AO157: 0.09310455232 | AP157: 9.100104552 | AQ157: 8.983498452 | AR157: 125.76 | AS157: 1.299969857 | AT157: 127.0599699 | AU157: 125.4318603
A158: 2025-01-07 | B158: 2 | C158: Off | D158: 36.416356 | E158: 0.012951096 | G158: 323.64 | H158: 3.427770655 | I158: 327.0677707 | J158: 322.8318846 | K158: 11.288 | L158: 0.1195546754 | M158: 11.40755468 | N158: 11.25981434 | O158: 92.343 | P158: 0.9780330788 | Q158: 93.32103308 | R158: 92.11242342 | S158: 1.848 | T158: 0.01957273567 | U158: 1.867572736 | V158: 1.843385622 | W158: 429.119 | X158: 4.544931145 | Y158: 433.6639311 | Z158: 428.0475079 | AB158: 96.678 | AC158: 1.023946395 | AD158: 97.7019464 | AE158: 96.43659911 | AF158: 2.064 | AG158: 0.02186045802 | AH158: 2.085860458 | AI158: 2.058846279 | AJ158: 13.136 | AK158: 0.1391274111 | AL158: 13.27512741 | AM158: 13.10319996 | AN158: 9.007 | AO158: 0.09539590376 | AP158: 9.102395904 | AQ158: 8.984509901 | AR158: 120.885 | AS158: 1.280330168 | AT158: 122.1653302 | AU158: 120.5831552
A159: 2025-01-07 | B159: 3 | C159: Off | D159: 38.612314 | E159: 0.012957072 | G159: 312.844 | H159: 3.379202393 | I159: 316.2232024 | J159: 312.1258756 | K159: 10.933 | L159: 0.118093426 | M159: 11.05109343 | N159: 10.90790361 | O159: 90.343 | P159: 0.9758450916 | Q159: 91.31884509 | R159: 90.13562024 | S159: 1.846 | T159: 0.01993967478 | U159: 1.865939675 | V159: 1.84176256 | W159: 415.966 | X159: 4.493080586 | Y159: 420.4590806 | Z159: 415.011162 | AB159: 93.438 | AC159: 1.009275911 | AD159: 94.44727591 | AE159: 93.22351576 | AF159: 2.03 | AG159: 0.02192716133 | AH159: 2.051927161 | AI159: 2.025340193 | AJ159: 12.872 | AK159: 0.1390376456 | AL159: 13.01103765 | AM159: 12.84245269 | AN159: 9.007 | AO159: 0.09728962664 | AP159: 9.104289627 | AQ159: 8.98632469 | AR159: 117.347 | AS159: 1.267530345 | AT159: 118.6145303 | AU159: 117.0776333
A160: 2025-01-07 | B160: 4 | C160: Off | D160: 39.547302 | E160: 0.013070271 | G160: 307.709 | H160: 3.679376782 | I160: 311.3883768 | J160: 307.3184463 | K160: 10.914 | L160: 0.1305022544 | M160: 11.04450225 | N160: 10.90014762 | O160: 90.676 | P160: 1.084242479 | Q160: 91.76024248 | R160: 90.56091124 | S160: 1.845 | T160: 0.02206126621 | U160: 1.867061266 | V160: 1.842658269 | W160: 411.144 | X160: 4.916182782 | Y160: 416.0601828 | Z160: 410.6221634 | AB160: 92.379 | AC160: 1.104605805 | AD160: 93.48360581 | AE160: 92.26174974 | AF160: 1.998 | AG160: 0.02389073706 | AH160: 2.021890737 | AI160: 1.995464077 | AJ160: 12.865 | AK160: 0.1538309972 | AL160: 13.018831 | AM160: 12.84867135 | AN160: 9.007 | AO160: 0.107699634 | AP160: 9.114699634 | AQ160: 8.99556804 | AR160: 116.249 | AS160: 1.390027174 | AT160: 117.6390272 | AU160: 116.1014532
A161: 2025-01-07 | B161: 5 | C161: Off | D161: 34.910642 | E161: 0.012575935 | G161: 309.287 | H161: 3.745083956 | I161: 313.032084 | J161: 309.0954128 | K161: 11.23 | L161: 0.1359814438 | M161: 11.36598144 | N161: 11.2230436 | O161: 92.075 | P161: 1.114914643 | Q161: 93.18991464 | R161: 92.01796433 | S161: 1.845 | T161: 0.02234067354 | U161: 1.867340674 | V161: 1.843857119 | W161: 414.437 | X161: 5.018320716 | Y161: 419.4553207 | Z161: 414.1802779 | AB161: 93.296 | AC161: 1.129699447 | AD161: 94.42569945 | AE161: 93.23820799 | AF161: 2.097 | AG161: 0.02539208261 | AH161: 2.122392083 | AI161: 2.095701018 | AJ161: 13.054 | AK161: 0.1580678333 | AL161: 13.21206783 | AM161: 13.04591373 | AN161: 9.007 | AO161: 0.1090636567 | AP161: 9.116063657 | AQ161: 9.001420633 | AR161: 117.454 | AS161: 1.422223019 | AT161: 118.876223 | AU161: 117.3812434
A162: 2025-01-07 | B162: 6 | C162: Off | D162: 34.201302 | E162: 0.012413977 | G162: 320.928 | H162: 3.571115045 | I162: 324.499115 | J162: 320.4707905 | K162: 11.549 | L162: 0.1285110917 | M162: 11.67751109 | N162: 11.53254674 | O162: 95.208 | P162: 1.059423675 | Q162: 96.26742368 | R162: 95.07236209 | S162: 1.845 | T162: 0.02053017268 | U162: 1.865530173 | V162: 1.842371524 | W162: 429.53 | X162: 4.779579984 | Y162: 434.30958 | Z162: 428.9180708 | AB162: 96.941 | AC162: 1.078707572 | AD162: 98.01970757 | AE162: 96.80289318 | AF162: 2.091 | AG162: 0.02326752904 | AH162: 2.114267529 | AI162: 2.088021061 | AJ162: 13.565 | AK162: 0.1509440609 | AL162: 13.71594406 | AM162: 13.54567465 | AN162: 9.007 | AO162: 0.1002250761 | AP162: 9.107225076 | AQ162: 8.994168193 | AR162: 121.604 | AS162: 1.353144238 | AT162: 122.9571442 | AU162: 121.4307571
A163: 2025-01-07 | B163: 7 | C163: Off | D163: 33.860876 | E163: 0.011975513 | G163: 341.9 | H163: 3.409721538 | I163: 345.3097215 | J163: 341.1744605 | K163: 12.243 | L163: 0.1220977502 | M163: 12.36509775 | N163: 12.21701936 | O163: 98.606 | P163: 0.9833840362 | Q163: 99.58938404 | R163: 98.39675007 | S163: 1.845 | T163: 0.0183999305 | U163: 1.86339993 | V163: 1.84108476 | W163: 454.594 | X163: 4.533603255 | Y163: 459.1276033 | Z163: 453.6293147 | AB163: 103.583 | AC163: 1.033018971 | AD163: 104.616019 | AE163: 103.3631885 | AF163: 2.202 | AG163: 0.02196024225 | AH163: 2.223960242 | AI163: 2.197327177 | AJ163: 14.159 | AK163: 0.1412057539 | AL163: 14.30020575 | AM163: 14.12895345 | AN163: 9.007 | AO163: 0.08982556857 | AP163: 9.096825569 | AQ163: 8.987886416 | AR163: 128.951 | AS163: 1.286010535 | AT163: 130.2370105 | AU163: 128.6773555
A164: 2025-01-07 | B164: 8 | C164: On | D164: 44.743755 | E164: 0.011880976 | G164: 355.445 | H164: 4.29097914 | I164: 359.7359791 | J164: 355.4619646 | K164: 12.428 | L164: 0.1500324628 | M164: 12.57803246 | N164: 12.42859316 | O164: 100.286 | P164: 1.210665881 | Q164: 101.4966659 | R164: 100.2907864 | S164: 0.27 | T164: 0.003259475778 | U164: 0.2732594758 | V164: 0.2700128865 | W164: 468.429 | X164: 5.65493696 | Y164: 474.083937 | Z164: 468.4513571 | AB164: 107.759 | AC164: 1.300880927 | AD164: 109.0598809 | AE164: 107.7641431 | AF164: 2.297 | AG164: 0.02772968838 | AH164: 2.324729688 | AI164: 2.297109631 | AJ164: 14.274 | AK164: 0.1723176195 | AL164: 14.44631762 | AM164: 14.27468127 | AN164: 1.338 | AO164: 0.0161525133 | AP164: 1.354152513 | AQ164: 1.33806386 | AR164: 125.668 | AS164: 1.517080748 | AT164: 127.1850807 | AU164: 125.6739979
A165: 2025-01-07 | B165: 9 | C165: On | D165: 44.228544 | E165: 0.010471699 | G165: 355.574 | H165: 3.271774407 | I165: 358.8457744 | J165: 355.0880495 | K165: 12.469 | L165: 0.1147321094 | M165: 12.58373211 | N165: 12.45195905 | O165: 98.919 | P165: 0.9101921191 | Q165: 99.82919212 | R165: 98.78381087 | S165: 0.001 | T165: 9.201388198e-06 | U165: 0.001009201388 | V165: 0.000998633335 | W165: 466.963 | X165: 4.296707837 | Y165: 471.2597078 | Z165: 466.324818 | AB165: 108.848 | AC165: 1.001552703 | AD165: 109.8495527 | AE165: 108.6992413 | AF165: 2.38 | AG165: 0.02189930391 | AH165: 2.401899304 | AI165: 2.376747337 | AJ165: 14.103 | AK165: 0.1297671778 | AL165: 14.23276718 | AM165: 14.08372592 | AN165: 0.022 | AO165: 0.0002024305404 | AP165: 0.02220243054 | AQ165: 0.02196993337 | AR165: 125.353 | AS165: 1.153421615 | AT165: 126.5064216 | AU165: 125.1816844
A166: 2025-01-07 | B166: 10 | C166: On | D166: 41.212003 | E166: 0.010392461 | G166: 354.788 | H166: 2.987089466 | I166: 357.7750895 | J166: 354.0569258 | K166: 12.292 | L166: 0.1034908275 | M166: 12.39549083 | N166: 12.26667117 | O166: 97.241 | P166: 0.8187074161 | Q166: 98.05970742 | R166: 97.04062573 | S166: 0.001 | T166: 8.419364425e-06 | U166: 0.001008419364 | V166: 0.0009979394055 | W166: 464.322 | X166: 3.909296129 | Y166: 468.2312961 | Z166: 463.3652206 | AB166: 108.39 | AC166: 0.9125749101 | AD166: 109.3025749 | AE166: 108.1666522 | AF166: 2.301 | AG166: 0.01937295754 | AH166: 2.320372958 | AI166: 2.296258572 | AJ166: 13.912 | AK166: 0.1171301979 | AL166: 14.0291302 | AM166: 13.88333301 | AN166: 0.005 | AO166: 4.209682213e-05 | AP166: 0.005042096822 | AQ166: 0.004989697028 | AR166: 124.608 | AS166: 1.049120162 | AT166: 125.6571202 | AU166: 124.3512334
A167: 2025-01-07 | B167: 11 | C167: On | D167: 59.574705 | E167: 0.012054214 | G167: 353.257 | H167: 2.85036997 | I167: 356.10737 | J167: 351.8147755 | K167: 11.878 | L167: 0.09584153889 | M167: 11.97384154 | N167: 11.82950629 | O167: 94.665 | P167: 0.7638356019 | Q167: 95.4288356 | R167: 94.278516 | S167: 0.001 | T167: 8.068827992e-06 | U167: 0.001008068828 | V167: 0.0009959173506 | W167: 459.801 | X167: 3.71005518 | Y167: 463.5110552 | Z167: 457.9237937 | AB167: 107.732 | AC167: 0.8692709772 | AD167: 108.601271 | AE167: 107.292168 | AF167: 2.238 | AG167: 0.01805803705 | AH167: 2.256058037 | AI167: 2.228863031 | AJ167: 13.404 | AK167: 0.1081545704 | AL167: 13.51215457 | AM167: 13.34927617 | AN167: 0 | AO167: 0 | AP167: 0 | AQ167: 0 | AR167: 123.374 | AS167: 0.9954835847 | AT167: 124.3694836 | AU167: 122.8703072
A168: 2025-01-07 | B168: 12 | C168: On | D168: 51.338627 | E168: 0.011989529 | G168: 355.124 | H168: 3.012042763 | I168: 358.1360428 | J168: 353.8421603 | K168: 11.715 | L168: 0.09936270421 | M168: 11.8143627 | N168: 11.67271406 | O168: 93.209 | P168: 0.7905675029 | Q168: 93.9995675 | R168: 92.87255696 | S168: 0.001 | T168: 8.481664892e-06 | U168: 0.001008481665 | V168: 0.0009963904447 | W168: 460.049 | X168: 3.901981452 | Y168: 463.9509815 | Z168: 458.3884277 | AB168: 108.642 | AC168: 0.9214650372 | AD168: 109.563465 | AE168: 108.2498507 | AF168: 2.221 | AG168: 0.01883777772 | AH168: 2.239837778 | AI168: 2.212983178 | AJ168: 13.24 | AK168: 0.1122972432 | AL168: 13.35229724 | AM168: 13.19220949 | AN168: 0 | AO168: 0 | AP168: 0 | AQ168: 0 | AR168: 124.103 | AS168: 1.052600058 | AT168: 125.1556001 | AU168: 123.6550434
A169: 2025-01-07 | B169: 13 | C169: On | D169: 46.74325 | E169: 0.012085592 | G169: 357.973 | H169: 3.433746853 | I169: 361.4067469 | J169: 357.0389324 | K169: 11.528 | L169: 0.110578825 | M169: 11.63857883 | N169: 11.49791971 | O169: 92.051 | P169: 0.8829711504 | Q169: 92.93397115 | R169: 91.81080909 | S169: 0.001 | T169: 9.592195091e-06 | U169: 0.001009592195 | V169: 0.0009973906757 | W169: 461.553 | X169: 4.427306421 | Y169: 465.9803064 | Z169: 460.3486586 | AB169: 109.363 | AC169: 1.049031232 | AD169: 110.4120312 | AE169: 109.0776365 | AF169: 2.219 | AG169: 0.02128508091 | AH169: 2.240285081 | AI169: 2.213209909 | AJ169: 13.053 | AK169: 0.1252069225 | AL169: 13.17820692 | AM169: 13.01894049 | AN169: 0 | AO169: 0 | AP169: 0 | AQ169: 0 | AR169: 124.635 | AS169: 1.195523235 | AT169: 125.8305232 | AU169: 124.3097869
A170: 2025-01-07 | B170: 14 | C170: On | D170: 38.44858 | E170: 0.01179264 | G170: 358.258 | H170: 3.619968079 | I170: 361.8779681 | J170: 357.6104715 | K170: 11.646 | L170: 0.1176753855 | M170: 11.76367539 | N170: 11.6249506 | O170: 91.409 | P170: 0.9236295132 | Q170: 92.33262951 | R170: 91.24378405 | S170: 0.001 | T170: 1.010436077e-05 | U170: 0.001010104361 | V170: 0.0009981925637 | W170: 461.314 | X170: 4.661283082 | Y170: 465.9752831 | Z170: 460.4802043 | AB170: 109.496 | AC170: 1.106387086 | AD170: 110.6023871 | AE170: 109.298093 | AF170: 2.159 | AG170: 0.02181531489 | AH170: 2.180815315 | AI170: 2.155097745 | AJ170: 12.837 | AK170: 0.1297096791 | AL170: 12.96670968 | AM170: 12.81379794 | AN170: 0 | AO170: 0 | AP170: 0 | AQ170: 0 | AR170: 124.492 | AS170: 1.25791208 | AT170: 125.7499121 | AU170: 124.2669886
A171: 2025-01-07 | B171: 15 | C171: On | D171: 39.105039 | E171: 0.011423719 | G171: 360.067 | H171: 2.887132652 | I171: 362.9541327 | J171: 358.8078466 | K171: 11.681 | L171: 0.09366200321 | M171: 11.774662 | N171: 11.64015157 | O171: 91.663 | P171: 0.7349833234 | Q171: 92.39798332 | R171: 91.34245473 | S171: 0.001 | T171: 8.018320624e-06 | U171: 0.001008018321 | V171: 0.0009965030026 | W171: 463.412 | X171: 3.715785997 | Y171: 467.127786 | Z171: 461.7914494 | AB171: 110.518 | AC171: 0.8861687587 | AD171: 111.4041688 | AE171: 110.1315188 | AF171: 2.167 | AG171: 0.01737570079 | AH171: 2.184375701 | AI171: 2.159422007 | AJ171: 12.859 | AK171: 0.1031075849 | AL171: 12.96210758 | AM171: 12.81403211 | AN171: 0 | AO171: 0 | AP171: 0 | AQ171: 0 | AR171: 125.544 | AS171: 1.006652044 | AT171: 126.550652 | AU171: 125.104973
A172: 2025-01-07 | B172: 16 | C172: On | D172: 36.268172 | E172: 0.011207364 | G172: 371.544 | H172: 3.303673823 | I172: 374.8476738 | J172: 370.6466195 | K172: 11.829 | L172: 0.1051804299 | M172: 11.93418043 | N172: 11.80042973 | O172: 93.754 | P172: 0.8336364888 | Q172: 94.58763649 | R172: 93.52755842 | S172: 0.001 | T172: 8.891743166e-06 | U172: 0.001008891743 | V172: 0.0009975847262 | W172: 477.128 | X172: 4.242499633 | Y172: 481.3704996 | Z172: 475.9756052 | AB172: 113.827 | AC172: 1.012120449 | AD172: 114.8391204 | AE172: 113.5520766 | AF172: 2.22 | AG172: 0.01973966983 | AH172: 2.23973967 | AI172: 2.214638092 | AJ172: 13.279 | AK172: 0.1180734575 | AL172: 13.39707346 | AM172: 13.24692758 | AN172: 0 | AO172: 0 | AP172: 0 | AQ172: 0 | AR172: 129.326 | AS172: 1.149933577 | AT172: 130.4759336 | AU172: 129.0136423
A173: 2025-01-07 | B173: 17 | C173: On | D173: 51.647707 | E173: 0.011777124 | G173: 394.912 | H173: 3.268828967 | I173: 398.180829 | J173: 393.491404 | K173: 12.503 | L173: 0.1034918376 | M173: 12.60649184 | N173: 12.45802362 | O173: 97.971 | P173: 0.8109412798 | Q173: 98.78194128 | R173: 97.61857411 | S173: 0.001 | T173: 8.277360442e-06 | U173: 0.00100827736 | V173: 0.0009964027529 | W173: 505.387 | X173: 4.183270362 | Y173: 509.5702704 | Z173: 503.5689981 | AB173: 121.693 | AC173: 1.007296824 | AD173: 122.7002968 | AE173: 121.2552402 | AF173: 2.356 | AG173: 0.0195014612 | AH173: 2.375501461 | AI173: 2.347524886 | AJ173: 13.849 | AK173: 0.1146331648 | AL173: 13.96363316 | AM173: 13.79918173 | AN173: 0.01 | AO173: 8.277360442e-05 | AP173: 0.0100827736 | AQ173: 0.009964027529 | AR173: 137.908 | AS173: 1.141514224 | AT173: 139.0495142 | AU173: 137.4119109
A174: 2025-01-07 | B174: 18 | C174: On | D174: 71.503821 | E174: 0.012303256 | G174: 433.115 | H174: 3.514142631 | I174: 436.6291426 | J174: 431.2571825 | K174: 13.434 | L174: 0.1089987465 | M174: 13.54299875 | N174: 13.37637577 | O174: 102.431 | P174: 0.8310890729 | Q174: 103.2620891 | R174: 101.9916292 | S174: 0.883 | T174: 0.007164351138 | U174: 0.8901643511 | V174: 0.8792124312 | W174: 549.863 | X174: 4.461394801 | Y174: 554.3243948 | Z174: 547.5043999 | AB174: 134.196 | AC174: 1.0888191 | AD174: 135.2848191 | AE174: 133.6203753 | AF174: 2.528 | AG174: 0.02051130201 | AH174: 2.548511302 | AI174: 2.517156315 | AJ174: 14.591 | AK174: 0.1183862372 | AL174: 14.70938624 | AM174: 14.52841289 | AN174: 4.333 | AO174: 0.03515643656 | AP174: 4.368156437 | AQ174: 4.31441389 | AR174: 155.648 | AS174: 1.262873076 | AT174: 156.9108731 | AU174: 154.9803584
A175: 2025-01-07 | B175: 19 | C175: On | D175: 53.162476 | E175: 0.011955349 | G175: 453.482 | H175: 4.67084458 | I175: 458.1528446 | J175: 452.6754674 | K175: 13.955 | L175: 0.1437358839 | M175: 14.09873588 | N175: 13.93018058 | O175: 104.763 | P175: 1.079054275 | Q175: 105.8420543 | R175: 104.5766756 | S175: 0.961 | T175: 0.009898257574 | U175: 0.9708982576 | V175: 0.9592908301 | W175: 573.161 | X175: 5.903532996 | Y175: 579.064533 | Z175: 572.1416144 | AB175: 139.579 | AC175: 1.437657538 | AD175: 141.0166575 | AE175: 139.3307542 | AF175: 2.546 | AG175: 0.0262236876 | AH175: 2.572223688 | AI175: 2.541471856 | AJ175: 14.921 | AK175: 0.1536856413 | AL175: 15.07468564 | AM175: 14.89446251 | AN175: 4.693 | AO175: 0.04833769282 | AP175: 4.741337693 | AQ175: 4.684653346 | AR175: 161.739 | AS175: 1.66590456 | AT175: 163.4049046 | AU175: 161.4513419
A176: 2025-01-07 | B176: 20 | C176: On | D176: 54.877662 | E176: 0.011949873 | G176: 454.118 | H176: 3.222524261 | I176: 457.3405243 | J176: 451.8753631 | K176: 13.875 | L176: 0.09846014498 | M176: 13.97346014 | N176: 13.80647907 | O176: 104.897 | P176: 0.7443728885 | Q176: 105.6413729 | R176: 104.3789719 | S176: 1.845 | T176: 0.0130925382 | U176: 1.858092538 | V176: 1.835888568 | W176: 574.735 | X176: 4.078449832 | Y176: 578.8134498 | Z176: 571.8967026 | AB176: 138.703 | AC176: 0.9842679271 | AD176: 139.6872679 | AE176: 138.0180228 | AF176: 2.558 | AG176: 0.01815214781 | AH176: 2.576152148 | AI176: 2.545367457 | AJ176: 14.961 | AK176: 0.1061666471 | AL176: 15.06716665 | AM176: 14.88711592 | AN176: 9.007 | AO176: 0.06391571357 | AP176: 9.070915714 | AQ176: 8.962519423 | AR176: 165.229 | AS176: 1.172502436 | AT176: 166.4015024 | AU176: 164.4130256
A177: 2025-01-07 | B177: 21 | C177: On | D177: 49.188174 | E177: 0.012021124 | G177: 447.546 | H177: 2.856514426 | I177: 450.4025144 | J177: 444.9881699 | K177: 13.761 | L177: 0.08783118386 | M177: 13.84883118 | N177: 13.68235267 | O177: 104.602 | P177: 0.6676344375 | Q177: 105.2696344 | R177: 104.0041751 | S177: 1.845 | T177: 0.0117759272 | U177: 1.856775927 | V177: 1.834455394 | W177: 567.754 | X177: 3.623755974 | Y177: 571.377756 | Z177: 564.5091531 | AB177: 136.553 | AC177: 0.8715654131 | AD177: 137.4245654 | AE177: 135.7725677 | AF177: 2.526 | AG177: 0.01612248895 | AH177: 2.542122489 | AI177: 2.511563319 | AJ177: 14.859 | AK177: 0.09483929663 | AL177: 14.9538393 | AM177: 14.77407734 | AN177: 9.007 | AO177: 0.05748822564 | AP177: 9.064488226 | AQ177: 8.955522889 | AR177: 162.945 | AS177: 1.040015424 | AT177: 163.9850154 | AU177: 162.0137312
A178: 2025-01-07 | B178: 22 | C178: On | D178: 45.602545 | E178: 0.012277214 | G178: 428.945 | H178: 2.687832993 | I178: 431.632833 | J178: 426.3335843 | K178: 13.47 | L178: 0.08440501793 | M178: 13.55440502 | N178: 13.38799469 | O178: 101.415 | P178: 0.6354814323 | Q178: 102.0504814 | R178: 100.7975858 | S178: 1.845 | T178: 0.01156104366 | U178: 1.856561044 | V178: 1.833767646 | W178: 545.675 | X178: 3.419280487 | Y178: 549.0942805 | Z178: 542.3529325 | AB178: 130.548 | AC178: 0.8180331315 | AD178: 131.3660331 | AE178: 129.7532242 | AF178: 2.422 | AG178: 0.01517661124 | AH178: 2.437176611 | AI178: 2.407254872 | AJ178: 14.294 | AK178: 0.08956832415 | AL178: 14.38356832 | AM178: 14.20697818 | AN178: 9.007 | AO178: 0.05643919796 | AP178: 9.063439198 | AQ178: 8.952165415 | AR178: 156.271 | AS178: 0.9792172648 | AT178: 157.2502173 | AU178: 155.3196227
A179: 2025-01-07 | B179: 23 | C179: On | D179: 40.936597 | E179: 0.012449315 | G179: 396.838 | H179: 3.671757896 | I179: 400.5097579 | J179: 395.5236858 | K179: 12.644 | L179: 0.1169890657 | M179: 12.76098907 | N179: 12.60212349 | O179: 97.158 | P179: 0.8989578964 | Q179: 98.0569579 | R179: 96.83621594 | S179: 1.845 | T179: 0.01707092899 | U179: 1.862070929 | V179: 1.838889421 | W179: 508.485 | X179: 4.704775788 | Y179: 513.1897758 | Z179: 506.8009146 | AB179: 120.499 | AC179: 1.11492134 | AD179: 121.6139213 | AE179: 120.0999113 | AF179: 2.268 | AG179: 0.02098475174 | AH179: 2.288984752 | AI179: 2.26048846 | AJ179: 13.808 | AK179: 0.1277590176 | AL179: 13.93575902 | AM179: 13.76226836 | AN179: 9.007 | AO179: 0.0833375921 | AP179: 9.090337592 | AQ179: 8.977169116 | AR179: 145.582 | AS179: 1.347002702 | AT179: 146.9290027 | AU179: 145.0998373
A180: 2025-01-07 | B180: 24 | C180: Off | D180: 42.841489 | E180: 0.01301993 | G180: 364.573 | H180: 3.187803922 | I180: 367.7608039 | J180: 362.972584 | K180: 11.794 | L180: 0.1031260117 | M180: 11.89712601 | N180: 11.74222626 | O180: 93.176 | P180: 0.8147252217 | Q180: 93.99072522 | R180: 92.76697256 | S180: 1.845 | T180: 0.01613256669 | U180: 1.861132567 | V180: 1.836900751 | W180: 471.388 | X180: 4.121787722 | Y180: 475.5097877 | Z180: 469.3186836 | AB180: 109.179 | AC180: 0.9546544709 | AD180: 110.1336545 | AE180: 108.699722 | AF180: 2.136 | AG180: 0.01867705282 | AH180: 2.154677053 | AI180: 2.126623308 | AJ180: 13.184 | AK180: 0.1152800863 | AL180: 13.29928009 | AM180: 13.12612439 | AN180: 9.007 | AO180: 0.07875665484 | AP180: 9.085756655 | AQ180: 8.967460739 | AR180: 133.506 | AS180: 1.167368265 | AT180: 134.6733683 | AU180: 132.9199304
A181: 2025-01-08 | B181: 1 | C181: Off | D181: 36.09088 | E181: 0.012760049 | G181: 336.875 | H181: 2.827455916 | I181: 339.7024559 | J181: 335.3678359 | K181: 11.277 | L181: 0.09465000481 | M181: 11.37165 | N181: 11.22654719 | O181: 89.94 | P181: 0.754883518 | Q181: 90.69488352 | R181: 89.53761236 | S181: 1.845 | T181: 0.01548543574 | U181: 1.860485436 | V181: 1.83674555 | W181: 439.937 | X181: 3.692474875 | Y181: 443.6294749 | Z181: 437.968741 | AB181: 100.437 | AC181: 0.8429868345 | AD181: 101.2799868 | AE181: 99.98764924 | AF181: 2.038 | AG181: 0.01710532143 | AH181: 2.055105321 | AI181: 2.028882077 | AJ181: 12.701 | AK181: 0.1066019075 | AL181: 12.80760191 | AM181: 12.64417628 | AN181: 9.006 | AO181: 0.07558907008 | AP181: 9.08158907 | AQ181: 8.965707549 | AR181: 124.182 | AS181: 1.042283134 | AT181: 125.2242831 | AU181: 123.6264151
A182: 2025-01-08 | B182: 2 | C182: Off | D182: 34.732161 | E182: 0.012733127 | G182: 319.901 | H182: 3.302175685 | I182: 323.2031757 | J182: 319.0877886 | K182: 10.984 | L182: 0.113382258 | M182: 11.09738226 | N182: 10.95607788 | O182: 88.687 | P182: 0.9154708957 | Q182: 89.6024709 | R182: 88.46155125 | S182: 1.845 | T182: 0.01904499873 | U182: 1.864044999 | V182: 1.840309877 | W182: 421.417 | X182: 4.350073838 | Y182: 425.7670738 | Z182: 420.3457276 | AB182: 95.385 | AC182: 0.9846109507 | AD182: 96.36961095 | AE182: 95.14252446 | AF182: 1.961 | AG182: 0.02024240787 | AH182: 1.981242408 | AI182: 1.956014997 | AJ182: 12.634 | AK182: 0.1304143707 | AL182: 12.76441437 | AM182: 12.60188346 | AN182: 9.006 | AO182: 0.09296436779 | AP182: 9.098964368 | AQ182: 8.983106099 | AR182: 118.986 | AS182: 1.228232097 | AT182: 120.2142321 | AU182: 118.683529
A183: 2025-01-08 | B183: 3 | C183: Off | D183: 36.63089 | E183: 0.013015622 | G183: 309.629 | H183: 2.832482619 | I183: 312.4614826 | J183: 308.3946021 | K183: 10.81 | L183: 0.09888975875 | M183: 10.90888976 | N183: 10.76690377 | O183: 88.065 | P183: 0.8056176322 | Q183: 88.87061763 | R183: 87.71391127 | S183: 1.845 | T183: 0.01687803931 | U183: 1.861878039 | V183: 1.837644539 | W183: 410.349 | X183: 3.753868049 | Y183: 414.102868 | Z183: 408.7130616 | AB183: 92.541 | AC183: 0.84656403 | AD183: 93.38756403 | AE183: 92.1720668 | AF183: 1.951 | AG183: 0.01784772612 | AH183: 1.968847726 | AI183: 1.943221948 | AJ183: 12.558 | AK183: 0.1148804431 | AL183: 12.67288044 | AM183: 12.50793502 | AN183: 9.006 | AO183: 0.08238678698 | AP183: 9.088386787 | AQ183: 8.97009578 | AR183: 116.056 | AS183: 1.061678986 | AT183: 117.117679 | AU183: 115.5933195
A184: 2025-01-08 | B184: 4 | C184: Off | D184: 42.770188 | E184: 0.013215147 | G184: 304.644 | H184: 3.205333932 | I184: 307.8493339 | J184: 303.7810597 | K184: 10.715 | L184: 0.1127386493 | M184: 10.82773865 | N184: 10.68464849 | O184: 87.795 | P184: 0.9237414575 | Q184: 88.71874146 | R184: 87.54631025 | S184: 1.845 | T184: 0.01941230126 | U184: 1.864412301 | V184: 1.839773819 | W184: 404.999 | X184: 4.261226341 | Y184: 409.2602263 | Z184: 403.8517923 | AB184: 91.3 | AC184: 0.9606195692 | AD184: 92.26061957 | AE184: 91.04138192 | AF184: 1.909 | AG184: 0.0200856819 | AH184: 1.929085682 | AI184: 1.903592531 | AJ184: 12.561 | AK184: 0.1321614722 | AL184: 12.69316147 | AM184: 12.52541948 | AN184: 9.006 | AO184: 0.09475728193 | AP184: 9.100757282 | AQ184: 8.980489437 | AR184: 114.776 | AS184: 1.207624005 | AT184: 115.983624 | AU184: 114.4508834
A185: 2025-01-08 | B185: 5 | C185: Off | D185: 37.238653 | E185: 0.012790144 | G185: 306.131 | H185: 2.933199576 | I185: 309.0641996 | J185: 305.111224 | K185: 10.879 | L185: 0.1042373304 | M185: 10.98323733 | N185: 10.84276014 | O185: 89.024 | P185: 0.8529850262 | Q185: 89.87698503 | R185: 88.72744545 | S185: 1.845 | T185: 0.01767790004 | U185: 1.8626779 | V185: 1.838853981 | W185: 407.879 | X185: 3.908099833 | Y185: 411.7870998 | Z185: 406.5202835 | AB185: 92.365 | AC185: 0.8849968767 | AD185: 93.24999688 | AE185: 92.05731599 | AF185: 2.024 | AG185: 0.0193929917 | AH185: 2.043392992 | AI185: 2.017257701 | AJ185: 12.777 | AK185: 0.1224230509 | AL185: 12.89942305 | AM185: 12.73443757 | AN185: 9.006 | AO185: 0.08629114785 | AP185: 9.092291148 | AQ185: 8.975999435 | AR185: 116.172 | AS185: 1.113104067 | AT185: 117.2851041 | AU185: 115.7850107
A186: 2025-01-08 | B186: 6 | C186: Off | D186: 34.997827 | E186: 0.012574752 | G186: 316.838 | H186: 3.995384388 | I186: 320.8333844 | J186: 316.7989841 | K186: 11.297 | L186: 0.1424572098 | M186: 11.43945721 | N186: 11.29560887 | O186: 92.189 | P186: 1.162519935 | Q186: 93.35151994 | R186: 92.17764772 | S186: 1.845 | T186: 0.02326578313 | U186: 1.868265783 | V186: 1.844772804 | W186: 422.169 | X186: 5.323627316 | Y186: 427.4926273 | Z186: 422.1170135 | AB186: 95.899 | AC186: 1.209303705 | AD186: 97.10830371 | AE186: 95.88719087 | AF186: 2.054 | AG186: 0.02590131087 | AH186: 2.079901311 | AI186: 2.053747068 | AJ186: 13.112 | AK186: 0.1653446875 | AL186: 13.27734469 | AM186: 13.11038537 | AN186: 9.006 | AO186: 0.1135672861 | AP186: 9.119567286 | AQ186: 9.004890989 | AR186: 120.071 | AS186: 1.51411699 | AT186: 121.585117 | AU186: 120.0562143
A187: 2025-01-08 | B187: 7 | C187: Off | D187: 39.78908 | E187: 0.012739491 | G187: 338.787 | H187: 3.752861722 | I187: 342.5398617 | J187: 338.1760782 | K187: 12.033 | L187: 0.1332937365 | M187: 12.16629374 | N187: 12.01130135 | O187: 97.575 | P187: 1.080872296 | Q187: 98.6558723 | R187: 97.3990467 | S187: 1.845 | T187: 0.02043770829 | U187: 1.865437708 | V187: 1.841672981 | W187: 450.24 | X187: 4.987465463 | Y187: 455.2274655 | Z187: 449.4280993 | AB187: 102.826 | AC187: 1.139039454 | AD187: 103.9650395 | AE187: 102.6405778 | AF187: 2.182 | AG187: 0.02417077479 | AH187: 2.206170775 | AI187: 2.178065282 | AJ187: 13.879 | AK187: 0.1537425221 | AL187: 14.03274252 | AM187: 13.85397253 | AN187: 9.006 | AO187: 0.09976260208 | AP187: 9.105762602 | AQ187: 8.989759821 | AR187: 127.893 | AS187: 1.416715353 | AT187: 129.3097154 | AU187: 127.6623754
A188: 2025-01-08 | B188: 8 | C188: On | D188: 54.531492 | E188: 0.012945435 | G188: 353.724 | H188: 5.270163802 | I188: 358.9941638 | J188: 354.3468282 | K188: 12.539 | L188: 0.1868196218 | M188: 12.72581962 | N188: 12.56107835 | O188: 100.207 | P188: 1.492992571 | Q188: 101.6999926 | R188: 100.3834419 | S188: 0.27 | T188: 0.004022752843 | U188: 0.2740227528 | V188: 0.2704754091 | W188: 466.74 | X188: 6.953998748 | Y188: 473.6939987 | Z188: 467.5618239 | AB188: 107.198 | AC188: 1.597152071 | AD188: 108.7951521 | AE188: 107.3867515 | AF188: 2.29 | AG188: 0.03411890374 | AH188: 2.324118904 | AI188: 2.294032174 | AJ188: 14.08 | AK188: 0.2097791112 | AL188: 14.28977911 | AM188: 14.1047917 | AN188: 1.338 | AO188: 0.0199349752 | AP188: 1.357934975 | AQ188: 1.340355916 | AR188: 124.906 | AS188: 1.860985061 | AT188: 126.7669851 | AU188: 125.1259313
A189: 2025-01-08 | B189: 9 | C189: On | D189: 46.515901 | E189: 0.011705721 | G189: 354.463 | H189: 4.377409512 | I189: 358.8404095 | J189: 354.6399238 | K189: 12.554 | L189: 0.1550345142 | M189: 12.70903451 | N189: 12.5602661 | O189: 100.188 | P189: 1.237262857 | Q189: 101.4252629 | R189: 100.238007 | S189: 0.001 | T189: 1.234941168e-05 | U189: 0.001012349412 | V189: 0.001000499132 | W189: 467.206 | X189: 5.769719233 | Y189: 472.9757192 | Z189: 467.4391974 | AB189: 108.227 | AC189: 1.336539778 | AD189: 109.5635398 | AE189: 108.2810195 | AF189: 2.294 | AG189: 0.02832955039 | AH189: 2.32232955 | AI189: 2.295145009 | AJ189: 14.149 | AK189: 0.1747318258 | AL189: 14.32373183 | AM189: 14.15606222 | AN189: 0.017 | AO189: 0.0002099399985 | AP189: 0.01720994 | AQ189: 0.01700848524 | AR189: 124.687 | AS189: 1.539811094 | AT189: 126.2268111 | AU189: 124.7492353
A190: 2025-01-08 | B190: 10 | C190: On | D190: 38.008894 | E190: 0.011340928 | G190: 353.215 | H190: 3.685962899 | I190: 356.9009629 | J190: 352.8533748 | K190: 12.204 | L190: 0.1273544193 | M190: 12.33135442 | N190: 12.19150542 | O190: 97.685 | P190: 1.019388434 | Q190: 98.70438843 | R190: 97.58498907 | S190: 0.001 | T190: 1.043546536e-05 | U190: 0.001010435465 | V190: 0.0009989761895 | W190: 463.105 | X190: 4.832716187 | Y190: 467.9377162 | Z190: 462.6308682 | AB190: 108.186 | AC190: 1.128971256 | AD190: 109.3149713 | AE190: 108.075238 | AF190: 2.284 | AG190: 0.02383460289 | AH190: 2.307834603 | AI190: 2.281661617 | AJ190: 13.69 | AK190: 0.1428615208 | AL190: 13.83286152 | AM190: 13.67598403 | AN190: 0 | AO190: 0 | AP190: 0 | AQ190: 0 | AR190: 124.16 | AS190: 1.29566738 | AT190: 125.4556674 | AU190: 124.0328837
A191: 2025-01-08 | B191: 11 | C191: On | D191: 62.555619 | E191: 0.012192107 | G191: 351.335 | H191: 2.704683669 | I191: 354.0396837 | J191: 349.723194 | K191: 11.976 | L191: 0.09219488983 | M191: 12.06819489 | N191: 11.92105817 | O191: 94.741 | P191: 0.7293450282 | Q191: 95.47034503 | R191: 94.30636037 | S191: 0.001 | T191: 7.698304094e-06 | U191: 0.001007698304 | V191: 0.0009954123385 | W191: 458.053 | X191: 3.526231285 | Y191: 461.5792313 | Z191: 455.9516079 | AB191: 107.996 | AC191: 0.831386049 | AD191: 108.827386 | AE191: 107.5005509 | AF191: 2.183 | AG191: 0.01680539784 | AH191: 2.199805398 | AI191: 2.172985135 | AJ191: 13.434 | AK191: 0.1034190172 | AL191: 13.53741902 | AM191: 13.37236936 | AN191: 0 | AO191: 0 | AP191: 0 | AQ191: 0 | AR191: 123.613 | AS191: 0.951610464 | AT191: 124.5646105 | AU191: 123.0459054
A192: 2025-01-08 | B192: 12 | C192: On | D192: 47.842544 | E192: 0.012175673 | G192: 353.012 | H192: 4.01346432 | I192: 357.0254643 | J192: 352.678439 | K192: 11.74 | L192: 0.1334744176 | M192: 11.87347442 | N192: 11.72890688 | O192: 92.51 | P192: 1.051764768 | Q192: 93.56176477 | R192: 92.42258731 | S192: 0.001 | T192: 1.136920082e-05 | U192: 0.001011369201 | V192: 0.0009990551002 | W192: 457.263 | X192: 5.198714875 | Y192: 462.4617149 | Z192: 456.8309323 | AB192: 108.056 | AC192: 1.228510364 | AD192: 109.2845104 | AE192: 107.9538979 | AF192: 2.177 | AG192: 0.02475075019 | AH192: 2.20175075 | AI192: 2.174942953 | AJ192: 13.086 | AK192: 0.148777362 | AL192: 13.23477736 | AM192: 13.07363504 | AN192: 0 | AO192: 0 | AP192: 0 | AQ192: 0 | AR192: 123.319 | AS192: 1.402038476 | AT192: 124.7210385 | AU192: 123.2024759
A193: 2025-01-08 | B193: 13 | C193: On | D193: 32.737973 | E193: 0.011555035 | G193: 356.27 | H193: 3.622099111 | I193: 359.8920991 | J193: 355.7335333 | K193: 11.73 | L193: 0.1192556841 | M193: 11.84925568 | N193: 11.71233712 | O193: 91.692 | P193: 0.9322073475 | Q193: 92.62420735 | R193: 91.55393139 | S193: 0.001 | T193: 1.016672499e-05 | U193: 0.001010166725 | V193: 0.0009984942131 | W193: 459.693 | X193: 4.67357231 | Y193: 464.3665723 | Z193: 459.0008003 | AB193: 109.1 | AC193: 1.109189696 | AD193: 110.2091897 | AE193: 108.9357187 | AF193: 2.177 | AG193: 0.0221329603 | AH193: 2.19913296 | AI193: 2.173721902 | AJ193: 12.992 | AK193: 0.132086091 | AL193: 13.12408609 | AM193: 12.97243682 | AN193: 0 | AO193: 0 | AP193: 0 | AQ193: 0 | AR193: 124.269 | AS193: 1.263408747 | AT193: 125.5324087 | AU193: 124.0818774
A194: 2025-01-08 | B194: 14 | C194: On | D194: 33.807394 | E194: 0.011269901 | G194: 356.206 | H194: 3.276543755 | I194: 359.4825438 | J194: 355.4312111 | K194: 11.629 | L194: 0.1069687971 | M194: 11.7359688 | N194: 11.60370559 | O194: 90.942 | P194: 0.8365256121 | Q194: 91.77852561 | R194: 90.74419071 | S194: 0.001 | T194: 9.198451893e-06 | U194: 0.001009198452 | V194: 0.0009978248853 | W194: 458.778 | X194: 4.220047363 | Y194: 462.9980474 | Z194: 457.7801052 | AB194: 109.043 | AC194: 1.00302679 | AD194: 110.0460268 | AE194: 108.805819 | AF194: 2.185 | AG194: 0.02009861739 | AH194: 2.205098617 | AI194: 2.180247374 | AJ194: 12.922 | AK194: 0.1188623954 | AL194: 13.0408624 | AM194: 12.89389317 | AN194: 0 | AO194: 0 | AP194: 0 | AQ194: 0 | AR194: 124.15 | AS194: 1.141987803 | AT194: 125.2919878 | AU194: 123.8799595
A195: 2025-01-08 | B195: 15 | C195: On | D195: 37.268289 | E195: 0.01154267 | G195: 360.574 | H195: 2.769557804 | I195: 363.3435578 | J195: 359.149603 | K195: 11.825 | L195: 0.0908274613 | M195: 11.91582746 | N195: 11.778287 | O195: 93.285 | P195: 0.7165192158 | Q195: 94.00151922 | R195: 92.9164907 | S195: 0.001 | T195: 7.680969243e-06 | U195: 0.001007680969 | V195: 0.0009960496403 | W195: 465.685 | X195: 3.576912162 | Y195: 469.2619122 | Z195: 463.8453768 | AB195: 110.436 | AC195: 0.8482555193 | AD195: 111.2842555 | AE195: 109.9997381 | AF195: 2.178 | AG195: 0.01672915101 | AH195: 2.194729151 | AI195: 2.169396117 | AJ195: 13.239 | AK195: 0.1016883518 | AL195: 13.34068835 | AM195: 13.18670119 | AN195: 0 | AO195: 0 | AP195: 0 | AQ195: 0 | AR195: 125.853 | AS195: 0.9666730221 | AT195: 126.819673 | AU195: 125.3558354
A196: 2025-01-08 | B196: 16 | C196: On | D196: 40.590871 | E196: 0.011479305 | G196: 372.595 | H196: 3.667970374 | I196: 376.2629704 | J196: 371.943733 | K196: 12.191 | L196: 0.1200129546 | M196: 12.31101295 | N196: 12.16969108 | O196: 95.76 | P196: 0.9426987561 | Q196: 96.70269876 | R196: 95.59261898 | S196: 0.001 | T196: 9.844389684e-06 | U196: 0.00100984439 | V196: 0.0009982520779 | W196: 480.547 | X196: 4.730691929 | Y196: 485.2776919 | Z196: 479.7070413 | AB196: 114.393 | AC196: 1.126129269 | AD196: 115.5191293 | AE196: 114.19305 | AF196: 2.177 | AG196: 0.02143123634 | AH196: 2.198431236 | AI196: 2.173194774 | AJ196: 13.534 | AK196: 0.13323397 | AL196: 13.66723397 | AM196: 13.51034362 | AN196: 0 | AO196: 0 | AP196: 0 | AQ196: 0 | AR196: 130.104 | AS196: 1.280794475 | AT196: 131.3847945 | AU196: 129.8765883
A197: 2025-01-08 | B197: 17 | C197: On | D197: 50.844109 | E197: 0.011302395 | G197: 398.456 | H197: 3.197138421 | I197: 401.6531384 | J197: 397.113496 | K197: 12.807 | L197: 0.102761037 | M197: 12.90976104 | N197: 12.76384982 | O197: 99.92 | P197: 0.8017398936 | Q197: 100.7217399 | R197: 99.583343 | S197: 0.001 | T197: 8.023817991e-06 | U197: 0.001008023818 | V197: 0.0009966307346 | W197: 511.184 | X197: 4.101647376 | Y197: 515.2856474 | Z197: 509.4616855 | AB197: 122.783 | AC197: 0.9851884443 | AD197: 123.7681884 | AE197: 122.3693115 | AF197: 2.361 | AG197: 0.01894423428 | AH197: 2.379944234 | AI197: 2.353045164 | AJ197: 14.172 | AK197: 0.1137135486 | AL197: 14.28571355 | AM197: 14.12425077 | AN197: 0.019 | AO197: 0.0001524525418 | AP197: 0.01915245254 | AQ197: 0.01893598396 | AR197: 139.335 | AS197: 1.11799868 | AT197: 140.4529987 | AU197: 138.8655434
A198: 2025-01-08 | B198: 18 | C198: On | D198: 74.716977 | E198: 0.012187195 | G198: 436.219 | H198: 4.502419924 | I198: 440.7214199 | J198: 435.350262 | K198: 13.694 | L198: 0.1413421663 | M198: 13.83534217 | N198: 13.66672815 | O198: 104.69 | P198: 1.080554359 | Q198: 105.7705544 | R198: 104.481508 | S198: 0.882 | T198: 0.009103533713 | U198: 0.8911035337 | V198: 0.8802434812 | W198: 555.485 | X198: 5.733419982 | Y198: 561.21842 | Z198: 554.3787417 | AB198: 135.461 | AC198: 1.398156213 | AD198: 136.8591562 | AE198: 135.191227 | AF198: 2.54 | AG198: 0.02621652566 | AH198: 2.566216526 | AI198: 2.534941544 | AJ198: 14.709 | AK198: 0.1518184551 | AL198: 14.86081846 | AM198: 14.67970676 | AN198: 4.333 | AO198: 0.04472291562 | AP198: 4.377722916 | AQ198: 4.324370753 | AR198: 157.043 | AS198: 1.62091411 | AT198: 158.6639141 | AU198: 156.730246
A199: 2025-01-08 | B199: 19 | C199: On | D199: 67.790822 | E199: 0.012047259 | G199: 453.453 | H199: 4.870257712 | I199: 458.3232577 | J199: 452.8017187 | K199: 14.178 | L199: 0.1522771133 | M199: 14.33027711 | N199: 14.15763655 | O199: 106.953 | P199: 1.148715905 | Q199: 108.1017159 | R199: 106.7993865 | S199: 0.961 | T199: 0.01032150556 | U199: 0.9713215056 | V199: 0.9596197438 | W199: 575.545 | X199: 6.181572235 | Y199: 581.7265722 | Z199: 574.7183616 | AB199: 139.902 | AC199: 1.502600698 | AD199: 141.4046007 | AE199: 139.7010628 | AF199: 2.609 | AG199: 0.02802165245 | AH199: 2.637021652 | AI199: 2.60525277 | AJ199: 14.983 | AK199: 0.1609231195 | AL199: 15.14392312 | AM199: 14.96148036 | AN199: 4.691 | AO199: 0.05038312444 | AP199: 4.741383124 | AQ199: 4.684262454 | AR199: 162.185 | AS199: 1.741928595 | AT199: 163.9269286 | AU199: 161.9520584
A200: 2025-01-08 | B200: 20 | C200: On | D200: 51.323261 | E200: 0.012626249 | G200: 454.482 | H200: 4.077877885 | I200: 458.5598779 | J200: 452.7699867 | K200: 14.206 | L200: 0.1274645272 | M200: 14.33346453 | N200: 14.15248664 | O200: 107.314 | P200: 0.9628838707 | Q200: 108.2768839 | R200: 106.909753 | S200: 1.845 | T200: 0.01655441733 | U200: 1.861554417 | V200: 1.838049968 | W200: 577.847 | X200: 5.1847807 | Y200: 583.0317807 | Z200: 575.6702763 | AB200: 139.187 | AC200: 1.248867038 | AD200: 140.435867 | AE200: 138.6626888 | AF200: 2.589 | AG200: 0.02323001977 | AH200: 2.61223002 | AI200: 2.579247353 | AJ200: 15.133 | AK200: 0.1357821125 | AL200: 15.26878211 | AM200: 15.07599467 | AN200: 9.006 | AO200: 0.08080709078 | AP200: 9.086807091 | AQ200: 8.972074802 | AR200: 165.915 | AS200: 1.488686261 | AT200: 167.4036863 | AU200: 165.2900056
A201: 2025-01-08 | B201: 21 | C201: On | D201: 46.414345 | E201: 0.012694781 | G201: 449.596 | H201: 3.480353609 | I201: 453.0763536 | J201: 447.3246485 | K201: 14.15 | L201: 0.1095361248 | M201: 14.25953612 | N201: 14.07851444 | O201: 107.036 | P201: 0.8285730498 | Q201: 107.864573 | R201: 106.4952559 | S201: 1.845 | T201: 0.0142822721 | U201: 1.859282272 | V201: 1.835679091 | W201: 572.627 | X201: 4.432745056 | Y201: 577.0597451 | Z201: 569.734098 | AB201: 137.314 | AC201: 1.062957134 | AD201: 138.3769571 | AE201: 136.620292 | AF201: 2.591 | AG201: 0.0200571095 | AH201: 2.611057109 | AI201: 2.577910311 | AJ201: 15.167 | AK201: 0.1174087919 | AL201: 15.28440879 | AM201: 15.09037657 | AN201: 9.006 | AO201: 0.06971606643 | AP201: 9.075716066 | AQ201: 8.960501839 | AR201: 164.078 | AS201: 1.270139102 | AT201: 165.3481391 | AU201: 163.2490807
A202: 2025-01-08 | B202: 22 | C202: On | D202: 38.059792 | E202: 0.012468938 | G202: 431.879 | H202: 4.299063976 | I202: 436.178064 | J202: 430.7393867 | K202: 13.7 | L202: 0.1363742541 | M202: 13.83637425 | N202: 13.66384936 | O202: 104.927 | P202: 1.044477471 | Q202: 105.9714775 | R202: 104.6501257 | S202: 1.845 | T202: 0.01836572984 | U202: 1.86336573 | V202: 1.840131538 | W202: 552.351 | X202: 5.498281431 | Y202: 557.8492814 | Z202: 550.8934933 | AB202: 131.726 | AC202: 1.31124343 | AD202: 133.0372434 | AE202: 131.3784103 | AF202: 2.488 | AG202: 0.02476636088 | AH202: 2.512766361 | AI202: 2.481434833 | AJ202: 14.891 | AK202: 0.1482298553 | AL202: 15.03922986 | AM202: 14.85170663 | AN202: 9.006 | AO202: 0.08964865198 | AP202: 9.095648652 | AQ202: 8.982235573 | AR202: 158.111 | AS202: 1.573888298 | AT202: 159.6848883 | AU202: 157.6937873
A203: 2025-01-08 | B203: 23 | C203: On | D203: 36.546358 | E203: 0.012518591 | G203: 399.367 | H203: 3.621653141 | I203: 402.9886531 | J203: 397.943803 | K203: 12.906 | L203: 0.117037851 | M203: 13.02303785 | N203: 12.86000777 | O203: 100.448 | P203: 0.9109110535 | Q203: 101.3589111 | R203: 100.0900403 | S203: 1.845 | T203: 0.01673135248 | U203: 1.861731352 | V203: 1.838425099 | W203: 514.566 | X203: 4.666333398 | Y203: 519.2323334 | Z203: 512.7322762 | AB203: 121.621 | AC203: 1.102918059 | AD203: 122.7239181 | AE203: 121.1875875 | AF203: 2.33 | AG203: 0.02112956709 | AH203: 2.351129567 | AI203: 2.321696738 | AJ203: 14.262 | AK203: 0.1293347149 | AL203: 14.39133471 | AM203: 14.21117548 | AN203: 9.006 | AO203: 0.08167076445 | AP203: 9.087670764 | AQ203: 8.973905931 | AR203: 147.219 | AS203: 1.335053106 | AT203: 148.5540531 | AU203: 146.6943657
A204: 2025-01-08 | B204: 24 | C204: Off | D204: 29.7206 | E204: 0.012357463 | G204: 367.16 | H204: 3.234355968 | I204: 370.394356 | J204: 365.8172214 | K204: 12.302 | L204: 0.1083697764 | M204: 12.41036978 | N204: 12.25700909 | O204: 97.008 | P204: 0.8545549726 | Q204: 97.86255497 | R204: 96.65322207 | S204: 1.845 | T204: 0.01625282373 | U204: 1.861252824 | V204: 1.838252461 | W204: 478.315 | X204: 4.213533541 | Y204: 482.5285335 | Z204: 476.565705 | AB204: 110.175 | AC204: 0.9705446366 | AD204: 111.1455446 | AE204: 109.7720677 | AF204: 2.21 | AG204: 0.019468152 | AH204: 2.229468152 | AI204: 2.201917582 | AJ204: 13.689 | AK204: 0.1205880239 | AL204: 13.80958802 | AM204: 13.63893655 | AN204: 9.006 | AO204: 0.07933492169 | AP204: 9.085334922 | AQ204: 8.973063232 | AR204: 135.08 | AS204: 1.189935734 | AT204: 136.2699357 | AU204: 134.585985
A205: 2025-01-09 | B205: 1 | C205: Off | D205: 30.687532 | E205: 0.012340712 | G205: 342.145 | H205: 4.070192803 | I205: 346.2151928 | J205: 341.9426508 | K205: 11.825 | L205: 0.1406714402 | M205: 11.96567144 | N205: 11.81800654 | O205: 94.674 | P205: 1.126251833 | Q205: 95.80025183 | R205: 94.61800852 | S205: 1.844 | T205: 0.02193641739 | U205: 1.865936417 | V205: 1.842909433 | W205: 450.488 | X205: 5.359052494 | Y205: 455.8470525 | Z205: 450.2215753 | AB205: 102.288 | AC205: 1.216828776 | AD205: 103.5048288 | AE205: 102.2275055 | AF205: 2.124 | AG205: 0.02526732676 | AH205: 2.149267327 | AI205: 2.122743838 | AJ205: 13.378 | AK205: 0.159146091 | AL205: 13.53714609 | AM205: 13.37008807 | AN205: 9.006 | AO205: 0.1071363205 | AP205: 9.113136321 | AQ205: 9.00067373 | AR205: 126.796 | AS205: 1.508378514 | AT205: 128.3043785 | AU205: 126.7210111
A206: 2025-01-09 | B206: 2 | C206: Off | D206: 36.83066 | E206: 0.011401267 | G206: 325.879 | H206: 2.683153397 | I206: 328.5621534 | J206: 324.8161286 | K206: 11.525 | L206: 0.09489210074 | M206: 11.6198921 | N206: 11.48741061 | O206: 93.486 | P206: 0.7697251999 | Q206: 94.2557252 | R206: 93.18109051 | S206: 1.844 | T206: 0.01518273612 | U206: 1.859182736 | V206: 1.837985697 | W206: 432.734 | X206: 3.562953433 | Y206: 436.2969534 | Z206: 431.3226154 | AB206: 97.439 | AC206: 0.802272573 | AD206: 98.24127257 | AE206: 97.12119759 | AF206: 2.137 | AG206: 0.01759517738 | AH206: 2.154595177 | AI206: 2.130030062 | AJ206: 13.295 | AK206: 0.1094655513 | AL206: 13.40446555 | AM206: 13.25163766 | AN206: 9.006 | AO206: 0.07415169277 | AP206: 9.080151693 | AQ206: 8.976626459 | AR206: 121.877 | AS206: 1.003484994 | AT206: 122.880485 | AU206: 121.4794918
A207: 2025-01-09 | B207: 3 | C207: Off | D207: 39.945479 | E207: 0.011625515 | G207: 316.043 | H207: 2.968209235 | I207: 319.0112092 | J207: 315.3025396 | K207: 11.28 | L207: 0.1059393822 | M207: 11.38593938 | N207: 11.25357197 | O207: 92.61 | P207: 0.8697735981 | Q207: 93.4797736 | R207: 92.39302309 | S207: 1.844 | T207: 0.01731845929 | U207: 1.861318459 | V207: 1.839679674 | W207: 421.777 | X207: 3.961240675 | Y207: 425.7382407 | Z207: 420.7888144 | AB207: 94.598 | AC207: 0.888444475 | AD207: 95.48644447 | AE207: 94.37636538 | AF207: 2.048 | AG207: 0.01923438429 | AH207: 2.067234384 | AI207: 2.04320172 | AJ207: 13.261 | AK207: 0.1245445166 | AL207: 13.38554452 | AM207: 13.22993067 | AN207: 9.006 | AO207: 0.08458245356 | AP207: 9.090582454 | AQ207: 8.984899751 | AR207: 118.913 | AS207: 1.116805829 | AT207: 120.0298058 | AU207: 118.6343975
A208: 2025-01-09 | B208: 4 | C208: Off | D208: 43.527365 | E208: 0.011973589 | G208: 311.13 | H208: 3.122464821 | I208: 314.2524648 | J208: 310.489735 | K208: 11.297 | L208: 0.11337539 | M208: 11.41037539 | N208: 11.27375224 | O208: 92.732 | P208: 0.9306476644 | Q208: 93.66264766 | R208: 92.54116962 | S208: 1.844 | T208: 0.01850617147 | U208: 1.862506171 | V208: 1.840205288 | W208: 417.003 | X208: 4.184994047 | Y208: 421.187994 | Z208: 416.1448621 | AB208: 93.246 | AC208: 0.9358061091 | AD208: 94.18180611 | AE208: 93.05411187 | AF208: 2.049 | AG208: 0.02056352785 | AH208: 2.069563528 | AI208: 2.044783425 | AJ208: 13.217 | AK208: 0.1326442887 | AL208: 13.34964429 | AM208: 13.18980113 | AN208: 9.006 | AO208: 0.09038317803 | AP208: 9.096383178 | AQ208: 8.987466824 | AR208: 117.518 | AS208: 1.179397104 | AT208: 118.6973971 | AU208: 117.2761633
A209: 2025-01-09 | B209: 5 | C209: Off | D209: 39.264519 | E209: 0.011785202 | G209: 312.521 | H209: 3.266415936 | I209: 315.7874159 | J209: 312.0657975 | K209: 11.27 | L209: 0.1177921087 | M209: 11.38779211 | N209: 11.25358468 | O209: 94.131 | P209: 0.983841081 | Q209: 95.11484108 | R209: 93.99389347 | S209: 1.844 | T209: 0.019273172 | U209: 1.863273172 | V209: 1.841314121 | W209: 419.766 | X209: 4.387322298 | Y209: 424.1533223 | Z209: 419.1545897 | AB209: 94.225 | AC209: 0.9848235529 | AD209: 95.20982355 | AE209: 94.08775655 | AF209: 2.103 | AG209: 0.02198019561 | AH209: 2.124980196 | AI209: 2.099936875 | AJ209: 13.39 | AK209: 0.1399499854 | AL209: 13.52994999 | AM209: 13.37049679 | AN209: 9.006 | AO209: 0.09412916867 | AP209: 9.100129169 | AQ209: 8.992882308 | AR209: 118.724 | AS209: 1.240882903 | AT209: 119.9648829 | AU209: 118.5510725
... 548 more rows

Sheet UnMetered, GS, GM & GMH<25
G10: PoLR | K10: PoLR | O10: PoLR | S10: PoLR | W10: PoLR | AB10: EGS | AF10: EGS | AJ10: EGS | AN10: EGS | AR10: EGS
G11: Unmetered Service | K11: GS | O11: GM<25 | S11: GMH<25 | W11: Unmetered, GS, GM<25 & GMH<25 Total | AB11: Unmetered Service | AF11: GS | AJ11: GM<25 | AN11: GMH<25 | AR11: Unmetered, GS, GM<25 & GMH<25 Total
A12: Date | B12: HR | C12: On/Off | D12: LMP | E12: EDC Loss De-ration Factor | G12: Usage | H12: Lost PWR | I12: NON De-rated Total Usage | J12: De-rated Total Usage | K12: Usage | L12: Lost PWR | M12: NON De-rated Total Usage | N12: De-rated Total Usage | O12: Usage | P12: Lost PWR | Q12: NON De-rated Total Usage | R12: De-rated Total Usage | S12: Usage | T12: Lost PWR | U12: NON De-rated Total Usage | V12: De-rated Total Usage | W12: Usage | X12: Lost PWR | Y12: NON De-rated Total Usage | Z12: De-rated Total Usage | AB12: Usage | AC12: Lost PWR | AD12: NON De-rated Total Usage | AE12: De-rated Total Usage | AF12: Usage | AG12: Lost PWR | AH12: NON De-rated Total Usage | AI12: De-rated Total Usage | AJ12: Usage | AK12: Lost PWR | AL12: NON De-rated Total Usage | AM12: De-rated Total Usage | AN12: Usage | AO12: Lost PWR | AP12: NON De-rated Total Usage | AQ12: De-rated Total Usage | AR12: Usage | AS12: Lost PWR | AT12: NON De-rated Total Usage | AU12: De-rated Total Usage
A13: 2025-01-01 | B13: 1 | C13: Off | D13: 19.522975 | E13: 0.008542549 | G13: 1.104 | H13: 0.01163178138 | I13: 1.115631781 | J13: 1.106101442 | K13: 8.314 | L13: 0.0875965855 | M13: 8.401596585 | N13: 8.329825535 | O13: 32.995 | P13: 0.3476364372 | Q13: 33.34263644 | R13: 33.05780533 | S13: 3.865 | T13: 0.04072177086 | U13: 3.905721771 | V13: 3.872356951 | W13: 46.278 | X13: 0.4875865749 | Y13: 46.76558657 | Z13: 46.36608926 | AB13: 2.118 | AC13: 0.02231531971 | AD13: 2.14031532 | AE13: 2.122031571 | AF13: 3.116 | AG13: 0.0328302815 | AH13: 3.148830282 | AI13: 3.121931245 | AJ13: 29.651 | AK13: 0.3124039399 | AL13: 29.96340394 | AM13: 29.70744009 | AN13: 2.451 | AO13: 0.02582381899 | AP13: 2.476823819 | AQ13: 2.45566543 | AR13: 37.336 | AS13: 0.3933733601 | AT13: 37.72937336 | AU13: 37.40706834
A14: 2025-01-01 | B14: 2 | C14: Off | D14: 19.743663 | E14: 0.008664497 | G14: 1.104 | H14: 0.008635621754 | I14: 1.112635622 | J14: 1.102995194 | K14: 8.429 | L14: 0.06593265921 | M14: 8.494932659 | N14: 8.421328341 | O14: 32.807 | P14: 0.2566203287 | Q14: 33.06362033 | R14: 32.77714069 | S14: 4.005 | T14: 0.03132759522 | U14: 4.036327595 | V14: 4.001354847 | W14: 46.345 | X14: 0.3625162049 | Y14: 46.7075162 | Z14: 46.30281907 | AB14: 2.117 | AC14: 0.01655943048 | AD14: 2.13355943 | AE14: 2.115073211 | AF14: 3.131 | AG14: 0.02449106133 | AH14: 3.155491061 | AI14: 3.128150318 | AJ14: 29.578 | AK14: 0.2313626995 | AL14: 29.8093627 | AM14: 29.55107957 | AN14: 2.522 | AO14: 0.01972738955 | AP14: 2.54172739 | AQ14: 2.5197046 | AR14: 37.348 | AS14: 0.2921405809 | AT14: 37.64014058 | AU14: 37.3140077
A15: 2025-01-01 | B15: 3 | C15: Off | D15: 18.893488 | E15: 0.00872374 | G15: 1.104 | H15: 0.01114657143 | I15: 1.115146571 | J15: 1.105418323 | K15: 8.504 | L15: 0.08586090888 | M15: 8.589860909 | N15: 8.514925196 | O15: 32.736 | P15: 0.3305200744 | Q15: 33.06652007 | R15: 32.77805635 | S15: 4.09 | T15: 0.04129481624 | U15: 4.131294816 | V15: 4.095254474 | W15: 46.434 | X15: 0.468822371 | Y15: 46.90282237 | Z15: 46.49365434 | AB15: 2.117 | AC15: 0.02137435843 | AD15: 2.138374358 | AE15: 2.119719737 | AF15: 3.13 | AG15: 0.03160214544 | AH15: 3.161602145 | AI15: 3.13402115 | AJ15: 29.506 | AK15: 0.2979082758 | AL15: 29.80390828 | AM15: 29.54390673 | AN15: 2.639 | AO15: 0.02664474818 | AP15: 2.665644748 | AQ15: 2.642390356 | AR15: 37.392 | AS15: 0.3775295278 | AT15: 37.76952953 | AU15: 37.44003797
A16: 2025-01-01 | B16: 4 | C16: Off | D16: 19.041078 | E16: 0.008926562 | G16: 1.104 | H16: 0.01014643509 | I16: 1.114146435 | J16: 1.104200938 | K16: 8.431 | L16: 0.07748604551 | M16: 8.508486046 | N16: 8.432534517 | O16: 32.807 | P16: 0.3015163913 | Q16: 33.10851639 | R16: 32.81297117 | S16: 4.226 | T16: 0.03883952418 | U16: 4.264839524 | V16: 4.22676917 | W16: 46.568 | X16: 0.4279883961 | Y16: 46.9959884 | Z16: 46.57647579 | AB16: 2.117 | AC16: 0.01945652453 | AD16: 2.136456525 | AE16: 2.117385313 | AF16: 3.185 | AG16: 0.02927209761 | AH16: 3.214272098 | AI16: 3.185579698 | AJ16: 29.432 | AK16: 0.2704980775 | AL16: 29.70249808 | AM16: 29.43735689 | AN16: 2.685 | AO16: 0.02467679186 | AP16: 2.709676792 | AQ16: 2.685488694 | AR16: 37.419 | AS16: 0.3439034915 | AT16: 37.76290349 | AU16: 37.42581059
A17: 2025-01-01 | B17: 5 | C17: Off | D17: 19.218018 | E17: 0.008769197 | G17: 1.104 | H17: 0.01031303445 | I17: 1.114313034 | J17: 1.104541404 | K17: 8.588 | L17: 0.08022494553 | M17: 8.668224946 | N17: 8.592211573 | O17: 33.018 | P17: 0.3084381988 | Q17: 33.3264382 | R17: 33.0341921 | S17: 4.3 | T17: 0.04016852186 | U17: 4.340168522 | V17: 4.302108729 | W17: 47.01 | X17: 0.4391447006 | Y17: 47.4491447 | Z17: 47.0330538 | AB17: 2.117 | AC17: 0.01977599088 | AD17: 2.136775991 | AE17: 2.118038181 | AF17: 3.287 | AG17: 0.03070556543 | AH17: 3.317705565 | AI17: 3.288611952 | AJ17: 29.517 | AK17: 0.2757335488 | AL17: 29.79273355 | AM17: 29.5314752 | AN17: 2.73 | AO17: 0.02550234062 | AP17: 2.755502341 | AQ17: 2.731338798 | AR17: 37.651 | AS17: 0.3517174457 | AT17: 38.00271745 | AU17: 37.66946413
A18: 2025-01-01 | B18: 6 | C18: Off | D18: 19.273177 | E18: 0.008705755 | G18: 1.104 | H18: 0.01149175196 | I18: 1.115491752 | J18: 1.105780554 | K18: 8.657 | L18: 0.09011240641 | M18: 8.747112406 | N18: 8.670962189 | O18: 33.575 | P18: 0.3494887427 | Q18: 33.92448874 | R18: 33.62915046 | S18: 4.532 | T18: 0.04717447451 | U18: 4.579174475 | V18: 4.539309303 | W18: 47.868 | X18: 0.4982673755 | Y18: 48.36626738 | Z18: 47.9452025 | AB18: 2.117 | AC18: 0.02203626711 | AD18: 2.139036267 | AE18: 2.120414341 | AF18: 3.348 | AG18: 0.03484998691 | AH18: 3.382849987 | AI18: 3.353399724 | AJ18: 29.906 | AK18: 0.311297404 | AL18: 30.2172974 | AM18: 29.95423302 | AN18: 2.831 | AO18: 0.02946843278 | AP18: 2.860468433 | AQ18: 2.835565895 | AR18: 38.202 | AS18: 0.3976520908 | AT18: 38.59965209 | AU18: 38.26361298
A19: 2025-01-01 | B19: 7 | C19: Off | D19: 19.052349 | E19: 0.008756941 | G19: 1.104 | H19: 0.007968594217 | I19: 1.111968594 | J19: 1.102231151 | K19: 8.717 | L19: 0.06291869184 | M19: 8.779918692 | N19: 8.703033462 | O19: 34.334 | P19: 0.247820393 | Q19: 34.58182039 | R19: 34.27898943 | S19: 4.606 | T19: 0.03324578348 | U19: 4.639245783 | V19: 4.598620182 | W19: 48.761 | X19: 0.3519534625 | Y19: 49.11295346 | Z19: 48.68287423 | AB19: 2.117 | AC19: 0.01528035685 | AD19: 2.132280357 | AE19: 2.113608104 | AF19: 3.327 | AG19: 0.0240140516 | AH19: 3.351014052 | AI19: 3.321669419 | AJ19: 30.573 | AK19: 0.22067376 | AL19: 30.79367376 | AM19: 30.52401538 | AN19: 2.921 | AO19: 0.0210835722 | AP19: 2.942083572 | AQ19: 2.91631992 | AR19: 38.938 | AS19: 0.2810517406 | AT19: 39.21905174 | AU19: 38.87561282
A20: 2025-01-01 | B20: 8 | C20: Off | D20: 19.424577 | E20: 0.009014908 | G20: 1.104 | H20: 0.016312116 | I20: 1.120312116 | J20: 1.110212605 | K20: 8.739 | L20: 0.1291228095 | M20: 8.86812281 | N20: 8.788177498 | O20: 34.724 | P20: 0.5130633297 | Q20: 35.23706333 | R20: 34.91940445 | S20: 4.785 | T20: 0.07070061147 | U20: 4.855700611 | V20: 4.811926917 | W20: 49.352 | X20: 0.7291988667 | Y20: 50.08119887 | Z20: 49.62972147 | AB20: 2.117 | AC20: 0.03127966447 | AD20: 2.148279664 | AE20: 2.128913121 | AF20: 3.301 | AG20: 0.04877381786 | AH20: 3.349773818 | AI20: 3.319575915 | AJ20: 30.609 | AK20: 0.4522622814 | AL20: 31.06126228 | AM20: 30.78124786 | AN20: 2.957 | AO20: 0.04369105708 | AP20: 3.000691057 | AQ20: 2.973640103 | AR20: 38.984 | AS20: 0.5760068208 | AT20: 39.56000682 | AU20: 39.203377
A21: 2025-01-01 | B21: 9 | C21: Off | D21: 18.919077 | E21: 0.008703028 | G21: 1.104 | H21: 0.01138560573 | I21: 1.115385606 | J21: 1.105678374 | K21: 7.993 | L21: 0.08243219803 | M21: 8.075432198 | N21: 8.005151486 | O21: 33.898 | P21: 0.3495917239 | Q21: 34.24759172 | R21: 33.94953397 | S21: 4.796 | T21: 0.04946138143 | U21: 4.845461381 | V21: 4.803291195 | W21: 47.791 | X21: 0.4928709091 | Y21: 48.28387091 | Z21: 47.86365503 | AB21: 2.117 | AC21: 0.02183272404 | AD21: 2.138832724 | AE21: 2.120218403 | AF21: 2.868 | AG21: 0.02957782359 | AH21: 2.897577824 | AI21: 2.872360123 | AJ21: 29.252 | AK21: 0.3016772998 | AL21: 29.5536773 | AM21: 29.29647082 | AN21: 2.818 | AO21: 0.02906217116 | AP21: 2.847062171 | AQ21: 2.822284109 | AR21: 37.055 | AS21: 0.3821500185 | AT21: 37.43715002 | AU21: 37.11133345
A22: 2025-01-01 | B22: 10 | C22: Off | D22: 18.28283 | E22: 0.008210615 | G22: 1.104 | H22: 0.009482212395 | I22: 1.113482212 | J22: 1.104339839 | K22: 7.727 | L22: 0.0663668978 | M22: 7.793366898 | N22: 7.729378563 | O22: 34.244 | P22: 0.2941203635 | Q22: 34.53812036 | R22: 34.25454115 | S22: 4.948 | T22: 0.04249817657 | U22: 4.990498177 | V22: 4.949523117 | W22: 48.023 | X22: 0.4124676502 | Y22: 48.43546765 | Z22: 48.03778267 | AB22: 2.117 | AC22: 0.01818282938 | AD22: 2.135182829 | AE22: 2.117651665 | AF22: 2.858 | AG22: 0.02454724912 | AH22: 2.882547249 | AI22: 2.858879763 | AJ22: 29.61 | AK22: 0.2543191205 | AL22: 29.86431912 | AM22: 29.61911469 | AN22: 2.936 | AO22: 0.02521718804 | AP22: 2.961217188 | AQ22: 2.936903774 | AR22: 37.521 | AS22: 0.322266387 | AT22: 37.84326639 | AU22: 37.5325499
A23: 2025-01-01 | B23: 11 | C23: Off | D23: 20.918956 | E23: 0.008327821 | G23: 1.104 | H23: 0.00821786696 | I23: 1.112217867 | J23: 1.102955516 | K23: 7.513 | L23: 0.0559246689 | M23: 7.568924669 | N23: 7.505892019 | O23: 35.398 | P23: 0.2634928031 | Q23: 35.6614928 | R23: 35.36451027 | S23: 5.018 | T23: 0.03735258732 | U23: 5.055352587 | V23: 5.013252516 | W23: 49.033 | X23: 0.3649879263 | Y23: 49.39798793 | Z23: 48.98661033 | AB23: 2.117 | AC23: 0.01575835539 | AD23: 2.132758355 | AE23: 2.114997126 | AF23: 2.847 | AG23: 0.02119227105 | AH23: 2.868192271 | AI23: 2.844306479 | AJ23: 30.217 | AK23: 0.2249268894 | AL23: 30.44192689 | AM23: 30.18841197 | AN23: 2.889 | AO23: 0.02150490729 | AP23: 2.910504907 | AQ23: 2.886266743 | AR23: 38.07 | AS23: 0.2833824232 | AT23: 38.35338242 | AU23: 38.03398232
A24: 2025-01-01 | B24: 12 | C24: Off | D24: 22.57663 | E24: 0.008521791 | G24: 1.104 | H24: 0.0090216996 | I24: 1.1130217 | J24: 1.103536761 | K24: 7.707 | L24: 0.06298028879 | M24: 7.769980289 | N24: 7.703766141 | O24: 36.261 | P24: 0.296318704 | Q24: 36.5573187 | R24: 36.24578487 | S24: 5.073 | T24: 0.04145569028 | U24: 5.11445569 | V24: 5.070871368 | W24: 50.145 | X24: 0.4097763827 | Y24: 50.55477638 | Z24: 50.12395914 | AB24: 2.117 | AC24: 0.01729976273 | AD24: 2.134299763 | AE24: 2.116111706 | AF24: 2.871 | AG24: 0.02346132206 | AH24: 2.894461322 | AI24: 2.869795328 | AJ24: 30.683 | AK24: 0.2507362399 | AL24: 30.93373624 | AM24: 30.6701254 | AN24: 2.943 | AO24: 0.02404969377 | AP24: 2.967049694 | AQ24: 2.941765116 | AR24: 38.614 | AS24: 0.3155470184 | AT24: 38.92954702 | AU24: 38.59779756
A25: 2025-01-01 | B25: 13 | C25: Off | D25: 22.515171 | E25: 0.0087338 | G25: 1.104 | H25: 0.009099728797 | I25: 1.113099729 | J25: 1.103378138 | K25: 7.771 | L25: 0.06405252942 | M25: 7.835052529 | N25: 7.766622748 | O25: 36.665 | P25: 0.3022115547 | Q25: 36.96721155 | R25: 36.64434732 | S25: 5.122 | T25: 0.04221812581 | U25: 5.164218126 | V25: 5.119114878 | W25: 50.662 | X25: 0.4175819387 | Y25: 51.07958194 | Z25: 50.63346309 | AB25: 2.117 | AC25: 0.01744938937 | AD25: 2.134449389 | AE25: 2.115807535 | AF25: 2.879 | AG25: 0.02373018044 | AH25: 2.90273018 | AI25: 2.877378316 | AJ25: 30.704 | AK25: 0.2530779647 | AL25: 30.95707796 | AM25: 30.68670504 | AN25: 2.889 | AO25: 0.02381260552 | AP25: 2.912812606 | AQ25: 2.887372683 | AR25: 38.589 | AS25: 0.31807014 | AT25: 38.90707014 | AU25: 38.56726357
A26: 2025-01-01 | B26: 14 | C26: Off | D26: 21.283617 | E26: 0.008535846 | G26: 1.104 | H26: 0.00722661258 | I26: 1.111226613 | J26: 1.101741353 | K26: 7.103 | L26: 0.0464951351 | M26: 7.149495135 | N26: 7.088468146 | O26: 36.113 | P26: 0.2363900907 | Q26: 36.34939009 | R26: 36.03911729 | S26: 5.012 | T26: 0.03280777378 | U26: 5.044807774 | V26: 5.001746072 | W26: 49.332 | X26: 0.3229196121 | Y26: 49.65491961 | Z26: 49.23107287 | AB26: 2.117 | AC26: 0.01385755329 | AD26: 2.130857553 | AE26: 2.112668881 | AF26: 2.861 | AG26: 0.01872766177 | AH26: 2.879727662 | AI26: 2.85514675 | AJ26: 30.624 | AK26: 0.200459949 | AL26: 30.82445995 | AM26: 30.56134711 | AN26: 2.91 | AO26: 0.01904840816 | AP26: 2.929048408 | AQ26: 2.904046502 | AR26: 38.512 | AS26: 0.2520935722 | AT26: 38.76409357 | AU26: 38.43320924
A27: 2025-01-01 | B27: 15 | C27: Off | D27: 20.667867 | E27: 0.008436363 | G27: 1.104 | H27: 0.006924447729 | I27: 1.110924448 | J27: 1.101552286 | K27: 7.829 | L27: 0.04910462072 | M27: 7.878104621 | N27: 7.81164207 | O27: 36.358 | P27: 0.2280426364 | Q27: 36.58604264 | R27: 36.2773895 | S27: 4.99 | T27: 0.03129800196 | U27: 5.021298002 | V27: 4.978936509 | W27: 50.281 | X27: 0.3153697068 | Y27: 50.59636971 | Z27: 50.16952037 | AB27: 2.117 | AC27: 0.01327813029 | AD27: 2.13027813 | AE27: 2.112306331 | AF27: 2.894 | AG27: 0.01815158671 | AH27: 2.912151587 | AI27: 2.887583619 | AJ27: 30.506 | AK27: 0.1913380457 | AL27: 30.69733805 | AM27: 30.43836416 | AN27: 2.855 | AO27: 0.01790697307 | AP27: 2.872906973 | AQ27: 2.848670087 | AR27: 38.372 | AS27: 0.2406747357 | AT27: 38.61267474 | AU27: 38.2869242
A28: 2025-01-01 | B28: 16 | C28: Off | D28: 21.046655 | E28: 0.008852657 | G28: 1.104 | H28: 0.006335499919 | I28: 1.1103355 | J28: 1.100506081 | K28: 8.22 | L28: 0.04717192875 | M28: 8.267171929 | N28: 8.193985491 | O28: 36.728 | P28: 0.2107701459 | Q28: 36.93877015 | R28: 36.61176388 | S28: 5.007 | T28: 0.02873355806 | U28: 5.035733558 | V28: 4.991153936 | W28: 51.059 | X28: 0.2930111326 | Y28: 51.35201113 | Z28: 50.89740939 | AB28: 2.117 | AC28: 0.01214878019 | AD28: 2.12914878 | AE28: 2.110300156 | AF28: 2.985 | AG28: 0.01712995223 | AH28: 3.002129952 | AI28: 2.975553125 | AJ28: 30.844 | AK28: 0.1770037677 | AL28: 31.02100377 | AM28: 30.74638546 | AN28: 2.927 | AO28: 0.01679710893 | AP28: 2.943797109 | AQ28: 2.917736683 | AR28: 38.873 | AS28: 0.223079609 | AT28: 39.09607961 | AU28: 38.74997543
A29: 2025-01-01 | B29: 17 | C29: Off | D29: 25.226864 | E29: 0.010519156 | G29: 1.104 | H29: 0.008326153822 | I29: 1.112326154 | J29: 1.100625421 | K29: 8.876 | L29: 0.06694107004 | M29: 8.94294107 | N29: 8.848868878 | O29: 37.574 | P29: 0.2833758186 | Q29: 37.85737582 | R29: 37.45914818 | S29: 5.139 | T29: 0.03875734103 | U29: 5.177757341 | V29: 5.123291704 | W29: 52.693 | X29: 0.3974003835 | Y29: 53.09040038 | Z29: 52.53193418 | AB29: 2.117 | AC29: 0.0159660033 | AD29: 2.132966003 | AE29: 2.110529001 | AF29: 3.149 | AG29: 0.02374914709 | AH29: 3.172749147 | AI29: 3.139374504 | AJ29: 31.493 | AK29: 0.2375140963 | AL29: 31.7305141 | AM29: 31.39673587 | AN29: 2.928 | AO29: 0.02208240796 | AP29: 2.950082408 | AQ29: 2.919050031 | AR29: 39.687 | AS29: 0.2993116547 | AT29: 39.98631165 | AU29: 39.5656894
A30: 2025-01-01 | B30: 18 | C30: Off | D30: 31.362716 | E30: 0.011181364 | G30: 1.104 | H30: 0.01237994586 | I30: 1.116379946 | J30: 1.103897295 | K30: 9.861 | L30: 0.1105784838 | M30: 9.971578484 | N30: 9.860082635 | O30: 39.409 | P30: 0.4419214552 | Q30: 39.85092146 | R30: 39.4053338 | S30: 5.406 | T30: 0.06062136534 | U30: 5.466621365 | V30: 5.405497082 | W30: 55.78 | X30: 0.6255012502 | Y30: 56.40550125 | Z30: 55.77481081 | AB30: 2.117 | AC30: 0.02373944329 | AD30: 2.140739443 | AE30: 2.116803056 | AF30: 3.641 | AG30: 0.04082915117 | AH30: 3.681829151 | AI30: 3.640661279 | AJ30: 34.007 | AK30: 0.3813449447 | AL30: 34.38834494 | AM30: 34.00383634 | AN30: 3.108 | AO30: 0.0348522389 | AP30: 3.142852239 | AQ30: 3.107710864 | AR30: 42.873 | AS30: 0.4807657781 | AT30: 43.35376578 | AU30: 42.86901154
A31: 2025-01-01 | B31: 19 | C31: Off | D31: 30.663003 | E31: 0.011304329 | G31: 1.104 | H31: 0.01070192155 | I31: 1.114701922 | J31: 1.102100964 | K31: 10.087 | L31: 0.09778105319 | M31: 10.18478105 | N31: 10.06964894 | O31: 39.72 | P31: 0.3850365255 | Q31: 40.10503653 | R31: 39.651676 | S31: 5.547 | T31: 0.05377133955 | U31: 5.60077134 | V31: 5.537458378 | W31: 56.458 | X31: 0.5472908398 | Y31: 57.00529084 | Z31: 56.36088428 | AB31: 2.117 | AC31: 0.02052171008 | AD31: 2.13752171 | AE31: 2.113358461 | AF31: 3.695 | AG31: 0.03581847839 | AH31: 3.730818478 | AI31: 3.688644079 | AJ31: 34.464 | AK31: 0.3340860729 | AL31: 34.79808607 | AM31: 34.40471706 | AN31: 3.172 | AO31: 0.03074863693 | AP31: 3.202748637 | AQ31: 3.166543713 | AR31: 43.448 | AS31: 0.4211748983 | AT31: 43.8691749 | AU31: 43.37326331
A32: 2025-01-01 | B32: 20 | C32: Off | D32: 31.082654 | E32: 0.01148571 | G32: 1.104 | H32: 0.007536897385 | I32: 1.111536897 | J32: 1.098770107 | K32: 10.272 | L32: 0.0701259148 | M32: 10.34212591 | N32: 10.22333926 | O32: 39.322 | P32: 0.2684473541 | Q32: 39.59044735 | R32: 39.13572296 | S32: 5.465 | T32: 0.03730900743 | U32: 5.502309007 | V32: 5.439111082 | W32: 56.163 | X32: 0.3834191738 | Y32: 56.54641917 | Z32: 55.8969434 | AB32: 2.117 | AC32: 0.01445254689 | AD32: 2.131452547 | AE32: 2.106971301 | AF32: 3.689 | AG32: 0.02518443338 | AH32: 3.714184433 | AI32: 3.671524388 | AJ32: 34.331 | AK32: 0.2343742972 | AL32: 34.5653743 | AM32: 34.16836643 | AN32: 3.204 | AO32: 0.02187338698 | AP32: 3.225873387 | AQ32: 3.188821941 | AR32: 43.341 | AS32: 0.2958846645 | AT32: 43.63688466 | AU32: 43.13568406
A33: 2025-01-01 | B33: 21 | C33: Off | D33: 32.759149 | E33: 0.011779238 | G33: 1.104 | H33: 0.007921795418 | I33: 1.111921795 | J33: 1.098824204 | K33: 10.226 | L33: 0.07337706517 | M33: 10.29937707 | N33: 10.17805825 | O33: 38.93 | P33: 0.279343746 | Q33: 39.20934375 | R33: 38.74748755 | S33: 5.438 | T33: 0.03902058286 | U33: 5.477020583 | V33: 5.412505454 | W33: 55.698 | X33: 0.3996631895 | Y33: 56.09766319 | Z33: 55.43687546 | AB33: 2.117 | AC33: 0.01519061676 | AD33: 2.132190617 | AE33: 2.107075036 | AF33: 3.749 | AG33: 0.02690109694 | AH33: 3.775901097 | AI33: 3.731423859 | AJ33: 34.072 | AK33: 0.244484976 | AL33: 34.31648498 | AM33: 33.91226293 | AN33: 3.175 | AO33: 0.02278233737 | AP33: 3.197782337 | AQ33: 3.160114898 | AR33: 43.113 | AS33: 0.309359027 | AT33: 43.42235903 | AU33: 42.91087673
A34: 2025-01-01 | B34: 22 | C34: Off | D34: 28.168414 | E34: 0.011746979 | G34: 1.104 | H34: 0.007593713222 | I34: 1.111593713 | J34: 1.098535845 | K34: 9.965 | L34: 0.06854289154 | M34: 10.03354289 | N34: 9.915679074 | O34: 38.306 | P34: 0.2634825894 | Q34: 38.56948259 | R34: 38.11640769 | S34: 5.429 | T34: 0.03734263504 | U34: 5.466342635 | V34: 5.402129623 | W34: 54.804 | X34: 0.3769618292 | Y34: 55.18096183 | Z34: 54.53275223 | AB34: 2.117 | AC34: 0.01456149537 | AD34: 2.131561495 | AE34: 2.106522087 | AF34: 3.748 | AG34: 0.02578010612 | AH34: 3.773780106 | AI34: 3.72944959 | AJ34: 33.429 | AK34: 0.229936811 | AL34: 33.65893681 | AM34: 33.26354599 | AN34: 3.231 | AO34: 0.02222399223 | AP34: 3.253223992 | AQ34: 3.215008438 | AR34: 42.525 | AS34: 0.2925024047 | AT34: 42.8175024 | AU34: 42.3145261
A35: 2025-01-01 | B35: 23 | C35: Off | D35: 25.490789 | E35: 0.011642653 | G35: 1.104 | H35: 0.01003967781 | I35: 1.114039678 | J35: 1.1010693 | K35: 9.752 | L35: 0.08868382065 | M35: 9.840683821 | N35: 9.726112154 | O35: 37.251 | P35: 0.3387572809 | Q35: 37.58975728 | R35: 37.15211278 | S35: 5.331 | T35: 0.04847963986 | U35: 5.37947964 | V35: 5.316848225 | W35: 53.438 | X35: 0.4859604192 | Y35: 53.92396042 | Z35: 53.29614246 | AB35: 2.117 | AC35: 0.01925180971 | AD35: 2.13625181 | AE35: 2.111380171 | AF35: 3.618 | AG35: 0.03290177021 | AH35: 3.65090177 | AI35: 3.608395588 | AJ35: 32.544 | AK35: 0.2959522415 | AL35: 32.83995224 | AM35: 32.45760807 | AN35: 3.117 | AO35: 0.02834572077 | AP35: 3.145345721 | AQ35: 3.108725552 | AR35: 41.396 | AS35: 0.3764515422 | AT35: 41.77245154 | AU35: 41.28610938
A36: 2025-01-01 | B36: 24 | C36: Off | D36: 22.911487 | E36: 0.011428714 | G36: 1.104 | H36: 0.00900318947 | I36: 1.113003189 | J36: 1.100282994 | K36: 9.606 | L36: 0.07833753447 | M36: 9.684337534 | N36: 9.573658011 | O36: 36.442 | P36: 0.2971868032 | Q36: 36.7391868 | R36: 36.31930514 | S36: 5.221 | T36: 0.04257758354 | U36: 5.263577584 | V36: 5.203421661 | W36: 52.373 | X36: 0.4271051106 | Y36: 52.80010511 | Z36: 52.19666781 | AB36: 2.117 | AC36: 0.01726426821 | AD36: 2.134264268 | AE36: 2.109872372 | AF36: 3.493 | AG36: 0.0284856348 | AH36: 3.521485635 | AI36: 3.481239583 | AJ36: 31.912 | AK36: 0.2602443681 | AL36: 32.17224437 | AM36: 31.80455699 | AN36: 3.059 | AO36: 0.02494633749 | AP36: 3.083946337 | AQ36: 3.048700797 | AR36: 40.581 | AS36: 0.3309406086 | AT36: 40.91194061 | AU36: 40.44436974
A37: 2025-01-02 | B37: 1 | C37: Off | D37: 27.11931 | E37: 0.011649787 | G37: 1.104 | H37: 0.008329052114 | I37: 1.112329052 | J37: 1.099370656 | K37: 9.453 | L37: 0.07131750873 | M37: 9.524317509 | N37: 9.413361238 | O37: 35.7 | P37: 0.2693361961 | Q37: 35.9693362 | R37: 35.55030109 | S37: 5.075 | T37: 0.03828798866 | U37: 5.113287989 | V37: 5.053719273 | W37: 51.332 | X37: 0.3872707456 | Y37: 51.71927075 | Z37: 51.11675226 | AB37: 2.118 | AC37: 0.01597910541 | AD37: 2.133979105 | AE37: 2.109118703 | AF37: 3.452 | AG37: 0.02604337672 | AH37: 3.478043377 | AI37: 3.437524912 | AJ37: 31.482 | AK37: 0.237513785 | AL37: 31.71951379 | AM37: 31.34998821 | AN37: 3.049 | AO37: 0.02300297092 | AP37: 3.072002971 | AQ37: 3.036214791 | AR37: 40.101 | AS37: 0.3025392381 | AT37: 40.40353924 | AU37: 39.93284661
A38: 2025-01-02 | B38: 2 | C38: Off | D38: 24.681337 | E38: 0.011406394 | G38: 1.104 | H38: 0.009033832812 | I38: 1.113033833 | J38: 1.10033813 | K38: 9.387 | L38: 0.07681212736 | M38: 9.463812127 | N38: 9.355864157 | O38: 35.211 | P38: 0.2881252601 | Q38: 35.49912526 | R38: 35.09420825 | S38: 5.137 | T38: 0.04203514416 | U38: 5.179035144 | V38: 5.119961029 | W38: 50.839 | X38: 0.4160063644 | Y38: 51.25500636 | Z38: 50.67037157 | AB38: 2.117 | AC38: 0.01732302904 | AD38: 2.134323029 | AE38: 2.1099781 | AF38: 3.401 | AG38: 0.02782976938 | AH38: 3.428829769 | AI38: 3.389719186 | AJ38: 31.159 | AK38: 0.2549684752 | AL38: 31.41396848 | AM38: 31.05564837 | AN38: 3.056 | AO38: 0.02500669662 | AP38: 3.081006697 | AQ38: 3.04586352 | AR38: 39.733 | AS38: 0.3251279702 | AT38: 40.05812797 | AU38: 39.60120918
A39: 2025-01-02 | B39: 3 | C39: Off | D39: 25.116242 | E39: 0.012043374 | G39: 1.104 | H39: 0.009314767171 | I39: 1.113314767 | J39: 1.099906701 | K39: 9.355 | L39: 0.07893083957 | M39: 9.43393084 | N39: 9.320314482 | O39: 35.113 | P39: 0.2962585323 | Q39: 35.40925853 | R39: 34.98281159 | S39: 5.116 | T39: 0.04316517106 | U39: 5.159165171 | V39: 5.097031415 | W39: 50.688 | X39: 0.4276693101 | Y39: 51.11566931 | Z39: 50.50006419 | AB39: 2.117 | AC39: 0.01786174103 | AD39: 2.134861741 | AE39: 2.109150803 | AF39: 3.382 | AG39: 0.02853491175 | AH39: 3.410534912 | AI39: 3.369460564 | AJ39: 31.001 | AK39: 0.2615643995 | AL39: 31.2625644 | AM39: 30.88605764 | AN39: 3.042 | AO39: 0.02566623346 | AP39: 3.067666233 | AQ39: 3.030721182 | AR39: 39.542 | AS39: 0.3336272858 | AT39: 39.87562729 | AU39: 39.39539019
A40: 2025-01-02 | B40: 4 | C40: Off | D40: 25.612386 | E40: 0.011985982 | G40: 1.104 | H40: 0.01164798533 | I40: 1.115647985 | J40: 1.102275849 | K40: 9.354 | L40: 0.09869135399 | M40: 9.452691354 | N40: 9.339391566 | O40: 35.019 | P40: 0.3694753609 | Q40: 35.38847536 | R40: 34.96430973 | S40: 5.198 | T40: 0.05484259761 | U40: 5.252842598 | V40: 5.189882121 | W40: 50.675 | X40: 0.5346572978 | Y40: 51.2096573 | Z40: 50.59585927 | AB40: 2.117 | AC40: 0.02233585593 | AD40: 2.139335856 | AE40: 2.113693815 | AF40: 3.401 | AG40: 0.03588296931 | AH40: 3.436882969 | AI40: 3.395688552 | AJ40: 30.884 | AK40: 0.3258481694 | AL40: 31.20984817 | AM40: 30.83576749 | AN40: 3.055 | AO40: 0.03223242318 | AP40: 3.087232423 | AQ40: 3.050228911 | AR40: 39.457 | AS40: 0.4162994178 | AT40: 39.87329942 | AU40: 39.39537877
A41: 2025-01-02 | B41: 5 | C41: Off | D41: 25.288412 | E41: 0.011410265 | G41: 1.104 | H41: 0.008079352563 | I41: 1.112079353 | J41: 1.099390232 | K41: 9.431 | L41: 0.06901845473 | M41: 9.500018455 | N41: 9.391620727 | O41: 35.444 | P41: 0.2593881995 | Q41: 35.7033882 | R41: 35.29600308 | S41: 5.225 | T41: 0.03823787784 | U41: 5.263237878 | V41: 5.203182939 | W41: 51.204 | X41: 0.3747238846 | Y41: 51.57872388 | Z41: 50.99019698 | AB41: 2.117 | AC41: 0.015492744 | AD41: 2.132492744 | AE41: 2.108160437 | AF41: 3.464 | AG41: 0.02535043232 | AH41: 3.489350432 | AI41: 3.449536019 | AJ41: 31.128 | AK41: 0.2278026147 | AL41: 31.35580261 | AM41: 30.9980246 | AN41: 3.098 | AO41: 0.0226719513 | AP41: 3.120671951 | AQ41: 3.085064257 | AR41: 39.807 | AS41: 0.2913177423 | AT41: 40.09831774 | AU41: 39.64078531
A42: 2025-01-02 | B42: 6 | C42: Off | D42: 29.151389 | E42: 0.012101423 | G42: 1.104 | H42: 0.009456393251 | I42: 1.113456393 | J42: 1.099981986 | K42: 9.565 | L42: 0.08192971145 | M42: 9.646929711 | N42: 9.530188134 | O42: 36.928 | P42: 0.3163095018 | Q42: 37.2443095 | R42: 36.79360036 | S42: 5.428 | T42: 0.04649393348 | U42: 5.474493933 | V42: 5.408244767 | W42: 53.025 | X42: 0.45418954 | Y42: 53.47918954 | Z42: 52.83201525 | AB42: 2.117 | AC42: 0.0181333193 | AD42: 2.135133319 | AE42: 2.109295168 | AF42: 3.513 | AG42: 0.03009086005 | AH42: 3.54309086 | AI42: 3.500214419 | AJ42: 32.217 | AK42: 0.2759570846 | AL42: 32.49295708 | AM42: 32.09974607 | AN42: 3.216 | AO42: 0.02754688469 | AP42: 3.243546885 | AQ42: 3.204295352 | AR42: 41.063 | AS42: 0.3517281486 | AT42: 41.41472815 | AU42: 40.913551
A43: 2025-01-02 | B43: 7 | C43: Off | D43: 29.867813 | E43: 0.011947557 | G43: 1.104 | H43: 0.01037586691 | I43: 1.114375867 | J43: 1.101061798 | K43: 9.927 | L43: 0.09329821628 | M43: 10.02029822 | N43: 9.900580132 | O43: 39.589 | P43: 0.3720744519 | Q43: 39.96107445 | R43: 39.48363724 | S43: 5.824 | T43: 0.0547364573 | U43: 5.878736457 | V43: 5.808499918 | W43: 56.444 | X43: 0.5304849924 | Y43: 56.97448499 | Z43: 56.29377909 | AB43: 2.117 | AC43: 0.01989647667 | AD43: 2.136896477 | AE43: 2.111365784 | AF43: 3.629 | AG43: 0.03410690308 | AH43: 3.663106903 | AI43: 3.619341725 | AJ43: 34.676 | AK43: 0.3258999645 | AL43: 35.00189996 | AM43: 34.58371277 | AN43: 3.36 | AO43: 0.03157872537 | AP43: 3.391578725 | AQ43: 3.351057645 | AR43: 43.782 | AS43: 0.4114820696 | AT43: 44.19348207 | AU43: 43.66547792
A44: 2025-01-02 | B44: 8 | C44: On | D44: 56.401503 | E44: 0.011672477 | G44: 1.104 | H44: 0.0151337336 | I44: 1.119133734 | J44: 1.106070671 | K44: 10.466 | L44: 0.1434688911 | M44: 10.60946889 | N44: 10.48563011 | O44: 43.811 | P44: 0.6005652197 | Q44: 44.41156522 | R44: 43.89317225 | S44: 6.35 | T44: 0.08704638436 | U44: 6.437046384 | V44: 6.361910108 | W44: 61.731 | X44: 0.8462142288 | Y44: 62.57721423 | Z44: 61.84678313 | AB44: 2.117 | AC44: 0.02902003082 | AD44: 2.146020031 | AE44: 2.120970661 | AF44: 3.782 | AG44: 0.05184400404 | AH44: 3.833844004 | AI44: 3.789093548 | AJ44: 37.957 | AK44: 0.520318049 | AL44: 38.47731805 | AM44: 38.02819244 | AN44: 3.578 | AO44: 0.04904755326 | AP44: 3.627047553 | AQ44: 3.584710924 | AR44: 47.434 | AS44: 0.6502296371 | AT44: 48.08422964 | AU44: 47.52296757
A45: 2025-01-02 | B45: 9 | C45: On | D45: 38.654288 | E45: 0.011118782 | G45: 1.104 | H45: 0.01015241477 | I45: 1.114152415 | J45: 1.101764397 | K45: 10.572 | L45: 0.09722040663 | M45: 10.66922041 | N45: 10.55059167 | O45: 47.857 | P45: 0.4400943057 | Q45: 48.29709431 | R45: 47.76008944 | S45: 6.802 | T45: 0.06255138156 | U45: 6.864551382 | V45: 6.788225931 | W45: 66.335 | X45: 0.6100185087 | Y45: 66.94501851 | Z45: 66.20067144 | AB45: 2.117 | AC45: 0.019467991 | AD45: 2.136467991 | AE45: 2.112713069 | AF45: 3.646 | AG45: 0.03352871761 | AH45: 3.679528718 | AI45: 3.63861684 | AJ45: 39.889 | AK45: 0.3668203557 | AL45: 40.25582036 | AM45: 39.80822466 | AN45: 3.816 | AO45: 0.03509204235 | AP45: 3.851092042 | AQ45: 3.808272589 | AR45: 49.468 | AS45: 0.4549091066 | AT45: 49.92290911 | AU45: 49.36782716
A46: 2025-01-02 | B46: 10 | C46: On | D46: 33.137196 | E46: 0.010210235 | G46: 1.104 | H46: 0.00912603511 | I46: 1.113126035 | J46: 1.101760757 | K46: 10.839 | L46: 0.08959881754 | M46: 10.92859882 | N46: 10.81701526 | O46: 51.844 | P46: 0.4285599314 | Q46: 52.27255993 | R46: 51.73884481 | S46: 7.207 | T46: 0.05957548464 | U46: 7.266575485 | V46: 7.192382041 | W46: 70.994 | X46: 0.5868602687 | Y46: 71.58086027 | Z46: 70.85000286 | AB46: 2.117 | AC46: 0.01749983363 | AD46: 2.134499834 | AE46: 2.112706089 | AF46: 3.747 | AG46: 0.03097396156 | AH46: 3.777973962 | AI46: 3.73939996 | AJ46: 41.961 | AK46: 0.3468637312 | AL46: 42.30786373 | AM46: 41.8758905 | AN46: 3.924 | AO46: 0.03243710305 | AP46: 3.956437103 | AQ46: 3.91604095 | AR46: 51.749 | AS46: 0.4277746295 | AT46: 52.17677463 | AU46: 51.6440375
A47: 2025-01-02 | B47: 11 | C47: On | D47: 33.691033 | E47: 0.009759453 | G47: 1.104 | H47: 0.008733007581 | I47: 1.112733008 | J47: 1.101873342 | K47: 11.782 | L47: 0.09319954286 | M47: 11.87519954 | N47: 11.75930409 | O47: 55.524 | P47: 0.4392133269 | Q47: 55.96321333 | R47: 55.41704298 | S47: 7.538 | T47: 0.05962808981 | U47: 7.59762809 | V47: 7.523479396 | W47: 75.948 | X47: 0.6007739672 | Y47: 76.54877397 | Z47: 75.80169981 | AB47: 2.117 | AC47: 0.01674617486 | AD47: 2.133746175 | AE47: 2.112921979 | AF47: 3.931 | AG47: 0.03109551884 | AH47: 3.962095519 | AI47: 3.923427634 | AJ47: 43.867 | AK47: 0.3470025757 | AL47: 44.21400258 | AM47: 43.7824981 | AN47: 3.988 | AO47: 0.03154640782 | AP47: 4.019546408 | AQ47: 3.980317834 | AR47: 53.903 | AS47: 0.4263906772 | AT47: 54.32939068 | AU47: 53.79916554
A48: 2025-01-02 | B48: 12 | C48: On | D48: 30.145444 | E48: 0.009646917 | G48: 1.104 | H48: 0.00821503466 | I48: 1.112215035 | J48: 1.101485589 | K48: 12.206 | L48: 0.09082673284 | M48: 12.29682673 | N48: 12.17820027 | O48: 57.193 | P48: 0.4255819541 | Q48: 57.61858195 | R48: 57.06274028 | S48: 7.558 | T48: 0.05624024634 | U48: 7.614240246 | V48: 7.540786303 | W48: 78.061 | X48: 0.5808639679 | Y48: 78.64186397 | Z48: 77.88321243 | AB48: 2.117 | AC48: 0.01575292425 | AD48: 2.132752924 | AE48: 2.112178434 | AF48: 4.081 | AG48: 0.03036735185 | AH48: 4.111367352 | AI48: 4.071705332 | AJ48: 44.807 | AK48: 0.3334158134 | AL48: 45.14041581 | AM48: 44.70494997 | AN48: 3.989 | AO48: 0.02968276563 | AP48: 4.018682766 | AQ48: 3.979914867 | AR48: 54.994 | AS48: 0.4092188551 | AT48: 55.40321886 | AU48: 54.8687486
A49: 2025-01-02 | B49: 13 | C49: On | D49: 32.8752 | E49: 0.00954625 | G49: 1.104 | H49: 0.006901096195 | I49: 1.110901096 | J49: 1.100296157 | K49: 11.87 | L49: 0.07419928609 | M49: 11.94419929 | N49: 11.83017697 | O49: 57.627 | P49: 0.3602259696 | Q49: 57.98722597 | R49: 57.43366541 | S49: 7.467 | T49: 0.04667616421 | U49: 7.513676164 | V49: 7.441948733 | W49: 78.068 | X49: 0.4880025161 | Y49: 78.55600252 | Z49: 77.80608728 | AB49: 2.117 | AC49: 0.01323335203 | AD49: 2.130233352 | AE49: 2.109897612 | AF49: 4.018 | AG49: 0.0251164896 | AH49: 4.04311649 | AI49: 4.004519889 | AJ49: 44.912 | AK49: 0.2807445945 | AL49: 45.19274459 | AM49: 44.76132336 | AN49: 3.972 | AO49: 0.02482894392 | AP49: 3.996828944 | AQ49: 3.958674216 | AR49: 55.019 | AS49: 0.3439233801 | AT49: 55.36292338 | AU49: 54.83441507
A50: 2025-01-02 | B50: 14 | C50: On | D50: 36.486327 | E50: 0.009352255 | G50: 1.104 | H50: 0.00561365554 | I50: 1.109613656 | J50: 1.099236266 | K50: 12.065 | L50: 0.06134850914 | M50: 12.12634851 | N50: 12.01293981 | O50: 57.444 | P50: 0.2920931421 | Q50: 57.73609314 | R50: 57.19613048 | S50: 7.411 | T50: 0.03768369675 | U50: 7.448683697 | V50: 7.379021707 | W50: 78.024 | X50: 0.3967390035 | Y50: 78.420739 | Z50: 77.68732826 | AB50: 2.117 | AC50: 0.01076459129 | AD50: 2.127764591 | AE50: 2.107865194 | AF50: 4.01 | AG50: 0.02039018 | AH50: 4.03039018 | AI50: 3.992696943 | AJ50: 44.707 | AK50: 0.2273276252 | AL50: 44.93432763 | AM50: 44.51409034 | AN50: 3.994 | AO50: 0.02030882267 | AP50: 4.014308823 | AQ50: 3.976765983 | AR50: 54.828 | AS50: 0.2787912192 | AT50: 55.10679122 | AU50: 54.59141846
A51: 2025-01-02 | B51: 15 | C51: On | D51: 30.793549 | E51: 0.00934356 | G51: 1.104 | H51: 0.007825701801 | I51: 1.111825702 | J51: 1.101437292 | K51: 12.21 | L51: 0.08655056068 | M51: 12.29655056 | N51: 12.181657 | O51: 56.66 | P51: 0.4016342971 | Q51: 57.0616343 | R51: 56.52847549 | S51: 7.172 | T51: 0.05083870771 | U51: 7.222838708 | V51: 7.155351681 | W51: 77.146 | X51: 0.5468492673 | Y51: 77.69284927 | Z51: 76.96692147 | AB51: 2.117 | AC51: 0.01500635028 | AD51: 2.13200635 | AE51: 2.112085821 | AF51: 3.996 | AG51: 0.02832563804 | AH51: 4.024325638 | AI51: 3.98672411 | AJ51: 44.3 | AK51: 0.3140204618 | AL51: 44.61402046 | AM51: 44.19716668 | AN51: 3.908 | AO51: 0.02770185022 | AP51: 3.93570185 | AQ51: 3.898928384 | AR51: 54.321 | AS51: 0.3850543003 | AT51: 54.7060543 | AU51: 54.194905
A52: 2025-01-02 | B52: 16 | C52: On | D52: 30.226945 | E52: 0.009714007 | G52: 1.104 | H52: 0.007041261014 | I52: 1.111041261 | J52: 1.100248598 | K52: 12.115 | L52: 0.07726891049 | M52: 12.19226891 | N52: 12.07383312 | O52: 55.763 | P52: 0.3556538387 | Q52: 56.11865384 | R52: 55.57351684 | S52: 7.051 | T52: 0.04497095236 | U52: 7.095970952 | V52: 7.027040641 | W52: 76.033 | X52: 0.4849349626 | Y52: 76.51793496 | Z52: 75.77463921 | AB52: 2.117 | AC52: 0.01350212823 | AD52: 2.130502128 | AE52: 2.109806416 | AF52: 3.956 | AG52: 0.0252311853 | AH52: 3.981231185 | AI52: 3.942557478 | AJ52: 43.229 | AK52: 0.2757125656 | AL52: 43.50471257 | AM52: 43.08210748 | AN52: 3.808 | AO52: 0.02428724813 | AP52: 3.832287248 | AQ52: 3.795060383 | AR52: 53.11 | AS52: 0.3387331272 | AT52: 53.44873313 | AU52: 52.92953176
A53: 2025-01-02 | B53: 17 | C53: On | D53: 55.909364 | E53: 0.010143311 | G53: 1.104 | H53: 0.01098551439 | I53: 1.114985514 | J53: 1.10367587 | K53: 12.393 | L53: 0.1233183694 | M53: 12.51631837 | N53: 12.38936146 | O53: 53.904 | P53: 0.536379681 | Q53: 54.44037968 | R53: 53.88817398 | S53: 6.873 | T53: 0.06839079748 | U53: 6.941390797 | V53: 6.870982112 | W53: 74.274 | X53: 0.7390743623 | Y53: 75.01307436 | Z53: 74.25219342 | AB53: 2.117 | AC53: 0.0210655199 | AD53: 2.13806552 | AE53: 2.116378456 | AF53: 3.972 | AG53: 0.03952397026 | AH53: 4.01152397 | AI53: 3.970833835 | AJ53: 42.033 | AK53: 0.4182555493 | AL53: 42.45125555 | AM53: 42.02065926 | AN53: 3.769 | AO53: 0.0375039889 | AP53: 3.806503989 | AQ53: 3.767893435 | AR53: 51.891 | AS53: 0.5163490284 | AT53: 52.40734903 | AU53: 51.87576499
A54: 2025-01-02 | B54: 18 | C54: On | D54: 109.183255 | E54: 0.011138847 | G54: 1.104 | H54: 0.01019514813 | I54: 1.114195148 | J54: 1.101784299 | K54: 12.414 | L54: 0.114640008 | M54: 12.52864001 | N54: 12.3890854 | O54: 51.512 | P54: 0.4756997014 | Q54: 51.9876997 | R54: 51.40861667 | S54: 6.712 | T54: 0.06198354551 | U54: 6.773983546 | V54: 6.698529179 | W54: 71.742 | X54: 0.6625184031 | Y54: 72.4045184 | Z54: 71.59801555 | AB54: 2.117 | AC54: 0.01954993532 | AD54: 2.136549935 | AE54: 2.112751232 | AF54: 4.251 | AG54: 0.03925686114 | AH54: 4.290256861 | AI54: 4.242468346 | AJ54: 41.971 | AK54: 0.3875910889 | AL54: 42.35859109 | AM54: 41.88676522 | AN54: 3.774 | AO54: 0.03485189224 | AP54: 3.808851892 | AQ54: 3.766425674 | AR54: 52.113 | AS54: 0.4812497776 | AT54: 52.59424978 | AU54: 52.00841048
A55: 2025-01-02 | B55: 19 | C55: On | D55: 45.877498 | E55: 0.010300984 | G55: 1.104 | H55: 0.01160892499 | I55: 1.115608925 | J55: 1.104117055 | K55: 11.942 | L55: 0.1255740781 | M55: 12.06757408 | N55: 11.94326619 | O55: 49.109 | P55: 0.5163973709 | Q55: 49.62539737 | R55: 49.11420695 | S55: 6.529 | T55: 0.06865459355 | U55: 6.597654594 | V55: 6.529692259 | W55: 68.684 | X55: 0.7222349676 | Y55: 69.40623497 | Z55: 68.69128245 | AB55: 2.117 | AC55: 0.0222609549 | AD55: 2.139260955 | AE55: 2.117224462 | AF55: 4.231 | AG55: 0.04449036381 | AH55: 4.275490364 | AI55: 4.231448606 | AJ55: 40.813 | AK55: 0.4291621882 | AL55: 41.24216219 | AM55: 40.81732734 | AN55: 3.762 | AO55: 0.03955867375 | AP55: 3.801558674 | AQ55: 3.762398879 | AR55: 50.923 | AS55: 0.5354721806 | AT55: 51.45847218 | AU55: 50.92839928
